Workbook

Sheet modList00 (hidden)

Sheet modProvGeneralProc (hidden)

Sheet modList02 (hidden)

Sheet modfrmReestrSource (hidden)

Sheet modHTTP (hidden)

Sheet modPreload (hidden)

Sheet modReestr (hidden)

Sheet modProv (hidden)

Sheet modfrmRegion (hidden)

Sheet Инструкция
AA1: (требуется обновление)
B2: ="Код шаблона: " & GetCode() -> Код шаблона: EXPERT.VSVO.INDEX.CORR
B3: ="Версия " & Getversion() -> Версия 4.3
B5: Экспертное заключение об установлении тарифов в сфере холодного водоснабжения/водоотведения методом индексации (корректировка)
E7: • На рабочем месте должен быть установлен MS Office 2007 SP3, 2010, 2013, 2016, 2019 с полной версией MS Excel • Макросы во время работы должны быть включены (!) • Для корректной работы отчёта требуется выбрать низкий уровень безопасности (В меню MS Excel 2007 и выше: Параметры Excel | Центр управления безопасностью | Параметры центра управления безопасностью | Параметры макросов | Включить все макросы | ОК)
E14: • Если Вы работаете в табличном процессоре MS Excel 2007 и выше, то можете использовать для работы формат XLSB (Двоичная книга Excel). При работе в формате XLSB заметно быстрее происходит сохранение файла, а также уменьшается размер по сравнению с форматами XLS и XLSM • Не рекомендуется снимать защиту с листов и каким-либо образом модифицировать защищаемые формулы и расчётные поля, в противном случае, отчёт будет отклонён системой • При сохранении не следует выбирать формат XLSX (Книга Excel), так как в указанном формате макросы, необходимые для работы отчёта, безвозвратно удаляются
E21: A | F21: - предназначенные для заполнения | O21: A | P21: - ссылки и автозаполняемые поля
E22: A | F22: - с формулами и константами | O22: A | P22: - обязательные для заполнения
E35: Если в предложенном Вам списке необходимая организация, МР/МО отсутствуют, обновите реестры с помощью кнопок В результате синхронизации с базой данных список организаций (МР/МО) будет заменён актуальным (механизм синхронизации требует подключения к сети Интернет и основан на использовании протокола HTTPS (TCP порт 443))
E46: • При сохранении шаблона осуществляется проверка корректности данных, в том числе на наличие значений в ячейках, обязательных для заполнения • Если какая-то ячейка не удовлетворяет условию проверки, на лист «Проверка» добавляется гиперссылка на данную ячейку и указывается причина ошибки • В колонке «Статус» для каждого сообщения возможны 2 значения: ошибка и предупреждение • При наличии сообщений со статусом «Ошибка» шаблон будет отклонён системой и не будет загружен в хранилище данных, сообщения со статусом «Предупреждение» носят информационный характер, и такой шаблон будет принят системой
E59: Обратиться в службу поддержки
E70: Понятия, используемые в Типовом экспертном заключении: "Факт, принятый органом регулирования" - экономически обоснованные фактические значения расходов на основании данных бухгалтерской и статистической отчетности регулируемой организации за соответствующий период, с учетом данных, полученных по результатам проведенных органом регулирования тарифов мероприятий по контролю, предусмотренных Постановлением Правительства РФ от 27.06.2013 N 543; "Факт по данным организации" - экономически обоснованные фактические значения расходов в соответствии с данными раздельного учета затрат по видам деятельности организаций, осуществляющих горячее водоснабжение, холодное водоснабжение и (или) водоотведение.
E93: При наличии подключения к Интернет, можно автоматически проверять наличие доступных обновлений. Выберите способ оповещения о наличии обновлений для отчёта:
F95: проверять доступные обновления (рекомендуется) | AA95: y
F97: никогда не проверять наличие обновлений (не рекомендуется)

Sheet Лог обновления (hidden)
A1: Дата/Время | B1: Сообщение | C1: Статус
A3: 2024-03-27T16:59:40 | B3: Проверка доступных обновлений... | C3: Информация
A4: 2024-03-27T16:59:41 | B4: Нет доступных обновлений для отчёта с кодом EXPERT.VSVO.INDEX.CORR! | C4: Информация
A5: 2024-03-28T09:15:16 | B5: Проверка доступных обновлений... | C5: Информация
A6: 2024-03-28T10:14:44 | B6: Проверка доступных обновлений... | C6: Информация
A7: 2024-03-28T10:14:45 | B7: Нет доступных обновлений для отчёта с кодом EXPERT.VSVO.INDEX.CORR! | C7: Информация
A8: 2024-03-28T10:44:09 | B8: Проверка доступных обновлений... | C8: Информация
A9: 2024-03-28T10:44:10 | B9: Нет доступных обновлений для отчёта с кодом EXPERT.VSVO.INDEX.CORR! | C9: Информация
A10: 2024-10-22T14:08:49 | B10: Проверка доступных обновлений... | C10: Информация
A11: 2024-10-22T14:08:53 | B11: Нет доступных обновлений для отчёта с кодом EXPERT.VSVO.INDEX.CORR! | C11: Информация
A12: 2024-10-23T08:37:47 | B12: Проверка доступных обновлений... | C12: Информация
A13: 2024-10-23T08:37:48 | B13: Нет доступных обновлений для отчёта с кодом EXPERT.VSVO.INDEX.CORR! | C13: Информация
A14: 2024-10-23T17:36:42 | B14: Проверка доступных обновлений... | C14: Информация
A15: 2024-10-23T17:36:44 | B15: Доступно обновление до версии 5.0 | C15: Информация
A16: 2024-10-23T17:36:44 | B16: Описание изменений: Версия 5.0 | C16: Информация
A17: 2024-10-23T17:36:44 | B17: Размер файла обновления: 0 байт | C17: Информация
A18: 2024-10-23T17:36:49 | B18: Обновление отменено пользователем | C18: Предупреждение

Sheet Пояснения (hidden)
L12: Понятия, используемые в Типовом экспертном заключении
L14: № п/п | M14: Используемое понятие | N14: Расшифровка (пояснения)
L15: 1 | M15: факт по данным организации | N15: фактические значения расходов в соответствии с данными раздельного учета затрат по видам деятельности организаций, осуществляющих горячее водоснабжение, холодное водоснабжение и (или) водоотведение
L16: 2 | M16: факт, принятый органом регулирования | N16: фактические значения расходов в соответствии с данными бухгалтерской и статистической отчетности регулируемой организации за соответствующий период, с учетом данных, полученных по результатам проведенных органом регулирования тарифов мероприятий по контролю, предусмотренных Постановление Правительства РФ от 27.06.2013 N 543 (ред. от 17.08.2020) "О государственном контроле (надзоре) в области регулируемых государством цен (тарифов).

Sheet Список листов
L12: Список листов
L13: * для перехода на лист дважды кликните по названию
L14: скрыть | M14: Общие сведения | N14: 1. Сведения о регулируемой организации 2. Информация о рассмотрении дела об установлении тарифов
L15: скрыть | M15: Список территорий | N15: 3. Перечень муниципальных образований, на территории которых организация оказывает услуги холодного водоснабжения / водоотведения
L16: скрыть | M16: Список объектов | N16: 4. Перечень объектов организации, с помощью которых организация оказывает услуги холодного водоснабжения/ водоотведения 5. Правоустанавливающие и подтверждающие документы на объекты коммунальной инфраструктуры
L17: скрыть | M17: Сценарии | N17: 6. Ключевые сценарные показатели
L18: скрыть | M18: Баланс | N18: 7. Баланс водоснабжения / водоотведения
L19: скрыть | M19: Реагенты | N19: 8. Расходы на реагенты
L20: скрыть | M20: ЭЭ | N20: 9. Расходы на электрическую энергию
L21: скрыть | M21: Амортизация | N21: 10. Амортизация основных средств и нематериальных активов, относимых к объектам централизованной системы водоснабжения/водоотведения
L22: скрыть | M22: Аренда | N22: 11. Аренда
L23: скрыть | M23: Покупка | N23: 12. Расходы на оплату товаров (услуг, работ), приобретаемых у других организаций
L24: скрыть | M24: Налоги | N24: 13. Расшифровка по налогам и платежам
L25: скрыть | M25: ИП + источники | N25: 14. План и факт по источникам финансирования инвестиционной программы
L26: скрыть | M26: Экономия_корр | N26: 15. Расчет экономии средств, достигнутой в результате снижения расходов предыдущего долгосрочного периода регулирования
L27: скрыть | M27: Плата за негативное возд | N27: 16. Плата за негативное воздействие на работу централизованных систем водоотведения
L28: скрыть | M28: Корректировка НВВ | N28: 17. Расчет показателей корректировки необходимой валовой выручки
L29: скрыть | M29: Калькуляция | N29: 18. Расчет тарифа методом индексации
L30: скрыть | M30: ТМ | N30: 19. Тарифное меню
L31: скрыть | M31: ДПР | N31: 20. Долгосрочные параметры регулирования тарифов
L32: скрыть | M32: ДПР (концессии) | N32: 21. Долгосрочные параметры регулирования тарифов (концессии)

Sheet Общие сведения
E7: Субъект РФ | H7: Кемеровская область | I7: =INDEX(TEHSHEET!B1:B90,MATCH(region_name,REGION,0)) -> RU42
E8: Период регулирования | H8: 2025
E9: Первый год долгосрочного периода регулирования | H9: 2019 | I9: =first_year+PERIOD_LENGTH-1 -> 2028 | J9: =IF(onlyOneYear="да",god, last_year) -> 2025
E10: Период долгосрочной индексации (количество лет) | H10: 10
E11: Количество лет корректировки | H11: =IF(OR(PERIOD_LENGTH-god+first_year<=0,PERIOD_LENGTH-god+first_year>10),"",PERIOD_LENGTH-god+first_year) -> 4
E14: Экспертное заключение
E15: Региональная энергетическая комиссия Кемеровской области
E16: по результатам экспертизы предложения
D17: 26428076 | E17: ООО"БелГОС" | O17: =region_name & " / " & god & " / " & org& " (ИНН:" &inn& ", КПП:" &kpp&") / ДПР: " & first_year & "-" & last_year -> Кемеровская область / 2025 / ООО"БелГОС" (ИНН:4202023230, КПП:420201001) / ДПР: 2019-2028
E18: ="об установлении тарифов в сфере "&IF(AND(OR(hasVS,hasTranspVS),OR(hasVO,hasTranspVO)),"холодного водоснабжения / водоотведения",IF(OR(hasVS,hasTranspVS),"холодного водоснабжения",IF(OR(hasVO,hasTranspVO),"водоотведения","<не указано>")))&" методом индексации (корректировка)" -> об установлении тарифов в сфере водоотведения методом индексации (корректировка)
E19: ="на " & IF(god=first_year, god & "-"&last_year & " годы",god & " год") & " долгосрочного периода регулирования тарифов " & first_year & "-"&last_year & " гг." -> на 2025 год долгосрочного периода регулирования тарифов 2019-2028 гг.
E21: 1. Сведения о регулируемой организации
E22: Полное наименование юридического лица (индивидуального предпринимателя) в соответствии с данными из ЕГРЮЛ/ЕГРИП | H22: ОБЩЕСТВО С ОГРАНИЧЕННОЙ ОТВЕТСТВЕННОСТЬЮ "БЕЛОВСКИЕ ГОРОДСКИЕ ОЧИСТНЫЕ СООРУЖЕНИЯ"
E23: Сокращенное наименование юридического лица (индивидуального предпринимателя) в соответствии с данными из ЕГРЮЛ/ЕГРИП | H23: ООО "БЕЛГОС"
E24: Наименование (описание) обособленного подразделения
E25: ОГРН | H25: 1034202004407
E26: ИНН | H26: 4202023230
E27: КПП | H27: 420201001
E28: Код по ОКПО | J28: L2_7
E29: Организационно-правовая форма | H29: 1 23 00 | Общества с ограниченной ответственностью | J29: L2_8
E30: Юридический адрес | H30: 652600, Кемеровская область, г.Белово, ул.Кузбасская, 6 | J30: L2_9
E31: Фактический адрес | H31: 652600, Кемеровская область, г.Белово, ул.Кузбасская, 6 | J31: L2_10
E32: Телефон организации | H32: 8 (384-52)4-37-28; 2-92-28 | J32: L2_11
E33: e-mail | H33: belgos@bk.ru | J33: L2_12
E34: ФИО руководителя | H34: Трофимова Ольга Николаевна | J34: L2_13
E35: Должность руководителя | H35: Генеральный директор | J35: L2_14
E36: Официальный сайт регулируемой организации в сети "Интернет" | J36: L2_15
E37: Государственное и (или) муниципальное участие в юридическом лице | G37: Наличие | H37: нет | J37: L3_1
G38: Сведения о доле, % | H38: 0 % | J38: L3_2
G39: Преобладающий тип собственности в юридическом лице | H39: частная | J39: L3_3
E40: Наличие раздельного учёта затрат по регулируемым видам деятельности в сфере холодного водоснабжения / водоотведения | H40: нет | J40: L4_1
E41: Плательщик НДС | H41: да | J41: L4_2
E42: Является ли деятельность в сфере холодного водоснабжения / водоотведения профильным видом деятельности | H42: да | J42: L4_3
A43: STATUS_GO | E43: Наличие статуса гарантирующей организации (ГО) | H43: да | J43: L4_4
E44: URL-ссылка на документ, подтверждающий статус ГО | H44: https://portal.eias.ru/Portal/DownloadPage.aspx?type=12&guid=1ca451d7-b4ef-451e-bbc8-013eb27cb258
A45: go | H45: Добавить
E46: Наличие программы в области энергосбережения и повышения энергетической эффективности | H46: да | J46: L4_6
A47: HAS_DOC2 | E47: Наличие программы комплексного развития | H47: да | J47: L4_7
E48: Реквизиты решения | F48: Наименование | H48: Об утверждении Программы комплексного развития систем коммунальной инфраструктуры Беловского городского округа Кемеровской области – Кузбасса до 2036 года. Актуализированная редакция на 2023 год
F49: Вид | H49: решение
F50: Номер | H50: 53/294-н
F51: Дата принятия | H51: 19.07.2022
F52: URL-ссылка на решение
A53: HAS_DOC2 | H53: Добавить
A54: HAS_DOC3 | E54: Наличие схемы холодного водоснабжения / водоотведения | H54: да | J54: L4_8
E55: Реквизиты решения | F55: Наименование | H55: Об утверждении Схемы водоснабжения и водоотведения Беловского городского округа Кемеровской области - Кузбасса до 2030 года. Актуализированная редакция на 2023 год.
F56: Вид | H56: постановление
F57: Номер | H57: 2162-п
F58: Дата принятия | H58: 29.07.2022
F59: URL-ссылка на решение
A60: HAS_DOC3 | H60: Добавить
A61: HAS_DOC4 | E61: Наличие закона субъекта по льготным тарифам | H61: да | J61: L4_9
E62: Реквизиты решения | F62: Наименование | H62: О льготных ценах (тарифах) на тепловую энергию (мощность), теплоноситель, горячее, холодное водоснабжение, водоотведение, твердое топливо на территории Кемеровской области – Кузбасса
F63: Вид | H63: закон
F64: Номер | H64: № 69-ОЗ
F65: Дата принятия | H65: 03.07.2020
F66: URL-ссылка на решение
A67: HAS_DOC4 | H67: Добавить
A68: HAS_DOC5 | E68: ="Наличие утверждённых ОИВ инвестиционных программ, действующих в течение "&god-2&" года, для организации, оказывающей услуги холодного водоснабжения/водоотведения" -> Наличие утверждённых ОИВ инвестиционных программ, действующих в течение 2023 года, для организации, оказывающей услуги холодного водоснабжения/водоотведения | H68: нет | J68: L4_10
E69: Реквизиты решения | F69: Наименование
F70: Вид
F71: Номер
F72: Дата принятия
F73: Дата начала реализации / действия инвестиционной программы
F74: Дата окончания реализации / действия инвестиционной программы
A75: HAS_DOC5 | H75: Добавить
A76: HAS_DOC6 | E76: ="Наличие утверждённых ОИВ инвестиционных программ, действующих в течение "&god&" года, для организации, оказывающей услуги холодного водоснабжения/водоотведения" -> Наличие утверждённых ОИВ инвестиционных программ, действующих в течение 2025 года, для организации, оказывающей услуги холодного водоснабжения/водоотведения | H76: нет | J76: L4_11
E77: Реквизиты решения | F77: Наименование
F78: Вид
F79: Номер
F80: Дата принятия
F81: Дата начала реализации / действия инвестиционной программы
F82: Дата окончания реализации / действия инвестиционной программы
A83: HAS_DOC6 | H83: Добавить
A84: HAS_DOC7 | E84: ="Наличие утверждённых ОИВ концессионных соглашений, действующих в течение "&god&" года, для организации, оказывающей услуги холодного водоснабжения/водоотведения" -> Наличие утверждённых ОИВ концессионных соглашений, действующих в течение 2025 года, для организации, оказывающей услуги холодного водоснабжения/водоотведения | H84: да | J84: L4_12
E85: Реквизиты решения | F85: Наименование | H85: КОНЦЕССИОННОЕ СОГЛАШЕНИЕ № 1 в отношении объектов водоотведения, находящихся в муниципальной собственности муниципального образования Беловский городской округ
F86: Вид | H86: соглашение
F87: Номер | H87: 1
F88: Дата принятия | H88: 10.01.2019
F89: Дата начала реализации / действия концессионного соглашения | H89: 10.01.2019
F90: Дата окончания реализации / действия концессионного соглашения | H90: 31.12.2028
A91: HAS_DOC7 | H91: Добавить
E92: Иные сведения | J92: L4_13
A93: STATUS_GO | E93: Полезный отпуск рассчитывается с учётом собственных нужд предприятия (п.10.1 баланса ВС и п.6 баланса ВО) | H93: нет | J93: L4_14
E95: Данные об ответственном исполнителе от организации | G95: ФИО исполнителя | H95: Землянухина Людмила Дмитриевна | J95: L5_1
G96: Должность исполнителя | H96: Начальник Планово-экономического отдела | J96: L5_2
G97: Контактный телефон исполнителя | H97: 8 (384-52) 96-600 | J97: L5_3
G98: e-mail исполнителя | H98: ekonom.gos@bk.ru | J98: L5_4
E100: Перечень нормативных правовых актов, использованных в процессе проведения экспертизы предложения об установлении тарифов:
E101: 1. Гражданский кодекс Российской Федерации;
E102: 2. Налоговый кодекс Российской Федерации;
E103: 3. Федеральный закон от 17.08.1995 № 147-ФЗ "О естественных монополиях";
E104: 4. Федеральный закон от 26.07.2006 № 135-ФЗ "О защите конкуренции";
E105: 5. Федеральный закон от 07.12.2011 № 416-ФЗ "О водоснабжении и водоотведении";
E106: 6. Федеральный закон от 23.11.2009 № 261-ФЗ "Об энергосбережении и о повышении энергетической эффективности, и о внесении изменений в отдельные законодательные акты Российской Федерации";
E107: 7. Постановление Правительства Российской Федерации от 13.05.2013 № 406 "О государственном регулировании тарифов в сфере водоснабжения и водоотведения";
E108: 8. Постановление Правительства Российской Федерации от 29.07.2013 № 641 "Об инвестиционных и производственных программах организаций, осуществляющих деятельность в сфере водоснабжения и водоотведения";
E109: 9. Методические указания по расчету регулируемых тарифов в сфере водоснабжения и водоотведения, утвержденные приказом ФСТ России от 27.12.2013 № 1746-э;
E110: 10. Регламент установления регулируемых тарифов в сфере водоснабжения и водоотведения, утвержденный приказом ФСТ России от 16.07.2014 № 1154-э;
E111: 11. Приказ Минстроя России от 25.12.2014 № 22/пр "Об утверждении Порядка ведения раздельного учета затрат по видам деятельности организаций, осуществляющих горячее водоснабжение, холодное водоснабжение и (или) водоотведение, и единой системы классификации таких затрат";
E112: 12. Приказ Минстроя России от 04.04.2014 № 162/пр "Об утверждении перечня показателей надежности, качества, энергетической эффективности объектов централизованных систем горячего водоснабжения, холодного водоснабжения и (или) водоотведения, порядка и правил определения плановых значений и фактических значений таких показателей";
E113: 13. Приказ Минстроя России от 23.03.2020 №154/пр "Об утверждении типовых отраслевых норм численности работников водопроводно-канализационного хозяйства";
E114: 14. Иные нормативные правовые акты Российской Федерации.
G115: =COUNTIF(H121:H135,"Водоснабжение")-COUNTIF(H121:H135,"Транспортировка воды")>0 -> FALSE | H115: =COUNTIF(H121:H135,"Водоотведение")-COUNTIF(H121:H135,"Транспортировка сточных вод")>0 -> TRUE | I115: =COUNTIF(H121:H135,"Транспортировка воды")>0 -> FALSE | J115: =COUNTIF(H121:H135,"Транспортировка сточных вод")>0 -> FALSE
E116: 2. Информация о рассмотрении дела об установлении тарифов
E117: Реквизиты решения, которым установлены действующие тарифы | G117: Организация регулируется впервые | H117: нет | J117: L6_1
G118: Вид | H118: постановление | J118: L6_2
G119: Номер | H119: 625 | J119: L6_3
G120: Дата принятия | H120: 25.11.2022 | J120: L6_4
D121: 0 | E121: ="Заявление организации" -> Заявление организации
D122: 1 | G122: ="Тариф " & D122 -> Тариф 1 | H122: Водоотведение | I122: О | J122: =G122 & " (" &H122& ") - " &H124 & IF(H128="",""," (" & H128 & ")") -> Тариф 1 (Водоотведение) - тариф на водоотведение | K122: =H127 -> без дифференциации | L122: =H124 -> тариф на водоотведение | M122: =H128 -> 0 | N122: =H125 -> одноставочный
G123: Номер тарифа (идентификатор) | H123: ВО.42.26428076.0002
G124: Вид тарифа | H124: тариф на водоотведение
G125: Тип тарифа | H125: одноставочный
G126: Вид(-ы) деятельности | H126: Приём сточных вод :: Очистка сточных вод :: Транспортировка сточных вод
G127: =IF(H122="Водоотведение","Вид сточных вод","Вид воды") -> Вид сточных вод | H127: без дифференциации
G128: Дополнительный признак дифференциации тарифа
B129: =org_declaration="Заявление организации" -> TRUE | G129: Номер входящий
B130: TRUE | G130: Дата регистрации
B131: TRUE | G131: Дополнительные сведения
B132: TRUE | G132: Метод регулирования, предложенный организацией
B133: TRUE | G133: =IF(OR(H132="экономически обоснованных расходов (затрат)",H132="сравнения аналогов"),"Период регулирования","Первый год долгосрочного периода регулирования, предложенный организацией") -> Первый год долгосрочного периода регулирования, предложенный организацией
B134: TRUE | G134: Период долгосрочной индексации (количество лет)
G135: Добавить тариф
E136: Решение об открытии дела об установлении тарифов | G136: Номер дела об установлении тарифа | H136: № 53-ВО | J136: L7_2
G137: ФИО уполномоченного по делу | H137: Белоусова Ирина Анатольевна | J137: L7_3
G138: Должность уполномоченного по делу | H138: Главный консультант | J138: L7_4
G139: Контактный телефон уполномоченного по делу | H139: 8 (384-2) 34-94-52 | J139: L7_5
G140: e-mail уполномоченного по делу | H140: belousova_ia.71@mail.ru | J140: L7_6
G141: Добавить строку
G142: Выбранный метод регулирования | H142: ="индексации" & IF(god=first_year,""," (корректировка)") -> индексации (корректировка)
G143: Период регулирования (корректировки) | H143: =god -> 2025
G144: Первый год долгосрочного периода регулирования | H144: =first_year -> 2019
G145: Период долгосрочной индексации (количество лет) | H145: =PERIOD_LENGTH -> 10
E146: Представленные документы и материалы достаточны и предложение регулируемой организации об установлении тарифов соответствует законодательству Российской Федерации | H146: да
E148: Тариф корректируется только на период регулирования | H148: да | J148: L9

Sheet Список территорий
M1: MR_NAME | N1: MO_NAME | O1: OKTMO
M11: =tpl_title -> Кемеровская область / 2025 / ООО"БелГОС" (ИНН:4202023230, КПП:420201001) / ДПР: 2019-2028
L12: 3. Перечень муниципальных образований, на территории которых организация оказывает услуги холодного водоснабжения / водоотведения
L14: № п/п | M14: Муниципальный район | N14: Муниципальное образование | O14: ОКТМО | P14: Тип муниципального образования | Q14: Дополнительные сведения
A15: ='Общие сведения'!$D$122 -> 1 | L15: =INDEX('Общие сведения'!$J$121:$J$135,MATCH($A15,'Общие сведения'!$D$121:$D$135,0)) -> Тариф 1 (Водоотведение) - тариф на водоотведение
A16: =A15 -> 1 | L16: 1 | M16: город Белово | N16: город Белово | O16: 32707000 | Q16: Зона деятельности гарантирующей организации определена в границах центральной части г. Белово, пгт. Грамотеино, пгт. Инской.
A17: =A15 -> 1 | M17: Добавить территорию

Sheet Список объектов
O1: =god-2 -> 2023 | P1: =god-1 -> 2024 | Q1: =god -> 2025 | R1: =god -> 2025 | S1: =god -> 2025
O2: Не определено | P2: Принято органом регулирования | Q2: Предложение организации | R2: Принято органом регулирования | S2: Не определено
M11: =tpl_title -> Кемеровская область / 2025 / ООО"БелГОС" (ИНН:4202023230, КПП:420201001) / ДПР: 2019-2028
L12: 4. Перечень объектов организации, с помощью которых организация оказывает услуги холодного водоснабжения/ водоотведения
L14: № п/п | M14: Наименование показателя | N14: Единица измерения | O14: =god-2 & " год" -> 2023 год | P14: =god-1 & " год" -> 2024 год | Q14: =god & " год" -> 2025 год | R14: =god & " год" -> 2025 год | S14: Комментарии
A15: t | O15: Принято органом регулирования | P15: Принято органом регулирования | Q15: Предложение организации | R15: Принято органом регулирования
A16: ='Общие сведения'!$D$122 -> 1 | L16: =INDEX('Общие сведения'!$J$121:$J$135,MATCH($A16,'Общие сведения'!$D$121:$D$135,0)) -> Тариф 1 (Водоотведение) - тариф на водоотведение
A17: =A16 -> 1 | B17: L1 | C17: L3 | D17: =M17&"::"&N17 -> Биологические очистные сооружения::ед. | L17: 1 | M17: Биологические очистные сооружения | N17: ед. | O17: 4 | P17: 4 | R17: 4
A18: =A17 -> 1 | B18: L1 | C18: L3 | D18: =M18&"::"&N18 -> Канализационные насосные станции::ед. | L18: 2 | M18: Канализационные насосные станции | N18: ед. | O18: 10 | P18: 10 | R18: 10
A19: =A18 -> 1 | B19: L1 | C19: L3 | D19: =M19&"::"&N19 -> Канализационные сети::км | L19: 3 | M19: Канализационные сети | N19: км | O19: 119.3 | P19: 119.3 | R19: 119.3
A20: =A19 -> 1 | B20: =A20&"pIns" -> 1pIns | M20: Добавить
A21: =A20 -> 1 | B21: L2 | C21: L3 | D21: =M21 -> Краткое описание технологического процесса | M21: Краткое описание технологического процесса | O21: ОЧИСТНЫЕ СООРУЖЕНИЯ Г. БЕЛОВО (ВЫПУСК № 1). Действующие очистные сооружения канализации расположены в центральной части г. Белово. Проектная производительность составляет 30,0 тыс. м3/сут, или 10950,0 тыс. м3/год; фактическая – около 5901,0 тыс. м3/год. Хозяйственно-бытовые сточные воды от объектов жилищного фонда, предприятий и организаций, собственных производственных участков ООО «БелГОС», а также ливневые сточные воды поступают по коллектору в приемную камеру главной насосной станции (ГНС). С ГНС сточная вода насосами подается на механическую многоступенчатую решетку РС-1000, где задерживаются грубодисперсные минеральные примеси. Далее сточные воды поступают в песколовки, предназначенные для очищения вод от тяжелых примесей минерального происхождения. Сточная вода возвращается на ГНС, а песок с песколовок сбрасывается на песковую площадку. В первичных отстойниках осаждаются взвешенные вещества (40-70%), плавающие нефтепродукты, жиры и частично органические (15-40%) вещества, присутствующие в сточных водах. Выпавший на дно отстойника сырой осадок периодически выгружается в емкость сырого осадка и избыточного ила. Насосами насосно-воздуходувной станции сырой осадок подается в илоуплотнитель и затем на фильтр-пресс. После первичных отстойников сточная вода поступает в аэротенки для биологической очистки. Процесс биологической очистки происходит при непосредственном контакте сточных вод с микроорганизмами активного ила в присутствии растворенного кислорода. В аэротенки подается воздух с насосно-воздуходувной станции. С аэротенков очищенная вода поступает во вторичные отстойники, где происходит отделение активного ила от воды. Активный ил из вторичных отстойников возвращается в аэротенки, а излишки подаются в емкость сырого осадка и избыточного ила. Очищенная осветленная вода из вторичных отстойников поступает в контактные отстойники, куда подается гипохлорит натрия из хлораторной для обеззараживания стоков. После этого очищенная сточная вода по коллектору отводится в р. Большой Бачат. ОЧИСТНЫЕ СООРУЖЕНИ ПОС. ИНСКОЙ (ВЫПУСК № 2). Очистные сооружения расположены на левом берегу руч. Митрохин. Проектная производительность – 10 тыс. м3/сут. (3650 тыс. м3/год), фактическая – около 2549,40 тыс. м3. Сброс сточных вод осуществляется в границах населенного пункта – городской округ г. Белово (КАР/ОБЬ/2965/542). Хозяйственно-бытовые сточные воды от объектов жилищного фонда, предприятий и организаций, собственных производственных участков ООО «БелГОС», а также ливневые сточные воды поступают по коллектору в приемную камеру гашения напора, оборудованную насосами и решетками-дробилками. Далее стоки поступают в 2 горизонтальные песколовки с круговым движением воды. Осевший осадок с песколовок удаляется на 2 песковые площадки. Отстоянная вода с площадок вновь перекачивается в приемную камеру. Из песколовок сточная вода самотеком поступает в 4 первичных отстойника радиального типа. Биологическая очистка сточных вод происходит в 4-х аэротенках коридорного типа с пневматической аэрацией. Иловая смесь в аэротенке аэрируется сжатым воздухом. Далее стоки направляются в 4 вторичных горизонтальных отстойника для задержания активного ила. Минерализованный осадок из вторичных отстойников подается на 3 иловые карты. Обезвоживание осадка происходит естественным путем. Осветленная сточная вода отводится через лотки в трубопровод для переспуска в блок доочистки (биореакторы с сетчатой загрузкой). Биореактор представляет собой контейнеры с сетчатыми металлическими рамами, на которых прикрепляется биоценоз – сапрофитные аэробные бактерии. Сточные воды, проходя через рамы, обрабатываются прикрепленной к сеткам биомассой. Далее стоки поступают в контактные резервуары, где происходит их обеззараживание гипохлоритом натрия. Очищенная и обеззараженная сточная вода по самотечному коллектору направляется в руч. Митрохин. ОЧИСТНЫЕ СООРУЖЕНИЯ ПОС. КОЛМОГОРЫ (ВЫПУСК № 3 КАР/ОБЬ/2965). Действующие очистные сооружения с проектной производительностью 5,9 тыс. м3/сут (2153,5 тыс. м3/год, фактическая – около 980,6 тыс. м3/год) расположены на левом берегу р. Иня. Сточные воды, собираемые от абонентов в коллектор, поступают в приемную камеру насосной станции, где происходит гашение напора, и далее, пройдя через решетки, направляются на песколовки, предназначенные для освобождения стоков от тяжелых примесей минерального происхождения. Затем сточная вода распределяется по секциям блока емкостей и поступает в аэротенки продленной аэрации. Аэрация обеспечивается подачей сжатого воздуха через перфорированные трубы, уложенные на дне аэротенка. Атмосферный воздух проходит воздухозаборную камеру с фильтрами и подается турбовоздуходувками, расположенными в галерее обслуживания. Из аэротенков иловая смесь поступает во вторичные отстойники, где происходит разделение сточной воды и активного ила. Осветленная сточная вода отводится через лотки в трубопровод для переспуска в блок доочистки, а отстоявшийся активный ил эрлифтами, через объединенный трубопровод, постоянно отводится в начало аэротенков. При увеличении дозы ила в аэротенке, в результате прироста биомассы, избыточный активный ил направляется в аэробный стабилизатор, откуда стабилизированный ил отводится на иловые площадки. Очищенные стоки из блока емкостей биологической очистки поступают на доочистку, где, пройдя барабанные сетки, отводятся в приемный резервуар, который служит одновременно воздухоотделителем. Из приемного резервуара вода подается насосами во входную камеру и далее – на песчаные фильтры с восходящим потоком. Отфильтрованная вода собирается в сборный желоб, из которого отводится на контактные резервуары для обработки гипохлоритом натрия. В р. Иня стоки отводятся по самотечному коллектору диаметром 500 мм, длиной 800 м (КАР/ОБЬ/2965). ) ОЧИСТНЫЕ СООРУЖЕНИЯ МКР-НА "ИВУШКИ" (пос. ГРАМОТЕИНО, ВЫПУСК № 4). Действующие очистные сооружения расположены на левом берегу р. Мереть (выпуск КАР/ОБЬ/2965/528, на расстоянии 4 км от устья). Проектная производительность очистных сооружений – 1,4 тыс. м3/сут (511,0 тыс. м3/год), фактическая – около 248,76 тыс. м3/год. Сточные воды по коллектору поступают в приемную камеру канализационной насосной станции, оборудованной решетками-дробилками; затем проходят через песколовки. После выделения песка сточные воды самотеком поступают в аэротенки продленной аэрации. Иловая смесь в аэротенке аэрируется сжатым воздухом, подаваемым через перфорированные трубы. Из аэротенков иловая смесь подается во вторичные отстойники, где происходит осветление сточной воды. Далее стоки отводятся через лотки в трубопровод для переспуска в блок доочистки, а после доочистки – в контактные резервуары, где обеззараживаются гипохлоритом натрия. После обеззараживания сточная вода отводится по безнапорному коллектору (Ду – 450 мм, L – 260 м) в р. Мереть.
L23: 5. Правоустанавливающие и подтверждающие документы на объекты коммунальной инфраструктуры
M24: L1 | N24: L2 | O24: L3 | P24: L4_1 | Q24: L4_2 | R24: L5
A25: t | L25: № п/п | M25: Объект коммунальной инфраструктуры | N25: Основание эксплуатации | O25: Вид документа | P25: Номер документа | Q25: Дата документа | R25: Срок действия
D26: ВО | F26: КНС | G26: КНС "Вокзал" | H26: г Белово / ул.Юбилейная / нет | K26: О | L26: 1 | M26: =F26&" :: " &G26&" :: " & H26 -> КНС :: КНС "Вокзал" :: г Белово / ул.Юбилейная / нет | N26: концессионное соглашение | O26: соглашение | P26: № 1 | Q26: 26.12.2018 | R26: 10.01.2019 - 31.12.2028
D27: ВО | F27: КНС | G27: КНС "Горсад" | H27: г Белово / ул.Советская / нет | K27: О | L27: 2 | M27: КНС :: КНС "Горсад" :: г Белово / ул.Советская / нет | N27: концессионное соглашение | O27: соглашение | P27: № 1 | Q27: 26.12.2018 | R27: 10.01.2019 - 31.12.2028
D28: ВО | F28: КНС с сетями | G28: КНС "Машзавод" | H28: г Белово / ул.2-я Рабочая / нет | K28: О | L28: 3 | M28: КНС с сетями :: КНС "Машзавод" :: г Белово / ул.2-я Рабочая / нет | N28: аренда | O28: договор | P28: 03/19 | Q28: 01.06.2019 | R28: 01.06.2019 - 01.06.2022, доп. соглашением от 02.06.2022 продлен до 31.12.2024.
D29: ВО | F29: КНС | G29: КНС "Элеватор" | H29: г Белово / ул.Железнодорожная / нет | K29: О | L29: 4 | M29: КНС :: КНС "Элеватор" :: г Белово / ул.Железнодорожная / нет | N29: концессионное соглашение | O29: соглашение | P29: № 1 | Q29: 26.12.2018 | R29: 10.01.2019 - 31.12.2028
D30: ВО | F30: КНС | G30: КНС м-н "Ивушка" | H30: пгт Грамотеино / мкр. Ивушка / нет | K30: О | L30: 5 | M30: КНС :: КНС м-н "Ивушка" :: пгт Грамотеино / мкр. Ивушка / нет | N30: концессионное соглашение | O30: соглашение | P30: № 1 | Q30: 26.12.2018 | R30: 10.01.2019 - 31.12.2028
D31: ВО | F31: КНС | G31: КНС пгт.Грамотеино | H31: пгт Грамотеино / ул.Светлая / нет | K31: О | L31: 6 | M31: КНС :: КНС пгт.Грамотеино :: пгт Грамотеино / ул.Светлая / нет | N31: концессионное соглашение | O31: соглашение | P31: № 1 | Q31: 26.12.2018 | R31: 10.01.2019 - 31.12.2028
D32: ВО | F32: КНС | G32: КНС пгт.Инской | H32: пгт Инской / мкр. Технологический / 1 | K32: О | L32: 7 | M32: КНС :: КНС пгт.Инской :: пгт Инской / мкр. Технологический / 1 | N32: аренда | O32: договор | P32: Т-5-А14 | Q32: 17.12.2014 | R32: 01.01.2015 - 25.12.2015 (ежегодная авто-пролонгация)
D33: ВО | F33: ОС | G33: Очистные сооружения г.Белово | H33: г Белово / ул.Кузбасская / 6 | K33: О | L33: 8 | M33: ОС :: Очистные сооружения г.Белово :: г Белово / ул.Кузбасская / 6 | N33: концессионное соглашение | O33: соглашение | P33: № 1 | Q33: 26.12.2018 | R33: 10.01.2019 - 31.12.2028
D34: ВО | F34: КНС с ОС и сетями | G34: Очистные сооружения м-н"Ивушка" | H34: пгт Грамотеино / мкр. Ивушка / нет | K34: О | L34: 9 | M34: КНС с ОС и сетями :: Очистные сооружения м-н"Ивушка" :: пгт Грамотеино / мкр. Ивушка / нет | N34: концессионное соглашение | O34: соглашение | P34: № 1 | Q34: 26.12.2018 | R34: 10.01.2019 - 31.12.2028
D35: ВО | F35: ОС | G35: Очистные сооружения п.Инской | H35: пгт Инской / мкр. Технологический / 26 | K35: О | L35: 10 | M35: ОС :: Очистные сооружения п.Инской :: пгт Инской / мкр. Технологический / 26 | N35: концессионное соглашение | O35: соглашение | P35: № 1 | Q35: 26.12.2018 | R35: 10.01.2019 - 31.12.2028
D36: ВО | F36: ОС | G36: Очистные сооружения пгт.Грамотеино | H36: пгт Грамотеино / нет / нет | K36: О | L36: 11 | M36: ОС :: Очистные сооружения пгт.Грамотеино :: пгт Грамотеино / нет / нет | N36: концессионное соглашение | O36: соглашение | P36: № 1 | Q36: 26.12.2018 | R36: 10.01.2019 - 31.12.2028
D37: ВО | F37: сеть | G37: Сети г.Белово | H37: г Белово / г.Белово / нет | K37: О | L37: 12 | M37: сеть :: Сети г.Белово :: г Белово / г.Белово / нет | N37: концессионное соглашение | O37: соглашение | P37: № 1 | Q37: 26.12.2018 | R37: 10.01.2019 - 31.12.2028
D38: ВО | F38: сеть | G38: Сети п.Инской | H38: пгт Инской / пгт Инской / нет | K38: О | L38: 13 | M38: сеть :: Сети п.Инской :: пгт Инской / пгт Инской / нет | N38: концессионное соглашение | O38: соглашение | P38: № 1 | Q38: 26.12.2018 | R38: 10.01.2019 - 31.12.2028
D39: ВО | F39: сеть | G39: Сети пгт.Грамотеино | H39: пгт Грамотеино / пгт Грамотеино / нет | K39: О | L39: 14 | M39: сеть :: Сети пгт.Грамотеино :: пгт Грамотеино / пгт Грамотеино / нет | N39: концессионное соглашение | O39: соглашение | P39: № 1 | Q39: 26.12.2018 | R39: 10.01.2019 - 31.12.2028
A40: t | M40: Добавить объект

Sheet Сценарии
O1: =god-2 -> 2023 | P1: =god-2 -> 2023 | Q1: =god-2 -> 2023 | R1: =god-2 -> 2023 | S1: =god-1 -> 2024 | T1: =god -> 2025 | U1: =god -> 2025 | V1: =god -> 2025 | W1: =god -> 2025 | X1: =god -> 2025 | Y1: =god+1 -> 2026 | Z1: =god+1 -> 2026 | AA1: =god+2 -> 2027 | AB1: =god+2 -> 2027 | AC1: =god+3 -> 2028 | AD1: =god+3 -> 2028 | AE1: =god+4 -> 2029 | AF1: =god+4 -> 2029 | AG1: =god+5 -> 2030 | AH1: =god+5 -> 2030 | AI1: =god+6 -> 2031 | AJ1: =god+6 -> 2031 | AK1: =god+7 -> 2032 | AL1: =god+7 -> 2032 | AM1: =god+8 -> 2033 | AN1: =god+8 -> 2033 | AO1: =god+9 -> 2034 | AP1: =god+9 -> 2034
O2: =O15 -> Принято органом регулирования | P2: Факт по данным организации | Q2: Факт, принятый органом регулирования | R2: Комментарии | S2: Принято органом регулирования | T2: Предложение организации | U2: =U15 -> Принято органом регулирования | V2: % роста / снижения | W2: Отклонение (принято органом регулирования - заявлено организацией) | X2: Комментарии | Y2: Предложение организации | Z2: Принято органом регулирования | AA2: Предложение организации | AB2: Принято органом регулирования | AC2: Предложение организации | AD2: Принято органом регулирования | AE2: Предложение организации | AF2: Принято органом регулирования | AG2: Предложение организации | AH2: Принято органом регулирования | AI2: Предложение организации | AJ2: Принято органом регулирования | AK2: Предложение организации | AL2: Принято органом регулирования | AM2: Предложение организации | AN2: Принято органом регулирования | AO2: Предложение организации | AP2: Принято органом регулирования
O3: =O1&O2 -> 2023Принято органом регулирования | P3: 2023Факт по данным организации | Q3: 2023Факт, принятый органом регулирования | R3: 2023Комментарии | S3: 2024Принято органом регулирования | T3: 2025Предложение организации | U3: 2025Принято органом регулирования | V3: 2025% роста / снижения | W3: 2025Отклонение (принято органом регулирования - заявлено организацией) | X3: 2025Комментарии | Y3: 2026Предложение организации | Z3: 2026Принято органом регулирования | AA3: 2027Предложение организации | AB3: 2027Принято органом регулирования | AC3: 2028Предложение организации | AD3: 2028Принято органом регулирования | AE3: 2029Предложение организации | AF3: 2029Принято органом регулирования | AG3: 2030Предложение организации | AH3: 2030Принято органом регулирования | AI3: 2031Предложение организации | AJ3: 2031Принято органом регулирования | AK3: 2032Предложение организации | AL3: 2032Принято органом регулирования | AM3: 2033Предложение организации | AN3: 2033Принято органом регулирования | AO3: 2034Предложение организации | AP3: 2034Принято органом регулирования
Y7: =Y1<=last_year_vis -> FALSE | Z7: FALSE | AA7: FALSE | AB7: FALSE | AC7: FALSE | AD7: FALSE | AE7: FALSE | AF7: FALSE | AG7: FALSE | AH7: FALSE | AI7: FALSE | AJ7: FALSE | AK7: FALSE | AL7: FALSE | AM7: FALSE | AN7: FALSE | AO7: FALSE | AP7: FALSE
M11: =tpl_title -> Кемеровская область / 2025 / ООО"БелГОС" (ИНН:4202023230, КПП:420201001) / ДПР: 2019-2028
L12: 6. Ключевые сценарные показатели
L14: № п/п | M14: Наименование параметра | N14: Единица измерения | O14: =god-2 & " год" -> 2023 год | P14: =god-2 & " год" -> 2023 год | Q14: =god-2 & " год" -> 2023 год | R14: =god-2 & " год" -> 2023 год | S14: =god-1 & " год" -> 2024 год | T14: =god & " год" -> 2025 год | U14: =god & " год" -> 2025 год | V14: =god & " год" -> 2025 год | W14: =god & " год" -> 2025 год | X14: =god & " год" -> 2025 год | Y14: =god+1 & " год" -> 2026 год | Z14: =god+1 & " год" -> 2026 год | AA14: =god+2 & " год" -> 2027 год | AB14: =god+2 & " год" -> 2027 год | AC14: =god+3 & " год" -> 2028 год | AD14: =god+3 & " год" -> 2028 год | AE14: =god+4 & " год" -> 2029 год | AF14: =god+4 & " год" -> 2029 год | AG14: =god+5 & " год" -> 2030 год | AH14: =god+5 & " год" -> 2030 год | AI14: =god+6 & " год" -> 2031 год | AJ14: =god+6 & " год" -> 2031 год | AK14: =god+7 & " год" -> 2032 год | AL14: =god+7 & " год" -> 2032 год | AM14: =god+8 & " год" -> 2033 год | AN14: =god+8 & " год" -> 2033 год | AO14: =god+9 & " год" -> 2034 год | AP14: =god+9 & " год" -> 2034 год
A15: t | O15: Принято органом регулирования | P15: Факт по данным организации | Q15: Факт, принятый органом регулирования | R15: Комментарии | S15: Принято органом регулирования | T15: Предложение организации | U15: Принято органом регулирования | V15: % роста / снижения | W15: Отклонение (принято органом регулирования - заявлено организацией) | X15: Комментарии | Y15: Предложение организации | Z15: Принято органом регулирования | AA15: Предложение организации | AB15: Принято органом регулирования | AC15: Предложение организации | AD15: Принято органом регулирования | AE15: Предложение организации | AF15: Принято органом регулирования | AG15: Предложение организации | AH15: Принято органом регулирования | AI15: Предложение организации | AJ15: Принято органом регулирования | AK15: Предложение организации | AL15: Принято органом регулирования | AM15: Предложение организации | AN15: Принято органом регулирования | AO15: Предложение организации | AP15: Принято органом регулирования
A16: ='Общие сведения'!$D$122 -> 1 | L16: =INDEX('Общие сведения'!$J$121:$J$135,MATCH($A16,'Общие сведения'!$D$121:$D$135,0)) -> Тариф 1 (Водоотведение) - тариф на водоотведение
A17: =A16 -> 1 | B17: ИОР | M17: Индексы | S17: =(1-S18/100)*(1+S19/100)*(1+S21/100) -> 1.0692 | T17: =(1-T18/100)*(1+T19/100)*(1+T21/100) -> 1 | U17: =(1-U18/100)*(1+U19/100)*(1+U21/100) -> 1.04742 | Y17: =(1-Y18/100)*(1+Y19/100)*(1+Y21/100) -> 1 | Z17: =(1-Z18/100)*(1+Z19/100)*(1+Z21/100) -> 1 | AA17: =(1-AA18/100)*(1+AA19/100)*(1+AA21/100) -> 1 | AB17: =(1-AB18/100)*(1+AB19/100)*(1+AB21/100) -> 1 | AC17: =(1-AC18/100)*(1+AC19/100)*(1+AC21/100) -> 1 | AD17: =(1-AD18/100)*(1+AD19/100)*(1+AD21/100) -> 1 | AE17: 1 | AF17: 1 | AG17: 1 | AH17: 1 | AI17: 1 | AJ17: 1 | AK17: 1 | AL17: 1 | AM17: 1 | AN17: 1 | AO17: 1 | AP17: 1
A18: =A17 -> 1 | B18: ИЭР | C18: L1_1 | L18: 1 | M18: Индекс эффективности операционных расходов | N18: % | O18: 1 | Q18: 1 | R18: В соответствии с утвержденными долгосрочными параметрами регулирования тарифов (Постановление региональной энергетической комиссии Кемеровской области от 19.12.2018 № 759, в редакции Постановлений Региональной энергетической комиссии от 24.11.2020 N 427, от 11.02.2021 N 60). | S18: 1 | U18: 1 | V18: =IF(S18<>0,U18/S18,0) -> 1 | W18: =U18-T18 -> 1 | X18: В соответствии с утвержденными долгосрочными параметрами регулирования тарифов (Постановление региональной энергетической комиссии Кемеровской области от 19.12.2018 № 759, в редакции Постановлений Региональной энергетической комиссии от 24.11.2020 N 427, от 11.02.2021 N 60).
A19: 1 | B19: ИПЦ | C19: L1_2 | L19: 2 | M19: Индекс потребительских цен | N19: % | O19: 5.8 | Q19: 5.9 | R19: "Прогноз соц.-экономического развития РФ на 2025 год и на плановый период 2026 и 2027 годов" (опубликован на официальном сайте Минэкономразвития России 30.09.2024). | S19: 8 | U19: 5.8 | V19: =IF(S19<>0,U19/S19,0) -> 0.725 | W19: =U19-T19 -> 5.8 | X19: "Прогноз соц.-экономического развития РФ на 2025 год и на плановый период 2026 и 2027 годов" (опубликован на официальном сайте Минэкономразвития России 30.09.2024).
A20: 1 | C20: L1_3 | L20: 3 | M20: Индекс роста цен на электроэнергию | N20: % | O20: 12 | P20: 12.75 | S20: 5.1 | T20: 10 | U20: 9.8 | V20: =IF(S20<>0,U20/S20,0) -> 1.921568627 | W20: =U20-T20 -> -0.2 | X20: "Прогноз соц.-экономического развития РФ на 2025 год и на плановый период 2026 и 2027 годов" (опубликован на официальном сайте Минэкономразвития России 30.09.2024).
A21: 1 | B21: ИКА | C21: L1_4 | L21: 4 | M21: Индекс количества активов | N21: % | O21: 0 | Q21: 0 | S21: 0 | T21: 0 | U21: 0 | V21: =IF(S21<>0,U21/S21,0) -> 0 | W21: =U21-T21 -> 0
A22: 1 | M22: Налоговые ставки
A23: 1 | B23: СВФОТ | C23: L2_1 | L23: 1 | M23: Ставка страховых взносов с ФОТ | N23: % | O23: 30.46 | P23: 22.43 | Q23: 30.46 | R23: Предусмотрено при расчете базового уровня Операционных расходов | S23: 30.46 | T23: 30.3 | U23: 30.46 | V23: =IF(S23<>0,U23/S23,0) -> 1 | W23: =U23-T23 -> 0.16 | X23: Предусмотрено при расчете базового уровня Операционных расходов
A24: 1 | C24: L2_2 | L24: 2 | M24: Ставка НДС | N24: % | O24: 20 | P24: 20 | Q24: 20 | R24: Пункт 3 Статьи 164 Главы 21 "НАЛОГ НА ДОБАВЛЕННУЮ СТОИМОСТЬ" "Налогового кодекса Российской Федерации (часть вторая)" от 05.08.2000 N 117-ФЗ (в редакции от 10.07.2023 № 318-ФЗ). | S24: 20 | T24: 20 | U24: 20 | V24: =IF(S24<>0,U24/S24,0) -> 1 | W24: =U24-T24 -> 0 | X24: Пункт 3 Статьи 164 Главы 21 "НАЛОГ НА ДОБАВЛЕННУЮ СТОИМОСТЬ" "Налогового кодекса Российской Федерации (часть вторая)" от 05.08.2000 N 117-ФЗ (в редакции от 10.07.2023 № 318-ФЗ).
A25: 1 | L25: 3 | M25: Ставка водного налога
A26: 1 | C26: L3_1_1 | L26: 3.1.1 | M26: Ставка водного налога из поверхностных источников для населения | N26: руб./тыс.куб.м. | V26: 0 | W26: 0
A27: 1 | C27: L3_1_2 | L27: 3.1.2 | M27: Ставка водного налога из поверхностных источников для прочих потребителей | N27: руб./тыс.куб.м. | V27: 0 | W27: 0
A28: 1 | C28: L3_2_1 | L28: 3.2.1 | M28: Ставка водного налога из подземных источников для населения | N28: руб./тыс.куб.м. | V28: 0 | W28: 0
A29: 1 | C29: L3_2_2 | L29: 3.2.2 | M29: Ставка водного налога из подземных источников для прочих потребителей | N29: руб./тыс.куб.м. | V29: 0 | W29: 0
A30: 1 | C30: L4 | L30: 4 | M30: Ставки налога на имущество | N30: % | O30: 2.2 | P30: 2.2 | R30: 1) Глава 30 "НАЛОГ НА ИМУЩЕСТВО ОРГАНИЗАЦИЙ" "Налогового кодекса Российской Федерации (часть вторая)" от 05.08.2000 N 117-ФЗ (в редакции от 10.07.2023 № 318-ФЗ); 2) Закон Кемеровской области - Кузбасса от 26.11.2003 N 60-ОЗ (ред. от 04.09.2023) "О налоге на имущество организаций". | S30: 2.2 | T30: 2.2 | U30: 2.2 | V30: 1 | W30: 0 | X30: 1) Глава 30 "НАЛОГ НА ИМУЩЕСТВО ОРГАНИЗАЦИЙ" "Налогового кодекса Российской Федерации (часть вторая)" от 05.08.2000 N 117-ФЗ (в редакции от 10.07.2023 № 318-ФЗ); 2) Закон Кемеровской области - Кузбасса от 26.11.2003 N 60-ОЗ (ред. от 04.09.2023) "О налоге на имущество организаций".
A31: 1 | C31: L5 | L31: 5 | M31: Ставка налога при УСН | N31: % | V31: 0 | W31: 0
A32: 1 | C32: L6 | L32: 6 | M32: Доля общехозяйственных расходов | V32: 0 | W32: 0
A33: 1 | C33: L7 | L33: 7 | M33: Доля общепроизводственных расходов | V33: 0 | W33: 0
A34: t

Sheet Баланс
O1: =god-2 -> 2023 | P1: =god-2 -> 2023 | Q1: =god-2 -> 2023 | R1: =god-1 -> 2024 | S1: =god -> 2025 | T1: =god+1 -> 2026 | U1: =god+2 -> 2027 | V1: =god+3 -> 2028 | W1: =god+4 -> 2029 | X1: =god+5 -> 2030 | Y1: =god+6 -> 2031 | Z1: =god+7 -> 2032 | AA1: =god+8 -> 2033 | AB1: =god+9 -> 2034 | AC1: =god -> 2025 | AD1: =god+1 -> 2026 | AE1: =god+2 -> 2027 | AF1: =god+3 -> 2028 | AG1: =god+4 -> 2029 | AH1: =god+5 -> 2030 | AI1: =god+6 -> 2031 | AJ1: =god+7 -> 2032 | AK1: =god+8 -> 2033 | AL1: =god+9 -> 2034
O2: =O16 -> Принято органом регулирования | P2: =P16 -> Факт по данным организации | Q2: =Q16 -> Факт, принятый органом регулирования | R2: =R16 -> Принято органом регулирования | S2: =S16 -> Предложение организации | T2: =T16 -> Предложение организации | U2: Предложение организации | V2: Предложение организации | W2: Предложение организации | X2: Предложение организации | Y2: Предложение организации | Z2: Предложение организации | AA2: Предложение организации | AB2: Предложение организации | AC2: Принято органом регулирования | AD2: Принято органом регулирования | AE2: Принято органом регулирования | AF2: Принято органом регулирования | AG2: Принято органом регулирования | AH2: Принято органом регулирования | AI2: Принято органом регулирования | AJ2: Принято органом регулирования | AK2: Принято органом регулирования | AL2: Принято органом регулирования
O3: =O1&O2 -> 2023Принято органом регулирования | P3: =P1&P2 -> 2023Факт по данным организации | Q3: =Q1&Q2 -> 2023Факт, принятый органом регулирования | R3: =R1&R2 -> 2024Принято органом регулирования | S3: =S1&S2 -> 2025Предложение организации | T3: =T1&T2 -> 2026Предложение организации | U3: 2027Предложение организации | V3: 2028Предложение организации | W3: 2029Предложение организации | X3: 2030Предложение организации | Y3: 2031Предложение организации | Z3: 2032Предложение организации | AA3: 2033Предложение организации | AB3: 2034Предложение организации | AC3: 2025Принято органом регулирования | AD3: 2026Принято органом регулирования | AE3: 2027Принято органом регулирования | AF3: 2028Принято органом регулирования | AG3: 2029Принято органом регулирования | AH3: 2030Принято органом регулирования | AI3: 2031Принято органом регулирования | AJ3: 2032Принято органом регулирования | AK3: 2033Принято органом регулирования | AL3: 2034Принято органом регулирования
S7: =S1<=last_year_vis -> TRUE | T7: FALSE | U7: FALSE | V7: FALSE | W7: FALSE | X7: FALSE | Y7: FALSE | Z7: FALSE | AA7: FALSE | AB7: FALSE | AC7: TRUE | AD7: FALSE | AE7: FALSE | AF7: FALSE | AG7: FALSE | AH7: FALSE | AI7: FALSE | AJ7: FALSE | AK7: FALSE | AL7: FALSE
M11: =tpl_title -> Кемеровская область / 2025 / ООО"БелГОС" (ИНН:4202023230, КПП:420201001) / ДПР: 2019-2028
L12: 7. Баланс водоснабжения / водоотведения
G14: =hasVS -> FALSE | L14: 7.1. Баланс водоснабжения
G15: =hasVS -> FALSE | L15: № п/п | M15: Наименование показателя | N15: Единица измерения | O15: =god-2 & " год" -> 2023 год | P15: =god-2 & " год" -> 2023 год | Q15: =god-2 & " год" -> 2023 год | R15: =god-1 & " год" -> 2024 год | S15: =god & " год" -> 2025 год | T15: =god+1 & " год" -> 2026 год | U15: =god+2 & " год" -> 2027 год | V15: =god+3 & " год" -> 2028 год | W15: =god+4 & " год" -> 2029 год | X15: =god+5 & " год" -> 2030 год | Y15: =god+6 & " год" -> 2031 год | Z15: =god+7 & " год" -> 2032 год | AA15: =god+8 & " год" -> 2033 год | AB15: =god+9 & " год" -> 2034 год | AC15: =god & " год" -> 2025 год | AD15: =god+1 & " год" -> 2026 год | AE15: =god+2 & " год" -> 2027 год | AF15: =god+3 & " год" -> 2028 год | AG15: =god+4 & " год" -> 2029 год | AH15: =god+5 & " год" -> 2030 год | AI15: =god+6 & " год" -> 2031 год | AJ15: =god+7 & " год" -> 2032 год | AK15: =god+8 & " год" -> 2033 год | AL15: =god+9 & " год" -> 2034 год | AM15: Ссылка на правовую норму (основание для принятия показателя в расчет тарифа)
G16: =hasVS -> FALSE | O16: Принято органом регулирования | P16: Факт по данным организации | Q16: Факт, принятый органом регулирования | R16: Принято органом регулирования | S16: Предложение организации | T16: Предложение организации | U16: Предложение организации | V16: Предложение организации | W16: Предложение организации | X16: Предложение организации | Y16: Предложение организации | Z16: Предложение организации | AA16: Предложение организации | AB16: Предложение организации | AC16: Принято органом регулирования | AD16: Принято органом регулирования | AE16: Принято органом регулирования | AF16: Принято органом регулирования | AG16: Принято органом регулирования | AH16: Принято органом регулирования | AI16: Принято органом регулирования | AJ16: Принято органом регулирования | AK16: Принято органом регулирования | AL16: Принято органом регулирования
G17: =hasVS -> FALSE
G18: =hasTranspVS -> FALSE | L18: 7.2. Баланс водоснабжения (транспортировка воды)
G19: =hasTranspVS -> FALSE | L19: № п/п | M19: Наименование показателя | N19: Единица измерения | O19: =god-2 & " год" -> 2023 год | P19: =god-2 & " год" -> 2023 год | Q19: =god-2 & " год" -> 2023 год | R19: =god-1 & " год" -> 2024 год | S19: =god & " год" -> 2025 год | T19: =god+1 & " год" -> 2026 год | U19: =god+2 & " год" -> 2027 год | V19: =god+3 & " год" -> 2028 год | W19: =god+4 & " год" -> 2029 год | X19: =god+5 & " год" -> 2030 год | Y19: =god+6 & " год" -> 2031 год | Z19: =god+7 & " год" -> 2032 год | AA19: =god+8 & " год" -> 2033 год | AB19: =god+9 & " год" -> 2034 год | AC19: =god & " год" -> 2025 год | AD19: =god+1 & " год" -> 2026 год | AE19: =god+2 & " год" -> 2027 год | AF19: =god+3 & " год" -> 2028 год | AG19: =god+4 & " год" -> 2029 год | AH19: =god+5 & " год" -> 2030 год | AI19: =god+6 & " год" -> 2031 год | AJ19: =god+7 & " год" -> 2032 год | AK19: =god+8 & " год" -> 2033 год | AL19: =god+9 & " год" -> 2034 год | AM19: Ссылка на правовую норму (основание для принятия показателя в расчет тарифа)
G20: =hasTranspVS -> FALSE | O20: Принято органом регулирования | P20: Факт по данным организации | Q20: Факт, принятый органом регулирования | R20: Принято органом регулирования | S20: Предложение организации | T20: Предложение организации | U20: Предложение организации | V20: Предложение организации | W20: Предложение организации | X20: Предложение организации | Y20: Предложение организации | Z20: Предложение организации | AA20: Предложение организации | AB20: Предложение организации | AC20: Принято органом регулирования | AD20: Принято органом регулирования | AE20: Принято органом регулирования | AF20: Принято органом регулирования | AG20: Принято органом регулирования | AH20: Принято органом регулирования | AI20: Принято органом регулирования | AJ20: Принято органом регулирования | AK20: Принято органом регулирования | AL20: Принято органом регулирования
G21: =hasTranspVS -> FALSE
G22: =hasVO -> TRUE | L22: 7.3. Баланс водоотведения
G23: =hasVO -> TRUE | L23: № п/п | M23: Наименование показателя | N23: Единица измерения | O23: =god-2 & " год" -> 2023 год | P23: =god-2 & " год" -> 2023 год | Q23: =god-2 & " год" -> 2023 год | R23: =god-1 & " год" -> 2024 год | S23: =god & " год" -> 2025 год | T23: =god+1 & " год" -> 2026 год | U23: =god+2 & " год" -> 2027 год | V23: =god+3 & " год" -> 2028 год | W23: =god+4 & " год" -> 2029 год | X23: =god+5 & " год" -> 2030 год | Y23: =god+6 & " год" -> 2031 год | Z23: =god+7 & " год" -> 2032 год | AA23: =god+8 & " год" -> 2033 год | AB23: =god+9 & " год" -> 2034 год | AC23: =god & " год" -> 2025 год | AD23: =god+1 & " год" -> 2026 год | AE23: =god+2 & " год" -> 2027 год | AF23: =god+3 & " год" -> 2028 год | AG23: =god+4 & " год" -> 2029 год | AH23: =god+5 & " год" -> 2030 год | AI23: =god+6 & " год" -> 2031 год | AJ23: =god+7 & " год" -> 2032 год | AK23: =god+8 & " год" -> 2033 год | AL23: =god+9 & " год" -> 2034 год | AM23: Ссылка на правовую норму (основание для принятия показателя в расчет тарифа)
G24: =hasVO -> TRUE | O24: Принято органом регулирования | P24: Факт по данным организации | Q24: Факт, принятый органом регулирования | R24: Принято органом регулирования | S24: Предложение организации | T24: Предложение организации | U24: Предложение организации | V24: Предложение организации | W24: Предложение организации | X24: Предложение организации | Y24: Предложение организации | Z24: Предложение организации | AA24: Предложение организации | AB24: Предложение организации | AC24: Принято органом регулирования | AD24: Принято органом регулирования | AE24: Принято органом регулирования | AF24: Принято органом регулирования | AG24: Принято органом регулирования | AH24: Принято органом регулирования | AI24: Принято органом регулирования | AJ24: Принято органом регулирования | AK24: Принято органом регулирования | AL24: Принято органом регулирования
A25: ='Общие сведения'!$D$122 -> 1 | L25: =INDEX('Общие сведения'!$J$121:$J$135,MATCH($A25,'Общие сведения'!$D$121:$D$135,0)) -> Тариф 1 (Водоотведение) - тариф на водоотведение
A26: =A25 -> 1 | L26: 1 | M26: Вид стоков | O26: =INDEX('Общие сведения'!$K$121:$K$135,MATCH($A26,'Общие сведения'!$D$121:$D$135,0)) -> без дифференциации
A27: 1 | C27: L2 | L27: 2 | M27: Установленная мощность | N27: куб.м/час | O27: 1970.833333 | Q27: 1970.833333 | R27: 1970.833333 | S27: 1970.833333 | AC27: =47.3/24*1000 -> 1970.833333 | AM27: Согласно данным формы статистического наблюдения "1-канализация" за 2023 год.
A28: 1 | C28: L3 | L28: 3 | M28: Подключённая (фактическая) нагрузка | N28: куб.м/час | O28: 418.2105328 | P28: =P29/365/24*1000 -> 452.8609589 | Q28: =Q29/365/24*1000 -> 452.8609589 | R28: 471.960174 | S28: =S29/365/24*1000 -> 461.6180365 | T28: 0 | U28: 0 | V28: 0 | W28: 0 | X28: 0 | Y28: 0 | Z28: 0 | AA28: 0 | AB28: 0 | AC28: 447.2843607
A29: 1 | C29: L4 | L29: 4 | M29: Принято сточных вод, всего | N29: тыс.куб.м | O29: =O30+O31+O44 -> 3663.524268 | P29: =P30+P31+P44 -> 3967.062 | Q29: 3967.062 | R29: 4134.371124 | S29: 4043.774 | T29: 0 | U29: 0 | V29: 0 | W29: 0 | X29: 0 | Y29: 0 | Z29: 0 | AA29: 0 | AB29: 0 | AC29: 3918.211 | AD29: 0 | AE29: 0 | AF29: 0 | AG29: 0 | AH29: 0 | AI29: 0 | AJ29: 0 | AK29: 0 | AL29: 0
A30: 1 | B30: =IF(OwnNeedsInPO="да","ПО","") ->  | C30: L5 | L30: 5 | M30: Хозяйственные нужды предприятия | N30: тыс.куб.м
A31: 1 | B31: ПО | C31: L6 | L31: 6 | M31: Принято по категориям потребителей | N31: тыс.куб.м | O31: =O32+O35+O38+O41 -> 3663.524268 | P31: =P32+P35+P38+P41 -> 3967.062 | Q31: 3967.062 | R31: 4134.371124 | S31: 4043.774 | T31: 0 | U31: 0 | V31: 0 | W31: 0 | X31: 0 | Y31: 0 | Z31: 0 | AA31: 0 | AB31: 0 | AC31: 3918.211 | AD31: 0 | AE31: 0 | AF31: 0 | AG31: 0 | AH31: 0 | AI31: 0 | AJ31: 0 | AK31: 0 | AL31: 0 | AM31: Пункт 8 Методических указаний ФСТ № 1746-э (в том числе по прочим потребителям - с учетом ожидаемых объемов выбытия указанного абонента).
A32: 1 | C32: L6_1 | L32: 6.1 | M32: Финансируемые из бюджетов всех уровней | N32: тыс.куб.м | O32: =O33+O34 -> 378.6016046 | P32: 355.566 | Q32: 355.566 | R32: 363.454 | S32: 363.287 | T32: 0 | U32: 0 | V32: 0 | W32: 0 | X32: 0 | Y32: 0 | Z32: 0 | AA32: 0 | AB32: 0 | AC32: 358.567 | AD32: 0 | AE32: 0 | AF32: 0 | AG32: 0 | AH32: 0 | AI32: 0 | AJ32: 0 | AK32: 0 | AL32: 0
A33: 1 | C33: L6_1_1 | L33: 6.1.1 | M33: по приборам учёта | N33: тыс.куб.м | O33: 378.6016046 | P33: 355.566 | Q33: 355.566 | R33: 363.454 | S33: 363.287 | AC33: 358.567 | AM33: Рассчитано в соответствии с Формулами (1) и (1.1), на основании фактических данных о динамике объемов реализации для данной категории потребителей за 2020 - 2023 гг.
A34: 1 | C34: L6_1_2 | L34: 6.1.2 | M34: по нормативам | N34: тыс.куб.м
A35: 1 | B35: население | C35: L6_2 | L35: 6.2 | M35: Население | N35: тыс.куб.м | O35: =O36+O37 -> 2665.151786 | P35: 2806.951 | Q35: 2806.951 | R35: 2789.4 | S35: 2791.512 | T35: 0 | U35: 0 | V35: 0 | W35: 0 | X35: 0 | Y35: 0 | Z35: 0 | AA35: 0 | AB35: 0 | AC35: 2796.963 | AD35: 0 | AE35: 0 | AF35: 0 | AG35: 0 | AH35: 0 | AI35: 0 | AJ35: 0 | AK35: 0 | AL35: 0
A36: 1 | C36: L6_2_1 | L36: 6.2.1 | M36: по приборам учёта | N36: тыс.куб.м | O36: 2665.151786 | P36: 2806.951 | Q36: 2806.951 | R36: 2789.4 | S36: 2791.512 | AC36: 2796.963 | AM36: Рассчитано в соответствии с Формулами (1) и (1.1), на основании фактических данных о динамике объемов реализации для данной категории потребителей за 2020 - 2023 гг.
A37: 1 | C37: L6_2_2 | L37: 6.2.2 | M37: по нормативам | N37: тыс.куб.м
A38: 1 | C38: L6_3 | L38: 6.3 | M38: Прочие потребители | N38: тыс.куб.м | O38: =O39+O40 -> 619.7708776 | P38: 804.545 | Q38: 804.545 | R38: 981.5171238 | S38: 888.975 | T38: 0 | U38: 0 | V38: 0 | W38: 0 | X38: 0 | Y38: 0 | Z38: 0 | AA38: 0 | AB38: 0 | AC38: 762.681 | AD38: 0 | AE38: 0 | AF38: 0 | AG38: 0 | AH38: 0 | AI38: 0 | AJ38: 0 | AK38: 0 | AL38: 0
A39: 1 | C39: L6_3_1 | L39: 6.3.1 | M39: по приборам учёта | N39: тыс.куб.м | O39: 619.7708776 | P39: 804.545 | Q39: 804.545 | R39: 981.5171238 | S39: 888.975 | AC39: 762.681 | AM39: Рассчитано в соответствии с Формулами (1) и (1.1), на основании фактических данных о динамике объемов реализации для данной категории потребителей за 2020 - 2023 гг., в том числе объемы по ООО "Теплоэнергетик" - на уровне факта 2023 г. (22397 м3), за вычетом объемов по УН 1612 /44 (68153 м3).
A40: 1 | C40: L6_3_2 | L40: 6.3.2 | M40: по нормативам | N40: тыс.куб.м
A41: 1 | C41: L6_4 | L41: 6.4 | M41: Принято сточных вод от других канализационных сетей | N41: тыс.куб.м | O41: =O42+O43 -> 0 | P41: 0 | Q41: 0 | R41: 0 | S41: 0 | T41: 0 | U41: 0 | V41: 0 | W41: 0 | X41: 0 | Y41: 0 | Z41: 0 | AA41: 0 | AB41: 0 | AC41: 0 | AD41: 0 | AE41: 0 | AF41: 0 | AG41: 0 | AH41: 0 | AI41: 0 | AJ41: 0 | AK41: 0 | AL41: 0
A42: 1 | C42: L6_4_1 | L42: 6.4.1 | M42: по приборам учёта | N42: тыс.куб.м
A43: 1 | C43: L6_4_2 | L43: 6.4.2 | M43: по нормативам | N43: тыс.куб.м
A44: =A42 -> 1 | C44: L6_5 | L44: 6.5 | M44: Получено от других территорий, дифференцированных по тарифу | N44: тыс.куб.м
A45: =A43 -> 1 | C45: L7 | L45: 7 | M45: Неучтённый приток сточных вод | N45: тыс.куб.м | O45: 0 | P45: 0 | Q45: 0 | R45: 0 | S45: 0 | T45: 0 | U45: 0 | V45: 0 | W45: 0 | X45: 0 | Y45: 0 | Z45: 0 | AA45: 0 | AB45: 0 | AC45: 0 | AM45: Принято в соответствии с расчетом, выполненным при выдаче цен, значений, параметров регулирования организатору конкурса на заключение концессионного соглашения (в 2018 г.)
A46: 1 | C46: L8 | L46: 8 | M46: Объём сточных вод, прошедших очистку (справочно) | N46: тыс.куб.м | O46: 3663.524268 | P46: =P29 -> 3967.062 | Q46: =Q29 -> 3967.062 | R46: 4134.371124 | S46: =S29 -> 4043.774 | T46: =T29 -> 0 | U46: 0 | V46: 0 | W46: 0 | X46: 0 | Y46: 0 | Z46: 0 | AA46: 0 | AB46: 0 | AC46: 3918.211
A47: 1 | C47: L9 | L47: 9 | M47: Пропущено через собственные очистные сооружения | N47: тыс.куб.м | O47: 3663.524268 | P47: =P46 -> 3967.062 | Q47: =Q46 -> 3967.062 | R47: 4134.371124 | S47: =S46 -> 4043.774 | T47: =T46 -> 0 | U47: 0 | V47: 0 | W47: 0 | X47: 0 | Y47: 0 | Z47: 0 | AA47: 0 | AB47: 0 | AC47: 3918.211
A48: 1 | C48: L10 | L48: 10 | M48: Передано сточных вод другим канализациям | N48: тыс.куб.м | O48: =O49+O50 -> 0 | P48: 0 | Q48: 0 | R48: 0 | S48: 0 | T48: 0 | U48: 0 | V48: 0 | W48: 0 | X48: 0 | Y48: 0 | Z48: 0 | AA48: 0 | AB48: 0 | AC48: 0 | AD48: 0 | AE48: 0 | AF48: 0 | AG48: 0 | AH48: 0 | AI48: 0 | AJ48: 0 | AK48: 0 | AL48: 0
A49: 1 | C49: L10_1 | L49: 10.1 | M49: На очистные сооружения | N49: тыс.куб.м
A50: 1 | C50: L10_2 | L50: 10.2 | M50: В канализационную сеть | N50: тыс.куб.м
A51: =A49 -> 1 | C51: L11 | L51: 11 | M51: Передано на другие территории, дифференцированные по тарифу | N51: тыс.куб.м
A52: =A50 -> 1 | C52: L12 | L52: 12 | M52: Сброшенные воды без очистки | N52: тыс.куб.м
G53: =hasVO -> TRUE
G54: =hasTranspVO -> FALSE | L54: 7.4. Баланс водоотведения (транспортировка сточных вод)
G55: =hasTranspVO -> FALSE | L55: № п/п | M55: Наименование показателя | N55: Единица измерения | O55: =god-2 & " год" -> 2023 год | P55: =god-2 & " год" -> 2023 год | Q55: =god-2 & " год" -> 2023 год | R55: =god-1 & " год" -> 2024 год | S55: =god & " год" -> 2025 год | T55: =god+1 & " год" -> 2026 год | U55: =god+2 & " год" -> 2027 год | V55: =god+3 & " год" -> 2028 год | W55: =god+4 & " год" -> 2029 год | X55: =god+5 & " год" -> 2030 год | Y55: =god+6 & " год" -> 2031 год | Z55: =god+7 & " год" -> 2032 год | AA55: =god+8 & " год" -> 2033 год | AB55: =god+9 & " год" -> 2034 год | AC55: =god & " год" -> 2025 год | AD55: =god+1 & " год" -> 2026 год | AE55: =god+2 & " год" -> 2027 год | AF55: =god+3 & " год" -> 2028 год | AG55: =god+4 & " год" -> 2029 год | AH55: =god+5 & " год" -> 2030 год | AI55: =god+6 & " год" -> 2031 год | AJ55: =god+7 & " год" -> 2032 год | AK55: =god+8 & " год" -> 2033 год | AL55: =god+9 & " год" -> 2034 год | AM55: Ссылка на правовую норму (основание для принятия показателя в расчет тарифа)
G56: =hasTranspVO -> FALSE | O56: Принято органом регулирования | P56: Факт по данным организации | Q56: Факт, принятый органом регулирования | R56: Принято органом регулирования | S56: Предложение организации | T56: Предложение организации | U56: Предложение организации | V56: Предложение организации | W56: Предложение организации | X56: Предложение организации | Y56: Предложение организации | Z56: Предложение организации | AA56: Предложение организации | AB56: Предложение организации | AC56: Принято органом регулирования | AD56: Принято органом регулирования | AE56: Принято органом регулирования | AF56: Принято органом регулирования | AG56: Принято органом регулирования | AH56: Принято органом регулирования | AI56: Принято органом регулирования | AJ56: Принято органом регулирования | AK56: Принято органом регулирования | AL56: Принято органом регулирования
G57: =hasTranspVO -> FALSE
L58: Комментарии и обоснования к разделу
L59: Плановые объемы реализации рассчитаны специалистом РЭК Кзубасса на основании имеющейся в распоряжении регулирующего органа информации о динамике фактических объемов реализации услуги водоотведения за 2020-2023 гг., в том числе (согласно данным оборотно-сальдовой ведомости по сч. 62) с выделением объемов ООО "Теплоэнергетик" и с учетом выбытия абонента УН 1612 /44 (ФКУ ИК-44 ГУФСИН России по Кемеровской области - Кузбассу). Основание: обращение ООО "БелГОС" от 26.09.2024 вх. № 6469 о снижении ожидаемых объемов реализации в 2025 году, вместе с приложенными документами (в том числе см. представленную копию Соглашения № 3 от 27.06.2024 о расторжении Государственного контракта № 151-8 от 24.01.2024, а также уведомление о прекращении поставки питьевой воды для ФКУ ИК-44 со стороны ООО "Водоснабжение").
K60: О | L60: Снижение объемов реализации в связи с выбытием абонента ООО "Птицефабрика "Инская" будет учтено по факту выбытия по итогам соответствующего отчетного периода.
L61: Добавить комментарий

Sheet Реагенты
O1: =god-2 -> 2023 | P1: =god-2 -> 2023 | Q1: =god-2 -> 2023 | R1: =god-1 -> 2024 | S1: =god -> 2025 | T1: =god+1 -> 2026 | U1: =god+2 -> 2027 | V1: =god+3 -> 2028 | W1: =god+4 -> 2029 | X1: =god+5 -> 2030 | Y1: =god+6 -> 2031 | Z1: =god+7 -> 2032 | AA1: =god+8 -> 2033 | AB1: =god+9 -> 2034 | AC1: =god -> 2025 | AD1: =god+1 -> 2026 | AE1: =god+2 -> 2027 | AF1: =god+3 -> 2028 | AG1: =god+4 -> 2029 | AH1: =god+5 -> 2030 | AI1: =god+6 -> 2031 | AJ1: =god+7 -> 2032 | AK1: =god+8 -> 2033 | AL1: =god+9 -> 2034
O2: =O15 -> Принято органом регулирования | P2: =P15 -> Факт по данным организации | Q2: Факт, принятый органом регулирования | R2: Принято органом регулирования | S2: Предложение организации | T2: Предложение организации | U2: Предложение организации | V2: Предложение организации | W2: Предложение организации | X2: Предложение организации | Y2: Предложение организации | Z2: Предложение организации | AA2: Предложение организации | AB2: Предложение организации | AC2: Принято органом регулирования | AD2: Принято органом регулирования | AE2: Принято органом регулирования | AF2: Принято органом регулирования | AG2: Принято органом регулирования | AH2: Принято органом регулирования | AI2: Принято органом регулирования | AJ2: Принято органом регулирования | AK2: Принято органом регулирования | AL2: Принято органом регулирования
S7: =S1<=last_year_vis -> TRUE | T7: FALSE | U7: FALSE | V7: FALSE | W7: FALSE | X7: FALSE | Y7: FALSE | Z7: FALSE | AA7: FALSE | AB7: FALSE | AC7: TRUE | AD7: FALSE | AE7: FALSE | AF7: FALSE | AG7: FALSE | AH7: FALSE | AI7: FALSE | AJ7: FALSE | AK7: FALSE | AL7: FALSE
M11: =tpl_title -> Кемеровская область / 2025 / ООО"БелГОС" (ИНН:4202023230, КПП:420201001) / ДПР: 2019-2028
L12: 8. Расходы на реагенты
L14: № п/п | M14: Наименование показателя | N14: Единица измерения | O14: =god-2 & " год" -> 2023 год | P14: =god-2 & " год" -> 2023 год | Q14: =god-2 & " год" -> 2023 год | R14: =god-1 & " год" -> 2024 год | S14: =god & " год" -> 2025 год | T14: =god+1 & " год" -> 2026 год | U14: =god+2 & " год" -> 2027 год | V14: =god+3 & " год" -> 2028 год | W14: =god+4 & " год" -> 2029 год | X14: =god+5 & " год" -> 2030 год | Y14: =god+6 & " год" -> 2031 год | Z14: =god+7 & " год" -> 2032 год | AA14: =god+8 & " год" -> 2033 год | AB14: =god+9 & " год" -> 2034 год | AC14: =god & " год" -> 2025 год | AD14: =god+1 & " год" -> 2026 год | AE14: =god+2 & " год" -> 2027 год | AF14: =god+3 & " год" -> 2028 год | AG14: =god+4 & " год" -> 2029 год | AH14: =god+5 & " год" -> 2030 год | AI14: =god+6 & " год" -> 2031 год | AJ14: =god+7 & " год" -> 2032 год | AK14: =god+8 & " год" -> 2033 год | AL14: =god+9 & " год" -> 2034 год | AM14: Ссылка на правовую норму (основание для принятия показателя в расчет тарифа)
A15: t | O15: Принято органом регулирования | P15: Факт по данным организации | Q15: Факт, принятый органом регулирования | R15: Принято органом регулирования | S15: Предложение организации | T15: Предложение организации | U15: Предложение организации | V15: Предложение организации | W15: Предложение организации | X15: Предложение организации | Y15: Предложение организации | Z15: Предложение организации | AA15: Предложение организации | AB15: Предложение организации | AC15: Принято органом регулирования | AD15: Принято органом регулирования | AE15: Принято органом регулирования | AF15: Принято органом регулирования | AG15: Принято органом регулирования | AH15: Принято органом регулирования | AI15: Принято органом регулирования | AJ15: Принято органом регулирования | AK15: Принято органом регулирования | AL15: Принято органом регулирования
A16: ='Общие сведения'!$D$122 -> 1 | L16: =INDEX('Общие сведения'!$J$121:$J$135,MATCH($A16,'Общие сведения'!$D$121:$D$135,0)) -> Тариф 1 (Водоотведение) - тариф на водоотведение
A17: =A16 -> 1 | B17: L1 | C17: L2 | M17: Всего по тарифу | N17: тыс.руб. | O17: =SUM(O18:O21) -> 0 | P17: 27.783 | Q17: 0 | R17: 0 | S17: 194.74 | T17: 0 | U17: 0 | V17: 0 | W17: 0 | X17: 0 | Y17: 0 | Z17: 0 | AA17: 0 | AB17: 0 | AC17: 0 | AD17: 0 | AE17: 0 | AF17: 0 | AG17: 0 | AH17: 0 | AI17: 0 | AJ17: 0 | AK17: 0 | AL17: 0 | AM17: Постановление региональной энергетической комиссии Кемеровской области от 19.12.2018 № 759 "Об установлении долгосрочных параметров регулирования тарифов в сфере водоотведения ООО «Беловские Городские Очистные сооружения» (Беловский городской округ)" (в редакции Постановлений Региональной энергетической комиссии от 24.11.2020 N 427, от 11.02.2021 N 60).
A18: =A17 -> 1 | L18: 0
A19: =OFFSET(A19,-1,0) -> 1 | B19: L1 | C19: L2 | K19: О | L19: 1 | M19: Гипохлорит натрия | N19: тыс.руб. | P19: 27.783 | R19: 0 | S19: 87.03
A20: =OFFSET(A20,-1,0) -> 1 | B20: L1 | C20: L2 | K20: О | L20: 2 | M20: Флокулянт - Магнафлок | N20: тыс.руб. | P20: 0 | R20: 0 | S20: 107.71
A21: =A18 -> 1 | B21: =A21&"pIns" -> 1pIns | M21: Добавить
L23: Комментарии и обоснования к разделу
L24: В соответствии с редакцией "Методических указаний" ФСТ России (приказ № 1746-э от 27.12.2013), действовавшей на момент утверждения долгосрочных параметров регулирования тарифов на водоотведение для ООО "БелГОС" на период 2019-2023 гг. и далее до 31.12.2028 г., расходы на РЕАГЕНТЫ были учтены в составе Базового уровня ОПЕРАЦИОННЫХ РАСХОДОВ (см. соответствующую статью на Листе "Калькуляция") и корректировке в качестве отдельной статьи затрат не подлежат.
K25: О | L25: Организацией затраты на реагенты (факт 2023 г. и план на 2025 г.) некорректно отражены в составе Неподконтрольных расходов.
L26: Добавить комментарий

Sheet ЭЭ
O1: =god-2 -> 2023 | P1: =god-2 -> 2023 | Q1: =god-2 -> 2023 | R1: =god-1 -> 2024 | S1: =god -> 2025 | T1: =god+1 -> 2026 | U1: =god+2 -> 2027 | V1: =god+3 -> 2028 | W1: =god+4 -> 2029 | X1: =god+5 -> 2030 | Y1: =god+6 -> 2031 | Z1: =god+7 -> 2032 | AA1: =god+8 -> 2033 | AB1: =god+9 -> 2034 | AC1: =god -> 2025 | AD1: =god+1 -> 2026 | AE1: =god+2 -> 2027 | AF1: =god+3 -> 2028 | AG1: =god+4 -> 2029 | AH1: =god+5 -> 2030 | AI1: =god+6 -> 2031 | AJ1: =god+7 -> 2032 | AK1: =god+8 -> 2033 | AL1: =god+9 -> 2034
O2: =O15 -> Принято органом регулирования | P2: =P15 -> Факт по данным организации | Q2: =Q15 -> Факт, принятый органом регулирования | R2: =R15 -> Принято органом регулирования | S2: =$S$15 -> Предложение организации | T2: =$S$15 -> Предложение организации | U2: Предложение организации | V2: Предложение организации | W2: Предложение организации | X2: Предложение организации | Y2: Предложение организации | Z2: Предложение организации | AA2: Предложение организации | AB2: Предложение организации | AC2: =$AC$15 -> Принято органом регулирования | AD2: =$AC$15 -> Принято органом регулирования | AE2: Принято органом регулирования | AF2: Принято органом регулирования | AG2: Принято органом регулирования | AH2: Принято органом регулирования | AI2: Принято органом регулирования | AJ2: Принято органом регулирования | AK2: Принято органом регулирования | AL2: Принято органом регулирования
O3: =O1&O2 -> 2023Принято органом регулирования | P3: =P1&P2 -> 2023Факт по данным организации | Q3: =Q1&Q2 -> 2023Факт, принятый органом регулирования | R3: =R1&R2 -> 2024Принято органом регулирования | S3: =S1&S2 -> 2025Предложение организации | T3: =T1&T2 -> 2026Предложение организации | U3: 2027Предложение организации | V3: 2028Предложение организации | W3: 2029Предложение организации | X3: 2030Предложение организации | Y3: 2031Предложение организации | Z3: 2032Предложение организации | AA3: 2033Предложение организации | AB3: 2034Предложение организации | AC3: 2025Принято органом регулирования | AD3: =AD1&AD2 -> 2026Принято органом регулирования | AE3: 2027Принято органом регулирования | AF3: 2028Принято органом регулирования | AG3: 2029Принято органом регулирования | AH3: 2030Принято органом регулирования | AI3: 2031Принято органом регулирования | AJ3: 2032Принято органом регулирования | AK3: 2033Принято органом регулирования | AL3: 2034Принято органом регулирования
S7: =S1<=last_year_vis -> TRUE | T7: FALSE | U7: FALSE | V7: FALSE | W7: FALSE | X7: FALSE | Y7: FALSE | Z7: FALSE | AA7: FALSE | AB7: FALSE | AC7: TRUE | AD7: FALSE | AE7: FALSE | AF7: FALSE | AG7: FALSE | AH7: FALSE | AI7: FALSE | AJ7: FALSE | AK7: FALSE | AL7: FALSE
M11: =tpl_title -> Кемеровская область / 2025 / ООО"БелГОС" (ИНН:4202023230, КПП:420201001) / ДПР: 2019-2028
L12: 9. Расходы на электрическую энергию
L14: № п/п | M14: Наименование показателя | N14: Единица измерения | O14: =god-2 & " год" -> 2023 год | P14: =god-2 & " год" -> 2023 год | Q14: =god-2 & " год" -> 2023 год | R14: =god-1 & " год" -> 2024 год | S14: =god & " год" -> 2025 год | T14: =god+1 & " год" -> 2026 год | U14: =god+2 & " год" -> 2027 год | V14: =god+3 & " год" -> 2028 год | W14: =god+4 & " год" -> 2029 год | X14: =god+5 & " год" -> 2030 год | Y14: =god+6 & " год" -> 2031 год | Z14: =god+7 & " год" -> 2032 год | AA14: =god+8 & " год" -> 2033 год | AB14: =god+9 & " год" -> 2034 год | AC14: =god & " год" -> 2025 год | AD14: =god+1 & " год" -> 2026 год | AE14: =god+2 & " год" -> 2027 год | AF14: =god+3 & " год" -> 2028 год | AG14: =god+4 & " год" -> 2029 год | AH14: =god+5 & " год" -> 2030 год | AI14: =god+6 & " год" -> 2031 год | AJ14: =god+7 & " год" -> 2032 год | AK14: =god+8 & " год" -> 2033 год | AL14: =god+9 & " год" -> 2034 год | AM14: Ссылка на правовую норму (основание для принятия показателя в расчет тарифа)
O15: Принято органом регулирования | P15: Факт по данным организации | Q15: Факт, принятый органом регулирования | R15: Принято органом регулирования | S15: Предложение организации | T15: Предложение организации | U15: Предложение организации | V15: Предложение организации | W15: Предложение организации | X15: Предложение организации | Y15: Предложение организации | Z15: Предложение организации | AA15: Предложение организации | AB15: Предложение организации | AC15: Принято органом регулирования | AD15: Принято органом регулирования | AE15: Принято органом регулирования | AF15: Принято органом регулирования | AG15: Принято органом регулирования | AH15: Принято органом регулирования | AI15: Принято органом регулирования | AJ15: Принято органом регулирования | AK15: Принято органом регулирования | AL15: Принято органом регулирования
A16: ='Общие сведения'!$D$122 -> 1 | L16: =INDEX('Общие сведения'!$J$121:$J$135,MATCH($A16,'Общие сведения'!$D$121:$D$135,0)) -> Тариф 1 (Водоотведение) - тариф на водоотведение
A17: =A16 -> 1 | B17: L1 | L17: 1 | M17: Всего по тарифу | N17: тыс.руб. | O17: =SUMIF(N22:N41,N17,O22:O41) -> 24069.69814 | P17: =SUMIF(N22:N41,N17,P22:P41) -> 28218.17 | Q17: =SUMIF(N22:N41,N17,Q22:Q41) -> 27768.5018 | R17: =SUMIF(N22:N41,N17,R22:R41) -> 30427.11069 | S17: =SUMIF(N22:N41,N17,S22:S41) -> 32887.36 | T17: =SUMIF(N22:N41,N17,T22:T41) -> 0 | U17: =SUMIF(N22:N41,N17,U22:U41) -> 0 | V17: =SUMIF(N22:N41,N17,V22:V41) -> 0 | W17: =SUMIF(N22:N41,N17,W22:W41) -> 0 | X17: =SUMIF(N22:N41,N17,X22:X41) -> 0 | Y17: =SUMIF(N22:N41,N17,Y22:Y41) -> 0 | Z17: =SUMIF(N22:N41,N17,Z22:Z41) -> 0 | AA17: =SUMIF(N22:N41,N17,AA22:AA41) -> 0 | AB17: =SUMIF(N22:N41,N17,AB22:AB41) -> 0 | AC17: =SUMIF(N22:N41,N17,AC22:AC41) -> 31679.75401 | AD17: =SUMIF(N22:N41,N17,AD22:AD41) -> 0 | AE17: =SUMIF(N22:N41,N17,AE22:AE41) -> 0 | AF17: =SUMIF(N22:N41,N17,AF22:AF41) -> 0 | AG17: =SUMIF(N22:N41,N17,AG22:AG41) -> 0 | AH17: =SUMIF(N22:N41,N17,AH22:AH41) -> 0 | AI17: =SUMIF(N22:N41,N17,AI22:AI41) -> 0 | AJ17: =SUMIF(N22:N41,N17,AJ22:AJ41) -> 0 | AK17: =SUMIF(N22:N41,N17,AK22:AK41) -> 0 | AL17: =SUMIF(N22:N41,N17,AL22:AL41) -> 0 | AM17: П. 20, 84, 88, 43, 90 Методических указаний ФСТ № 1746-э (Формулы 39.1, 39.2, 39.3).
A18: 1 | B18: L2 | L18: 2 | M18: Объём покупаемой электроэнергии всего | N18: тыс.кВтч | O18: =SUMIF(N22:N41,N18,O22:O41) -> 4579.405335 | P18: =SUMIF(N22:N41,N18,P22:P41) -> 5045.63 | Q18: =SUMIF(N22:N41,N18,Q22:Q41) -> 4958.828 | R18: =SUMIF(N22:N41,N18,R22:R41) -> 5167.963905 | S18: =SUMIF(N22:N41,N18,S22:S41) -> 5054.71 | T18: =SUMIF(N22:N41,N18,T22:T41) -> 0 | U18: =SUMIF(N22:N41,N18,U22:U41) -> 0 | V18: =SUMIF(N22:N41,N18,V22:V41) -> 0 | W18: =SUMIF(N22:N41,N18,W22:W41) -> 0 | X18: =SUMIF(N22:N41,N18,X22:X41) -> 0 | Y18: =SUMIF(N22:N41,N18,Y22:Y41) -> 0 | Z18: =SUMIF(N22:N41,N18,Z22:Z41) -> 0 | AA18: =SUMIF(N22:N41,N18,AA22:AA41) -> 0 | AB18: =SUMIF(N22:N41,N18,AB22:AB41) -> 0 | AC18: =SUMIF(N22:N41,N18,AC22:AC41) -> 4897.764 | AD18: =SUMIF(N22:N41,N18,AD22:AD41) -> 0 | AE18: =SUMIF(N22:N41,N18,AE22:AE41) -> 0 | AF18: =SUMIF(N22:N41,N18,AF22:AF41) -> 0 | AG18: =SUMIF(N22:N41,N18,AG22:AG41) -> 0 | AH18: =SUMIF(N22:N41,N18,AH22:AH41) -> 0 | AI18: =SUMIF(N22:N41,N18,AI22:AI41) -> 0 | AJ18: =SUMIF(N22:N41,N18,AJ22:AJ41) -> 0 | AK18: =SUMIF(N22:N41,N18,AK22:AK41) -> 0 | AL18: =SUMIF(N22:N41,N18,AL22:AL41) -> 0 | AM18: Определено на основании утвержденных показателей удельного расхода энергии (в соответствии с долгосрочными параметрами регулирования тарифов) и принятых годовых объемов пропуска сточных вод.
A19: 1 | B19: L3 | L19: 3 | M19: Объём воды/сточных вод | N19: тыс.куб.м. | O19: 3663.524268 | P19: =Баланс!P47 -> 3967.062 | Q19: =Баланс!Q47 -> 3967.062 | R19: 4134.371124 | S19: =Баланс!S47 -> 4043.774 | AC19: =Баланс!AC47 -> 3918.211 | AM19: 1,25 кВт*ч/м3 * 3967,062 тыс. м3 = 4958,828 тыс. кВт*ч; 1,25 кВт*ч/м3 * 3918,211 тыс. м3 = 4897,764 тыс. кВт*ч.
A20: 1 | B20: L4 | L20: 4 | M20: Средний (расчетный) тариф | N20: руб./кВтч | O20: =IF(O18=0,0,O17/O18) -> 5.256075053 | P20: =IF(P18=0,0,P17/P18) -> 5.592595969 | Q20: 5.599811448 | R20: 5.88763994 | S20: 6.506280281 | T20: 0 | U20: 0 | V20: 0 | W20: 0 | X20: 0 | Y20: 0 | Z20: 0 | AA20: 0 | AB20: 0 | AC20: 6.468207536 | AD20: 0 | AE20: 0 | AF20: 0 | AG20: 0 | AH20: 0 | AI20: 0 | AJ20: 0 | AK20: 0 | AL20: 0
A21: 1 | B21: L5 | L21: 5 | M21: Удельный расход электроэнергии | N21: кВтч/куб.м. | O21: =IF(O19=0,0,O18/O19) -> 1.25 | P21: 1.271880802 | Q21: 1.250000126 | R21: 1.25 | S21: 1.249998145 | T21: 0 | U21: 0 | V21: 0 | W21: 0 | X21: 0 | Y21: 0 | Z21: 0 | AA21: 0 | AB21: 0 | AC21: 1.250000064 | AD21: 0 | AE21: 0 | AF21: 0 | AG21: 0 | AH21: 0 | AI21: 0 | AJ21: 0 | AK21: 0 | AL21: 0 | AM21: В соответствии с утвержденными долгосрочными параметрами регулирования тарифов (Постановление региональной энергетической комиссии Кемеровской области от 19.12.2018 № 759, в редакции Постановлений Региональной энергетической комиссии от 24.11.2020 N 427, от 11.02.2021 N 60).
A22: 1 | J22: 6.0 | M22: Одноставочный тариф
A23: =OFFSET(A23,-1,0) -> 1 | B23: L6 | C23: =M23 -> ВН | J23: 6.1 | K23: О | L23: =J23 -> 6.1 | M23: ВН | N23: тыс.руб. | O23: 207.9759477 | R23: 0
A24: =A23 -> 1 | B24: L6_1 | C24: =C23 -> ВН | L24: =L23&".1" -> 6.1.1 | M24: Тариф на электроэнергию | N24: руб./кВтч | O24: =IF(OR(AND(O23<>0,O25=0),AND(O23=0,O25<>0)),"Ошибка",IF(O25=0,0,O23/O25)) -> 4.670377034 | P24: 0 | Q24: 0 | R24: 0 | S24: 0 | T24: 0 | U24: 0 | V24: 0 | W24: 0 | X24: 0 | Y24: 0 | Z24: 0 | AA24: 0 | AB24: 0 | AC24: 0 | AD24: 0 | AE24: 0 | AF24: 0 | AG24: 0 | AH24: 0 | AI24: 0 | AJ24: 0 | AK24: 0 | AL24: 0
A25: =A24 -> 1 | B25: L6_2 | C25: =C24 -> ВН | L25: =L23&".2" -> 6.1.2 | M25: Объём покупной электроэнергии | N25: тыс.кВтч | O25: 44.53086896 | R25: 0
A26: =OFFSET(A26,-1,0) -> 1 | B26: L6 | C26: =M26 -> НН | J26: 6.2 | K26: О | L26: =J26 -> 6.2 | M26: НН | N26: тыс.руб. | O26: 135.9773937 | P26: 168.07 | Q26: =Q28*P27 -> 165.1786243 | R26: 183.3895165 | S26: 212.13 | AC26: =P27*1.051*1.098*AC28 -> 188.2685209
A27: =A26 -> 1 | B27: L6_1 | C27: =C26 -> НН | L27: =L26&".1" -> 6.2.1 | M27: Тариф на электроэнергию | N27: руб./кВтч | O27: =IF(OR(AND(O26<>0,O28=0),AND(O26=0,O28<>0)),"Ошибка",IF(O28=0,0,O26/O28)) -> 7.235153264 | P27: 7.371491228 | Q27: 7.371491228 | R27: 8.093668874 | S27: 8.901804448 | T27: 0 | U27: 0 | V27: 0 | W27: 0 | X27: 0 | Y27: 0 | Z27: 0 | AA27: 0 | AB27: 0 | AC27: 8.506686134 | AD27: 0 | AE27: 0 | AF27: 0 | AG27: 0 | AH27: 0 | AI27: 0 | AJ27: 0 | AK27: 0 | AL27: 0
A28: =A27 -> 1 | B28: L6_2 | C28: =C27 -> НН | L28: =L26&".2" -> 6.2.2 | M28: Объём покупной электроэнергии | N28: тыс.кВтч | O28: 18.7939894 | P28: 22.8 | Q28: =P28/P18*4958.828 -> 22.40776244 | R28: 22.65839131 | S28: 23.83 | AC28: =P28/P18*4897.764 -> 22.13182877 | AM28: Общие фактические объемы потребления электроэнергии в отчетном 2023 году и в плановом 2025 году распределены пропорционально фактической (2023 г.) доле энергии НН в общем объеме электроэнергии.
A29: =OFFSET(A29,-1,0) -> 1 | B29: L6 | C29: =M29 -> СН2 | J29: 6.3 | K29: О | L29: =J29 -> 6.3 | M29: СН2 | N29: тыс.руб. | P29: 18562.3 | Q29: =Q31*P30+0.03 -> 18242.9953 | S29: 20659.4 | AC29: =P30*1.051*1.098*AC31 -> 20793.10267
A30: =A29 -> 1 | B30: L6_1 | C30: =C29 -> СН2 | L30: =L29&".1" -> 6.3.1 | M30: Тариф на электроэнергию | N30: руб./кВтч | O30: =IF(OR(AND(O29<>0,O31=0),AND(O29=0,O31<>0)),"Ошибка",IF(O31=0,0,O29/O31)) -> 0 | P30: 5.798489955 | Q30: 5.798499491 | R30: 0 | S30: 6.591749545 | T30: 0 | U30: 0 | V30: 0 | W30: 0 | X30: 0 | Y30: 0 | Z30: 0 | AA30: 0 | AB30: 0 | AC30: 6.691445812 | AD30: 0 | AE30: 0 | AF30: 0 | AG30: 0 | AH30: 0 | AI30: 0 | AJ30: 0 | AK30: 0 | AL30: 0
A31: =A30 -> 1 | B31: L6_2 | C31: =C30 -> СН2 | L31: =L29&".2" -> 6.3.2 | M31: Объём покупной электроэнергии | N31: тыс.кВтч | P31: 3201.23 | Q31: =P31/P18*4958.828 -> 3146.157954 | S31: 3134.13 | AC31: =P31/P18*4897.764 -> 3107.415536 | AM31: Общие фактические объемы потребления электроэнергии в отчетном 2023 году и в плановом 2025 году распределены пропорционально фактической (2023 г.) доле энергии СН-2 (одноставочный тариф) в общем объеме электроэнергии.
A32: =A22 -> 1 | B32: =A32&"pIns1" -> 1pIns1 | M32: Добавить
A33: 1 | J33: 7.0 | M33: Двухставочный тариф
A34: =OFFSET(A34,-1,0) -> 1 | B34: L7 | C34: =M34 -> СН2 | J34: 7.1 | K34: О | L34: =J34 -> 7.1 | M34: СН2 | N34: тыс.руб. | O34: =O35+O38 -> 23725.74479 | P34: =P35+P38 -> 9487.8 | Q34: =Q35+Q38 -> 9360.327881 | R34: =R35+R38 -> 30243.72118 | S34: =S35+S38 -> 12015.83 | T34: =T36*T37+T39*T40/1000*12 -> 0 | U34: =U36*U37+U39*U40/1000*12 -> 0 | V34: 0 | W34: 0 | X34: 0 | Y34: 0 | Z34: 0 | AA34: 0 | AB34: 0 | AC34: 10698.38282 | AD34: 0 | AE34: 0 | AF34: 0 | AG34: 0 | AH34: 0 | AI34: 0 | AJ34: 0 | AK34: 0 | AL34: 0
A35: =OFFSET(A35,-1,0) -> 1 | B35: L7_1 | C35: =C34 -> СН2 | L35: =L34&".1" -> 7.1.1 | M35: Затраты на электроэнергию | N35: тыс.руб. | O35: 20202.02133 | P35: 7407.7 | Q35: =Q37*P36 -> 7280.262361 | R35: 27486.36751 | S35: 8779.03 | AC35: =P36*1.051*1.098*AC37 -> 8297.951583
A36: 1 | B36: L7_1_1 | C36: СН2 | L36: =L34&".1.1" -> 7.1.1.1 | M36: Тариф на электроэнергию | N36: руб./кВтч | O36: =IF(OR(AND(O35<>0,O37=0),AND(O35=0,O37<>0)),"Ошибка",IF(O37=0,0,O35/O37)) -> 4.473352818 | P36: 4.066589811 | Q36: 4.066589811 | R36: 5.34202827 | S36: 4.628459207 | T36: 0 | U36: 0 | V36: 0 | W36: 0 | X36: 0 | Y36: 0 | Z36: 0 | AA36: 0 | AB36: 0 | AC36: 4.692836509 | AD36: 0 | AE36: 0 | AF36: 0 | AG36: 0 | AH36: 0 | AI36: 0 | AJ36: 0 | AK36: 0 | AL36: 0
A37: 1 | B37: L7_1_2 | C37: СН2 | L37: =L34&".1.2" -> 7.1.1.2 | M37: Объём покупной электроэнергии | N37: тыс.кВтч | O37: 4516.080476 | P37: 1821.6 | Q37: =P37/P18*4958.828 -> 1790.262283 | R37: 5145.305513 | S37: 1896.75 | AC37: =P37/P18*4897.764 -> 1768.216635 | AM37: Общие фактические объемы потребления электроэнергии в отчетном 2023 году и в плановом 2025 году распределены пропорционально фактической (2023 г.) доле энергии СН-2 (двухставочный тариф) в общем объеме электроэнергии.
A38: 1 | B38: L7_2 | C38: СН2 | L38: =L34&".2" -> 7.1.2 | M38: Затраты на электрическую мощность | N38: тыс.руб. | O38: 3523.72347 | P38: 2080.1 | Q38: 2080.06552 | R38: 2757.353669 | S38: 3236.8 | AC38: =P38*1.051*1.098 -> 2400.43124
A39: 1 | B39: L7_2_1 | C39: СН2 | L39: =L34&".2.1" -> 7.1.2.1 | M39: Тариф на электрическую мощность | N39: руб./МВт в мес | O39: =IF(OR(AND(O38<>0,O40=0),AND(O38=0,O40<>0)),"Ошибка",IF(O40=0,0,O38/O40*1000/12)) -> 71883.38371 | P39: 831.3749001 | Q39: 69446.63194 | R39: 76797.952 | S39: 1013.730206 | T39: 0 | U39: 0 | V39: 0 | W39: 0 | X39: 0 | Y39: 0 | Z39: 0 | AA39: 0 | AB39: 0 | AC39: 80014.37466 | AD39: 0 | AE39: 0 | AF39: 0 | AG39: 0 | AH39: 0 | AI39: 0 | AJ39: 0 | AK39: 0 | AL39: 0
A40: 1 | B40: L7_2_2 | C40: СН2 | L40: =L34&".2.2" -> 7.1.2.2 | M40: Объём покупной мощности | N40: МВт в мес. | O40: 4.085 | P40: 208.5 | Q40: 2.496 | R40: 2.992 | S40: 266.08 | AC40: 2.5 | AM40: Определено на уровне фактического годового показателя 2023 года.
A41: =A33 -> 1 | B41: =A41&"pIns2" -> 1pIns2 | M41: Добавить
L44: Комментарии и обоснования к разделу
L45: Поставка электроэнергии для нужд водоотведения в 2023 году осуществлялась на основании: 1) договора от 01.12.2021 № 610675 с ПАО «Кузбассэнергосбыт» (расчеты по одноставочному тарифу, по первой ценовой категории), снабжаются по низкому, среднему второму и высокому напряжению Очистные сооружения пос. Инской, Очистные сооружения пос. Колмогоры, Очистные сооружения микрорайона Ивушки, КНС ); 2) договора от 01.10.2013 №601224 с ПАО «Кузбассэнергосбыт» (энергия СН-2 по двухставочному тарифу по третьей ценовой категории – снабжаются Очистные сооружения Кузбасская, 6 (Ф6-14К, Ф6-41К).
K46: О | L46: Плановые цены на электроэнергию и мощность на 2025 год рассчитаны от фактических средневзвешенных цен 2023 г. (подтверждены счетами-фактурами за январь-декабрь 2023 г.) с учетом ИЦП (индекса цен производителей) электроэнергии на 2024 г. 105,1% , на 2025 г. - 109,8% согласно "Прогнозу социально-экономического развития РФ на 2025 год и на плановый период 2026 и 2027 годов" от 30.09.2024.
L47: Добавить комментарий

Sheet Амортизация
O1: =god-2 -> 2023 | P1: =god-2 -> 2023 | Q1: =god-2 -> 2023 | R1: =god-1 -> 2024 | S1: =god -> 2025 | T1: =god+1 -> 2026 | U1: =god+2 -> 2027 | V1: =god+3 -> 2028 | W1: =god+4 -> 2029 | X1: =god+5 -> 2030 | Y1: =god+6 -> 2031 | Z1: =god+7 -> 2032 | AA1: =god+8 -> 2033 | AB1: =god+9 -> 2034 | AC1: =god -> 2025 | AD1: =god+1 -> 2026 | AE1: =god+2 -> 2027 | AF1: =god+3 -> 2028 | AG1: =god+4 -> 2029 | AH1: =god+5 -> 2030 | AI1: =god+6 -> 2031 | AJ1: =god+7 -> 2032 | AK1: =god+8 -> 2033 | AL1: =god+9 -> 2034
O2: =O15 -> Принято органом регулирования | P2: =P15 -> Факт по данным организации | Q2: Факт, принятый органом регулирования | R2: Принято органом регулирования | S2: Предложение организации | T2: Предложение организации | U2: Предложение организации | V2: Предложение организации | W2: Предложение организации | X2: Предложение организации | Y2: Предложение организации | Z2: Предложение организации | AA2: Предложение организации | AB2: Предложение организации | AC2: Принято органом регулирования | AD2: Принято органом регулирования | AE2: Принято органом регулирования | AF2: Принято органом регулирования | AG2: Принято органом регулирования | AH2: Принято органом регулирования | AI2: Принято органом регулирования | AJ2: Принято органом регулирования | AK2: Принято органом регулирования | AL2: Принято органом регулирования
S7: =S1<=last_year_vis -> TRUE | T7: FALSE | U7: FALSE | V7: FALSE | W7: FALSE | X7: FALSE | Y7: FALSE | Z7: FALSE | AA7: FALSE | AB7: FALSE | AC7: TRUE | AD7: FALSE | AE7: FALSE | AF7: FALSE | AG7: FALSE | AH7: FALSE | AI7: FALSE | AJ7: FALSE | AK7: FALSE | AL7: FALSE
M11: =tpl_title -> Кемеровская область / 2025 / ООО"БелГОС" (ИНН:4202023230, КПП:420201001) / ДПР: 2019-2028
L12: 10. Амортизация основных средств и нематериальных активов, относимых к объектам централизованной системы водоснабжения/водоотведения
L14: № п/п | M14: Наименование | N14: Единица измерения | O14: =god-2 & " год" -> 2023 год | P14: =god-2 & " год" -> 2023 год | Q14: =god-2 & " год" -> 2023 год | R14: =god-1 & " год" -> 2024 год | S14: =god & " год" -> 2025 год | T14: =god+1 & " год" -> 2026 год | U14: =god+2 & " год" -> 2027 год | V14: =god+3 & " год" -> 2028 год | W14: =god+4 & " год" -> 2029 год | X14: =god+5 & " год" -> 2030 год | Y14: =god+6 & " год" -> 2031 год | Z14: =god+7 & " год" -> 2032 год | AA14: =god+8 & " год" -> 2033 год | AB14: =god+9 & " год" -> 2034 год | AC14: =god & " год" -> 2025 год | AD14: =god+1 & " год" -> 2026 год | AE14: =god+2 & " год" -> 2027 год | AF14: =god+3 & " год" -> 2028 год | AG14: =god+4 & " год" -> 2029 год | AH14: =god+5 & " год" -> 2030 год | AI14: =god+6 & " год" -> 2031 год | AJ14: =god+7 & " год" -> 2032 год | AK14: =god+8 & " год" -> 2033 год | AL14: =god+9 & " год" -> 2034 год | AM14: Ссылка на правовую норму (основание для принятия показателя в расчет тарифа)
O15: Принято органом регулирования | P15: Факт по данным организации | Q15: Факт, принятый органом регулирования | R15: Принято органом регулирования | S15: Предложение организации | T15: Предложение организации | U15: Предложение организации | V15: Предложение организации | W15: Предложение организации | X15: Предложение организации | Y15: Предложение организации | Z15: Предложение организации | AA15: Предложение организации | AB15: Предложение организации | AC15: Принято органом регулирования | AD15: Принято органом регулирования | AE15: Принято органом регулирования | AF15: Принято органом регулирования | AG15: Принято органом регулирования | AH15: Принято органом регулирования | AI15: Принято органом регулирования | AJ15: Принято органом регулирования | AK15: Принято органом регулирования | AL15: Принято органом регулирования
A16: ='Общие сведения'!$D$122 -> 1 | L16: =INDEX('Общие сведения'!$J$121:$J$135,MATCH($A16,'Общие сведения'!$D$121:$D$135,0)) -> Тариф 1 (Водоотведение) - тариф на водоотведение
A17: =A16 -> 1 | B17: L1 | L17: 1 | M17: Первоначальная (восстановительная) стоимость на начало периода | N17: тыс.руб. | O17: =SUM(O18:O22) -> 0 | P17: =SUM(P18:P22) -> 9442.31609 | Q17: =SUM(Q18:Q22) -> 8294.44269 | R17: =SUM(R18:R22) -> 9442.3174 | S17: =SUM(S18:S22) -> 11255.027 | T17: 0 | U17: 0 | V17: 0 | W17: 0 | X17: 0 | Y17: 0 | Z17: 0 | AA17: =SUM(AA18:AA22) -> 0 | AB17: =SUM(AB18:AB22) -> 0 | AC17: 8789.28269 | AD17: 0 | AE17: 0 | AF17: 0 | AG17: 0 | AH17: 0 | AI17: 0 | AJ17: 0 | AK17: 0 | AL17: 0 | AM17: 1) П. 89, п. 28, п 18(7) Методических указаний ФСТ № 1746-э. 2) Постановление Правительства РФ от 01.01.2002 N 1 (ред. от 18.11.2022) "О Классификации основных средств, включаемых в амортизационные группы". 3) Приказ Минфина России от 17.09.2020 N 204н (ред. от 30.05.2022) "Об утверждении Федеральных стандартов бухгалтерского учета ФСБУ 6/2020 "Основные средства" и ФСБУ 26/2020 "Капитальные вложения" (Зарегистрировано в Минюсте России 15.10.2020 N 60399). 4) Письмо> ФАС России от 05.08.2022 N МШ/74227/22 "О новых стандартах бухгалтерского учета, подлежащих применению начиная с бухгалтерской (финансовой) отчетности за 2022 год". 5) Учетная политика ООО "БелГОС" для целей бухгалтерского учета (Приказ от 30.12.2021 № 565).
A18: =A17 -> 1 | B18: L1_1 | L18: 1.1 | M18: Здания | N18: тыс.руб. | R18: 0 | S18: 603.7 | AC18: =Q36 -> 0 | AM18: Входят в состав имущества, переданного по Концессионному соглашению, амортизация по которому учитывается на забалансовом счете и не включается в состав себестоимости.
A19: 1 | B19: L1_2 | L19: 1.2 | M19: Сооружения и передаточные устройства | N19: тыс.руб. | P19: 2625.5785 | Q19: 2625.5785 | R19: 4368.45307 | S19: 4368.45 | AC19: =Q37 -> 2625.5785 | AM19: Специалистом РЭК отражена стоимость Собственных основных средств ООО "БелГОС", числяшихся на балансе организации.
A20: 1 | B20: L1_3 | L20: 1.3 | M20: Машины и оборудование | N20: тыс.руб. | P20: 1941.71419 | Q20: 1941.71419 | R20: 4138.87333 | S20: 5347.89 | AC20: 2436.55419 | AM20: Специалистом РЭК отражена стоимость Собственных основных средств ООО "БелГОС", числяшихся на балансе организации.
A21: 1 | B21: L1_4 | L21: 1.4 | M21: Транспорт | N21: тыс.руб. | P21: 798.57666 | Q21: 0 | R21: 798.577 | S21: 798.577 | AC21: 0 | AM21: Стоимость транспортных средств к учету не принята, так как такие основные средства относятся к объектам общепроизводственного назначения и входят в состав Операционных расходов (Пункт 18(7) Методических указаний ФСТ № 1746-э).
A22: 1 | B22: L1_5 | L22: 1.5 | M22: Прочее | N22: тыс.руб. | P22: =42+4034.44674 -> 4076.44674 | Q22: =42+3685.15 -> 3727.15 | R22: 136.414 | S22: 136.41 | AC22: 3727.15 | AM22: Специалистом РЭК отражена стоимость Земельного участка, числящегося на балансе организации, и стоимость мероприятий по реконструкции Объекта концессионного осглашения, предусмотренных утвержденной Инвестиционной программой ( в том числе, стоимость услуг по разработке проекта концессионного соглашения).
A23: 1 | B23: L2 | L23: 2 | M23: Ввод основных фондов | N23: тыс.руб. | O23: =SUM(O24:O28) -> 0 | P23: 1812.72645 | Q23: 494.84 | R23: 0 | S23: 814.1 | T23: 0 | U23: 0 | V23: 0 | W23: 0 | X23: 0 | Y23: 0 | Z23: 0 | AA23: =SUM(AA24:AA28) -> 0 | AB23: =SUM(AB24:AB28) -> 0 | AC23: 0 | AD23: 0 | AE23: 0 | AF23: 0 | AG23: 0 | AH23: 0 | AI23: 0 | AJ23: 0 | AK23: 0 | AL23: 0
A24: 1 | B24: L2_1 | L24: 2.1 | M24: Здания | N24: тыс.руб. | P24: 0 | Q24: 0 | S24: 814.1 | AC24: 0
A25: 1 | B25: L2_2 | L25: 2.2 | M25: Сооружения и передаточные устройства | N25: тыс.руб. | P25: 0 | Q25: 0 | AC25: 0
A26: 1 | B26: L2_3 | L26: 2.3 | M26: Машины и оборудование | N26: тыс.руб. | P26: 494.84 | Q26: 494.84 | AC26: 0
A27: 1 | B27: L2_4 | L27: 2.4 | M27: Транспорт | N27: тыс.руб. | P27: 0 | Q27: 0 | AC27: 0
A28: 1 | B28: L2_5 | L28: 2.5 | M28: Прочее | N28: тыс.руб. | P28: 1317.88645 | Q28: 0 | AC28: 0
A29: 1 | B29: L3 | L29: 3 | M29: Выбытие основных фондов | N29: тыс.руб. | O29: =SUM(O30:O34) -> 0 | P29: 0 | Q29: 0 | R29: 0 | S29: 0 | T29: 0 | U29: 0 | V29: 0 | W29: 0 | X29: 0 | Y29: 0 | Z29: 0 | AA29: =SUM(AA30:AA34) -> 0 | AB29: =SUM(AB30:AB34) -> 0 | AC29: 0 | AD29: 0 | AE29: 0 | AF29: 0 | AG29: 0 | AH29: 0 | AI29: 0 | AJ29: 0 | AK29: 0 | AL29: =SUM(AL30:AL34) -> 0
A30: 1 | B30: L3_1 | L30: 3.1 | M30: Здания | N30: тыс.руб. | P30: 0 | Q30: 0 | AC30: 0
A31: 1 | B31: L3_2 | L31: 3.2 | M31: Сооружения и передаточные устройства | N31: тыс.руб. | P31: 0 | Q31: 0 | AC31: 0
A32: 1 | B32: L3_3 | L32: 3.3 | M32: Машины и оборудование | N32: тыс.руб. | P32: 0 | Q32: 0 | AC32: 0
A33: 1 | B33: L3_4 | L33: 3.4 | M33: Транспорт | N33: тыс.руб. | P33: 0 | Q33: 0 | AC33: 0
A34: 1 | B34: L3_5 | L34: 3.5 | M34: Прочее | N34: тыс.руб. | P34: 0 | Q34: 0 | AC34: 0
A35: 1 | B35: L4 | L35: 4 | M35: Первоначальная (восстановительная) стоимость на конец периода | N35: тыс.руб. | O35: =SUM(O36:O40) -> 0 | P35: 11255.04254 | Q35: =SUM(Q36:Q40) -> 8789.28269 | R35: 9442.3174 | S35: 12069.127 | T35: 0 | U35: 0 | V35: 0 | W35: 0 | X35: 0 | Y35: 0 | Z35: 0 | AA35: =SUM(AA36:AA40) -> 0 | AB35: =SUM(AB36:AB40) -> 0 | AC35: 8789.28269 | AD35: 0 | AE35: 0 | AF35: 0 | AG35: 0 | AH35: 0 | AI35: 0 | AJ35: 0 | AK35: 0 | AL35: 0
A36: 1 | B36: L4_1 | L36: 4.1 | M36: Здания | N36: тыс.руб. | O36: 0 | P36: =P18+P24-P30 -> 0 | Q36: =Q18+Q24-Q30 -> 0 | R36: 0 | S36: 1417.8 | T36: 0 | U36: 0 | V36: 0 | W36: 0 | X36: 0 | Y36: 0 | Z36: 0 | AA36: 0 | AB36: 0 | AC36: 0 | AD36: 0 | AE36: 0 | AF36: 0 | AG36: 0 | AH36: 0 | AI36: 0 | AJ36: 0 | AK36: 0 | AL36: 0
A37: 1 | B37: L4_2 | L37: 4.2 | M37: Сооружения и передаточные устройства | N37: тыс.руб. | O37: 0 | P37: =P19+P25-P31 -> 2625.5785 | Q37: =Q19+Q25-Q31 -> 2625.5785 | R37: 4368.45307 | S37: 4368.45 | T37: 0 | U37: 0 | V37: 0 | W37: 0 | X37: 0 | Y37: 0 | Z37: 0 | AA37: 0 | AB37: 0 | AC37: 2625.5785 | AD37: 0 | AE37: 0 | AF37: 0 | AG37: 0 | AH37: 0 | AI37: 0 | AJ37: 0 | AK37: 0 | AL37: 0
A38: 1 | B38: L4_3 | L38: 4.3 | M38: Машины и оборудование | N38: тыс.руб. | O38: 0 | P38: =P20+P26-P32 -> 2436.55419 | Q38: =Q20+Q26-Q32 -> 2436.55419 | R38: 4138.87333 | S38: =S20+S26-S32 -> 5347.89 | T38: 0 | U38: 0 | V38: 0 | W38: 0 | X38: 0 | Y38: 0 | Z38: 0 | AA38: 0 | AB38: 0 | AC38: 2436.55419 | AD38: 0 | AE38: 0 | AF38: 0 | AG38: 0 | AH38: 0 | AI38: 0 | AJ38: 0 | AK38: 0 | AL38: =AL20+AL26-AL32 -> 0
A39: 1 | B39: L4_4 | L39: 4.4 | M39: Транспорт | N39: тыс.руб. | O39: 0 | P39: =P21+P27-P33 -> 798.57666 | Q39: =Q21+Q27-Q33 -> 0 | R39: 798.577 | S39: =S21+S27-S33 -> 798.577 | T39: 0 | U39: 0 | V39: 0 | W39: 0 | X39: 0 | Y39: 0 | Z39: 0 | AA39: 0 | AB39: 0 | AC39: 0 | AD39: 0 | AE39: 0 | AF39: 0 | AG39: 0 | AH39: 0 | AI39: 0 | AJ39: 0 | AK39: 0 | AL39: =AL21+AL27-AL33 -> 0
A40: 1 | B40: L4_5 | L40: 4.5 | M40: Прочее | N40: тыс.руб. | O40: 0 | P40: =P22+P28-P34 -> 5394.33319 | Q40: =Q22+Q28-Q34 -> 3727.15 | R40: 136.414 | S40: =S22+S28-S34 -> 136.41 | T40: 0 | U40: 0 | V40: 0 | W40: 0 | X40: 0 | Y40: 0 | Z40: 0 | AA40: 0 | AB40: 0 | AC40: 3727.15 | AD40: 0 | AE40: 0 | AF40: 0 | AG40: 0 | AH40: 0 | AI40: 0 | AJ40: 0 | AK40: 0 | AL40: =AL22+AL28-AL34 -> 0
A41: 1 | B41: L5 | L41: 5 | M41: Среднегодовая стоимость | N41: тыс.руб. | O41: =SUM(O42:O46) -> 0 | P41: =SUM(P42:P46) -> 10348.67931 | Q41: =SUM(Q42:Q46) -> 8541.86269 | R41: 9442.3174 | S41: 11662.077 | T41: 0 | U41: 0 | V41: 0 | W41: 0 | X41: 0 | Y41: 0 | Z41: 0 | AA41: =SUM(AA42:AA46) -> 0 | AB41: =SUM(AB42:AB46) -> 0 | AC41: 8789.28269 | AD41: 0 | AE41: 0 | AF41: 0 | AG41: 0 | AH41: 0 | AI41: 0 | AJ41: 0 | AK41: 0 | AL41: 0
A42: 1 | B42: L5_1 | L42: 5.1 | M42: Здания | N42: тыс.руб. | O42: 0 | P42: =(P36+P18)/2 -> 0 | Q42: =(Q36+Q18)/2 -> 0 | R42: 0 | S42: 1010.75 | T42: 0 | U42: 0 | V42: 0 | W42: 0 | X42: 0 | Y42: 0 | Z42: 0 | AA42: 0 | AB42: 0 | AC42: 0 | AD42: 0 | AE42: 0 | AF42: 0 | AG42: 0 | AH42: 0 | AI42: 0 | AJ42: 0 | AK42: 0 | AL42: 0
A43: 1 | B43: L5_2 | L43: 5.2 | M43: Сооружения и передаточные устройства | N43: тыс.руб. | O43: 0 | P43: 2625.5785 | Q43: =(Q37+Q19)/2 -> 2625.5785 | R43: 4368.45307 | S43: 4368.45 | T43: 0 | U43: 0 | V43: 0 | W43: 0 | X43: 0 | Y43: 0 | Z43: 0 | AA43: 0 | AB43: 0 | AC43: 2625.5785 | AD43: 0 | AE43: 0 | AF43: 0 | AG43: 0 | AH43: 0 | AI43: 0 | AJ43: 0 | AK43: 0 | AL43: 0
A44: 1 | B44: L5_3 | L44: 5.3 | M44: Машины и оборудование | N44: тыс.руб. | O44: 0 | P44: 2189.13419 | Q44: =(Q38+Q20)/2 -> 2189.13419 | R44: 4138.87333 | S44: 5347.89 | T44: 0 | U44: 0 | V44: 0 | W44: 0 | X44: 0 | Y44: 0 | Z44: 0 | AA44: 0 | AB44: 0 | AC44: 2436.55419 | AD44: 0 | AE44: 0 | AF44: 0 | AG44: 0 | AH44: 0 | AI44: 0 | AJ44: 0 | AK44: 0 | AL44: 0
A45: 1 | B45: L5_4 | L45: 5.4 | M45: Транспорт | N45: тыс.руб. | O45: 0 | P45: 798.57666 | Q45: =(Q39+Q21)/2 -> 0 | R45: 798.577 | S45: 798.577 | T45: 0 | U45: 0 | V45: 0 | W45: 0 | X45: 0 | Y45: 0 | Z45: 0 | AA45: 0 | AB45: 0 | AC45: 0 | AD45: 0 | AE45: 0 | AF45: 0 | AG45: 0 | AH45: 0 | AI45: 0 | AJ45: 0 | AK45: 0 | AL45: 0
A46: 1 | B46: L5_5 | L46: 5.5 | M46: Прочее | N46: тыс.руб. | O46: 0 | P46: 4735.389965 | Q46: =(Q40+Q22)/2 -> 3727.15 | R46: 136.414 | S46: 136.41 | T46: 0 | U46: 0 | V46: 0 | W46: 0 | X46: 0 | Y46: 0 | Z46: 0 | AA46: 0 | AB46: 0 | AC46: 3727.15 | AD46: 0 | AE46: 0 | AF46: 0 | AG46: 0 | AH46: 0 | AI46: 0 | AJ46: 0 | AK46: 0 | AL46: 0
A47: 1 | B47: L6 | L47: 6 | M47: Средняя норма амортизационных отчислений
A48: 1 | B48: L6_1 | L48: 6.1 | M48: Здания | N48: % | O48: 0 | P48: =IF(P42=0,0,P54/P42*100) -> 0 | Q48: 0 | R48: 0 | S48: 29.55231264 | T48: 0 | U48: 0 | V48: 0 | W48: 0 | X48: 0 | Y48: 0 | Z48: 0 | AA48: 0 | AB48: 0 | AC48: 0 | AD48: 0 | AE48: 0 | AF48: 0 | AG48: 0 | AH48: 0 | AI48: 0 | AJ48: 0 | AK48: 0 | AL48: 0
A49: 1 | B49: L6_2 | L49: 6.2 | M49: Сооружения и передаточные устройства | N49: % | O49: 0 | P49: 4.318042671 | Q49: 3.765505139 | R49: 7.706826984 | S49: 7.706852545 | T49: 0 | U49: 0 | V49: 0 | W49: 0 | X49: 0 | Y49: 0 | Z49: 0 | AA49: 0 | AB49: 0 | AC49: 3.765505139 | AD49: 0 | AE49: 0 | AF49: 0 | AG49: 0 | AH49: 0 | AI49: 0 | AJ49: 0 | AK49: 0 | AL49: 0
A50: 1 | B50: L6_3 | L50: 6.3 | M50: Машины и оборудование | N50: % | O50: 0 | P50: 14.42218122 | Q50: 12.59138131 | R50: 12.4775145 | S50: 13.74803895 | T50: 0 | U50: 0 | V50: 0 | W50: 0 | X50: 0 | Y50: 0 | Z50: 0 | AA50: 0 | AB50: 0 | AC50: 10.63343161 | AD50: 0 | AE50: 0 | AF50: 0 | AG50: 0 | AH50: 0 | AI50: 0 | AJ50: 0 | AK50: 0 | AL50: 0
A51: 1 | B51: L6_4 | L51: 6.4 | M51: Транспорт | N51: % | O51: 0 | P51: 19.9999985 | Q51: 0 | R51: 0 | S51: 20.00057602 | T51: 0 | U51: 0 | V51: 0 | W51: 0 | X51: 0 | Y51: 0 | Z51: 0 | AA51: 0 | AB51: 0 | AC51: 0 | AD51: 0 | AE51: 0 | AF51: 0 | AG51: 0 | AH51: 0 | AI51: 0 | AJ51: 0 | AK51: 0 | AL51: 0
A52: 1 | B52: L6_5 | L52: 6.5 | M52: Прочее | N52: % | O52: 0 | P52: 12.08352478 | Q52: 11.75520921 | R52: 6.979254329 | S52: 6.978960487 | T52: 0 | U52: 0 | V52: 0 | W52: 0 | X52: 0 | Y52: 0 | Z52: 0 | AA52: 0 | AB52: 0 | AC52: 11.75520921 | AD52: 0 | AE52: 0 | AF52: 0 | AG52: 0 | AH52: 0 | AI52: 0 | AJ52: 0 | AK52: 0 | AL52: 0
A53: 1 | B53: L7 | L53: 7 | M53: Сумма амортизационных отчислений | N53: тыс.руб. | O53: =SUM(O54:O58) -> 825.67 | P53: 1161.01184 | Q53: =SUM(Q54:Q58) -> 812.6428067 | R53: 862.61832 | S53: 1539.84 | T53: 0 | U53: 0 | V53: 0 | W53: 0 | X53: 0 | Y53: 0 | Z53: 0 | AA53: =SUM(AA54:AA58) -> 0 | AB53: =SUM(AB54:AB58) -> 0 | AC53: 796.0898967 | AD53: 0 | AE53: 0 | AF53: 0 | AG53: 0 | AH53: 0 | AI53: 0 | AJ53: 0 | AK53: 0 | AL53: 0
A54: 1 | B54: L7_1 | L54: 7.1 | M54: Здания | N54: тыс.руб. | P54: 0 | Q54: 0 | R54: 0 | S54: 298.7 | AC54: 0 | AM54: Специалистом РЭК отчисления по объектам, созданным/реконструированным в соответствии с Инвестиционной программой и отражаемых как Нематериальные активы (НМА), учтены по пункту 7.5.
A55: 1 | B55: L7_2 | L55: 7.2 | M55: Сооружения и передаточные устройства | N55: тыс.руб. | O55: 438.13 | P55: 113.3736 | Q55: =113.3736-27.20124+190.409/15 -> 98.86629333 | R55: 336.66912 | S55: 336.67 | AC55: 98.86629333 | AM55: Специалистом РЭК отражена амортизация объектов имущества, находящихся в собственности ООО "БелГОС". Фактические суммы амортизации за 2023 год и плановые суммы амортизации на 2025 год скорректированы, исходя из максимального нормативного срока полезного использования (15 лет), по объекту инвентарного учета № 330.
A56: 1 | B56: L7_3 | L56: 7.3 | M56: Машины и оборудование | N56: тыс.руб. | P56: 315.7209 | Q56: =315.7209-37.118-23+185.59/15+115/15 -> 275.6422333 | R56: 516.42852 | S56: 735.23 | AC56: 259.0893233 | AM56: Специалистом РЭК отражена амортизация объектов имущества, находящихся в собственности ООО "БелГОС". Фактические суммы амортизации за 2023 год и плановые суммы амортизации на 2025 год скорректированы, исходя из максимального нормативного срока полезного использования (15 лет) по объектам инвентарного учета № 6014, № 5932, № 6004.
A57: 1 | B57: L7_4 | L57: 7.4 | M57: Транспорт | N57: тыс.руб. | P57: 159.71532 | Q57: 0 | R57: 0 | S57: 159.72 | AC57: 0 | AM57: Начисления по транспортным средствам исключены, так как такие основные средства относятся к объектам общепроизводственного назначения и входят в состав Операционных расходов (Пункт 18(7) Методических указаний ФСТ № 1746-э).
A58: 1 | B58: L7_5 | L58: 7.5 | M58: Прочее | N58: тыс.руб. | O58: 387.54 | P58: 572.20202 | Q58: =428.6136+9.52068 -> 438.13428 | R58: 9.52068 | S58: 9.52 | AC58: =428.6136+9.52068 -> 438.13428 | AM58: Специалистом РЭК отражены отчисления в части НМА (стоимость мероприятий по реконструкции Объекта концессионного соглашения, предусмотренных Инвестиционной программой, в том числе - стоимость услуг по разработке проекта концессионного соглашения).
A59: 1 | B59: L8 | L59: 8 | M59: Переоценка на 31.12.XX | N59: тыс.руб. | O59: =SUM(O60:O64) -> 0 | P59: 0 | Q59: =SUM(Q60:Q64) -> 0 | R59: 0 | S59: 0 | T59: 0 | U59: 0 | V59: 0 | W59: 0 | X59: 0 | Y59: 0 | Z59: 0 | AA59: =SUM(AA60:AA64) -> 0 | AB59: =SUM(AB60:AB64) -> 0 | AC59: 0 | AD59: 0 | AE59: 0 | AF59: 0 | AG59: 0 | AH59: 0 | AI59: 0 | AJ59: 0 | AK59: 0 | AL59: 0
A60: 1 | B60: L8_1 | L60: 8.1 | M60: Здания | N60: тыс.руб.
A61: 1 | B61: L8_2 | L61: 8.2 | M61: Сооружения и передаточные устройства | N61: тыс.руб.
A62: 1 | B62: L8_3 | L62: 8.3 | M62: Машины и оборудование | N62: тыс.руб.
A63: 1 | B63: L8_4 | L63: 8.4 | M63: Транспорт | N63: тыс.руб.
A64: 1 | B64: L8_5 | L64: 8.5 | M64: Прочее | N64: тыс.руб.
L66: Комментарии и обоснования к разделу
L67: <Письмо> ФАС России от 05.08.2022 N МШ/74227/22 "О новых стандартах бухгалтерского учета, подлежащих применению начиная с бухгалтерской (финансовой) отчетности за 2022 год": "ФАС России отмечает, что экономическая обоснованность расходов и порядок их учета в составе необходимой валовой выручки регулируемых организаций определяются утверждаемыми Правительством Российской Федерации основами ценообразования в области государственного регулирования цен (тарифов) в соответствующих регулируемых сферах деятельности. Начиная с 2022 года применение новых стандартов бухгалтерского учета является обязательным, при этом данное обстоятельство не влечет изменение подходов к оценке экономической обоснованности расходов, учитываемых в необходимой валовой выручке (далее - НВВ) регулируемых организаций, которые основываются на принципах регулирования тарифов, установленных в отраслевых федеральных законах и в утвержденных Правительством Российской Федерации основах ценообразования. Кроме того, не меняется терминология и сущность затрат, установленные в смежных областях права (регулирование инвестиционной деятельности, требования к проведению ремонтных работ и т.п.). С учетом вышеизложенного ФАС России рекомендует руководствоваться следующим: (2.) Расходы на амортизацию основных средств для включения в НВВ определяются в соответствии с ОСНОВАМИ ЦЕНООБРАЗОВАНИЯ в соответствующих регулируемых сферах деятельности (на уровне, равном сумме отношений первоначальной стоимости основных средств регулируемой организации (в том числе с учетом стоимости проведенной реконструкции или модернизации) БЕЗ УЧЕТА ее увеличения на сумму затрат на ремонт, техническое обслуживание и технический осмотр, к сроку полезного использования таких активов, определяемому в момент принятия основных средств к учету или измененному в результате проведенной реконструкции или модернизации (изменение срока полезного использования, кроме указанного в настоящем абзаце, не учитывается при расчете суммы амортизации, включаемой в НВВ). При расчете экономически обоснованного размера амортизации срок полезного использования активов и отнесение этих активов к соответствующей амортизационной группе определяется регулирующими органами в соответствии с максимальными сроками полезного использования, установленными Классификацией основных средств, включаемых в амортизационные группы, утвержденной постановлением Правительства Российской Федерации от 1 января 2002 г. N 1 "О Классификации основных средств, включаемых в амортизационные группы" (далее - Классификация ОС N 1). Амортизация прав пользования активами, сформированными в соответствии с нормами ФСБУ 25/2018 "Бухгалтерский учет аренды" и отраженными в составе основных средств, не включается в состав необходимой валовой выручки в целях исключения двойного учета затрат в составе необходимой валовой выручки регулируемой организации.
K68: О | L68: Регулирующим органом приняты к учету ПО СТАТЬЕ "АМОРТИЗАЦИЯ ОСНОВНЫХ СРЕДСТВ И НЕМАТЕРИАЛЬНЫХ АКТИВОВ, ОТНОСИМЫХ К ОБЪЕКТАМ ЦЕНТРАЛИЗОВАННОЙ СИСТЕМЫ ВОДООТВЕДЕНИЯ" амортизационные отчисления в части: 1) собственного имущества ООО "БелГОС" (основные средства и нематериальные активы); 2) стоимости мероприятий по реконструкции Объекта концессионного соглашения. Пообъектный расчет сумм амортизации выполнен на основании Отчетов по основным средствам за 2023 г. и представленных инвентарных карт.
K69: О
K70: О | L70: ИСКЛЮЧЕНЫ: 1) начисления в части стоимости капитальных вложений в концессионное имущество, НЕ ПРЕДУСМОТРЕННЫХ Инвестиционной программой (соответствует позиции ФАС России); 2) начисления по транспортным средствам, так как они относятся к объектам общепроизводственного назначения и учитываются в составе Операционных расходов.
L71: Добавить комментарий

Sheet Аренда
O1: =god-2 -> 2023 | P1: =god-2 -> 2023 | Q1: =god-2 -> 2023 | R1: =god-1 -> 2024 | S1: =god -> 2025 | T1: =god+1 -> 2026 | U1: =god+2 -> 2027 | V1: =god+3 -> 2028 | W1: =god+4 -> 2029 | X1: =god+5 -> 2030 | Y1: =god+6 -> 2031 | Z1: =god+7 -> 2032 | AA1: =god+8 -> 2033 | AB1: =god+9 -> 2034 | AC1: =god -> 2025 | AD1: =god+1 -> 2026 | AE1: =god+2 -> 2027 | AF1: =god+3 -> 2028 | AG1: =god+4 -> 2029 | AH1: =god+5 -> 2030 | AI1: =god+6 -> 2031 | AJ1: =god+7 -> 2032 | AK1: =god+8 -> 2033 | AL1: =god+9 -> 2034
O2: =O15 -> Принято органом регулирования | P2: =P15 -> Факт по данным организации | Q2: Факт, принятый органом регулирования | R2: Принято органом регулирования | S2: Предложение организации | T2: Предложение организации | U2: Предложение организации | V2: Предложение организации | W2: Предложение организации | X2: Предложение организации | Y2: Предложение организации | Z2: Предложение организации | AA2: Предложение организации | AB2: Предложение организации | AC2: Принято органом регулирования | AD2: Принято органом регулирования | AE2: Принято органом регулирования | AF2: Принято органом регулирования | AG2: Принято органом регулирования | AH2: Принято органом регулирования | AI2: Принято органом регулирования | AJ2: Принято органом регулирования | AK2: Принято органом регулирования | AL2: Принято органом регулирования
S7: =S1<=last_year_vis -> TRUE | T7: FALSE | U7: FALSE | V7: FALSE | W7: FALSE | X7: FALSE | Y7: FALSE | Z7: FALSE | AA7: FALSE | AB7: FALSE | AC7: TRUE | AD7: FALSE | AE7: FALSE | AF7: FALSE | AG7: FALSE | AH7: FALSE | AI7: FALSE | AJ7: FALSE | AK7: FALSE | AL7: FALSE
M11: =tpl_title -> Кемеровская область / 2025 / ООО"БелГОС" (ИНН:4202023230, КПП:420201001) / ДПР: 2019-2028
L12: 11. Аренда
L14: № п/п | M14: Наименование показателя | N14: Единица измерений | O14: =god-2 & " год" -> 2023 год | P14: =god-2 & " год" -> 2023 год | Q14: =god-2 & " год" -> 2023 год | R14: =god-1 & " год" -> 2024 год | S14: =god & " год" -> 2025 год | T14: =god+1 & " год" -> 2026 год | U14: =god+2 & " год" -> 2027 год | V14: =god+3 & " год" -> 2028 год | W14: =god+4 & " год" -> 2029 год | X14: =god+5 & " год" -> 2030 год | Y14: =god+6 & " год" -> 2031 год | Z14: =god+7 & " год" -> 2032 год | AA14: =god+8 & " год" -> 2033 год | AB14: =god+9 & " год" -> 2034 год | AC14: =god & " год" -> 2025 год | AD14: =god+1 & " год" -> 2026 год | AE14: =god+2 & " год" -> 2027 год | AF14: =god+3 & " год" -> 2028 год | AG14: =god+4 & " год" -> 2029 год | AH14: =god+5 & " год" -> 2030 год | AI14: =god+6 & " год" -> 2031 год | AJ14: =god+7 & " год" -> 2032 год | AK14: =god+8 & " год" -> 2033 год | AL14: =god+9 & " год" -> 2034 год | AM14: Ссылка на правовую норму (основание для принятия показателя в расчет тарифа)
O15: Принято органом регулирования | P15: Факт по данным организации | Q15: Факт, принятый органом регулирования | R15: Принято органом регулирования | S15: Предложение организации | T15: Предложение организации | U15: Предложение организации | V15: Предложение организации | W15: Предложение организации | X15: Предложение организации | Y15: Предложение организации | Z15: Предложение организации | AA15: Предложение организации | AB15: Предложение организации | AC15: Принято органом регулирования | AD15: Принято органом регулирования | AE15: Принято органом регулирования | AF15: Принято органом регулирования | AG15: Принято органом регулирования | AH15: Принято органом регулирования | AI15: Принято органом регулирования | AJ15: Принято органом регулирования | AK15: Принято органом регулирования | AL15: Принято органом регулирования
A16: ='Общие сведения'!$D$122 -> 1 | L16: =INDEX('Общие сведения'!$J$121:$J$135,MATCH($A16,'Общие сведения'!$D$121:$D$135,0)) -> Тариф 1 (Водоотведение) - тариф на водоотведение
A17: =A16 -> 1 | B17: L1 | L17: 1 | M17: Арендная и концессионная плата. Лизинговые платежи | N17: тыс.руб. | O17: =O18+O21+O22+O23 -> 1548.64 | P17: =P18+P21+P22+P23 -> 3035.68 | Q17: 2175.66 | R17: 2160.74556 | S17: 2606.71 | T17: 0 | U17: 0 | V17: 0 | W17: 0 | X17: 0 | Y17: 0 | Z17: 0 | AA17: 0 | AB17: 0 | AC17: 2122.15434 | AD17: 0 | AE17: 0 | AF17: 0 | AG17: 0 | AH17: 0 | AI17: 0 | AJ17: 0 | AK17: 0 | AL17: 0
A18: 1 | B18: L1_1 | L18: 1.1 | M18: Аренда имущества | N18: тыс.руб. | O18: 890.35 | P18: =SUM(P19:P20) -> 1750.21 | Q18: 890.19 | R18: 875.28 | S18: 1321.21 | T18: 0 | U18: 0 | V18: 0 | W18: 0 | X18: 0 | Y18: 0 | Z18: 0 | AA18: 0 | AB18: 0 | AC18: 836.6893399 | AD18: 0 | AE18: 0 | AF18: 0 | AG18: 0 | AH18: 0 | AI18: 0 | AJ18: 0 | AK18: 0 | AL18: 0 | AM18: 1) Пункты 49 (3), 29, 88 Методических указаний ФСТ № 1746-э. 2) Пункт 28 абз. 4 Методических указаний ФСТ № 1746-э. 3) Постановление Правительства РФ от 01.01.2002 N 1 (ред. от 18.11.2022) "О Классификации основных средств, включаемых в амортизационные группы". Постановлением Правительства РФ от 01.01.2002 N 1.
A19: 1 | B19: L1_1_1 | L19: 1.1.1 | M19: Аренда муниципальной или государственной собственности | N19: тыс.руб. | O19: 23.84 | P19: =1.69+427.31 -> 429 | Q19: =1.69+21.99 -> 23.68 | R19: 23.68 | S19: 0 | AC19: 0 | AM19: Расходы по договорам МУ "КЗРиМИ" г. Белово: 1) от 01.06.2019 № 03/19 (Аренда хозяйственно-фекального коллектора); 2) № 35/18 от 19.09.2018 (туалетная кабина). (Срок действия договоров истек к моменту проведения экспертизы тарифного дела).
A20: 1 | B20: L1_1_2 | L20: 1.1.2 | M20: Аренда частной собственности | N20: тыс.руб. | O20: 866.51 | P20: 1321.21 | Q20: 866.51 | R20: 851.6 | S20: 1321.21 | AC20: 836.6893399 | AM20: Плата за аренду КНС согласно договора № Т-5-А14 от 17.12.2014, заключенного с ОАО "Кузбассэнерго".
A21: 1 | B21: L1_2 | L21: 1.2 | M21: Концессионная плата | N21: тыс.руб.
A22: 1 | B22: L1_3 | L22: 1.3 | M22: Лизинговые платежи | N22: тыс.руб.
A23: 1 | B23: L1_4 | L23: 1.4 | M23: Аренда земельных участков | N23: тыс.руб. | O23: 658.29 | P23: 1285.47 | Q23: 1285.47 | R23: 1285.46556 | S23: 1285.5 | AC23: 1285.465 | AM23: 1) Пункт 4 статьи 39.7, подпункт 2 статьи 49 "Земельного кодекса Российской Федерации" от 25.10.2001 N 136-ФЗ (ред. от 04.08.2023). 2) Пункт 5 «Правил определения размера арендной платы, а также порядка, условий и сроков внесения арендной платы за земли, находящиеся в собственности Российской Федерации» (утверждены Постановлением Правительства РФ от 16.07.2009 N 582 (ред. от 10.02.2023). 3) Приказ Минэкономразвития России от 23.04.2013 N 217 . 4) Приказ Минфина России от 16.10.2018 N 208н (ред. от 29.06.2022). 5) Письмо ФАС России от 05.08.2022 N МШ/74227/22.
L25: Комментарии и обоснования к разделу
L26: АРЕНДА МУНИЦИПАЛЬНОГО ИМУЩЕСТВА (ПЛАН / ФАКТ 2023 г.). 1) Плановые расходы на 2023 год по договору с МУ "КЗРиМИ" г. Белово от 01.06.2019 № 03/19 (АРЕНДА ХОЗЯЙСТВЕННО-ФЕКАЛЬНОГО КОЛЛЕКТОРА) приняты регулирующим органом в размере 21,99 тыс. руб./год. При корректировке тарифов на 2020 г. регулятором было установлено, что балансовая стоимость объекта, указанная в договоре аренды (8929,00 тыс. руб.), необоснованно завышена. Экономически обоснованный размер годовой арендной платы (21,989 тыс. руб. в год) был определен регулятором исходя из балансовой стоимости, по которой данный объект учитывался на балансе организации в 2018 г. (439,78 тыс. руб.), и срока полезного использования 20 лет (7 аморт. группа). 2) Расходы по договору № 35/18 от 19.09.2018 (туалетная кабина) приняты в соответствии с условиями договора (1,69 тыс. руб./год).
K27: О | L27: 2) АРЕНДА ЧАСТНОЙ СОБСТВЕННОСТИ (План на 2025 г.). Ежемесячная плата за аренду КНС согласно договора № Т-5-А14 от 17.12.2014 (ОАО "Кузбассэнерго") принята исходя из суммы амортизационных отчислений 56,476 тыс. руб. и налога на землю 0,26 тыс. руб., согласно Калькуляциям (в Приложениях к договору), скорректирована в части налога на имущество (12,988 тыс.руб./мес.), отчислений на капитальный ремонт (0,0 тыс. руб.) и рентабельности (0,0 тыс. руб.). Всего в месяц - 69,724 тыс. руб., * 12 мес. = 836,69 тыс. руб.
K28: О | L28: 3) АРЕНДА ЗЕМЕЛЬНЫХ УЧАСТКОВ (Факт 2023 г. / План на 2025 г.). Расходы по договору от 21.01.2019 № 7898/19 приняты на основании уведомления арендодателя о величине арендной платы на 2024 г. (рассчитана в размере 0,7% от ИЗМЕНЕННОЙ кадастровой стоимости земельных участков).
L29: Добавить комментарий

Sheet Покупка
O1: =god-2 -> 2023 | P1: =god-2 -> 2023 | Q1: =god-2 -> 2023 | R1: =god-1 -> 2024 | S1: =god -> 2025 | T1: =god+1 -> 2026 | U1: =god+2 -> 2027 | V1: =god+3 -> 2028 | W1: =god+4 -> 2029 | X1: =god+5 -> 2030 | Y1: =god+6 -> 2031 | Z1: =god+7 -> 2032 | AA1: =god+8 -> 2033 | AB1: =god+9 -> 2034 | AC1: =god -> 2025 | AD1: =god+1 -> 2026 | AE1: =god+2 -> 2027 | AF1: =god+3 -> 2028 | AG1: =god+4 -> 2029 | AH1: =god+5 -> 2030 | AI1: =god+6 -> 2031 | AJ1: =god+7 -> 2032 | AK1: =god+8 -> 2033 | AL1: =god+9 -> 2034
O2: =O15 -> Принято органом регулирования | P2: =P15 -> Факт по данным организации | Q2: Факт, принятый органом регулирования | R2: Принято органом регулирования | S2: Предложение организации | T2: Предложение организации | U2: Предложение организации | V2: Предложение организации | W2: Предложение организации | X2: Предложение организации | Y2: Предложение организации | Z2: Предложение организации | AA2: Предложение организации | AB2: Предложение организации | AC2: Принято органом регулирования | AD2: Принято органом регулирования | AE2: Принято органом регулирования | AF2: Принято органом регулирования | AG2: Принято органом регулирования | AH2: Принято органом регулирования | AI2: Принято органом регулирования | AJ2: Принято органом регулирования | AK2: Принято органом регулирования | AL2: Принято органом регулирования
S7: =S1<=last_year_vis -> TRUE | T7: FALSE | U7: FALSE | V7: FALSE | W7: FALSE | X7: FALSE | Y7: FALSE | Z7: FALSE | AA7: FALSE | AB7: FALSE | AC7: TRUE | AD7: FALSE | AE7: FALSE | AF7: FALSE | AG7: FALSE | AH7: FALSE | AI7: FALSE | AJ7: FALSE | AK7: FALSE | AL7: FALSE
M11: =tpl_title -> Кемеровская область / 2025 / ООО"БелГОС" (ИНН:4202023230, КПП:420201001) / ДПР: 2019-2028
L12: 12. Расходы на оплату товаров (услуг, работ), приобретаемых у других организаций
L14: № п/п | M14: Наименование | N14: Единица измерения | O14: =god-2 & " год" -> 2023 год | P14: =god-2 & " год" -> 2023 год | Q14: =god-2 & " год" -> 2023 год | R14: =god-1 & " год" -> 2024 год | S14: =god & " год" -> 2025 год | T14: =god+1 & " год" -> 2026 год | U14: =god+2 & " год" -> 2027 год | V14: =god+3 & " год" -> 2028 год | W14: =god+4 & " год" -> 2029 год | X14: =god+5 & " год" -> 2030 год | Y14: =god+6 & " год" -> 2031 год | Z14: =god+7 & " год" -> 2032 год | AA14: =god+8 & " год" -> 2033 год | AB14: =god+9 & " год" -> 2034 год | AC14: =god & " год" -> 2025 год | AD14: =god+1 & " год" -> 2026 год | AE14: =god+2 & " год" -> 2027 год | AF14: =god+3 & " год" -> 2028 год | AG14: =god+4 & " год" -> 2029 год | AH14: =god+5 & " год" -> 2030 год | AI14: =god+6 & " год" -> 2031 год | AJ14: =god+7 & " год" -> 2032 год | AK14: =god+8 & " год" -> 2033 год | AL14: =god+9 & " год" -> 2034 год | AM14: Ссылка на правовую норму (основание для принятия показателя в расчет тарифа)
O15: Принято органом регулирования | P15: Факт по данным организации | Q15: Факт, принятый органом регулирования | R15: Принято органом регулирования | S15: Предложение организации | T15: Предложение организации | U15: Предложение организации | V15: Предложение организации | W15: Предложение организации | X15: Предложение организации | Y15: Предложение организации | Z15: Предложение организации | AA15: Предложение организации | AB15: Предложение организации | AC15: Принято органом регулирования | AD15: Принято органом регулирования | AE15: Принято органом регулирования | AF15: Принято органом регулирования | AG15: Принято органом регулирования | AH15: Принято органом регулирования | AI15: Принято органом регулирования | AJ15: Принято органом регулирования | AK15: Принято органом регулирования | AL15: Принято органом регулирования
A16: ='Общие сведения'!$D$122 -> 1 | B16: Итого | L16: =INDEX('Общие сведения'!$J$121:$J$135,MATCH($A16,'Общие сведения'!$D$121:$D$135,0)) -> Тариф 1 (Водоотведение) - тариф на водоотведение | O16: =O17+O23+O26+O29+O32+O35+O36+O37 -> 742.92 | P16: =P17+P23+P26+P29+P32+P35+P36+P37 -> 1037.19543 | Q16: 734.16543 | R16: 835.3503278 | S16: 1351.55 | T16: 0 | U16: 0 | V16: 0 | W16: 0 | X16: 0 | Y16: 0 | Z16: 0 | AA16: 0 | AB16: 0 | AC16: 797.87305 | AD16: 0 | AE16: 0 | AF16: 0 | AG16: 0 | AH16: 0 | AI16: 0 | AJ16: 0 | AK16: 0 | AL16: 0
A17: =A16 -> 1 | B17: L1 | L17: 1 | M17: Затраты на холодную воду | N17: тыс.руб. | O17: =SUMIF(N18:N22,N17,O18:O22) -> 0 | P17: =SUMIF(N18:N22,N17,P18:P22) -> 303.03 | Q17: =SUMIF(N18:N22,N17,Q18:Q22) -> 0 | R17: =SUMIF(N18:N22,N17,R18:R22) -> 0 | S17: =SUMIF(N18:N22,N17,S18:S22) -> 394.05 | T17: =SUMIF(N18:N22,N17,T18:T22) -> 0 | U17: =SUMIF(N18:N22,N17,U18:U22) -> 0 | V17: =SUMIF(N18:N22,N17,V18:V22) -> 0 | W17: =SUMIF(N18:N22,N17,W18:W22) -> 0 | X17: =SUMIF(N18:N22,N17,X18:X22) -> 0 | Y17: =SUMIF(N18:N22,N17,Y18:Y22) -> 0 | Z17: =SUMIF(N18:N22,N17,Z18:Z22) -> 0 | AA17: =SUMIF(N18:N22,N17,AA18:AA22) -> 0 | AB17: =SUMIF(N18:N22,N17,AB18:AB22) -> 0 | AC17: =SUMIF(N18:N22,N17,AC18:AC22) -> 0 | AD17: =SUMIF(N18:N22,N17,AD18:AD22) -> 0 | AE17: =SUMIF(N18:N22,N17,AE18:AE22) -> 0 | AF17: =SUMIF(N18:N22,N17,AF18:AF22) -> 0 | AG17: =SUMIF(N18:N22,N17,AG18:AG22) -> 0 | AH17: =SUMIF(N18:N22,N17,AH18:AH22) -> 0 | AI17: =SUMIF(N18:N22,N17,AI18:AI22) -> 0 | AJ17: =SUMIF(N18:N22,N17,AJ18:AJ22) -> 0 | AK17: =SUMIF(N18:N22,N17,AK18:AK22) -> 0 | AL17: =SUMIF(N18:N22,N17,AL18:AL22) -> 0 | AM17: Данные затраты к учету в составе Неподконтрольных расходов не приняты, так как были учтены при расчете Базового уровня Операционных расходов.
A18: 1 | J18: 1.0
A19: =OFFSET(A19,-1,0) -> 1 | B19: L1 | C19: =M19 -> ООО"Водоснабжение" :: 4202023801 :: 420201001 | J19: 1.1 | K19: О | L19: =J19 -> 1.1 | M19: ООО"Водоснабжение" :: 4202023801 :: 420201001 | N19: тыс.руб. | P19: 303.03 | R19: 0 | S19: 394.05
A20: =A19 -> 1 | B20: L1_1 | C20: =C19 -> ООО"Водоснабжение" :: 4202023801 :: 420201001 | L20: =L19&".1" -> 1.1.1 | M20: Объём холодной воды (покупка) | N20: тыс.куб.м | P20: 6.291 | R20: 0 | S20: 6.573
A21: =A20 -> 1 | B21: L1_2 | C21: =C20 -> ООО"Водоснабжение" :: 4202023801 :: 420201001 | L21: =L19&".2" -> 1.1.2 | M21: Тариф на холодную воду | N21: руб./куб.м | O21: =IF(OR(AND(O19<>0,O20=0),AND(O19=0,O20<>0)),"Ошибка",IF(O20=0,0,O19/O20)) -> 0 | P21: 48.16881259 | Q21: 0 | R21: 0 | S21: 59.94979461 | T21: 0 | U21: 0 | V21: 0 | W21: 0 | X21: 0 | Y21: 0 | Z21: 0 | AA21: 0 | AB21: 0 | AC21: 0 | AD21: 0 | AE21: 0 | AF21: 0 | AG21: 0 | AH21: 0 | AI21: 0 | AJ21: 0 | AK21: 0 | AL21: 0
A22: =A18 -> 1 | B22: =A22&"pIns1" -> 1pIns1 | M22: Добавить поставщика
A23: 1 | B23: L2 | L23: 2 | M23: Затраты на транспортировку холодной воды | N23: тыс.руб. | O23: =SUMIF(N24:N25,N23,O24:O25) -> 0 | P23: =SUMIF(N24:N25,N23,P24:P25) -> 0 | Q23: =SUMIF(N24:N25,N23,Q24:Q25) -> 0 | R23: =SUMIF(N24:N25,N23,R24:R25) -> 0 | S23: =SUMIF(N24:N25,N23,S24:S25) -> 0 | T23: =SUMIF(N24:N25,N23,T24:T25) -> 0 | U23: =SUMIF(N24:N25,N23,U24:U25) -> 0 | V23: =SUMIF(N24:N25,N23,V24:V25) -> 0 | W23: =SUMIF(N24:N25,N23,W24:W25) -> 0 | X23: =SUMIF(N24:N25,N23,X24:X25) -> 0 | Y23: =SUMIF(N24:N25,N23,Y24:Y25) -> 0 | Z23: =SUMIF(N24:N25,N23,Z24:Z25) -> 0 | AA23: =SUMIF(N24:N25,N23,AA24:AA25) -> 0 | AB23: =SUMIF(N24:N25,N23,AB24:AB25) -> 0 | AC23: =SUMIF(N24:N25,N23,AC24:AC25) -> 0 | AD23: =SUMIF(N24:N25,N23,AD24:AD25) -> 0 | AE23: =SUMIF(N24:N25,N23,AE24:AE25) -> 0 | AF23: =SUMIF(N24:N25,N23,AF24:AF25) -> 0 | AG23: =SUMIF(N24:N25,N23,AG24:AG25) -> 0 | AH23: =SUMIF(N24:N25,N23,AH24:AH25) -> 0 | AI23: =SUMIF(N24:N25,N23,AI24:AI25) -> 0 | AJ23: =SUMIF(N24:N25,N23,AJ24:AJ25) -> 0 | AK23: =SUMIF(N24:N25,N23,AK24:AK25) -> 0 | AL23: =SUMIF(N24:N25,N23,AL24:AL25) -> 0
A24: 1 | J24: 2.0
A25: 1 | B25: =A25&"pIns2" -> 1pIns2 | M25: Добавить поставщика
A26: 1 | B26: L3 | L26: 3 | M26: Затраты на водоотведение | N26: тыс.руб. | O26: =SUMIF(N27:N28,N26,O27:O28) -> 0 | P26: =SUMIF(N27:N28,N26,P27:P28) -> 0 | Q26: =SUMIF(N27:N28,N26,Q27:Q28) -> 0 | R26: =SUMIF(N27:N28,N26,R27:R28) -> 0 | S26: =SUMIF(N27:N28,N26,S27:S28) -> 0 | T26: =SUMIF(N27:N28,N26,T27:T28) -> 0 | U26: =SUMIF(N27:N28,N26,U27:U28) -> 0 | V26: =SUMIF(N27:N28,N26,V27:V28) -> 0 | W26: =SUMIF(N27:N28,N26,W27:W28) -> 0 | X26: =SUMIF(N27:N28,N26,X27:X28) -> 0 | Y26: =SUMIF(N27:N28,N26,Y27:Y28) -> 0 | Z26: =SUMIF(N27:N28,N26,Z27:Z28) -> 0 | AA26: =SUMIF(N27:N28,N26,AA27:AA28) -> 0 | AB26: =SUMIF(N27:N28,N26,AB27:AB28) -> 0 | AC26: =SUMIF(N27:N28,N26,AC27:AC28) -> 0 | AD26: =SUMIF(N27:N28,N26,AD27:AD28) -> 0 | AE26: =SUMIF(N27:N28,N26,AE27:AE28) -> 0 | AF26: =SUMIF(N27:N28,N26,AF27:AF28) -> 0 | AG26: =SUMIF(N27:N28,N26,AG27:AG28) -> 0 | AH26: =SUMIF(N27:N28,N26,AH27:AH28) -> 0 | AI26: =SUMIF(N27:N28,N26,AI27:AI28) -> 0 | AJ26: =SUMIF(N27:N28,N26,AJ27:AJ28) -> 0 | AK26: =SUMIF(N27:N28,N26,AK27:AK28) -> 0 | AL26: =SUMIF(N27:N28,N26,AL27:AL28) -> 0
A27: 1 | J27: 3.0
A28: 1 | B28: =A28&"pIns3" -> 1pIns3 | M28: Добавить поставщика
A29: 1 | B29: L4 | L29: 4 | M29: Затраты на транспортировку сточных вод | N29: тыс.руб. | O29: =SUMIF(N30:N31,N29,O30:O31) -> 0 | P29: =SUMIF(N30:N31,N29,P30:P31) -> 0 | Q29: =SUMIF(N30:N31,N29,Q30:Q31) -> 0 | R29: =SUMIF(N30:N31,N29,R30:R31) -> 0 | S29: =SUMIF(N30:N31,N29,S30:S31) -> 0 | T29: =SUMIF(N30:N31,N29,T30:T31) -> 0 | U29: =SUMIF(N30:N31,N29,U30:U31) -> 0 | V29: =SUMIF(N30:N31,N29,V30:V31) -> 0 | W29: =SUMIF(N30:N31,N29,W30:W31) -> 0 | X29: =SUMIF(N30:N31,N29,X30:X31) -> 0 | Y29: =SUMIF(N30:N31,N29,Y30:Y31) -> 0 | Z29: =SUMIF(N30:N31,N29,Z30:Z31) -> 0 | AA29: =SUMIF(N30:N31,N29,AA30:AA31) -> 0 | AB29: =SUMIF(N30:N31,N29,AB30:AB31) -> 0 | AC29: =SUMIF(N30:N31,N29,AC30:AC31) -> 0 | AD29: =SUMIF(N30:N31,N29,AD30:AD31) -> 0 | AE29: =SUMIF(N30:N31,N29,AE30:AE31) -> 0 | AF29: =SUMIF(N30:N31,N29,AF30:AF31) -> 0 | AG29: =SUMIF(N30:N31,N29,AG30:AG31) -> 0 | AH29: =SUMIF(N30:N31,N29,AH30:AH31) -> 0 | AI29: =SUMIF(N30:N31,N29,AI30:AI31) -> 0 | AJ29: =SUMIF(N30:N31,N29,AJ30:AJ31) -> 0 | AK29: =SUMIF(N30:N31,N29,AK30:AK31) -> 0 | AL29: =SUMIF(N30:N31,N29,AL30:AL31) -> 0
A30: 1 | J30: 4.0
A31: 1 | B31: =A31&"pIns5" -> 1pIns5 | M31: Добавить поставщика
A32: 1 | B32: L5 | L32: 5 | M32: Затраты на очистку сточных вод | N32: тыс.руб. | O32: =SUMIF(N33:N34,N32,O33:O34) -> 0 | P32: =SUMIF(N33:N34,N32,P33:P34) -> 0 | Q32: =SUMIF(N33:N34,N32,Q33:Q34) -> 0 | R32: =SUMIF(N33:N34,N32,R33:R34) -> 0 | S32: =SUMIF(N33:N34,N32,S33:S34) -> 0 | T32: =SUMIF(N33:N34,N32,T33:T34) -> 0 | U32: =SUMIF(N33:N34,N32,U33:U34) -> 0 | V32: =SUMIF(N33:N34,N32,V33:V34) -> 0 | W32: =SUMIF(N33:N34,N32,W33:W34) -> 0 | X32: =SUMIF(N33:N34,N32,X33:X34) -> 0 | Y32: =SUMIF(N33:N34,N32,Y33:Y34) -> 0 | Z32: =SUMIF(N33:N34,N32,Z33:Z34) -> 0 | AA32: =SUMIF(N33:N34,N32,AA33:AA34) -> 0 | AB32: =SUMIF(N33:N34,N32,AB33:AB34) -> 0 | AC32: =SUMIF(N33:N34,N32,AC33:AC34) -> 0 | AD32: =SUMIF(N33:N34,N32,AD33:AD34) -> 0 | AE32: =SUMIF(N33:N34,N32,AE33:AE34) -> 0 | AF32: =SUMIF(N33:N34,N32,AF33:AF34) -> 0 | AG32: =SUMIF(N33:N34,N32,AG33:AG34) -> 0 | AH32: =SUMIF(N33:N34,N32,AH33:AH34) -> 0 | AI32: =SUMIF(N33:N34,N32,AI33:AI34) -> 0 | AJ32: =SUMIF(N33:N34,N32,AJ33:AJ34) -> 0 | AK32: =SUMIF(N33:N34,N32,AK33:AK34) -> 0 | AL32: =SUMIF(N33:N34,N32,AL33:AL34) -> 0
A33: 1 | J33: 5.0
A34: 1 | B34: =A34&"pIns5" -> 1pIns5 | M34: Добавить поставщика
A35: =A31 -> 1 | B35: L6 | L35: 6 | M35: Затраты на тепловую энергию | N35: тыс.руб. | O35: =742.92-O37 -> 735.2456 | P35: 724.855 | Q35: 724.855 | R35: =835.3503278034-R37 -> 832.9516031 | S35: 955.2 | AC35: 788.72233 | AM35: П. 88, п. 49(1), п. 20, п. 21 Методических указаний ФСТ № 1746-э.
A36: 1 | B36: L7 | L36: 7 | M36: Затраты на теплоноситель | N36: тыс.руб. | R36: 0
A37: 1 | B37: L8 | L37: 8 | M37: Затраты на горячую воду | N37: тыс.руб. | O37: 7.6744 | P37: 9.31043 | Q37: 9.31043 | R37: =1.99669/3.5/4.5*1.058+1.99669*1.058*1.072 -> 2.398724736 | S37: 2.3 | AC37: 9.15072
L39: Комментарии и обоснования к разделу
L40: По статье "ЗАТРАТЫ НА ТЕПЛОВУЮ ЭНЕРГИЮ" отражена стоимость услуг ООО "Теплоэнергетик" (Единая теплоснабжающай организация, Беловский городской округ) по Договору теплоснабжения и поставки горячей воды № 58.
K41: О | L41: ПО УЗЛУ ТЕПЛОСНАБЖЕНИЯ "КОТЕЛЬНАЯ 30 КВАРТАЛА" (отопление КНС "Горсад", КНС "Вокзал") : ОБЪЕМЫ потребления горячей воды (ГВС, компонент "теплоноситель" - 29,0598 м3), ГВС - компонент "тепловая энергия" - (1,889 Гкал) и объем тепловой энергии на отопление (125,0074 Гкал) приняты на уровне факта 2023 г.
K42: О | L42: ТАРИФ НА ГВС (компонент ТЕПЛОНОСИТЕЛЬ) - 14,07 руб./м3 - принят в соответствии с постановлениями РЭК Кузбасса от 19.12.2023 N 622 "Об установлении долгосрочных параметров регулирования и долгосрочных тарифов на ТЕПЛОНОСИТЕЛЬ, реализуемый ООО "Теплоэнергетик" на потребительском рынке Беловского городского округа по узлу теплоснабжения котельная 30 квартала, на 2024 - 2026 годы" и от 19.12.2023 N 623 "Об установлении тарифов на ГОРЯЧУЮ ВОДУ в открытой системе теплоснабжения (горячего водоснабжения), реализуемую ООО "Теплоэнергетик" на потребительском рынке Беловского городского округа по узлу теплоснабжения котельная 30 квартала, на 2024 год".
K43: О | L43: ТАРИФ на ГВС (компонент ТЕПЛОВАЯ ЭНЕРГИЯ). Согласно постановлению РЭК Кузбасса от 19.12.2023 N 623, числовое значение (цены компонента на теплоноситель) определяется единой теплоснабжающей организацией равным цене на тепловую энергию (мощность), определенной соглашением сторон договора теплоснабжения, НО НЕ ВЫШЕ предельного уровня цены на тепловую энергию (мощность), утвержденного постановлением РЭК Кузбасса от 14.11.2023 N 275 "Об утверждении предельных уровней цен на тепловую энергию (мощность) для ценовой зоны теплоснабжения муниципальное образование Беловский городской округ Кемеровской области - Кузбасса на 2024 год". Для ООО "Теплоэнергетик" (по узлу КОТЕЛЬНАЯ 30 КВАРТАЛА) предельные цены составили: с 01.01.2024 - 3 425,87 руб./Гкал, с 01.07.2024 - 3 490,72 руб./Гкал.
K44: О | L44: Специалистом РЭК плановые цены на ТЕПЛОВУЮ ЭНЕРГИЮ (отопление) и на ГВС (компонент ТЕПЛОНОСИТЕЛЬ) определены на основании представленной копии счета-фактуры ООО "Теплоэнергетик" за МАЙ 2024 года (В счете-фактуре за июль 2024 г. затраты по данному узлу - 0,00 тыс. руб.), с учетом применения ИПЦ (индекса потребительских цен) Минэкономразвития России 108,0% с 01.07.2024 и 105,8% с 01.07.2025 г.: 2062,79 руб./Гкал * 1,08 * 1,058 = 2357,03 руб./Гкал.
K45: О | L45: ИТОГО затраты ПО УЗЛУ КОТЕЛЬНАЯ 30 КВАРТАЛА: 1,889 Гкал * 2357,03 руб./Гкал + 125,0074 Гкал * 2357,03 руб./Гкал + 29,0598 м3 * 14,07 руб./м3 = 299,5075 тыс. руб.
K46: О | L46: ПО УЗЛУ ТЕПЛОСНАБЖЕНИЯ "КОТЕЛЬНАЯ МИКРОРАЙОНА "ИВУШКА" (отопление Здания фильтров, Здания хлораторной (АБК), здания компрессорной на Очистных сооружениях мкр. ИВУШКА) : ОБЪЕМЫ потребления горячей воды (ГВС, компонент "теплоноситель" - 18,2736 м3), ГВС - компонент "тепловая энергия" - (1,1877 Гкал) и объем тепловой энергии на отопление (175,7879 Гкал) приняты на уровне факта 2023 г.
K47: О | L47: ТАРИФЫ НА ГВС (компонент ТЕПЛОНОСИТЕЛЬ); с 01.01.2025 - 50,79 руб./3, с 01.07.2025 - 53,32 руб./м3 (среднегодовой - 52,06 руб./м3) - приняты в соответствии с постановлениями РЭК Кузбасса от 19.12.2023 N 627 "Об установлении ООО "Теплоэнергетик" тарифов на ГОРЯЧУЮ ВОДУ в открытой системе горячего водоснабжения (теплоснабжения), реализуемую на потребительском рынке Беловского городского округа по узлам теплоснабжения котельная МКУ "Сибирь - 12,9", котельная микрорайона "Ивушка", на 2024 год" и от 19.12.2023 N 626 "О внесении изменений в постановление Региональной энергетической комиссии Кузбасса от 20.12.2021 N 859 "Об установлении долгосрочных параметров регулирования и долгосрочных тарифов на ТЕПЛОНОСИТЕЛЬ, реализуемый на потребительском рынке Беловского городского округа ООО "Теплоэнергетик" по узлам теплоснабжения котельная МКУ "Сибирь - 12,9", котельная микрорайона "Ивушка", на 2022 - 2028 годы", в части 2024 года".
K48: О | L48: ТАРИФ на ГВС (компонент ТЕПЛОВАЯ ЭНЕРГИЯ). Согласно постановлению РЭК Кузбасса от 19.12.2023 N 627, числовое значение (цены компонента на теплоноситель) определяется единой теплоснабжающей организацией равным цене на тепловую энергию (мощность), определенной соглашением сторон договора теплоснабжения, НО НЕ ВЫШЕ предельного уровня цены на тепловую энергию (мощность), утвержденного постановлением РЭК Кузбасса от 14.11.2023 N 275 "Об утверждении предельных уровней цен на тепловую энергию (мощность) для ценовой зоны теплоснабжения муниципальное образование Беловский городской округ Кемеровской области - Кузбасса на 2024 год". Для ООО "Теплоэнергетик" (ПО УЗЛУ ТЕПЛОСНАБЖЕНИЯ "КОТЕЛЬНАЯ МИКРОРАЙОНА "ИВУШКА") предельные цены составили: с 01.01.2024 - 3 978,48 руб./Гкал, с 01.07.2024 - 3 978,48 руб./Гкал.
K49: О | L49: Специалистом РЭК плановые цены на ТЕПЛОВУЮ ЭНЕРГИЮ (отопление) и на ГВС (компонент ТЕПЛОНОСИТЕЛЬ) определены на основании представленной копии счета-фактуры ООО "Теплоэнергетик" за ИЮЛЬ 2024 года, с учетом применения ИПЦ Минэкономразвития России 105,8% с 01.07.2025 г.: 2656,56 руб./Гкал * 1,058 = 2810,64 руб./Гкал.
K50: О | L50: ИТОГО затраты ПО УЗЛУ ТЕПЛОСНАБЖЕНИЯ "КОТЕЛЬНАЯ МИКРОРАЙОНА "ИВУШКА": 1,1877 Гкал * 2810,64 руб./Гкал + 175,7879 Гкал * 2810,64 руб./Гкал + 18,2736 м3 * 52,06 руб./м3 = 498,36602 тыс. руб.
K51: О | L51: ВСЕГО ЗАТРАТ НА ГВС: (1,889 Гкал * 2357,03 руб./Гкал + 29,0598 м3 * 14,07 руб./м3) + (1,1877 Гкал * 2810,64 руб./Гкал + 18,2736 м3 * 52,06 руб./м3) = 9,15082 тыс. руб.
K52: О | L52: ВСЕГО ЗАТРАТ НА ТЕПЛОВУЮ ЭНЕРГИЮ ДЛЯ ОТОПЛЕНИЯ: (125,0074 Гкал * 2357,03 руб./Гкал) + (175,7879 Гкал * 2810,64 руб./Гкал) = 788,7227 тыс. руб.
L53: Добавить комментарий

Sheet Налоги
O1: =god-2 -> 2023 | P1: =god-2 -> 2023 | Q1: =god-2 -> 2023 | R1: =god-1 -> 2024 | S1: =god -> 2025 | T1: =god+1 -> 2026 | U1: =god+2 -> 2027 | V1: =god+3 -> 2028 | W1: =god+4 -> 2029 | X1: =god+5 -> 2030 | Y1: =god+6 -> 2031 | Z1: =god+7 -> 2032 | AA1: =god+8 -> 2033 | AB1: =god+9 -> 2034 | AC1: =god -> 2025 | AD1: =god+1 -> 2026 | AE1: =god+2 -> 2027 | AF1: =god+3 -> 2028 | AG1: =god+4 -> 2029 | AH1: =god+5 -> 2030 | AI1: =god+6 -> 2031 | AJ1: =god+7 -> 2032 | AK1: =god+8 -> 2033 | AL1: =god+9 -> 2034
O2: =O15 -> Принято органом регулирования | P2: =P15 -> Факт по данным организации | Q2: Факт, принятый органом регулирования | R2: Принято органом регулирования | S2: Предложение организации | T2: Предложение организации | U2: Предложение организации | V2: Предложение организации | W2: Предложение организации | X2: Предложение организации | Y2: Предложение организации | Z2: Предложение организации | AA2: Предложение организации | AB2: Предложение организации | AC2: Принято органом регулирования | AD2: Принято органом регулирования | AE2: Принято органом регулирования | AF2: Принято органом регулирования | AG2: Принято органом регулирования | AH2: Принято органом регулирования | AI2: Принято органом регулирования | AJ2: Принято органом регулирования | AK2: Принято органом регулирования | AL2: Принято органом регулирования
S7: =S1<=last_year_vis -> TRUE | T7: FALSE | U7: FALSE | V7: FALSE | W7: FALSE | X7: FALSE | Y7: FALSE | Z7: FALSE | AA7: FALSE | AB7: FALSE | AC7: TRUE | AD7: FALSE | AE7: FALSE | AF7: FALSE | AG7: FALSE | AH7: FALSE | AI7: FALSE | AJ7: FALSE | AK7: FALSE | AL7: FALSE
M11: =tpl_title -> Кемеровская область / 2025 / ООО"БелГОС" (ИНН:4202023230, КПП:420201001) / ДПР: 2019-2028
L12: 13. Расшифровка по налогам и платежам
L14: № п/п | M14: Наименование показателя | N14: Единица измерений | O14: =god-2 & " год" -> 2023 год | P14: =god-2 & " год" -> 2023 год | Q14: =god-2 & " год" -> 2023 год | R14: =god-1 & " год" -> 2024 год | S14: =god & " год" -> 2025 год | T14: =god+1 & " год" -> 2026 год | U14: =god+2 & " год" -> 2027 год | V14: =god+3 & " год" -> 2028 год | W14: =god+4 & " год" -> 2029 год | X14: =god+5 & " год" -> 2030 год | Y14: =god+6 & " год" -> 2031 год | Z14: =god+7 & " год" -> 2032 год | AA14: =god+8 & " год" -> 2033 год | AB14: =god+9 & " год" -> 2034 год | AC14: =god & " год" -> 2025 год | AD14: =god+1 & " год" -> 2026 год | AE14: =god+2 & " год" -> 2027 год | AF14: =god+3 & " год" -> 2028 год | AG14: =god+4 & " год" -> 2029 год | AH14: =god+5 & " год" -> 2030 год | AI14: =god+6 & " год" -> 2031 год | AJ14: =god+7 & " год" -> 2032 год | AK14: =god+8 & " год" -> 2033 год | AL14: =god+9 & " год" -> 2034 год | AM14: Ссылка на правовую норму (основание для принятия показателя в расчет тарифа)
O15: Принято органом регулирования | P15: Факт по данным организации | Q15: Факт, принятый органом регулирования | R15: Принято органом регулирования | S15: Предложение организации | T15: Предложение организации | U15: Предложение организации | V15: Предложение организации | W15: Предложение организации | X15: Предложение организации | Y15: Предложение организации | Z15: Предложение организации | AA15: Предложение организации | AB15: Предложение организации | AC15: Принято органом регулирования | AD15: Принято органом регулирования | AE15: Принято органом регулирования | AF15: Принято органом регулирования | AG15: Принято органом регулирования | AH15: Принято органом регулирования | AI15: Принято органом регулирования | AJ15: Принято органом регулирования | AK15: Принято органом регулирования | AL15: Принято органом регулирования
A16: ='Общие сведения'!$D$122 -> 1 | L16: =INDEX('Общие сведения'!$J$121:$J$135,MATCH($A16,'Общие сведения'!$D$121:$D$135,0)) -> Тариф 1 (Водоотведение) - тариф на водоотведение
A17: =A16 -> 1 | B17: L0 | L17: 0 | M17: Налоги и платежи, относимые на указанный вид деятельности | N17: тыс.руб. | O17: =SUM(O18:O26) -> 1275.175216 | P17: =SUM(P18:P26) -> 1974.45 | Q17: 1433.214 | R17: 1148.034 | S17: 3164.46 | T17: 0 | U17: 0 | V17: 0 | W17: 0 | X17: 0 | Y17: 0 | Z17: 0 | AA17: 0 | AB17: 0 | AC17: 979.98 | AD17: 0 | AE17: 0 | AF17: 0 | AG17: 0 | AH17: 0 | AI17: 0 | AJ17: 0 | AK17: 0 | AL17: 0 | AM17: 1) П. 49 (2) Методических указаний ФСТ № 1746-э. 2) "Налоговый кодекс Российской Федерации (часть вторая)" от 05.08.2000 N 117-ФЗ (ред. от 04.08.2023).
A18: 1 | B18: L1 | L18: 1 | M18: Транспортный налог | N18: тыс.руб. | O18: 13.924 | P18: 13.92 | Q18: 13.92 | R18: 13.92 | S18: 13.92 | AC18: 13.92 | AM18: 1) Глава 28 "ТРАНСПОРТНЫЙ НАЛОГ" Налогового кодекса РФ. 2) Закон Кемеровской области от 28.11.2002 N 95-ОЗ "О транспортном налоге".
A19: 1 | B19: L2 | L19: 2 | M19: Земельный налог | N19: тыс.руб. | S19: 18.29 | AC19: 0 | AM19: К учету не принято, так как земельный участок занят объектом, фактически не используемым в регулируемой деятельности.
A20: 1 | B20: L3 | L20: 3 | M20: Плата за негативное воздействие на окружающую среду | N20: тыс.руб. | O20: 44.15121646 | P20: 40.28 | Q20: 40.28 | R20: 42.49 | S20: 39.77 | AC20: 40.28 | AM20: 1) П. 49 (2) Методических указаний ФСТ № 1746-э. 2) Постановление Правительства РФ от 13.09.2016 N 913 (ред. от 24.01.2020) "О ставках платы за негативное воздействие на окружающую среду и дополнительных коэффициентах".
A21: 1 | B21: L4 | L21: 4 | M21: Водный налог | N21: тыс.руб.
A22: 1 | B22: L5 | L22: 5 | M22: Плата за пользование водным объектом | N22: тыс.руб.
A23: 1 | B23: L6 | L23: 6 | M23: Налог на имущество | N23: тыс.руб. | O23: 1217.1 | P23: 1217.77 | Q23: 1217.77 | R23: 1091.624 | S23: 998.26 | AC23: 925.78 | AM23: 1) Глава 30 "НАЛОГ НА ИМУЩЕСТВО ОРГАНИЗАЦИЙ" Налогового кодекса РФ (Часть вторая); 2) Закон Кемеровской области - Кузбасса от 26.11.2003 N 60-ОЗ (ред. от 04.09.2023) "О налоге на имущество организаций".
A24: 1 | B24: L7 | L24: 7 | M24: Налог на прибыль | N24: тыс.руб. | O24: 0 | P24: 702.48 | Q24: =(147971.36-146359.02)*50%*0.2+0.01 -> 161.244 | R24: 0 | S24: 1747.35 | AC24: 0 | AM24: 1) Пункт 86 Методических указаний ФСТ РФ № 1746-э; 2) Глава 25. НАЛОГ НА ПРИБЫЛЬ ОРГАНИЗАЦИЙ Налогового кодекса РФ (Часть вторая); 3) Постановление региональной энергетической комиссии Кемеровской области от 19.12.2018 № 759, в редакции Постановлений Региональной энергетической комиссии от 24.11.2020 N 427, от 11.02.2021 N 60.
A25: 1 | B25: L8 | L25: 8 | M25: Единый налог при упрощенной системе налогообложения | N25: тыс.руб.
A26: =A24 -> 1 | B26: L9 | L26: 9 | M26: Прочие налоги и сборы | N26: тыс.руб. | O26: =SUM(O27:O29) -> 0 | P26: =SUM(P27:P29) -> 0 | Q26: 0 | R26: 0 | S26: 346.87 | T26: 0 | U26: 0 | V26: 0 | W26: 0 | X26: 0 | Y26: 0 | Z26: 0 | AA26: 0 | AB26: 0 | AC26: 0 | AD26: 0 | AE26: 0 | AF26: 0 | AG26: 0 | AH26: 0 | AI26: 0 | AJ26: 0 | AK26: 0 | AL26: 0
A27: 1 | L27: 9.0
A28: =OFFSET(A28,-1,0) -> 1 | B28: L9 | C28: =M28 -> налог на имущество (гараж), налоговые санкции и штрафы, плата за негативное воздействие (исчисленная в части выбросов и сброса загрязняющих веществ сверх установленных НДВ и НДС), земельный налог | K28: О | L28: 9.1 | M28: налог на имущество (гараж), налоговые санкции и штрафы, плата за негативное воздействие (исчисленная в части выбросов и сброса загрязняющих веществ сверх установленных НДВ и НДС), земельный налог | N28: тыс.руб. | S28: 346.87 | AC28: 0 | AM28: 1) Пункт 86 Методических указаний ФСТ РФ № 1746-э; 2) Глава 25. НАЛОГ НА ПРИБЫЛЬ ОРГАНИЗАЦИЙ Налогового кодекса РФ (Часть вторая); 3) Постановление региональной энергетической комиссии Кемеровской области от 19.12.2018 № 759, в редакции Постановлений Региональной энергетической комиссии от 24.11.2020 N 427, от 11.02.2021 N 60.
A29: =A27 -> 1 | B29: =A29&"pIns" -> 1pIns | M29: Добавить
L31: Комментарии и обоснования к разделу
L32: ТРАНСПОРТНЫЙ НАЛОГ. Плановая годовая величина налогового платежа на 2025 г. и фактическая величина платежа за 2023 г. приняты регулирующим органом на уровне фактически исчисленной суммы налога, отраженной в представленном "Сообщении об исчисленных налоговым органом суммах транспортного налога, налога на имущество организаций, земельного налога" № 4197663 от 04.04.2024.
K33: О | L33: ЗЕМЕЛЬНЫЙ НАЛОГ: К учету не принято, так как земельный участок (кадастровый номер 42:21: 0103006: 1) занят объектом, фактически не используемым в регулируемой деятельности, что подтверждается записью в представленной Выписке из Единого государственного реестра налогоплательщиков в отношении организации по состоянию на 13.12.2023. Объект незавершенного строительства (гараж со складскими помещениями, кадастровый номер 42: 21: 0101001: 1543, числится на сч. 08.3.) приобретен вместе с земельным участком по Договору купли-продажи от 14.12.2017 б/н.
K34: О | L34: ПЛАТА ЗА НЕГАТИВНОЕ ВОЗДЕЙСТВИЕ НА ОКРУЖАЮЩУЮ СРЕДУ. Плановая годовая сумма платы на 2025 г. определена регулирующим органом на уровне фактически исчисленной величины согласно представленной "Декларации о плате за негативное воздействие на окружающую среду за 2023 г." (в размере сумм платы за выброс загрязняющих веществ в атмосферу в пределах ПДВ (предельно допустимых выбросов) - 5,27982 тыс. руб. - и платы за сброс в водные объекты в пределах НДС (нормативов допустимого сброса) - 35,00345 тыс. руб.).
K35: О | L35: НАЛОГ НА ИМУЩЕСТВО. Рассчитано в соответствии с положениями Главы 30 Налогового кодекса РФ, на основании данных об остаточной стоимости имущества в представленной "Налоговой декларации по налогу на имущество организаций" за 2023 г., "Сводной по остаточной стоимости" (2023 год), "Отчета по соновным средствам" (Концессионное имущество) за 4 квартал 2023 г. и "Отчетов по основным средствам" за 2023 год (собственное имущество; Концессионное имущество Список 1.1; Концессионное имущество Список 1.2).
K36: О | L36: Расчетная остаточная стоимость по состоянию на 01.01.2025: : 45414,57 тыс. руб. (в том числе по Списку 1.1. (Объект концессионного соглашения) - 39806,85 тыс. руб., НЕДВИЖИМОЕ имущество по Списку 1.2 (Иное имущество, переданное по Концессионному соглашению) - 3804,82 тыс. руб., Собственное имущество (сооружения) - 1802,91 тыс. руб. Расчетная остаточная стоимость по состоянию на 31.01.2025: : 38747,41 тыс. руб. (в том числе по Списку 1.1. (Объект концессионного соглашения) - 33480,37 тыс. руб., НЕДВИЖИМОЕ имущество по Списку 1.2 (Иное имущество, переданное по Концессионному соглашению) - 3542,80 тыс. руб., Собственное имущество (сооружения) - 1724,23 тыс. руб.
K37: О | L37: НАЛОГООБЛАГАЕМАЯ БАЗА (Среднегодовая стоимость имущества ВСЕГО): ( 45414,57 тыс. руб. + 38747,41 тыс. руб. ) / 2 = 42080,99 тыс. руб. НАЛОГ НА ИМУЩЕСТВО: 42080,99 тыс. руб. * 2,2% (налоговая ставка) = 925,78 тыс. руб.
K38: О | L38: НАЛОГ НА ПРИБЫЛЬ (план на 2025 г). В соответствии с пунктом 86 Методических указаний ФСТ РФ № 1746-э, величины Нормативной прибыли рассчитаны специалистом РЭК Кузбасса на каждый год долгосрочного периода, исходя из Нормативных уровней прибыли, утвержденных Постановлением региональной энергетической комиссии Кемеровской области от 19.12.2018 № 759 "Об установлении долгосрочных параметров регулирования тарифов в сфере водоотведения ООО «Беловские Городские Очистные сооружения» (Беловский городской округ)" (в редакции Постановлений Региональной энергетической комиссии от 24.11.2020 N 427, от 11.02.2021 N 60). При расчете нормативных уровней прибыли в состав Прибыли были включены ТОЛЬКО расходы на выплаты, предусмотренные Коллективным договором организации, не учитываемые при определении налоговой базы налога на прибыль (расходов, относимых на прибыль после налогообложения) в соответствии с Налоговым кодексом Российской Федерации (Пункты 21 - 29 Статьи 270 "Налогового кодекса Российской Федерации (часть вторая)". Таким образом, НАЛОГООБЛАГАЕМАЯ БАЗА по налогу на прибыль в каждом году долгосрочного периода РАВНА НУЛЮ, в связи с чем плановые сумма налога на прибыль определена в размере 0,00 тыс. руб.
K39: О | L39: НАЛОГ НА ПРИБЫЛЬ (факт 2023 г.) Согласно представленной Декларации по налогу на прибыль за 2023 год, совокупный финансовый результат деятельности ООО "БелГОС" за отчетный период составил положительную величину (в том числе - за счет превышения фаткических объемов реализации над плановыми) - 7024,758 тыс. руб. Сумма убытка, уменьшающего налоговую базу за отчетный (налоговый) период, - 3512,379 тыс. руб.; налоговая база для исчисления налога - 3512,379 тыс. руб.; сумма налога на прибыль (20%) - 702,475 тыс. руб.
K40: О | L40: Вместе с тем, по итогам 2023 г. в организации сложилась следующая структура ДОХОДОВ: регулируемая деятельность (сумма тарифной выручки по водоотведению без учета НДС + бюджетные субсидии на покрытие выпадающих доходов) - 147971,36 тыс. руб.; ПЛАТА ЗА НАРУШЕНИЕ нормативов по объему и/или составу сточных вод, плата за негативное водздействие на систему водоотведения ("ПЛАТА ЗА ПРЕВЫШЕНИЕ ПДК") - 3173,09 тыс. руб. (без учета НДС); доходы от прочих видов деятельности - 3505,71 тыс. руб. (всего доходов по декларации - 154650,16 тыс. руб.). СЕБЕСТОИМОСТЬ по регулируемой деятельности сложилась на уровне 146359,02 тыс. руб.; на ПДК расходы по себестоимости в регистрах бухгалтерского учета не отнесены (0,00 тыс. руб.); прочие расходы (себестоимость перепродажи + внереализационные расходы) - 1266,38 тыс. руб. (ВСЕГО расходов по декларации - 147625,40 тыс. руб. ИТОГО финансовый результат по регулируемой деятельности составил: 147971,36 тыс. руб. - 146359,02 тыс. руб. = 1612,35 тыс. руб. С учетом убытка, уменьшающего налоговую базу за отчетный период (50%) - 806,175 тыс. руб. НАЛОГ нА ПРИБЫЛЬ, ОТНЕСЕННЫЙ РЕГУЛИРУЮЩИМ ОРГАНОМ НА РЕГУЛИРУЕМУЮ ДЕЯТЕЛЬНОСТЬ: 806,175 тыс. руб. * 20% = 161,235 тыс. руб.
K41: О | L41: ПРОЧИЕ НАЛОГИ И СБОРЫ. ОРГАНИЗАЦИЕЙ заявлены: налог на имущество (незавершенное строительство - гараж) - 265,97 тыс. руб., налоговые санкции и штрафы - 50,0 тыс. руб., плата за негативное воздействие, уплаичваемая сверх установленных НДВ (нормативов допустимого выброса загрязняющих веществ в атмосеру) и НДС (нормативов допустимого сброса загрязняющих веществ в водные объекты) - 12,6 тыс. руб., земельный налог - 18,29 тыс. руб.
K42: О | L42: Расходы к учету не приняты, так как: 1) недостроенное здание не используется (исчисленные суммы налога отсутствуют в Сообщении налоговой службы от 04.04.2024; см. также пояснение по статье "Земельный налог"); 2) сверхлимитная плата за негативное воздействие УЧТЕНА при формировании суммы по статье "Доходы от взимания платы за нарушение нормативов по объему и /или составу сточных вод" (см. Лист "Плата за негативное возд."); 3) санкции и штрафы не учитываются в составе нормативной прибыли согласно п. 86 Методических указаний ФСТ России № 1746-э; 4) Земельный налог - 0,00 тыс. руб., так как имеет место задвоение заявленной суммы затрат, см. статью "ЗЕМЕЛЬНЫЙ НАЛОГ".
L43: Добавить комментарий

Sheet ИП + источники
O1: =god-2 -> 2023 | P1: =god-2 -> 2023 | Q1: =god-2 -> 2023 | R1: =god-2 -> 2023 | S1: =god-1 -> 2024 | T1: =god-1 -> 2024 | U1: =god -> 2025 | V1: =god+1 -> 2026 | W1: =god+2 -> 2027 | X1: =god+3 -> 2028 | Y1: =god+4 -> 2029 | Z1: =god+5 -> 2030 | AA1: =god+6 -> 2031 | AB1: =god+7 -> 2032 | AC1: =god+8 -> 2033 | AD1: =god+9 -> 2034 | AE1: =god -> 2025 | AF1: =god+1 -> 2026 | AG1: =god+2 -> 2027 | AH1: =god+3 -> 2028 | AI1: =god+4 -> 2029 | AJ1: =god+5 -> 2030 | AK1: =god+6 -> 2031 | AL1: =god+7 -> 2032 | AM1: =god+8 -> 2033 | AN1: =god+9 -> 2034
O2: =O17 -> Плановый размер финансирования ИП, установленной в установленном порядке | P2: =P17 -> Принято органом регулирования | Q2: Объем фактического ввода объектов системы водоснабжения и водоотведения в эксплуатацию по данным организации | R2: Объем фактического ввода объектов системы водоснабжения и водоотведения в эксплуатацию, принятый органом регулирования | S2: Плановый размер финансирования ИП, установленной в установленном порядке | T2: Принято органом регулирования | U2: Предложение организации | V2: Предложение организации | W2: Предложение организации | X2: Предложение организации | Y2: Предложение организации | Z2: Предложение организации | AA2: Предложение организации | AB2: Предложение организации | AC2: Предложение организации | AD2: Предложение организации | AE2: Принято органом регулирования | AF2: Принято органом регулирования | AG2: Принято органом регулирования | AH2: Принято органом регулирования | AI2: Принято органом регулирования | AJ2: Принято органом регулирования | AK2: Принято органом регулирования | AL2: Принято органом регулирования | AM2: Принято органом регулирования | AN2: Принято органом регулирования
U7: =U1<=last_year_vis -> TRUE | V7: FALSE | W7: FALSE | X7: FALSE | Y7: FALSE | Z7: FALSE | AA7: FALSE | AB7: FALSE | AC7: FALSE | AD7: FALSE | AE7: TRUE | AF7: FALSE | AG7: FALSE | AH7: FALSE | AI7: FALSE | AJ7: FALSE | AK7: FALSE | AL7: FALSE | AM7: FALSE | AN7: FALSE
M11: =tpl_title -> Кемеровская область / 2025 / ООО"БелГОС" (ИНН:4202023230, КПП:420201001) / ДПР: 2019-2028
L12: 14. План и факт по источникам финансирования инвестиционной программы
L14: Заполняется в целом по организации в случае утверждения для такой организации единой инвестиционной программы по всем видам тарифов | N14: ="нет" -> нет
L16: № п/п | M16: Источник финансирования, без НДС | N16: Единица измерения | O16: =god-2 & " год" -> 2023 год | P16: =god-2 & " год" -> 2023 год | Q16: =god-2 & " год" -> 2023 год | R16: =god-2 & " год" -> 2023 год | S16: =god-1 & " год" -> 2024 год | T16: =god-1 & " год" -> 2024 год | U16: =god & " год" -> 2025 год | V16: =god+1 & " год" -> 2026 год | W16: =god+2 & " год" -> 2027 год | X16: =god+3 & " год" -> 2028 год | Y16: =god+4 & " год" -> 2029 год | Z16: =god+5 & " год" -> 2030 год | AA16: =god+6 & " год" -> 2031 год | AB16: =god+7 & " год" -> 2032 год | AC16: =god+8 & " год" -> 2033 год | AD16: =god+9 & " год" -> 2034 год | AE16: =god & " год" -> 2025 год | AF16: =god+1 & " год" -> 2026 год | AG16: =god+2 & " год" -> 2027 год | AH16: =god+3 & " год" -> 2028 год | AI16: =god+4 & " год" -> 2029 год | AJ16: =god+5 & " год" -> 2030 год | AK16: =god+6 & " год" -> 2031 год | AL16: =god+7 & " год" -> 2032 год | AM16: =god+8 & " год" -> 2033 год | AN16: =god+9 & " год" -> 2034 год | AO16: Ссылка на правовую норму (основание для принятия показателя в расчет тарифа)
O17: Плановый размер финансирования ИП, установленной в установленном порядке | P17: Принято органом регулирования | Q17: Объем фактического ввода объектов системы водоснабжения и водоотведения в эксплуатацию по данным организации | R17: Объем фактического ввода объектов системы водоснабжения и водоотведения в эксплуатацию, принятый органом регулирования | S17: Плановый размер финансирования ИП, установленной в установленном порядке | T17: Принято органом регулирования | U17: Предложение организации | V17: Предложение организации | W17: Предложение организации | X17: Предложение организации | Y17: Предложение организации | Z17: Предложение организации | AA17: Предложение организации | AB17: Предложение организации | AC17: Предложение организации | AD17: Предложение организации | AE17: Принято органом регулирования | AF17: Принято органом регулирования | AG17: Принято органом регулирования | AH17: Принято органом регулирования | AI17: Принято органом регулирования | AJ17: Принято органом регулирования | AK17: Принято органом регулирования | AL17: Принято органом регулирования | AM17: Принято органом регулирования | AN17: Принято органом регулирования
B18: =$N$14="да" -> FALSE | C18: L1 | L18: 1 | M18: Источники финансирования инвестиционной программы, всего | N18: тыс.руб. | O18: =O19+O24+O28+O32 -> 0 | P18: =P19+P24+P28+P32 -> 0 | Q18: 0 | R18: 0 | S18: 0 | T18: 0 | U18: 0 | V18: 0 | W18: 0 | X18: 0 | Y18: 0 | Z18: 0 | AA18: 0 | AB18: 0 | AC18: 0 | AD18: 0 | AE18: 0 | AF18: 0 | AG18: 0 | AH18: 0 | AI18: 0 | AJ18: 0 | AK18: 0 | AL18: 0 | AM18: 0 | AN18: 0
B19: =$N$14="да" -> FALSE | C19: L1_1 | L19: 1.1 | M19: Собственные средства | N19: тыс.руб. | O19: =O20+O21+O22+O23 -> 0 | P19: =P20+P21+P22+P23 -> 0 | Q19: 0 | R19: 0 | S19: 0 | T19: 0 | U19: 0 | V19: 0 | W19: 0 | X19: 0 | Y19: 0 | Z19: 0 | AA19: 0 | AB19: 0 | AC19: 0 | AD19: 0 | AE19: 0 | AF19: 0 | AG19: 0 | AH19: 0 | AI19: 0 | AJ19: 0 | AK19: 0 | AL19: 0 | AM19: 0 | AN19: 0
B20: FALSE | C20: L1_1_1 | L20: 1.1.1 | M20: Амортизационные отчисления | N20: тыс.руб.
B21: FALSE | C21: L1_1_2 | L21: 1.1.2 | M21: Прибыль на капвложения | N21: тыс.руб.
B22: FALSE | C22: L1_1_3 | L22: 1.1.3 | M22: Прочие собственные средства | N22: тыс.руб.
B23: FALSE | C23: L1_1_4 | L23: 1.1.4 | M23: За счет платы за технологическое присоединение | N23: тыс.руб.
B24: FALSE | C24: L1_2 | L24: 1.2 | M24: Привлеченные средства | N24: тыс.руб. | O24: =O25+O26+O27 -> 0 | P24: =P25+P26+P27 -> 0 | Q24: 0 | R24: 0 | S24: 0 | T24: 0 | U24: 0 | V24: 0 | W24: 0 | X24: 0 | Y24: 0 | Z24: 0 | AA24: 0 | AB24: 0 | AC24: 0 | AD24: 0 | AE24: 0 | AF24: 0 | AG24: 0 | AH24: 0 | AI24: 0 | AJ24: 0 | AK24: 0 | AL24: 0 | AM24: 0 | AN24: 0
B25: FALSE | C25: L1_2_1 | L25: 1.2.1 | M25: Кредиты | N25: тыс.руб.
B26: FALSE | C26: L1_2_2 | L26: 1.2.2 | M26: Займы | N26: тыс.руб.
B27: FALSE | C27: L1_2_3 | L27: 1.2.3 | M27: Прочие привлеченные средства | N27: тыс.руб.
B28: FALSE | C28: L1_3 | L28: 1.3 | M28: Бюджетное финансирование | N28: тыс.руб. | O28: =O29+O30+O31 -> 0 | P28: =P29+P30+P31 -> 0 | Q28: 0 | R28: 0 | S28: 0 | T28: 0 | U28: 0 | V28: 0 | W28: 0 | X28: 0 | Y28: 0 | Z28: 0 | AA28: 0 | AB28: 0 | AC28: 0 | AD28: 0 | AE28: 0 | AF28: 0 | AG28: 0 | AH28: 0 | AI28: 0 | AJ28: 0 | AK28: 0 | AL28: 0 | AM28: 0 | AN28: 0
B29: FALSE | C29: L1_3_1 | L29: 1.3.1 | M29: Федеральный бюджет | N29: тыс.руб.
B30: FALSE | C30: L1_3_2 | L30: 1.3.2 | M30: Бюджет субъекта РФ | N30: тыс.руб.
B31: FALSE | C31: L1_3_3 | L31: 1.3.3 | M31: Бюджет муниципального образования | N31: тыс.руб.
B32: FALSE | C32: L1_4 | L32: 1.4 | M32: Прочие источники финансирования | N32: тыс.руб. | O32: =O33+O34+O35+O36 -> 0 | P32: =P33+P34+P35+P36 -> 0 | Q32: 0 | R32: 0 | S32: 0 | T32: 0 | U32: 0 | V32: 0 | W32: 0 | X32: 0 | Y32: 0 | Z32: 0 | AA32: 0 | AB32: 0 | AC32: 0 | AD32: 0 | AE32: 0 | AF32: 0 | AG32: 0 | AH32: 0 | AI32: 0 | AJ32: 0 | AK32: 0 | AL32: 0 | AM32: 0 | AN32: 0
B33: FALSE | C33: L1_4_1 | L33: 1.4.1 | M33: Лизинг | N33: тыс.руб.
B34: FALSE | C34: L1_4_2 | L34: 1.4.2 | M34: Доход от взимания платы за нарушение нормативов по объёму и (или) составу сточных вод | N34: тыс.руб.
B35: FALSE | C35: L1_4_3 | L35: 1.4.3 | M35: Доход от взимания платы за негативное воздействие на работу централизованной системы водоотведения | N35: тыс.руб.
B36: FALSE | C36: L1_4_4 | L36: 1.4.4 | M36: Прочие | N36: тыс.руб.
B37: FALSE | C37: L2 | L37: 2 | M37: График возврата и обслуживания заемных средств из тарифной выручки | N37: тыс.руб. | O37: =O38+O39+O40 -> 0 | P37: =P38+P39+P40 -> 0 | Q37: 0 | R37: 0 | S37: 0 | T37: 0 | U37: 0 | V37: 0 | W37: 0 | X37: 0 | Y37: 0 | Z37: 0 | AA37: 0 | AB37: 0 | AC37: 0 | AD37: 0 | AE37: 0 | AF37: 0 | AG37: 0 | AH37: 0 | AI37: 0 | AJ37: 0 | AK37: 0 | AL37: 0 | AM37: 0 | AN37: 0
B38: FALSE | C38: L2_1 | L38: 2.1 | M38: погашение займов и кредитов из нормативной прибыли | N38: тыс.руб.
B39: FALSE | C39: L2_2 | L39: 2.2 | M39: уплата процентов по кредитам из нормативной прибыли | N39: тыс.руб.
B40: FALSE | C40: L2_3 | L40: 2.3 | M40: погашение займов и кредитов из амортизации | N40: тыс.руб.
A41: ='Общие сведения'!$D$122 -> 1 | B41: ='ИП + источники'!$N$14<>"да" -> TRUE | L41: =INDEX('Общие сведения'!$J$121:$J$135,MATCH($A41,'Общие сведения'!$D$121:$D$135,0)) -> Тариф 1 (Водоотведение) - тариф на водоотведение
A42: =A41 -> 1 | B42: ='ИП + источники'!$N$14<>"да" -> TRUE | C42: L1 | L42: 1 | M42: Источники финансирования инвестиционной программы, всего | N42: тыс.руб. | O42: =O43+O48+O52+O56 -> 0 | P42: =P43+P48+P52+P56 -> 438.13428 | Q42: 0 | R42: 0 | S42: 0 | T42: 443.44 | U42: 930.37 | V42: 0 | W42: 0 | X42: 0 | Y42: 0 | Z42: 0 | AA42: 0 | AB42: 0 | AC42: 0 | AD42: 0 | AE42: 438.13428 | AF42: 0 | AG42: 0 | AH42: 0 | AI42: 0 | AJ42: 0 | AK42: 0 | AL42: 0 | AM42: 0 | AN42: 0 | AO42: 1) Постановление РЭК Кемеровской области от 27.12.2018 N 748 "Об утверждении инвестиционной программы ООО "Беловские Городские очистные сооружения" (Беловский городской округ) в сфере водоотведения на 2019 - 2021 годы".
A43: 1 | B43: ='ИП + источники'!$N$14<>"да" -> TRUE | C43: L1_1 | L43: 1.1 | M43: Собственные средства | N43: тыс.руб. | O43: =O44+O45+O46+O47 -> 0 | P43: =P44+P45+P46+P47 -> 438.13428 | Q43: 0 | R43: 0 | S43: 0 | T43: 443.44 | U43: 930.37 | V43: 0 | W43: 0 | X43: 0 | Y43: 0 | Z43: 0 | AA43: 0 | AB43: 0 | AC43: 0 | AD43: 0 | AE43: 438.13428 | AF43: 0 | AG43: 0 | AH43: 0 | AI43: 0 | AJ43: 0 | AK43: 0 | AL43: 0 | AM43: 0 | AN43: 0 | AO43: 2) Учетная политика ООО "БелГОС" для целей бухгалтерского учета (Приказ от 30.12.2021 № 565).
A44: 1 | B44: ='ИП + источники'!$N$14<>"да" -> TRUE | C44: L1_1_1 | L44: 1.1.1 | M44: Амортизационные отчисления | N44: тыс.руб. | O44: 0 | P44: 438.13428 | Q44: 0 | R44: 0 | S44: 0 | T44: 443.44 | U44: 930.37 | AE44: 438.13428
A45: 1 | B45: ='ИП + источники'!$N$14<>"да" -> TRUE | C45: L1_1_2 | L45: 1.1.2 | M45: Прибыль на капвложения | N45: тыс.руб.
A46: 1 | B46: ='ИП + источники'!$N$14<>"да" -> TRUE | C46: L1_1_3 | L46: 1.1.3 | M46: Прочие собственные средства | N46: тыс.руб.
A47: 1 | B47: ='ИП + источники'!$N$14<>"да" -> TRUE | C47: L1_1_4 | L47: 1.1.4 | M47: За счет платы за технологическое присоединение | N47: тыс.руб.
A48: 1 | B48: ='ИП + источники'!$N$14<>"да" -> TRUE | C48: L1_2 | L48: 1.2 | M48: Привлеченные средства | N48: тыс.руб. | O48: =O49+O50+O51 -> 0 | P48: =P49+P50+P51 -> 0 | Q48: 0 | R48: 0 | S48: 0 | T48: 0 | U48: 0 | V48: 0 | W48: 0 | X48: 0 | Y48: 0 | Z48: 0 | AA48: 0 | AB48: 0 | AC48: 0 | AD48: 0 | AE48: 0 | AF48: 0 | AG48: 0 | AH48: 0 | AI48: 0 | AJ48: 0 | AK48: 0 | AL48: 0 | AM48: 0 | AN48: 0
A49: 1 | B49: ='ИП + источники'!$N$14<>"да" -> TRUE | C49: L1_2_1 | L49: 1.2.1 | M49: Кредиты | N49: тыс.руб.
A50: 1 | B50: ='ИП + источники'!$N$14<>"да" -> TRUE | C50: L1_2_2 | L50: 1.2.2 | M50: Займы | N50: тыс.руб.
A51: 1 | B51: ='ИП + источники'!$N$14<>"да" -> TRUE | C51: L1_2_3 | L51: 1.2.3 | M51: Прочие привлеченные средства | N51: тыс.руб.
A52: 1 | B52: ='ИП + источники'!$N$14<>"да" -> TRUE | C52: L1_3 | L52: 1.3 | M52: Бюджетное финансирование | N52: тыс.руб. | O52: =O53+O54+O55 -> 0 | P52: =P53+P54+P55 -> 0 | Q52: 0 | R52: 0 | S52: 0 | T52: 0 | U52: 0 | V52: 0 | W52: 0 | X52: 0 | Y52: 0 | Z52: 0 | AA52: 0 | AB52: 0 | AC52: 0 | AD52: 0 | AE52: 0 | AF52: 0 | AG52: 0 | AH52: 0 | AI52: 0 | AJ52: 0 | AK52: 0 | AL52: 0 | AM52: 0 | AN52: 0
A53: 1 | B53: ='ИП + источники'!$N$14<>"да" -> TRUE | C53: L1_3_1 | L53: 1.3.1 | M53: Федеральный бюджет | N53: тыс.руб.
A54: 1 | B54: ='ИП + источники'!$N$14<>"да" -> TRUE | C54: L1_3_2 | L54: 1.3.2 | M54: Бюджет субъекта РФ | N54: тыс.руб.
A55: 1 | B55: ='ИП + источники'!$N$14<>"да" -> TRUE | C55: L1_3_3 | L55: 1.3.3 | M55: Бюджет муниципального образования | N55: тыс.руб.
A56: 1 | B56: ='ИП + источники'!$N$14<>"да" -> TRUE | C56: L1_4 | L56: 1.4 | M56: Прочие источники финансирования | N56: тыс.руб. | O56: =O57+O58+O59+O60 -> 0 | P56: =P57+P58+P59+P60 -> 0 | Q56: 0 | R56: 0 | S56: 0 | T56: 0 | U56: 0 | V56: 0 | W56: 0 | X56: 0 | Y56: 0 | Z56: 0 | AA56: 0 | AB56: 0 | AC56: 0 | AD56: 0 | AE56: 0 | AF56: 0 | AG56: 0 | AH56: 0 | AI56: 0 | AJ56: 0 | AK56: 0 | AL56: 0 | AM56: 0 | AN56: 0
A57: 1 | B57: ='ИП + источники'!$N$14<>"да" -> TRUE | C57: L1_4_1 | L57: 1.4.1 | M57: Лизинг | N57: тыс.руб.
A58: 1 | B58: ='ИП + источники'!$N$14<>"да" -> TRUE | C58: L1_4_2 | L58: 1.4.2 | M58: Доход от взимания платы за нарушение нормативов по объёму и (или) составу сточных вод | N58: тыс.руб.
A59: 1 | B59: ='ИП + источники'!$N$14<>"да" -> TRUE | C59: L1_4_3 | L59: 1.4.3 | M59: Доход от взимания платы за негативное воздействие на работу централизованной системы водоотведения | N59: тыс.руб.
A60: 1 | B60: ='ИП + источники'!$N$14<>"да" -> TRUE | C60: L1_4_4 | L60: 1.4.4 | M60: Прочие | N60: тыс.руб.
A61: 1 | B61: ='ИП + источники'!$N$14<>"да" -> TRUE | C61: L2 | L61: 2 | M61: График возврата и обслуживания заемных средств из тарифной выручки | N61: тыс.руб. | O61: =O62+O63+O64 -> 0 | P61: =P62+P63+P64 -> 0 | Q61: 0 | R61: 0 | S61: 0 | T61: 0 | U61: 0 | V61: 0 | W61: 0 | X61: 0 | Y61: 0 | Z61: 0 | AA61: 0 | AB61: 0 | AC61: 0 | AD61: 0 | AE61: 0 | AF61: 0 | AG61: 0 | AH61: 0 | AI61: 0 | AJ61: 0 | AK61: 0 | AL61: 0 | AM61: 0 | AN61: 0
A62: 1 | B62: ='ИП + источники'!$N$14<>"да" -> TRUE | C62: L2_1 | L62: 2.1 | M62: погашение займов и кредитов из нормативной прибыли | N62: тыс.руб.
A63: 1 | B63: ='ИП + источники'!$N$14<>"да" -> TRUE | C63: L2_2 | L63: 2.2 | M63: уплата процентов по кредитам из нормативной прибыли | N63: тыс.руб.
A64: 1 | B64: ='ИП + источники'!$N$14<>"да" -> TRUE | C64: L2_3 | L64: 2.3 | M64: погашение займов и кредитов из амортизации | N64: тыс.руб.
M65: * данные без НДС
L66: Комментарии и обоснования к разделу
L67: Инвестиционная программа в сфере водоотведения утверждена Постановлением РЭК Кемеровской области от 27.12.2018 N 748 "Об утверждении инвестиционной программы ООО "Беловские Городские очистные сооружения" (Беловский городской округ) в сфере водоотведения на 2019 - 2021 годы".
K68: О | L68: Мероприятия Инвестиционной программы были запланированы и полностью выполнены в 2019-2021 гг. В качестве единственного источника покрытия инвестиционных расходов предусматривались АМОРТИЗАЦИОННЫЕ ОТЧИСЛЕНИЯ, которые были рассчитаны по ВСЕМ объектам имущества, передаваемого в концессию. Рассчитанный таким образом регулирующим органом объем финансовых средств был достаточен для покрытия плановых инвестиционных затрат непосредственно в течение каждого года (2019,2020,2021), в котором предусматривалось проведение таких мероприятий.
K69: О | L69: Однако, фактически в принятой практике бухгалтерского учета организации (как и в общепринятой практике) амортизация имущества, переданного по Концессионному соглашению, учитывается на забалансовых счетах и не включается в себестоимость основной деятельности. Поэтому специалистом РЭК проведена корректировка плана финансирования мероприятий Инвестиционной программы, исходя из ожидаемых величин амортизации, начисляемой в части стоимости РЕКОНСТРУКЦИИ Объекта концессионного соглашения. данные суммы определены на основании представленных оборотно-сальдовых ведомостей по сч. 04 и 05, Отчетов по основным средствам и инвентарных карт.
L70: Добавить комментарий

Sheet Экономия_корр (hidden)
O1: =god -> 2025 | P1: =god+1 -> 2026 | Q1: =god+2 -> 2027 | R1: =god+3 -> 2028 | S1: =god+4 -> 2029 | T1: =god+5 -> 2030 | U1: =god+6 -> 2031 | V1: =god+7 -> 2032 | W1: =god+8 -> 2033 | X1: =god+9 -> 2034 | Y1: =god -> 2025 | Z1: =god+1 -> 2026 | AA1: =god+2 -> 2027 | AB1: =god+3 -> 2028 | AC1: =god+4 -> 2029 | AD1: =god+5 -> 2030 | AE1: =god+6 -> 2031 | AF1: =god+7 -> 2032 | AG1: =god+8 -> 2033 | AH1: =god+9 -> 2034
O2: =O15 -> Предложения организации | P2: =P15 -> Предложения организации | Q2: Предложения организации | R2: Предложения организации | S2: Предложения организации | T2: Предложения организации | U2: Предложения организации | V2: Предложения организации | W2: Предложения организации | X2: Предложения организации | Y2: Принято органом регулирования | Z2: Принято органом регулирования | AA2: Принято органом регулирования | AB2: Принято органом регулирования | AC2: Принято органом регулирования | AD2: Принято органом регулирования | AE2: Принято органом регулирования | AF2: Принято органом регулирования | AG2: Принято органом регулирования | AH2: Принято органом регулирования
O7: =O1<=last_year_vis -> TRUE | P7: FALSE | Q7: FALSE | R7: FALSE | S7: FALSE | T7: FALSE | U7: FALSE | V7: FALSE | W7: FALSE | X7: FALSE | Y7: TRUE | Z7: FALSE | AA7: FALSE | AB7: FALSE | AC7: FALSE | AD7: FALSE | AE7: FALSE | AF7: FALSE | AG7: FALSE | AH7: FALSE
M11: =tpl_title -> Кемеровская область / 2025 / ООО"БелГОС" (ИНН:4202023230, КПП:420201001) / ДПР: 2019-2028
L12: 15. Расчет экономии средств, достигнутой в результате снижения расходов предыдущего долгосрочного периода регулирования
L14: № п/п | M14: Показатели | N14: Единица измерения | O14: =god & " год" -> 2025 год | P14: =god+1 & " год" -> 2026 год | Q14: =god+2 & " год" -> 2027 год | R14: =god+3 & " год" -> 2028 год | S14: =god+4 & " год" -> 2029 год | T14: =god+5 & " год" -> 2030 год | U14: =god+6 & " год" -> 2031 год | V14: =god+7 & " год" -> 2032 год | W14: =god+8 & " год" -> 2033 год | X14: =god+9 & " год" -> 2034 год | Y14: =god & " год" -> 2025 год | Z14: =god+1 & " год" -> 2026 год | AA14: =god+2 & " год" -> 2027 год | AB14: =god+3 & " год" -> 2028 год | AC14: =god+4 & " год" -> 2029 год | AD14: =god+5 & " год" -> 2030 год | AE14: =god+6 & " год" -> 2031 год | AF14: =god+7 & " год" -> 2032 год | AG14: =god+8 & " год" -> 2033 год | AH14: =god+9 & " год" -> 2034 год | AI14: Ссылка на правовую норму (основание для принятия показателя в расчет тарифа)
O15: Предложения организации | P15: Предложения организации | Q15: Предложения организации | R15: Предложения организации | S15: Предложения организации | T15: Предложения организации | U15: Предложения организации | V15: Предложения организации | W15: Предложения организации | X15: Предложения организации | Y15: Принято органом регулирования | Z15: Принято органом регулирования | AA15: Принято органом регулирования | AB15: Принято органом регулирования | AC15: Принято органом регулирования | AD15: Принято органом регулирования | AE15: Принято органом регулирования | AF15: Принято органом регулирования | AG15: Принято органом регулирования | AH15: Принято органом регулирования
A16: ='Общие сведения'!$D$122 -> 1 | L16: =INDEX('Общие сведения'!$J$121:$J$135,MATCH($A16,'Общие сведения'!$D$121:$D$135,0)) -> Тариф 1 (Водоотведение) - тариф на водоотведение
A17: =A16 -> 1 | B17: L1 | L17: 1 | M17: Экономия расходов всего | N17: тыс.руб. | O17: =O18+O19+O20 -> 0 | P17: 0 | Q17: 0 | R17: 0 | S17: 0 | T17: 0 | U17: 0 | V17: 0 | W17: 0 | X17: 0 | Y17: 0 | Z17: 0 | AA17: 0 | AB17: 0 | AC17: 0 | AD17: 0 | AE17: 0 | AF17: 0 | AG17: 0 | AH17: 0
A18: 1 | B18: L1_1 | L18: 1.1 | M18: Экономия операционных расходов | N18: тыс.руб.
A19: 1 | B19: L1_2 | L19: 1.2 | M19: Экономия от снижения потребления электрической энергии (мощности) | N19: тыс.руб.
A20: 1 | B20: L1_3 | L20: 1.3 | M20: Экономия от снижения потребления прочих энергетических ресурсов, холодной воды, теплоносителя | N20: тыс.руб.
A21: 1 | B21: L2 | L21: 2 | M21: Значение индекса потребительских цен | N21: % | O21: =SUMIFS(Сценарии!$T$15:$T$35,Сценарии!$A$15:$A$35,$A21,Сценарии!$M$15:$M$35,"Индекс потребительских цен") -> 0 | P21: =SUMIFS(Сценарии!$Y$15:$Y$35,Сценарии!$A$15:$A$35,$A21,Сценарии!$M$15:$M$35,"Индекс потребительских цен") -> 0 | Q21: =SUMIFS(Сценарии!$AA$15:$AA$35,Сценарии!$A$15:$A$35,$A21,Сценарии!$M$15:$M$35,"Индекс потребительских цен") -> 0 | R21: =SUMIFS(Сценарии!$AC$15:$AC$35,Сценарии!$A$15:$A$35,$A21,Сценарии!$M$15:$M$35,"Индекс потребительских цен") -> 0 | S21: =SUMIFS(Сценарии!$AE$15:$AE$35,Сценарии!$A$15:$A$35,$A21,Сценарии!$M$15:$M$35,"Индекс потребительских цен") -> 0 | T21: =SUMIFS(Сценарии!$AG$15:$AG$35,Сценарии!$A$15:$A$35,$A21,Сценарии!$M$15:$M$35,"Индекс потребительских цен") -> 0 | U21: =SUMIFS(Сценарии!$AI$15:$AI$35,Сценарии!$A$15:$A$35,$A21,Сценарии!$M$15:$M$35,"Индекс потребительских цен") -> 0 | V21: =SUMIFS(Сценарии!$AK$15:$AK$35,Сценарии!$A$15:$A$35,$A21,Сценарии!$M$15:$M$35,"Индекс потребительских цен") -> 0 | W21: =SUMIFS(Сценарии!$AM$15:$AM$35,Сценарии!$A$15:$A$35,$A21,Сценарии!$M$15:$M$35,"Индекс потребительских цен") -> 0 | X21: =SUMIFS(Сценарии!$AO$15:$AO$35,Сценарии!$A$15:$A$35,$A21,Сценарии!$M$15:$M$35,"Индекс потребительских цен") -> 0 | Y21: =SUMIFS(Сценарии!$U$15:$U$35,Сценарии!$A$15:$A$35,$A21,Сценарии!$M$15:$M$35,"Индекс потребительских цен") -> 5.8 | Z21: =SUMIFS(Сценарии!$Z$15:$Z$35,Сценарии!$A$15:$A$35,$A21,Сценарии!$M$15:$M$35,"Индекс потребительских цен") -> 0 | AA21: =SUMIFS(Сценарии!$AB$15:$AB$35,Сценарии!$A$15:$A$35,$A21,Сценарии!$M$15:$M$35,"Индекс потребительских цен") -> 0 | AB21: =SUMIFS(Сценарии!$AD$15:$AD$35,Сценарии!$A$15:$A$35,$A21,Сценарии!$M$15:$M$35,"Индекс потребительских цен") -> 0 | AC21: =SUMIFS(Сценарии!$AF$15:$AF$35,Сценарии!$A$15:$A$35,$A21,Сценарии!$M$15:$M$35,"Индекс потребительских цен") -> 0 | AD21: =SUMIFS(Сценарии!$AH$15:$AH$35,Сценарии!$A$15:$A$35,$A21,Сценарии!$M$15:$M$35,"Индекс потребительских цен") -> 0 | AE21: =SUMIFS(Сценарии!$AJ$15:$AJ$35,Сценарии!$A$15:$A$35,$A21,Сценарии!$M$15:$M$35,"Индекс потребительских цен") -> 0 | AF21: =SUMIFS(Сценарии!$AL$15:$AL$35,Сценарии!$A$15:$A$35,$A21,Сценарии!$M$15:$M$35,"Индекс потребительских цен") -> 0 | AG21: =SUMIFS(Сценарии!$AN$15:$AN$35,Сценарии!$A$15:$A$35,$A21,Сценарии!$M$15:$M$35,"Индекс потребительских цен") -> 0 | AH21: =SUMIFS(Сценарии!$AP$15:$AP$35,Сценарии!$A$15:$A$35,$A21,Сценарии!$M$15:$M$35,"Индекс потребительских цен") -> 0
A22: 1 | B22: L3 | L22: 3 | M22: Кумулятивное значение индекса потребительских цен | N22: % | O22: =O21 -> 0 | P22: =O22*P21/100 -> 0 | Q22: =P22*Q21/100 -> 0 | R22: 0 | S22: 0 | T22: 0 | U22: 0 | V22: 0 | W22: 0 | X22: 0 | Y22: 0 | Z22: 0 | AA22: 0 | AB22: 0 | AC22: 0 | AD22: 0 | AE22: 0 | AF22: 0 | AG22: 0 | AH22: 0
A23: 1 | B23: L4 | L23: 4 | M23: Экономия расходов с учетом ИПЦ | N23: тыс.руб. | O23: =O17*O22/100 -> 0 | P23: =P17*P22/100 -> 0 | Q23: 0 | R23: 0 | S23: 0 | T23: 0 | U23: 0 | V23: 0 | W23: 0 | X23: 0 | Y23: 0 | Z23: 0 | AA23: 0 | AB23: 0 | AC23: 0 | AD23: 0 | AE23: 0 | AF23: 0 | AG23: 0 | AH23: 0
L25: Комментарии и обоснования к разделу
L27: Добавить комментарий

Sheet Плата за негативное возд
L12: 16. Плата за негативное воздействие на работу централизованных систем водоотведения (принято органом регулирования)
L14: № | M14: Показатели | N14: Единица измерения | O14: Начислено в соответствии с пунктом 26(1) Основ ценообразования в сфере водоснабжения и водоотведения | P14: Направлено на внесение платы за негативное воздействие на окружающую среду | Q14: Направлено на компенсацию вреда, причиненного водному объекту | R14: Предусмотрено на финансирование мероприятий инвестиционной программы по строительству, реконструкции и модернизации объектов централизованной системы водоотведения | S14: Предусмотрено на финансирование мероприятий производственной программы регулируемой организации | T14: Направлено на возврат займов и кредитов, в том числе процентов по займам и кредитам, привлекаемым на реализацию производственной программы и (или) инвестиционной программы (не более 50% от начисленной платы за негативное воздействие на работу ЦСВ) | U14: Налог на прибыль | V14: Подлежит к исключению
A15: ='Общие сведения'!$D$122 -> 1 | L15: =INDEX('Общие сведения'!$J$121:$J$135,MATCH($A15,'Общие сведения'!$D$121:$D$135,0)) -> Тариф 1 (Водоотведение) - тариф на водоотведение | O15: =O16+O17 -> 3173.086125 | P15: 40.41362 | Q15: 0 | R15: 0 | S15: -1026.3 | T15: 0 | U15: 317.3 | V15: 3841.672505
A16: =A15 -> 1 | B16: L1 | L16: 1 | M16: Доходы регулируемой организации от взимания платы за нарушение нормативов по объёму и (или) составу сточных вод | N16: тыс.руб. | O16: =(5415.94063-2021.22412)/1.2 -> 2828.930425 | P16: 40.41362 | S16: -1026.3 | U16: =317.31/$O$15*O16-0.01 -> 282.8842795 | V16: =O16-P16-S16-U16 -> 3531.932525
A17: =A16 -> 1 | B17: L2 | L17: 2 | M17: Доходы от взимания платы за негативное воздействие на работу централизованной системы водоотведения | N17: тыс.руб. | O17: =412.98684/1.2 -> 344.1557 | U17: =317.31/$O$15*O17 -> 34.41572049 | V17: =O17-P17-S17-U17 -> 309.7399795
L20: Комментарии и обоснования к разделу
L21: В составе суммы, отраженной в графе "Начислено в соответствии спунктом 26(1) Основ ценообразования в сфере водоснабжения и водоотведения", имеется сумма сторно в размере (-2021,22412) / 1,2 = 1684,35 тыс. руб. (без учета НДС) в виде суммы платы за нарушение нормативов по объему и/или составу сточных вод, излишне начисленной в прошлые периоды абоненту ФКУ "Исправительная колония № 44" и присужденной к возврату указанной организации Определением Арбитражного суда Кемеровской области от 13.09.2023 по Делу № А27-25634/2021.
K22: О | L22: Сумма начисленной за 2023 год ПЛАТЫ ЗА НЕГАТИВНОЕ ВОЗДЕЙСТВИЕ НА ОКРУЖАЮЩУЮ СРЕДУ указана С УЧЕТОМ платы, исчисленной в части превышения установленных нормативов допустимого выброса загрязняющих веществ в атмосферу (согласно представленной Декларации за 2023 год).
K23: О | L23: Отраженная здесь специалистом РЭК Кузбасса сумма НАЛОГА НА ПРИБЫЛЬ определена следующим образом. ДОХОДЫ в части условного вида деятельности "Плата за превышение ПДК" - 3173,09 тыс. руб. (без учета НДС); РАСХОДЫ - 0,00 тыс. руб., условный финансовый результат - (+3173,09) тыс. руб. На основании представленной Декларации по налогу на прибыль, налогооблагаемая база (сумма условного финансового результата) уменьшена на сумму убытков прошлых налоговых периодов, определяемого в размере 50% от полученной прибыли: 3173,09 *50% = 1586,55 тыс. руб. Сумма налога на прибыль в части "Платы за превышение ПДК": 1586,55 тыс. руб. *20% (налоговая ставка) = 317,3 тыс. руб.
K24: О | L24: В графе "ПРЕДУСМОТРЕНО НА ФИНАНСИРОВАНИЕ МЕРОПРИЯТИЙ ПРОИЗВОДСТВЕННОЙ ПРОГРАММЫ РЕГУЛИРУЕМОЙ ОРГАНИЗАЦИИ" учтена сумма ИЗБЫТКА СРЕДСТВ, учтенного в составе плановой НВВ на 2023 г., который сложился следующим образом.
K25: О | L25: При установлении (корректировке) тарифов на 2023 год регулирующим органом СУММА ИЗБЫТКА, образовавшегося по статье "Доходы от взимания платы за нарушение нормативов по объему и/или составу сточных вод" за 2019-2021 годы и НЕ ИСКЛЮЧЕННОГО в предыдущие периоды регулирования, составила 18850,84 тыс. руб. (в том числе за 2019 г. - 5736,21 тыс. руб., за 2020 г. - 9293,43 тыс. руб., за 2021 г. - 3821,2 тыс. руб.). При исключении суммы избытка из плановой НВВ на 2023 г. регулирующим органом данная сумма была УМЕНЬШЕНА на сумму ПЛАНОВЫХ МЕРОПРИЯТИЙ: по капитальному ремонту на 2022 год - 2532,01 тыс. руб., по капитальному ремонту на 2023 год - 1112,25 тыс. руб., по Программе энергосбережения на 2023 год - 1231,94 тыс. руб. (18850,84 - 2532,01 - 1112,25 - 1231,94 = 13974,64 тыс. руб.).
K26: О | L26: При установлении (корректировке) тарифов на 2024 год вместе с СУММОЙ ИЗБЫТКА, образовавшегося по статье "Доходы от взимания платы за нарушение нормативов по объему и/или составу сточных вод" за 2022 год (2125,38 тыс. руб. - 43,183 тыс. руб. = 2082,20 тыс. руб.), была дополнительно ИСКЛЮЧЕНА сумма НЕДООСВОЕНИЯ средств, предумотренных Производственной программой на мероприятия по капитальному ремонту на 2022 год, выполняемых за счет "Платы за превышение ПДК" : план - 2532,01 тыс. руб., факт - 398,66 тыс. руб.; сумма дополнительно исключенного нного избытка - (398,66 - 2532,01 = ) - 2133,35 тыс. руб.
K27: О | L27: При установлении (корректировке) тарифов на 2025 год специалистом РЭК Кузбасса исключается сумма НЕДООСВОЕНИЯ средств, предумотренных Производственной программой по капитальному ремонту и Программой энергосбережения на 2023 год в части мероприятий, финансируемых за счет "Платы за превышение ПДК": план - (1112,25 тыс. руб. + 1231,94 тыс. руб. = 2344,19 тыс. руб.) , факт - ( 965,67 тыс. руб. + 352,218 тыс. руб. = 1317,89 тыс. руб.); сумма исключенного избытка - (1317,89 - 2344,19 = ) - 1026,30 тыс. руб. Стоимость проведенных мероприятий по капитальному ремонту, отраженная ООО "БелГОС" в Разделе 10 Производственной программы (965,67 тыс. руб.), согласована ОАО "Агентство энергетических экспертиз".
K28: О | L28: При этом сумма затрат на приобретение насоса погружного WC НАС (352,218 тыс. руб.), отраженная ООО "БелГОС" в составе проведенных мероприятий по Программе энергосбережения, квалифицируется специалистом РЭК Кузбасса как дополнительные фактические затраты на КАПИТАЛЬНЫЙ РЕМОНТ.
L29: Добавить комментарий

Sheet Корректировка НВВ
P1: =god-2 -> 2023 | Q1: =god-2 -> 2023
P2: =P15 -> Факт по данным организации | Q2: =Q15 -> Принято органом регулирования
M11: =tpl_title -> Кемеровская область / 2025 / ООО"БелГОС" (ИНН:4202023230, КПП:420201001) / ДПР: 2019-2028
L12: 17. Расчет показателей корректировки необходимой валовой выручки
L14: № п/п | M14: Наименование показателя | N14: Условное обозначение | O14: Единица измерений | P14: =god-2 & " год" -> 2023 год | Q14: =god-2 & " год" -> 2023 год | R14: Комментарии
P15: Факт по данным организации | Q15: Принято органом регулирования
A16: ='Общие сведения'!$D$122 -> 1 | B16: =INDEX('Общие сведения'!$H$121:$H$135,MATCH($A16,'Общие сведения'!$D$121:$D$135,0)) -> Водоотведение | L16: =INDEX('Общие сведения'!$J$121:$J$135,MATCH($A16,'Общие сведения'!$D$121:$D$135,0)) -> Тариф 1 (Водоотведение) - тариф на водоотведение
A17: =A16 -> 1 | D17: L1 | L17: I | M17: Расчет размера корректировки необходимой валовой выручки по результатам деятельности прошлых периодов регулирования, а также осуществляемой с целью учета отклонения фактических значений параметров расчета тарифов от значений, учтенных при установлении | N17: ΔHBBKi-2 | O17: тыс.руб. | P17: =P19-P18 -> -5261.77273 | Q17: =Q19-Q18 -> -6855.768075 | R17: Рассчитано в соответствии с п. 91 и 95 Методических указаний ФСТ России № 1746-э (Формулы 33 и 38).
A18: =A17 -> 1 | D18: L1_1 | L18: 1 | M18: Товарная выручка | N18: ТВФi-2 | O18: тыс.руб. | P18: 147971.41 | Q18: 147971.41 | R18: Подтверждено бухгалтерскими документами
A19: 1 | D19: L1_2 | L19: 2 | M19: Скорректированная фактическая величина необходимой валовой выручки | N19: HBBФi-2 | O19: тыс.руб. | P19: =P20+P21+P33+P37+P38+P39+P40+P44 -> 142709.6373 | Q19: =Q20+Q21+Q33+Q37+Q38+Q39+Q40+Q44 -> 141115.6419
A20: 1 | D20: L1_2_1 | L20: 2.1 | M20: Операционные расходы, определенные на (i-2)-й год исходя из фактических значений параметров расчета тарифов | N20: ОРФi-2 | O20: тыс.руб. | P20: 107283.14 | Q20: 116125.0381 | R20: Базовый уровень операционных расходов 2019 г. (90920,52 тыс. руб.) с учетом индексов эффективности операционных расходов = 1 на 2020, на 2021, на 2022 и на 2023 гг. и ИПЦ Минэкономразвития РФ 103,4% на 2020 г., 106,7% на 2021 г., 113,8% на 2022 г. и 105,9% на 2023 г. (Формула 40 Методических указаний, j = 2023)
A21: 1 | D21: L1_2_2 | L21: 2.2 | M21: фактические документально подтвержденные неподконтрольные расходы, в том числе: | N21: Н РФi-2 | O21: тыс.руб. | P21: =SUM(P22:P32) -> 6047.31543 | Q21: =SUM(Q22:Q32) -> 4343.03943
A22: 1 | D22: L1_2_2_1 | L22: 2.2.1 | M22: расходы на оплату товаров (услуг, работ), приобретаемых у других организаций, осуществляющих регулируемые виды деятельности; | O22: тыс.руб. | P22: =SUMIFS(Покупка!P$15:P$38,Покупка!$A$15:$A$38,$A22,Покупка!$B$15:$B$38,"Итого") -> 1037.19543 | Q22: =SUMIFS(Покупка!Q$15:Q$38,Покупка!$A$15:$A$38,$A22,Покупка!$B$15:$B$38,"Итого") -> 734.16543 | R22: Учтены расходы на тепловую энергию и горячую воду, поставляемую ООО "Теплоэнергетик", на уровне фактических документально подтвержденных затрат отчетного периода (см. Лист "Покупка"). Расходы на покупную воду отклонены, так как учитываются в составе Операционных расходов.
A23: 1 | D23: L1_2_2_2 | L23: 2.2.2 | M23: расходы на реагенты | O23: тыс.руб. | Q23: =SUMIFS(Реагенты!Q$15:Q$22,Реагенты!$A$15:$A$22,$A23,Реагенты!$M$15:$M$22,"Всего по тарифу") -> 0
A24: 1 | D24: L1_2_2_3 | L24: 2.2.3 | M24: расходы на уплату налогов, сборов и других обязательных платежей | O24: тыс.руб. | P24: =SUMIFS(Налоги!P$15:P$30,Налоги!$A$15:$A$30,$A24,Налоги!$L$15:$L$30,"0") -> 1974.45 | Q24: =SUMIFS(Налоги!Q$15:Q$30,Налоги!$A$15:$A$30,$A24,Налоги!$L$15:$L$30,"0") -> 1433.214 | R24: См. Лист "Налоги",
A25: 1 | B25: Расходы на мероприятия по защите централизованных систем водоснабжения | D25: L1_2_2_4 | L25: 2.2.4 | M25: Расходы на мероприятия по защите централизованных систем водоснабжения и (или) водоотведения и их отдельных объектов от угроз техногенного, природного характера и террористических актов, по предотвращению возникновения аварийных ситуаций, снижению риска и смягчению последствий чрезвычайных ситуаций (за исключением мероприятий, включенных в инвестиционную программу) | O25: тыс.руб. | Q25: =SUMIFS(Калькуляция!Q$15:Q$143,Калькуляция!$A$15:$A$143,$A25,Калькуляция!$B$15:$B$143,$B25) -> 0
A26: 1 | B26: Арендная и концессионная плата, лизинговые платежи | D26: L1_2_2_5 | L26: 2.2.5 | M26: расходы на арендную и концессионную плату, лизинговые платежи | O26: тыс.руб. | P26: =Аренда!P17-0.01 -> 3035.67 | Q26: =SUMIFS(Калькуляция!Q$15:Q$143,Калькуляция!$A$15:$A$143,$A26,Калькуляция!$B$15:$B$143,$B26) -> 2175.66 | R26: См. Лист "Аренда".
A27: 1 | B27: резерв по сомнительным долгам гарантирующей организации | D27: L1_2_2_6 | L27: 2.2.6 | M27: расходы по сомнительным долгам для гарантирующей организации | O27: тыс.руб. | Q27: =SUMIFS(Калькуляция!Q$15:Q$143,Калькуляция!$A$15:$A$143,$A27,Калькуляция!$B$15:$B$143,$B27) -> 0
A28: 1 | B28: Экономия расходов | D28: L1_2_2_7 | L28: 2.2.7 | M28: экономия средств, достигнутая в результате снижения расходов предыдущего долгосрочного периода регулирования | O28: тыс.руб. | Q28: =SUMIFS(Калькуляция!Q$15:Q$143,Калькуляция!$A$15:$A$143,$A28,Калькуляция!$B$15:$B$143,$B28) -> 0
A29: 1 | B29: Расходы на обслуживание бесхозяйных сетей | D29: L1_2_2_8 | L29: 2.2.8 | M29: расходы на обслуживание бесхозяйных сетей, эксплуатируемых регулируемой организацией | O29: тыс.руб. | Q29: =SUMIFS(Калькуляция!Q$15:Q$143,Калькуляция!$A$15:$A$143,$A29,Калькуляция!$B$15:$B$143,$B29) -> 0
A30: 1 | B30: Расходы на компенсацию экономически обоснованных расходов | D30: L1_2_2_9 | L30: 2.2.9 | M30: расходы на компенсацию экономически обоснованных расходов (выпадающих доходов прошлых периодов) | O30: тыс.руб. | Q30: =SUMIFS(Калькуляция!Q$15:Q$143,Калькуляция!$A$15:$A$143,$A30,Калькуляция!$B$15:$B$143,$B30) -> 0
A31: 1 | B31: Займы и кредиты (для метода индексации) | D31: L1_2_2_10 | L31: 2.2.10 | M31: расходы на займы и кредиты (для метода индексации) | O31: тыс.руб. | Q31: =SUMIFS(Калькуляция!Q$15:Q$143,Калькуляция!$A$15:$A$143,$A31,Калькуляция!$B$15:$B$143,$B31) -> 0
A32: 1 | B32: Расходы концессионера на осуществление государственного кадастрового учета | D32: L1_2_2_11 | L32: 2.2.11 | M32: расходы концессионера на осуществление государственного кадастрового учета и (или) государственной регистрации права собственности концедента | O32: тыс.руб. | Q32: =SUMIFS(Калькуляция!Q$15:Q$143,Калькуляция!$A$15:$A$143,$A32,Калькуляция!$B$15:$B$143,$B32) -> 0
A33: 1 | D33: L1_2_3 | L33: 2.3 | M33: расходы на электрическую энергию | N33: РТФi-2 | O33: тыс.руб. | P33: =ЭЭ!P17 -> 28218.17 | Q33: =Q34*Q35*Q36 -> 27768.499
A34: 1 | D34: L1_2_3_1 | L34: 2.3.1 | M34: удельное потребление электрической энергии, установленное на соответствующий год | N34: УПЭФi-2 | O34: кВтч/куб.м. | P34: =ЭЭ!P21 -> 1.271880802 | Q34: =SUMIFS(ЭЭ!O$15:O$42,ЭЭ!$A$15:$A$42,$A34,ЭЭ!$M$15:$M$42,"Удельный расход электроэнергии") -> 1.25 | R34: В соответствии с утвержденными долгосрочными параметрами регулирования тарифов
A35: 1 | D35: L1_2_3_2 | L35: 2.3.2 | M35: фактический объём поданной воды (принятых сточных вод) | N35: Q ф i-2 | O35: тыс.куб.м. | P35: =ЭЭ!P19 -> 3967.062 | Q35: =SUMIFS(ЭЭ!Q$15:Q$42,ЭЭ!$A$15:$A$42,$A35,ЭЭ!$M$15:$M$42,"Объём воды/сточных вод") -> 3967.062
A36: 1 | D36: L1_2_3_3 | L36: 2.3.3 | M36: фактическая (расчетная) цена на электрическую энергию, определяемая в i-2 году | N36: ЦТ ф i-2 | O36: руб./кВтч | P36: =ЭЭ!P20 -> 5.592595969 | Q36: =SUMIFS(ЭЭ!Q$15:Q$42,ЭЭ!$A$15:$A$42,$A36,ЭЭ!$M$15:$M$42,"Средний (расчетный) тариф") -> 5.599811448 | R36: Подтверждено представленными счетами-фактурами и расшифровками.
A37: 1 | B37: амортизация | D37: L1_2_4 | L37: 2.4 | M37: расходы на амортизацию в (i-2)-м году, определенные исходя из фактического состава имущества в (i-2)-м году | N37: АФi-2 | O37: тыс.руб. | P37: =Амортизация!P53 -> 1161.01184 | Q37: =SUMIFS(Калькуляция!Q$15:Q$143,Калькуляция!$A$15:$A$143,$A37,Калькуляция!$B$15:$B$143,$B37) -> 812.6428067 | R37: ИСКЛЮЧЕНЫ: 1) начисления в части стоимости капитальных вложений в концессионное имущество, НЕ ПРЕДУСМОТРЕННЫХ Инвестиционной программой (соответствует позиции ФАС России); 2) начисления по транспортным средствам, так как они относятся к объектам общепроизводственного назначения и учитываются в составе Операционных расходов. (см. Лист "Амортизация")
A38: 1 | D38: L1_2_5 | L38: 2.5 | M38: величина нормативной прибыли | N38: ПРi-2 | O38: тыс.руб. | Q38: 374.7352183 | R38: В соответствии с утвержденными долгосрочными параметрами (0,28% от принятой регулятором фактической НВВ) (п. 95, п. 86 Методических указаний, Формула 31). Прочие расходы учету не подлежат.
A39: 1 | B39: Расчетная предпринимательская прибыль гарантирующей организации | D39: L1_2_6 | L39: 2.6 | M39: расчетная предпринимательская прибыль гарантирующей организации | N39: ПРГО Фi-2 | O39: тыс.руб. | Q39: 6745.667326 | R39: В размере 5% от скорректированной суммы Текущих расходов и амортизации
A40: 1 | D40: L1_2_7_0 | L40: 2.7 | M40: размер корректировки необходимой валовой выручки, учтенной при регулирования на год i-2 | O40: тыс.руб. | Q40: =Q41+Q42+Q43 -> -15053.98
A41: 1 | D41: L1_2_7 | L41: 2.7.1 | M41: величина отклонения показателя ввода объектов системы водоснабжения и (или) водоотведения в эксплуатацию и изменения инвестиционной программы | N41: ΔИi-4 | O41: тыс.руб.
A42: 1 | D42: L1_2_8 | L42: 2.7.2 | M42: степень исполнения регулируемой организацией производственной программы | N42: ΔЦПi-4 | O42: тыс.руб. | Q42: -2083.04 | R42: По ранее утвержденному плану 2023 г. (результаты деятельности за 2021 г.)
A43: 1 | D43: L1_2_10 | L43: 2.7.3 | M43: размер корректировки необходимой валовой выручки по результатам деятельности прошлых периодов регулирования, а также осуществляемой с целью учета отклонения фактических значений параметров расчета тарифов от значений, учтенных при установлении | N43: ΔHBBKi-4 | O43: тыс.руб. | Q43: =1003.7+(-13974.64) -> -12970.94 | R43: 1) размер корректировки плановой НВВ 2021 г., осуществленной с целью учета отклонения фактических значений параметров расчета тарифов от значений, учтенных при установлении тарифов на 2021 год, - 1003,70 тыс. руб.; 2) сумма ИЗБЫТКА СРЕДСТВ по статье "Доходы от платы за нарушение нормативов по объему и/или составу сточныхвод (доходы от платы за негативное воздействие системы водоотведения)", образовавшегося за 2019-2021 годы, - (-13974,64) тыс. руб.
A44: 1 | D44: L1_2_9 | L44: 2.9 | M44: величина изменения необходимой валовой выручки в году i-2, проводимого в целях сглаживания | N44: ΔHBBСi-2 | O44: тыс.руб.
A45: 1 | D45: L2 | L45: II | M45: Расчет размера корректировки необходимой валовой выручки, в случае если на i-2 год применялся метод экономически обоснованных расходов | N45: ΔHBBKi-2 | O45: тыс.руб. | P45: =P46 -> 0 | Q45: =Q46 -> 0
A46: 1 | D46: L2_1 | L46: 1 | M46: Величина, определяющая результаты деятельности регулируемой организации до перехода к регулированию цен (тарифов) на основе долгосрочных параметров регулирования | N46: ΔРЕЗi-2 | O46: тыс.руб. | P46: =P47+P48 -> 0 | Q46: =Q47+Q48 -> 0
A47: 1 | D47: L2_1_1 | L47: 1.1 | M47: экономически обоснованные расходы регулируемой организации, понесенные в периоды регулирования, предшествовавшие переходу к регулированию цен (тарифов) на основе долгосрочных параметров регулирования и не возмещенные регулируемой организации (не учтенные в тарифах) | N47: ΔРЕЗ+i-2 | O47: тыс.руб.
A48: 1 | D48: L2_1_2 | L48: 1.2 | M48: доходы регулируемой организации, необоснованно полученные в периоды регулирования, предшествовавшие переходу к регулированию цен (тарифов) на основе долгосрочных параметров регулирования | N48: ΔРЕЗ-i-2 | O48: тыс.руб.
A49: 1 | D49: L3 | L49: III | M49: Величина отклонения показателя ввода объектов системы водоснабжения и (или) водоотведения в эксплуатацию и изменения инвестиционной программы | N49: ΔИi-2 | O49: тыс.руб.
A50: 1 | D50: L4 | L50: IV | M50: Степень исполнения регулируемой организацией обязательств по созданию и (или) реконструкции объектов концессионного соглашения, по эксплуатации объектов по договору аренды централизованных систем горячего водоснабжения, холодного водоснабжения и (или) водоотведения, отдельных объектов таких систем, находящихся в государственной или муниципальной собственности, по реализации инвестиционной программы, производственной программы при недостижении регулируемой организацией утверждённых плановых значений показателей надежности и качества объектов централизованных систем водоснабжения и (или) водоотведения (корректировка по показателям надежности и качества) | N50: ΔЦПi-2 | O50: тыс.руб. | Q50: -4684.234169 | R50: Сумма корректировки плановой НВВ 2023 года рассчитана в соответствии с пунктом 93 (Формула 36) Методических указаний ФСТ России № 1746-э. Агрегированный показатель (А2023) = 0,848; процент корректировки - 3,0% ; применены ИПЦ 108,0% на 2024 г. и 105,8% на 2025 г. согласно Прогнозу Минэкономразвития России от 30.09.2024.
A51: 1 | C51: =B16="Водоотведение" -> TRUE | D51: L5 | L51: V | M51: Доходы от взимания платы за нарушение нормативов по объёму и (или) составу сточных вод, за исключением направленных целевым образом на внесение платы за негативное воздействие на окружающую среду, компенсацию вреда, причиненного водному объекту, и финансирование мероприятий инвестиционной программы по строительству, реконструкции и модернизации объектов централизованной системы водоотведения (в соответствии с п.14 Методических указаний) | O51: тыс.руб. | P51: =4513.283+0.01 -> 4513.293 | Q51: =-'Плата за негативное возд'!V16 -> -3531.932525 | R51: См. Лист "Плата за негативное возд."
A52: 1 | C52: =B16="Водоотведение" -> TRUE | D52: L6 | L52: VI | M52: Доходы от взимания платы за негативное воздействие на централизованную систему водоотведения, за исключением направленных целевым образом на финансирование мероприятий инвестиционной и (или) производственной программы регулируемой организации (в соответствии с п.14 Методических указаний) | O52: тыс.руб. | P52: -1340.197 | Q52: =-'Плата за негативное возд'!V17 -> -309.7399795 | R52: См. Лист "Плата за негативное возд."
A53: 1 | D53: L7 | L53: VII | M53: Недополученные доходы / Выпадающие расходы | O53: тыс.руб.
A54: 1 | D54: L8 | L54: VIII | M54: Избыток средств, полученный за отчётные периоды регулирования | O54: тыс.руб. | P54: 0 | Q54: 0
A55: 1 | D55: L8_1 | L55: 1 | M55: Экономически не обоснованные доходы / расходы прошлых периодов регулирования | O55: тыс.руб.
A56: 1 | D56: L8_2 | L56: 2 | M56: Бюджетные субсидии, полученные на финансирование расходов, учтенных в тарифах | O56: тыс.руб.
A57: 1 | D57: L9 | L57: IX | M57: Величина отклонения по результатам досудебного рассмотрения споров | O57: тыс.руб.
A58: 1 | D58: L10 | L58: X | M58: Величина отклонения по результатам рассмотрения разногласий | O58: тыс.руб.
A59: 1 | D59: L11 | L59: XI | M59: Корректировка НВВ всего | O59: тыс.руб. | P59: =P17+P45+P49+P50+P51+P52+P53+P54+P57+P58 -> -2088.67673 | Q59: =Q17+Q45+Q49+Q50+Q51+Q52+Q53+Q54+Q57+Q58 -> -15381.67475
L61: Комментарии и обоснования к разделу
L63: Добавить комментарий

Sheet Калькуляция
O1: =god-2 -> 2023 | P1: =god-2 -> 2023 | Q1: =god-2 -> 2023 | R1: =god-2 -> 2023 | S1: =god-1 -> 2024 | T1: =god -> 2025 | U1: =god+1 -> 2026 | V1: =god+2 -> 2027 | W1: =god+3 -> 2028 | X1: =god+4 -> 2029 | Y1: =god+5 -> 2030 | Z1: =god+6 -> 2031 | AA1: =god+7 -> 2032 | AB1: =god+8 -> 2033 | AC1: =god+9 -> 2034 | AD1: =god -> 2025 | AE1: =god+1 -> 2026 | AF1: =god+2 -> 2027 | AG1: =god+3 -> 2028 | AH1: =god+4 -> 2029 | AI1: =god+5 -> 2030 | AJ1: =god+6 -> 2031 | AK1: =god+7 -> 2032 | AL1: =god+8 -> 2033 | AM1: =god+9 -> 2034 | AN1: =god -> 2025 | AO1: =god+1 -> 2026 | AP1: =god+2 -> 2027 | AQ1: =god+3 -> 2028 | AR1: =god+4 -> 2029 | AS1: =god+5 -> 2030 | AT1: =god+6 -> 2031 | AU1: =god+7 -> 2032 | AV1: =god+8 -> 2033 | AW1: =god+9 -> 2034
O2: =O15 -> Принято органом регулирования | P2: =P15 -> Факт по данным организации | Q2: =Q15 -> Факт, принятый органом регулирования | R2: =R15 -> отклонение факта по данным организации к факту принятому органом регулирования | S2: =S15 -> Принято органом регулирования | T2: =$T$15 -> Предложение организации | U2: =$T$15 -> Предложение организации | V2: Предложение организации | W2: Предложение организации | X2: Предложение организации | Y2: Предложение организации | Z2: Предложение организации | AA2: Предложение организации | AB2: Предложение организации | AC2: Предложение организации | AD2: =$AD$15 -> Принято органом регулирования | AE2: =$AD$15 -> Принято органом регулирования | AF2: Принято органом регулирования | AG2: Принято органом регулирования | AH2: Принято органом регулирования | AI2: Принято органом регулирования | AJ2: Принято органом регулирования | AK2: Принято органом регулирования | AL2: Принято органом регулирования | AM2: Принято органом регулирования
O3: =O1&O2 -> 2023Принято органом регулирования | P3: 2023Факт по данным организации | Q3: 2023Факт, принятый органом регулирования | R3: 2023отклонение факта по данным организации к факту принятому органом регулирования | S3: 2024Принято органом регулирования | T3: 2025Предложение организации | U3: =U1&U2 -> 2026Предложение организации | V3: 2027Предложение организации | W3: 2028Предложение организации | X3: 2029Предложение организации | Y3: 2030Предложение организации | Z3: 2031Предложение организации | AA3: 2032Предложение организации | AB3: 2033Предложение организации | AC3: 2034Предложение организации | AD3: 2025Принято органом регулирования | AE3: 2026Принято органом регулирования | AF3: 2027Принято органом регулирования | AG3: 2028Принято органом регулирования | AH3: 2029Принято органом регулирования | AI3: 2030Принято органом регулирования | AJ3: 2031Принято органом регулирования | AK3: 2032Принято органом регулирования | AL3: 2033Принято органом регулирования | AM3: 2034Принято органом регулирования
T7: =T1<=last_year_vis -> TRUE | U7: FALSE | V7: FALSE | W7: FALSE | X7: FALSE | Y7: FALSE | Z7: FALSE | AA7: FALSE | AB7: FALSE | AC7: FALSE | AD7: TRUE | AE7: FALSE | AF7: FALSE | AG7: FALSE | AH7: FALSE | AI7: FALSE | AJ7: FALSE | AK7: FALSE | AL7: FALSE | AM7: FALSE | AN7: TRUE | AO7: FALSE | AP7: FALSE | AQ7: FALSE | AR7: FALSE | AS7: FALSE | AT7: FALSE | AU7: FALSE | AV7: FALSE | AW7: FALSE
M11: =tpl_title -> Кемеровская область / 2025 / ООО"БелГОС" (ИНН:4202023230, КПП:420201001) / ДПР: 2019-2028
L12: 18. Расчет тарифа методом индексации
L14: № п/п | M14: Наименование показателя | N14: Единица измерения | O14: =god-2 & " год" -> 2023 год | P14: =god-2 & " год" -> 2023 год | Q14: =god-2 & " год" -> 2023 год | R14: =god-2 & " год" -> 2023 год | S14: =god-1 & " год" -> 2024 год | T14: =god & " год" -> 2025 год | U14: =god+1 & " год" -> 2026 год | V14: =god+2 & " год" -> 2027 год | W14: =god+3 & " год" -> 2028 год | X14: =god+4 & " год" -> 2029 год | Y14: =god+5 & " год" -> 2030 год | Z14: =god+6 & " год" -> 2031 год | AA14: =god+7 & " год" -> 2032 год | AB14: =god+8 & " год" -> 2033 год | AC14: =god+9 & " год" -> 2034 год | AD14: =god & " год" -> 2025 год | AE14: =god+1 & " год" -> 2026 год | AF14: =god+2 & " год" -> 2027 год | AG14: =god+3 & " год" -> 2028 год | AH14: =god+4 & " год" -> 2029 год | AI14: =god+5 & " год" -> 2030 год | AJ14: =god+6 & " год" -> 2031 год | AK14: =god+7 & " год" -> 2032 год | AL14: =god+8 & " год" -> 2033 год | AM14: =god+9 & " год" -> 2034 год | AN14: =god & " год" -> 2025 год | AO14: =god+1 & " год" -> 2026 год | AP14: =god+2 & " год" -> 2027 год | AQ14: =god+3 & " год" -> 2028 год | AR14: =god+4 & " год" -> 2029 год | AS14: =god+5 & " год" -> 2030 год | AT14: =god+6 & " год" -> 2031 год | AU14: =god+7 & " год" -> 2032 год | AV14: =god+8 & " год" -> 2033 год | AW14: =god+9 & " год" -> 2034 год | AX14: Указание на подтверждающие документы / URL-ссылка на копии подтверждающих документов | AY14: Ссылка на правовую норму (основание для принятия показателя в расчет тарифа) | AZ14: Обоснование причин, на основании которых принято решение об исключении из расчета тарифов экономически не обоснованных расходов, учтенных регулируемой организацией в предложении об установлении тарифов
O15: Принято органом регулирования | P15: Факт по данным организации | Q15: Факт, принятый органом регулирования | R15: отклонение факта по данным организации к факту принятому органом регулирования | S15: Принято органом регулирования | T15: Предложение организации | U15: Предложение организации | V15: Предложение организации | W15: Предложение организации | X15: Предложение организации | Y15: Предложение организации | Z15: Предложение организации | AA15: Предложение организации | AB15: Предложение организации | AC15: Предложение организации | AD15: Принято органом регулирования | AE15: Принято органом регулирования | AF15: Принято органом регулирования | AG15: Принято органом регулирования | AH15: Принято органом регулирования | AI15: Принято органом регулирования | AJ15: Принято органом регулирования | AK15: Принято органом регулирования | AL15: Принято органом регулирования | AM15: Принято органом регулирования | AN15: Сравнительный анализ динамики НВВ, в том числе расходов по отдельным статьям (группам расходов), прибыли и их величины по отношению к предыдущим периодам регулирования, %
A16: ='Общие сведения'!$D$122 -> 1 | B16: =INDEX('Общие сведения'!$N$121:$N$135,MATCH($A16,'Общие сведения'!$D$121:$D$135,0)) -> одноставочный | D16: =INDEX('Общие сведения'!$H$121:$H$135,MATCH($A16,'Общие сведения'!$D$121:$D$135,0)) -> Водоотведение | L16: =INDEX('Общие сведения'!$J$121:$J$135,MATCH($A16,'Общие сведения'!$D$121:$D$135,0)) -> Тариф 1 (Водоотведение) - тариф на водоотведение
A17: =A16 -> 1 | D17: L1 | L17: 1 | M17: Операционные расходы | N17: тыс.руб. | O17: 116336.8268 | P17: =SUM(P19,P36,P42,P62,P63,P64) -> 107283.135 | Q17: =SUM(Q19,Q36,Q42,Q62,Q63,Q64) -> 116125.0381 | R17: =Q17-P17 -> 8841.903143 | S17: 123124.7989 | T17: 127013.08 | U17: =T17*U18 -> 127013.08 | V17: 127013.08 | W17: 127013.08 | X17: 127013.08 | Y17: 127013.08 | Z17: 127013.08 | AA17: 127013.08 | AB17: 127013.08 | AC17: 127013.08 | AD17: =90920.52*AD18-0.01 -> 130048.5902 | AE17: 130048.5902 | AF17: 130048.5902 | AG17: 130048.5902 | AH17: 130048.5902 | AI17: 130048.5902 | AJ17: 130048.5902 | AK17: 130048.5902 | AL17: 130048.5902 | AM17: 130048.5902 | AN17: =IF(S17=0,0,(AD17-S17)/S17*100) -> 5.623393016 | AO17: =IF(AD17=0,0,(AE17-AD17)/AD17*100) -> 0 | AP17: 0 | AQ17: 0 | AR17: 0 | AS17: 0 | AT17: 0 | AU17: 0 | AV17: 0 | AW17: 0 | AY17: 1) Подпункт "в" пункта 16 , Формула (39) Методических указаний ФСТ № 1746-э. 2) Постановление региональной энергетической комиссии Кемеровской области от 19.12.2018 № 759 "Об установлении долгосрочных параметров регулирования тарифов в сфере водоотведения ООО «Беловские Городские Очистные сооружения» (Беловский городской округ)" (в редакции Постановлений Региональной энергетической комиссии от 24.11.2020 N 427, от 11.02.2021 N 60). | AZ17: Плановые Операционные расходы на 2025 год рассчитаны, исходя из базового уровня операционных расходов 2019 г. (90920,52 тыс. руб.) с применением коэффициента индексации 1,4303548, рассчитанного в соответствии с Методическими указаниями (с учетом индексов эффективности операционных расходов на 2020, на 2021, на 2022, 2023, 2024 и 2025 гг. в размере 1% и с учетом ИПЦ на 2020 г. 103,4%; на 2021 г. 106,7%, на 2022 г. 113,8%, на 2023 г. 105,9%, на 2024 г. 108,0%, на 2025 г. 105,8% согласно "Прогнозу соц.-экономического развития РФ на 2025 год и на плановый период 2026 и 2027 годов" от 30.09.2024).
A18: =A17 -> 1 | D18: L1_1 | L18: 1.1 | M18: коэффициент индекса операционных расходов | O18: =O17/90920.52 -> 1.27954423 | P18: =P17/90920.52 -> 1.17996614 | Q18: 1.277214848 | R18: 0.09724870846 | S18: =S17/90920.52 -> 1.354202537 | T18: =T17/90920.52 -> 1.396968253 | U18: =SUMIFS(INDEX(Сценарии!$O$15:$AP$35,,MATCH(U$3,Сценарии!$O$3:$AP$3,0)),Сценарии!$A$15:$A$35,$A18,Сценарии!$B$15:$B$35,"ИОР") -> 1 | V18: =SUMIFS(INDEX(Сценарии!$O$15:$AP$35,,MATCH(V$3,Сценарии!$O$3:$AP$3,0)),Сценарии!$A$15:$A$35,$A18,Сценарии!$B$15:$B$35,"ИОР") -> 1 | W18: =SUMIFS(INDEX(Сценарии!$O$15:$AP$35,,MATCH(W$3,Сценарии!$O$3:$AP$3,0)),Сценарии!$A$15:$A$35,$A18,Сценарии!$B$15:$B$35,"ИОР") -> 1 | X18: =SUMIFS(INDEX(Сценарии!$O$15:$AP$35,,MATCH(X$3,Сценарии!$O$3:$AP$3,0)),Сценарии!$A$15:$A$35,$A18,Сценарии!$B$15:$B$35,"ИОР") -> 1 | Y18: =SUMIFS(INDEX(Сценарии!$O$15:$AP$35,,MATCH(Y$3,Сценарии!$O$3:$AP$3,0)),Сценарии!$A$15:$A$35,$A18,Сценарии!$B$15:$B$35,"ИОР") -> 1 | Z18: =SUMIFS(INDEX(Сценарии!$O$15:$AP$35,,MATCH(Z$3,Сценарии!$O$3:$AP$3,0)),Сценарии!$A$15:$A$35,$A18,Сценарии!$B$15:$B$35,"ИОР") -> 1 | AA18: =SUMIFS(INDEX(Сценарии!$O$15:$AP$35,,MATCH(AA$3,Сценарии!$O$3:$AP$3,0)),Сценарии!$A$15:$A$35,$A18,Сценарии!$B$15:$B$35,"ИОР") -> 1 | AB18: =SUMIFS(INDEX(Сценарии!$O$15:$AP$35,,MATCH(AB$3,Сценарии!$O$3:$AP$3,0)),Сценарии!$A$15:$A$35,$A18,Сценарии!$B$15:$B$35,"ИОР") -> 1 | AC18: =SUMIFS(INDEX(Сценарии!$O$15:$AP$35,,MATCH(AC$3,Сценарии!$O$3:$AP$3,0)),Сценарии!$A$15:$A$35,$A18,Сценарии!$B$15:$B$35,"ИОР") -> 1 | AD18: =1.034*0.99*1.067*0.99*1.138*0.99*1.059*0.99*1.08*0.99*1.058*0.99 -> 1.430354778 | AE18: =SUMIFS(INDEX(Сценарии!$O$15:$AP$35,,MATCH(AE$3,Сценарии!$O$3:$AP$3,0)),Сценарии!$A$15:$A$35,$A18,Сценарии!$B$15:$B$35,"ИОР") -> 1 | AF18: =SUMIFS(INDEX(Сценарии!$O$15:$AP$35,,MATCH(AF$3,Сценарии!$O$3:$AP$3,0)),Сценарии!$A$15:$A$35,$A18,Сценарии!$B$15:$B$35,"ИОР") -> 1 | AG18: =SUMIFS(INDEX(Сценарии!$O$15:$AP$35,,MATCH(AG$3,Сценарии!$O$3:$AP$3,0)),Сценарии!$A$15:$A$35,$A18,Сценарии!$B$15:$B$35,"ИОР") -> 1 | AH18: =SUMIFS(INDEX(Сценарии!$O$15:$AP$35,,MATCH(AH$3,Сценарии!$O$3:$AP$3,0)),Сценарии!$A$15:$A$35,$A18,Сценарии!$B$15:$B$35,"ИОР") -> 1 | AI18: =SUMIFS(INDEX(Сценарии!$O$15:$AP$35,,MATCH(AI$3,Сценарии!$O$3:$AP$3,0)),Сценарии!$A$15:$A$35,$A18,Сценарии!$B$15:$B$35,"ИОР") -> 1 | AJ18: =SUMIFS(INDEX(Сценарии!$O$15:$AP$35,,MATCH(AJ$3,Сценарии!$O$3:$AP$3,0)),Сценарии!$A$15:$A$35,$A18,Сценарии!$B$15:$B$35,"ИОР") -> 1 | AK18: =SUMIFS(INDEX(Сценарии!$O$15:$AP$35,,MATCH(AK$3,Сценарии!$O$3:$AP$3,0)),Сценарии!$A$15:$A$35,$A18,Сценарии!$B$15:$B$35,"ИОР") -> 1 | AL18: =SUMIFS(INDEX(Сценарии!$O$15:$AP$35,,MATCH(AL$3,Сценарии!$O$3:$AP$3,0)),Сценарии!$A$15:$A$35,$A18,Сценарии!$B$15:$B$35,"ИОР") -> 1 | AM18: =SUMIFS(INDEX(Сценарии!$O$15:$AP$35,,MATCH(AM$3,Сценарии!$O$3:$AP$3,0)),Сценарии!$A$15:$A$35,$A18,Сценарии!$B$15:$B$35,"ИОР") -> 1 | AY18: "Прогноз социально-экономического развития Российской Федерации на 2025 год и на плановый период 2026 и 2027 годов" (базовый вариант), опубликован на официальном сайте Минэкономразвития России 30.09.2024.
A19: 1 | D19: L1_2 | L19: 1.2 | M19: Производственные расходы: | N19: тыс.руб. | P19: =SUM(P20,P23,P24,P27,P28) -> 79570.55 | Q19: =SUM(Q20,Q23,Q24,Q27,Q28) -> 0 | R19: -79570.55
A20: 1 | D20: L1_2_1 | L20: 1.2.1 | M20: расходы на приобретение сырья и материалов и их хранение, в том числе: | N20: тыс.руб. | P20: =SUM(P21,P22) -> 1602.97 | Q20: =SUM(Q21,Q22) -> 0 | R20: -1602.97
A21: 1 | D21: L1_2_1_1 | L21: 1.2.1.1 | M21: горюче-смазочные материалы | N21: тыс.руб. | P21: 1602.97 | R21: -1602.97
A22: 1 | D22: L1_2_1_2 | L22: 1.2.1.2 | M22: материалы и малоценные основные средства | N22: тыс.руб. | R22: 0
A23: 1 | D23: L1_2_2 | L23: 1.2.2 | M23: расходы на оплату регулируемыми организациями выполняемых сторонними организациями работ и (или) услуг | N23: тыс.руб. | R23: 0
A24: 1 | D24: L1_2_3 | L24: 1.2.3 | M24: расходы на оплату труда и страховые взносы на обязательное социальное страхование основного производственного персонала, в том числе: | N24: тыс.руб. | P24: =P25+P26 -> 70418.99 | Q24: =Q25+Q26 -> 0 | R24: -70418.99
A25: 1 | B25: ПП | D25: L1_2_3_1 | L25: 1.2.3.1 | M25: расходы на оплату труда основного производственного персонала | N25: тыс.руб. | P25: 57108.46 | R25: -57108.46
A26: 1 | B26: СОЦ_ПП | D26: L1_2_3_2 | L26: 1.2.3.2 | M26: страховые взносы на обязательное социальное страхование основного производственного персонала | N26: тыс.руб. | P26: 13310.53 | R26: -13310.53
A27: 1 | D27: L1_2_4 | L27: 1.2.4 | M27: общехозяйственные расходы | N27: тыс.руб. | R27: 0
A28: 1 | D28: L1_2_5 | L28: 1.2.5 | M28: прочие производственные расходы | N28: тыс.руб. | P28: =SUM(P29:P35) -> 7548.59 | Q28: =SUM(Q29:Q35) -> 0 | R28: -7548.59
A29: 1 | D29: L1_2_5_1 | L29: 1.2.5.1 | M29: амортизация автотранспорта | N29: тыс.руб. | R29: 0
A30: 1 | D30: L1_2_5_2 | L30: 1.2.5.2 | M30: расходы на обезвоживание, обезвреживание и захоронение осадка сточных вод | N30: тыс.руб. | R30: 0
A31: 1 | D31: L1_2_5_3 | L31: 1.2.5.3 | M31: расходы на приобретение (использование) вспомогательных материалов, запасных частей | N31: тыс.руб. | P31: 2864.65 | R31: -2864.65
A32: 1 | D32: L1_2_5_4 | L32: 1.2.5.4 | M32: расходы на эксплуатацию, техническое обслуживание и ремонт автотранспорта | N32: тыс.руб. | R32: 0
A33: 1 | D33: L1_2_5_5 | L33: 1.2.5.5 | M33: расходы на осуществление производственного контроля качества воды и производственного контроля состава и свойств сточных вод расходы на осуществление производственного контроля качества воды и производственного контроля состава и свойств сточных вод | N33: тыс.руб. | P33: 301.28 | R33: -301.28
A34: 1 | D34: L1_2_5_6 | L34: 1.2.5.6 | M34: расходы на аварийно-диспетчерское обслуживание | N34: тыс.руб. | R34: 0
A35: 1 | D35: L1_2_5_7 | L35: 1.2.5.7 | M35: иные производственные расходы | N35: тыс.руб. | P35: 4382.66 | R35: =Q35-P35 -> -4382.66
A36: 1 | D36: L1_3 | L36: 1.3 | M36: Ремонтные расходы: | N36: тыс.руб. | P36: =P37+P38+P39 -> 11515.824 | Q36: =Q37+Q38+Q39 -> 0 | R36: -11515.824
A37: 1 | D37: L1_3_1 | L37: 1.3.1 | M37: расходы на текущий ремонт централизованных систем водоснабжения и (или) водоотведения либо объектов, входящих в состав таких систем | N37: тыс.руб. | P37: 1914.92 | R37: -1914.92
A38: 1 | D38: L1_3_2 | L38: 1.3.2 | M38: расходы на капитальный ремонт централизованных систем водоснабжения и (или) водоотведения либо объектов, входящих в состав таких систем | N38: тыс.руб. | P38: 1023.014 | R38: -1023.014
A39: 1 | D39: L1_3_3 | L39: 1.3.3 | M39: расходы на оплату труда и страховые взносы на обязательное социальное страхование ремонтного персонала, в том числе: | N39: тыс.руб. | P39: =P40+P41 -> 8577.89 | R39: -8577.89
A40: 1 | B40: РП | D40: L1_3_3_1 | L40: 1.3.3.1 | M40: расходы на оплату труда ремонтного персонала | N40: тыс.руб. | P40: 7064.77 | R40: -7064.77
A41: 1 | B41: СОЦ_РП | D41: L1_3_3_2 | L41: 1.3.3.2 | M41: страховые взносы на обязательное социальное страхование ремонтного персонала | N41: тыс.руб. | P41: 1513.12 | R41: -1513.12
A42: 1 | D42: L1_4 | L42: 1.4 | M42: Административные расходы | N42: тыс.руб. | P42: =P43+P51+P54+P55+P56+P57+P58 -> 16196.761 | Q42: =Q43+Q51+Q54+Q55+Q56+Q57+Q58 -> 0 | R42: -16196.761
A43: 1 | B43: p3 | D43: L1_4_1 | L43: 1.4.1 | M43: расходы на оплату работ и услуг, выполняемых сторонними организациями, в том числе: | N43: тыс.руб. | P43: =SUM(P44:P50) -> 505.851 | Q43: =SUM(Q44:Q50) -> 0 | R43: -505.851
A44: 1 | B44: p3_1 | D44: L1_4_1_1 | L44: 1.4.1.1 | M44: услуги связи и интернет | N44: тыс.руб. | P44: 80.303 | R44: -80.303
A45: 1 | B45: p3_2 | D45: L1_4_1_2 | L45: 1.4.1.2 | M45: юридические услуги | N45: тыс.руб. | R45: 0
A46: 1 | B46: p3_3 | D46: L1_4_1_3 | L46: 1.4.1.3 | M46: аудиторские услуги | N46: тыс.руб. | R46: 0
A47: 1 | B47: p3_4 | D47: L1_4_1_4 | L47: 1.4.1.4 | M47: консультационные услуги | N47: тыс.руб. | R47: 0
A48: 1 | B48: p3_5 | D48: L1_4_1_5 | L48: 1.4.1.5 | M48: услуги по вневедомственной охране объектов и территорий | N48: тыс.руб. | R48: 0
A49: 1 | B49: p3_6 | D49: L1_4_1_6 | L49: 1.4.1.6 | M49: информационные услуги | N49: тыс.руб. | P49: 152.108 | R49: -152.108
A50: 1 | B50: p3_7 | D50: L1_4_1_7 | L50: 1.4.1.7 | M50: иные работы и (или) услуги | N50: тыс.руб. | P50: 273.44 | R50: =Q50-P50 -> -273.44
A51: 1 | D51: L1_4_2 | L51: 1.4.2 | M51: расходы на оплату труда и страховые взносы на обязательное социальное страхование административно-управленческого персонала, в том числе: | N51: тыс.руб. | P51: =P52+P53 -> 15352.586 | Q51: =Q52+Q53 -> 0 | R51: -15352.586
A52: 1 | B52: АУП | D52: L1_4_2_1 | L52: 1.4.2.1 | M52: расходы на оплату труда административно-управленческого персонала | N52: тыс.руб. | P52: 12893.75 | R52: -12893.75
A53: 1 | B53: СОЦ_АУП | D53: L1_4_2_2 | L53: 1.4.2.2 | M53: страховые взносы на обязательное социальное страхование административно-управленческого персонала | N53: тыс.руб. | P53: 2458.836 | R53: -2458.836
A54: 1 | B54: p4 | D54: L1_4_3 | L54: 1.4.3 | M54: арендная плата, лизинговые платежи, не связанные с арендой (лизингом) централизованных систем водоснабжения и (или) водоотведения либо объектов, входящих в состав таких систем | N54: тыс.руб. | R54: 0
A55: 1 | B55: p5 | D55: L1_4_4 | L55: 1.4.4 | M55: служебные командировки | N55: тыс.руб. | R55: 0
A56: 1 | B56: p6 | D56: L1_4_5 | L56: 1.4.5 | M56: обучение персонала | N56: тыс.руб. | P56: 19.3 | R56: -19.3
A57: 1 | B57: p7 | D57: L1_4_6 | L57: 1.4.6 | M57: страхование производственных объектов | N57: тыс.руб. | P57: 11.523 | R57: -11.523
A58: 1 | B58: p8 | D58: L1_4_7 | L58: 1.4.7 | M58: прочие административные расходы | N58: тыс.руб. | P58: =SUM(P59:P61) -> 307.501 | Q58: =SUM(Q59:Q61) -> 0 | R58: -307.501
A59: 1 | B59: p8_1 | D59: L1_4_7_1 | L59: 1.4.7.1 | M59: расходы на амортизацию непроизводственных активов | N59: тыс.руб. | R59: 0
A60: 1 | B60: p8_2 | D60: L1_4_7_2 | L60: 1.4.7.2 | M60: расходы по охране объектов и территорий | N60: тыс.руб. | R60: 0
A61: 1 | B61: p8_3 | D61: L1_4_7_3 | L61: 1.4.7.3 | M61: иные расходы | N61: тыс.руб. | P61: 307.501 | R61: =Q61-P61 -> -307.501
A62: 1 | D62: L1_5 | L62: 1.5 | M62: Сбытовые расходы гарантирующих организаций (за исключением указанных в п.2.5) | N62: тыс.руб. | R62: 0
A63: 1 | D63: L1_6 | L63: 1.6 | M63: Реагенты до 2020 года | N63: тыс.руб. | R63: =Q63-P63 -> 0
A64: 1 | D64: L1_7 | L64: 1.7 | M64: Операционные расходы по концессионным соглашениям | N64: тыс.руб. | P64: =SUM(P65:P67) -> 0 | Q64: =SUM(Q65:Q67) -> 116125.0381 | R64: =Q64-P64 -> 116125.0381
A65: 1 | L65: 1.7.0
A66: =OFFSET(A66,-1,0) -> 1 | D66: L1_7 | E66: =M66 -> Операционные расходы, рассчитанные исходя из Базового уровня Операционных расходов 2019 года в соответствии с Методическими указаниями | K66: О | L66: 1.7.1 | M66: Операционные расходы, рассчитанные исходя из Базового уровня Операционных расходов 2019 года в соответствии с Методическими указаниями | N66: тыс.руб. | Q66: =90920.52*1.034*0.99*1.067*0.99*1.138*0.99*1.059*0.99 -> 116125.0381 | R66: =Q66-P66 -> 116125.0381 | AY66: 1) Пункт 95 Методических указаний ФСТ № 1746-э (Формула 40). 2) Постановление региональной энергетической комиссии Кемеровской области от 19.12.2018 № 759 (в редакции Постановлений Региональной энергетической комиссии от 24.11.2020 N 427, от 11.02.2021 N 60). 3) "Прогноз социально-экономического развития РФ на 2023 г. и на плановый период 2024 и 2025 гг." Минэкономразвития России от 28.09.2022. 4) "Прогноз социально-экономического развития РФ на 2024г. и на плановый период 2025 и 2026 гг." Минэкономразвития России от 22.09.2023. 4) "Прогноз социально-экономического развития РФ на 2025г. и на плановый период 2026 и 2027 гг." Минэкономразвития России от 30.09.2024. | AZ66: Рассчитано на основании: 1) Базового уровня Операционных расходов 2019 года - 90920,52 тыс. руб.; 2) индексов эффективности операционных расходов на 2020, 2021, 2022 и 2023 годы, равных 1; 3) индексов изменения количества активов на 2020, 2021, 2022 и 2023 годы, равных 0; 4) индексов потребительских цен (ИПЦ) - 103,4% на 2020 г. согласно базовому варианту Прогноза Минэкономразвития России от 28.09.2022; 106,7% на 2021 г. и 113,8% на 2022 г. согласно Прогноза Минэкономразвития России от 22.09.2023; 105,9% на 2023 год согласно Прогноза Минэкономразвития России от 30.09.2024.
A67: =A65 -> 1 | D67: =A67&"pIns1" -> 1pIns1 | M67: Добавить
A68: 1 | D68: L2 | L68: 2 | M68: Неподконтрольные расходы | N68: тыс.руб. | O68: =O69+O80+O81++O91+O92+O93+O95+O96+O97+O98+O101 -> 3566.735216 | P68: =P69+P80+P81++P91+P92+P93+P95+P96+P97+P98+P101 -> 6075.10843 | Q68: =Q69+Q80+Q81++Q91+Q92+Q93+Q95+Q96+Q97+Q98+Q101 -> 4343.03943 | R68: =Q68-P68 -> -1732.069 | S68: =S69+S80+S81++S91+S92+S93+S95+S96+S97+S98+S101 -> 4144.129888 | T68: =T69+T80+T81++T91+T92+T93+T95+T96+T97+T98+T101 -> 7317.46 | U68: 0 | V68: 0 | W68: 0 | X68: 0 | Y68: 0 | Z68: 0 | AA68: 0 | AB68: 0 | AC68: 0 | AD68: 3900.00739 | AE68: 0 | AF68: 0 | AG68: 0 | AH68: 0 | AI68: 0 | AJ68: 0 | AK68: 0 | AL68: 0 | AM68: 0 | AN68: =IF(S68=0,0,(AD68-S68)/S68*100) -> -5.89080228 | AO68: =IF(AD68=0,0,(AE68-AD68)/AD68*100) -> -100 | AP68: 0 | AQ68: 0 | AR68: 0 | AS68: 0 | AT68: 0 | AU68: 0 | AV68: 0 | AW68: 0 | AY68: П. 49 и п. 88 Методических укаазний ФСТ № 1746-э.
A69: 1 | D69: L2_1 | L69: 2.1 | M69: Расходы на оплату товаров (услуг, работ), приобретаемых у других организаций | N69: тыс.руб. | O69: =SUM(O70:O79) -> 742.92 | P69: =SUM(P70:P79) -> 1037.19543 | Q69: =SUM(Q70:Q79) -> 734.16543 | R69: -303.03 | S69: =SUM(S70:S79) -> 835.3503278 | T69: =SUM(T70:T79) -> 1351.55 | U69: 0 | V69: 0 | W69: 0 | X69: 0 | Y69: 0 | Z69: 0 | AA69: 0 | AB69: 0 | AC69: 0 | AD69: 797.87305 | AE69: 0 | AF69: 0 | AG69: 0 | AH69: 0 | AI69: 0 | AJ69: 0 | AK69: 0 | AL69: 0 | AM69: 0 | AN69: =IF(S69=0,0,(AD69-S69)/S69*100) -> -4.486414449 | AO69: -100 | AP69: 0 | AQ69: 0 | AR69: 0 | AS69: 0 | AT69: 0 | AU69: 0 | AV69: 0 | AW69: 0
A70: 1 | B70: Затраты на тепловую энергию | D70: L2_1_1 | L70: 2.1.1 | M70: расходы на тепловую энергию | N70: тыс.руб. | O70: =SUMIFS(Покупка!O$15:O$38,Покупка!$A$15:$A$38,$A70,Покупка!$M$15:$M$38,$B70) -> 735.2456 | P70: =SUMIFS(Покупка!P$15:P$38,Покупка!$A$15:$A$38,$A70,Покупка!$M$15:$M$38,$B70) -> 724.855 | Q70: =SUMIFS(Покупка!Q$15:Q$38,Покупка!$A$15:$A$38,$A70,Покупка!$M$15:$M$38,$B70) -> 724.855 | R70: 0 | S70: =SUMIFS(Покупка!R$15:R$38,Покупка!$A$15:$A$38,$A70,Покупка!$M$15:$M$38,$B70) -> 832.9516031 | T70: =SUMIFS(Покупка!S$15:S$38,Покупка!$A$15:$A$38,$A70,Покупка!$M$15:$M$38,$B70) -> 955.2 | U70: =SUMIFS(Покупка!T$15:T$38,Покупка!$A$15:$A$38,$A70,Покупка!$M$15:$M$38,$B70) -> 0 | V70: =SUMIFS(Покупка!U$15:U$38,Покупка!$A$15:$A$38,$A70,Покупка!$M$15:$M$38,$B70) -> 0 | W70: =SUMIFS(Покупка!V$15:V$38,Покупка!$A$15:$A$38,$A70,Покупка!$M$15:$M$38,$B70) -> 0 | X70: =SUMIFS(Покупка!W$15:W$38,Покупка!$A$15:$A$38,$A70,Покупка!$M$15:$M$38,$B70) -> 0 | Y70: =SUMIFS(Покупка!X$15:X$38,Покупка!$A$15:$A$38,$A70,Покупка!$M$15:$M$38,$B70) -> 0 | Z70: =SUMIFS(Покупка!Y$15:Y$38,Покупка!$A$15:$A$38,$A70,Покупка!$M$15:$M$38,$B70) -> 0 | AA70: =SUMIFS(Покупка!Z$15:Z$38,Покупка!$A$15:$A$38,$A70,Покупка!$M$15:$M$38,$B70) -> 0 | AB70: =SUMIFS(Покупка!AA$15:AA$38,Покупка!$A$15:$A$38,$A70,Покупка!$M$15:$M$38,$B70) -> 0 | AC70: =SUMIFS(Покупка!AB$15:AB$38,Покупка!$A$15:$A$38,$A70,Покупка!$M$15:$M$38,$B70) -> 0 | AD70: =SUMIFS(Покупка!AC$15:AC$38,Покупка!$A$15:$A$38,$A70,Покупка!$M$15:$M$38,$B70) -> 788.72233 | AE70: =SUMIFS(Покупка!AD$15:AD$38,Покупка!$A$15:$A$38,$A70,Покупка!$M$15:$M$38,$B70) -> 0 | AF70: =SUMIFS(Покупка!AE$15:AE$38,Покупка!$A$15:$A$38,$A70,Покупка!$M$15:$M$38,$B70) -> 0 | AG70: =SUMIFS(Покупка!AF$15:AF$38,Покупка!$A$15:$A$38,$A70,Покупка!$M$15:$M$38,$B70) -> 0 | AH70: =SUMIFS(Покупка!AG$15:AG$38,Покупка!$A$15:$A$38,$A70,Покупка!$M$15:$M$38,$B70) -> 0 | AI70: =SUMIFS(Покупка!AH$15:AH$38,Покупка!$A$15:$A$38,$A70,Покупка!$M$15:$M$38,$B70) -> 0 | AJ70: =SUMIFS(Покупка!AI$15:AI$38,Покупка!$A$15:$A$38,$A70,Покупка!$M$15:$M$38,$B70) -> 0 | AK70: =SUMIFS(Покупка!AJ$15:AJ$38,Покупка!$A$15:$A$38,$A70,Покупка!$M$15:$M$38,$B70) -> 0 | AL70: =SUMIFS(Покупка!AK$15:AK$38,Покупка!$A$15:$A$38,$A70,Покупка!$M$15:$M$38,$B70) -> 0 | AM70: =SUMIFS(Покупка!AL$15:AL$38,Покупка!$A$15:$A$38,$A70,Покупка!$M$15:$M$38,$B70) -> 0 | AN70: =IF(S70=0,0,(AD70-S70)/S70*100) -> -5.309945128 | AO70: -100 | AP70: 0 | AQ70: 0 | AR70: 0 | AS70: 0 | AT70: 0 | AU70: 0 | AV70: 0 | AW70: 0 | AY70: П. 49(1), п. 20 Методических указаний ФСТ № 1746-э. | AZ70: Учтена стоимость услуг ООО "Теплоэнергетик" (Единая теплоснабжающая организация, Беловский городской округ) по Договору теплоснабжения и поставки горячей воды № 58 (см. Лист "Покупка").
A71: 1 | B71: Затраты на теплоноситель | D71: L2_1_2 | L71: 2.1.2 | M71: расходы на теплоноситель | N71: тыс.руб. | O71: =SUMIFS(Покупка!O$15:O$38,Покупка!$A$15:$A$38,$A71,Покупка!$M$15:$M$38,$B71) -> 0 | P71: =SUMIFS(Покупка!P$15:P$38,Покупка!$A$15:$A$38,$A71,Покупка!$M$15:$M$38,$B71) -> 0 | Q71: =SUMIFS(Покупка!Q$15:Q$38,Покупка!$A$15:$A$38,$A71,Покупка!$M$15:$M$38,$B71) -> 0 | R71: 0 | S71: =SUMIFS(Покупка!R$15:R$38,Покупка!$A$15:$A$38,$A71,Покупка!$M$15:$M$38,$B71) -> 0 | T71: =SUMIFS(Покупка!S$15:S$38,Покупка!$A$15:$A$38,$A71,Покупка!$M$15:$M$38,$B71) -> 0 | U71: =SUMIFS(Покупка!T$15:T$38,Покупка!$A$15:$A$38,$A71,Покупка!$M$15:$M$38,$B71) -> 0 | V71: =SUMIFS(Покупка!U$15:U$38,Покупка!$A$15:$A$38,$A71,Покупка!$M$15:$M$38,$B71) -> 0 | W71: =SUMIFS(Покупка!V$15:V$38,Покупка!$A$15:$A$38,$A71,Покупка!$M$15:$M$38,$B71) -> 0 | X71: =SUMIFS(Покупка!W$15:W$38,Покупка!$A$15:$A$38,$A71,Покупка!$M$15:$M$38,$B71) -> 0 | Y71: =SUMIFS(Покупка!X$15:X$38,Покупка!$A$15:$A$38,$A71,Покупка!$M$15:$M$38,$B71) -> 0 | Z71: =SUMIFS(Покупка!Y$15:Y$38,Покупка!$A$15:$A$38,$A71,Покупка!$M$15:$M$38,$B71) -> 0 | AA71: =SUMIFS(Покупка!Z$15:Z$38,Покупка!$A$15:$A$38,$A71,Покупка!$M$15:$M$38,$B71) -> 0 | AB71: =SUMIFS(Покупка!AA$15:AA$38,Покупка!$A$15:$A$38,$A71,Покупка!$M$15:$M$38,$B71) -> 0 | AC71: =SUMIFS(Покупка!AB$15:AB$38,Покупка!$A$15:$A$38,$A71,Покупка!$M$15:$M$38,$B71) -> 0 | AD71: =SUMIFS(Покупка!AC$15:AC$38,Покупка!$A$15:$A$38,$A71,Покупка!$M$15:$M$38,$B71) -> 0 | AE71: =SUMIFS(Покупка!AD$15:AD$38,Покупка!$A$15:$A$38,$A71,Покупка!$M$15:$M$38,$B71) -> 0 | AF71: =SUMIFS(Покупка!AE$15:AE$38,Покупка!$A$15:$A$38,$A71,Покупка!$M$15:$M$38,$B71) -> 0 | AG71: =SUMIFS(Покупка!AF$15:AF$38,Покупка!$A$15:$A$38,$A71,Покупка!$M$15:$M$38,$B71) -> 0 | AH71: =SUMIFS(Покупка!AG$15:AG$38,Покупка!$A$15:$A$38,$A71,Покупка!$M$15:$M$38,$B71) -> 0 | AI71: =SUMIFS(Покупка!AH$15:AH$38,Покупка!$A$15:$A$38,$A71,Покупка!$M$15:$M$38,$B71) -> 0 | AJ71: =SUMIFS(Покупка!AI$15:AI$38,Покупка!$A$15:$A$38,$A71,Покупка!$M$15:$M$38,$B71) -> 0 | AK71: =SUMIFS(Покупка!AJ$15:AJ$38,Покупка!$A$15:$A$38,$A71,Покупка!$M$15:$M$38,$B71) -> 0 | AL71: =SUMIFS(Покупка!AK$15:AK$38,Покупка!$A$15:$A$38,$A71,Покупка!$M$15:$M$38,$B71) -> 0 | AM71: =SUMIFS(Покупка!AL$15:AL$38,Покупка!$A$15:$A$38,$A71,Покупка!$M$15:$M$38,$B71) -> 0 | AN71: 0 | AO71: 0 | AP71: 0 | AQ71: 0 | AR71: 0 | AS71: 0 | AT71: 0 | AU71: 0 | AV71: 0 | AW71: 0
A72: 1 | B72: Затраты на транспортировку холодной воды | D72: L2_1_3 | L72: 2.1.3 | M72: расходы на транспортировку воды | N72: тыс.руб. | O72: =SUMIFS(Покупка!O$15:O$38,Покупка!$A$15:$A$38,$A72,Покупка!$M$15:$M$38,$B72) -> 0 | P72: =SUMIFS(Покупка!P$15:P$38,Покупка!$A$15:$A$38,$A72,Покупка!$M$15:$M$38,$B72) -> 0 | Q72: =SUMIFS(Покупка!Q$15:Q$38,Покупка!$A$15:$A$38,$A72,Покупка!$M$15:$M$38,$B72) -> 0 | R72: 0 | S72: =SUMIFS(Покупка!R$15:R$38,Покупка!$A$15:$A$38,$A72,Покупка!$M$15:$M$38,$B72) -> 0 | T72: =SUMIFS(Покупка!S$15:S$38,Покупка!$A$15:$A$38,$A72,Покупка!$M$15:$M$38,$B72) -> 0 | U72: =SUMIFS(Покупка!T$15:T$38,Покупка!$A$15:$A$38,$A72,Покупка!$M$15:$M$38,$B72) -> 0 | V72: =SUMIFS(Покупка!U$15:U$38,Покупка!$A$15:$A$38,$A72,Покупка!$M$15:$M$38,$B72) -> 0 | W72: =SUMIFS(Покупка!V$15:V$38,Покупка!$A$15:$A$38,$A72,Покупка!$M$15:$M$38,$B72) -> 0 | X72: =SUMIFS(Покупка!W$15:W$38,Покупка!$A$15:$A$38,$A72,Покупка!$M$15:$M$38,$B72) -> 0 | Y72: =SUMIFS(Покупка!X$15:X$38,Покупка!$A$15:$A$38,$A72,Покупка!$M$15:$M$38,$B72) -> 0 | Z72: =SUMIFS(Покупка!Y$15:Y$38,Покупка!$A$15:$A$38,$A72,Покупка!$M$15:$M$38,$B72) -> 0 | AA72: =SUMIFS(Покупка!Z$15:Z$38,Покупка!$A$15:$A$38,$A72,Покупка!$M$15:$M$38,$B72) -> 0 | AB72: =SUMIFS(Покупка!AA$15:AA$38,Покупка!$A$15:$A$38,$A72,Покупка!$M$15:$M$38,$B72) -> 0 | AC72: =SUMIFS(Покупка!AB$15:AB$38,Покупка!$A$15:$A$38,$A72,Покупка!$M$15:$M$38,$B72) -> 0 | AD72: =SUMIFS(Покупка!AC$15:AC$38,Покупка!$A$15:$A$38,$A72,Покупка!$M$15:$M$38,$B72) -> 0 | AE72: =SUMIFS(Покупка!AD$15:AD$38,Покупка!$A$15:$A$38,$A72,Покупка!$M$15:$M$38,$B72) -> 0 | AF72: =SUMIFS(Покупка!AE$15:AE$38,Покупка!$A$15:$A$38,$A72,Покупка!$M$15:$M$38,$B72) -> 0 | AG72: =SUMIFS(Покупка!AF$15:AF$38,Покупка!$A$15:$A$38,$A72,Покупка!$M$15:$M$38,$B72) -> 0 | AH72: =SUMIFS(Покупка!AG$15:AG$38,Покупка!$A$15:$A$38,$A72,Покупка!$M$15:$M$38,$B72) -> 0 | AI72: =SUMIFS(Покупка!AH$15:AH$38,Покупка!$A$15:$A$38,$A72,Покупка!$M$15:$M$38,$B72) -> 0 | AJ72: =SUMIFS(Покупка!AI$15:AI$38,Покупка!$A$15:$A$38,$A72,Покупка!$M$15:$M$38,$B72) -> 0 | AK72: =SUMIFS(Покупка!AJ$15:AJ$38,Покупка!$A$15:$A$38,$A72,Покупка!$M$15:$M$38,$B72) -> 0 | AL72: =SUMIFS(Покупка!AK$15:AK$38,Покупка!$A$15:$A$38,$A72,Покупка!$M$15:$M$38,$B72) -> 0 | AM72: =SUMIFS(Покупка!AL$15:AL$38,Покупка!$A$15:$A$38,$A72,Покупка!$M$15:$M$38,$B72) -> 0 | AN72: 0 | AO72: 0 | AP72: 0 | AQ72: 0 | AR72: 0 | AS72: 0 | AT72: 0 | AU72: 0 | AV72: 0 | AW72: 0
A73: 1 | B73: Затраты на холодную воду | D73: L2_1_4 | L73: 2.1.4 | M73: расходы на покупку воды | N73: тыс.руб. | O73: =SUMIFS(Покупка!O$15:O$38,Покупка!$A$15:$A$38,$A73,Покупка!$M$15:$M$38,$B73) -> 0 | P73: =SUMIFS(Покупка!P$15:P$38,Покупка!$A$15:$A$38,$A73,Покупка!$M$15:$M$38,$B73) -> 303.03 | Q73: =SUMIFS(Покупка!Q$15:Q$38,Покупка!$A$15:$A$38,$A73,Покупка!$M$15:$M$38,$B73) -> 0 | R73: -303.03 | S73: =SUMIFS(Покупка!R$15:R$38,Покупка!$A$15:$A$38,$A73,Покупка!$M$15:$M$38,$B73) -> 0 | T73: =SUMIFS(Покупка!S$15:S$38,Покупка!$A$15:$A$38,$A73,Покупка!$M$15:$M$38,$B73) -> 394.05 | U73: =SUMIFS(Покупка!T$15:T$38,Покупка!$A$15:$A$38,$A73,Покупка!$M$15:$M$38,$B73) -> 0 | V73: =SUMIFS(Покупка!U$15:U$38,Покупка!$A$15:$A$38,$A73,Покупка!$M$15:$M$38,$B73) -> 0 | W73: =SUMIFS(Покупка!V$15:V$38,Покупка!$A$15:$A$38,$A73,Покупка!$M$15:$M$38,$B73) -> 0 | X73: =SUMIFS(Покупка!W$15:W$38,Покупка!$A$15:$A$38,$A73,Покупка!$M$15:$M$38,$B73) -> 0 | Y73: =SUMIFS(Покупка!X$15:X$38,Покупка!$A$15:$A$38,$A73,Покупка!$M$15:$M$38,$B73) -> 0 | Z73: =SUMIFS(Покупка!Y$15:Y$38,Покупка!$A$15:$A$38,$A73,Покупка!$M$15:$M$38,$B73) -> 0 | AA73: =SUMIFS(Покупка!Z$15:Z$38,Покупка!$A$15:$A$38,$A73,Покупка!$M$15:$M$38,$B73) -> 0 | AB73: =SUMIFS(Покупка!AA$15:AA$38,Покупка!$A$15:$A$38,$A73,Покупка!$M$15:$M$38,$B73) -> 0 | AC73: =SUMIFS(Покупка!AB$15:AB$38,Покупка!$A$15:$A$38,$A73,Покупка!$M$15:$M$38,$B73) -> 0 | AD73: =SUMIFS(Покупка!AC$15:AC$38,Покупка!$A$15:$A$38,$A73,Покупка!$M$15:$M$38,$B73) -> 0 | AE73: =SUMIFS(Покупка!AD$15:AD$38,Покупка!$A$15:$A$38,$A73,Покупка!$M$15:$M$38,$B73) -> 0 | AF73: =SUMIFS(Покупка!AE$15:AE$38,Покупка!$A$15:$A$38,$A73,Покупка!$M$15:$M$38,$B73) -> 0 | AG73: =SUMIFS(Покупка!AF$15:AF$38,Покупка!$A$15:$A$38,$A73,Покупка!$M$15:$M$38,$B73) -> 0 | AH73: =SUMIFS(Покупка!AG$15:AG$38,Покупка!$A$15:$A$38,$A73,Покупка!$M$15:$M$38,$B73) -> 0 | AI73: =SUMIFS(Покупка!AH$15:AH$38,Покупка!$A$15:$A$38,$A73,Покупка!$M$15:$M$38,$B73) -> 0 | AJ73: =SUMIFS(Покупка!AI$15:AI$38,Покупка!$A$15:$A$38,$A73,Покупка!$M$15:$M$38,$B73) -> 0 | AK73: =SUMIFS(Покупка!AJ$15:AJ$38,Покупка!$A$15:$A$38,$A73,Покупка!$M$15:$M$38,$B73) -> 0 | AL73: =SUMIFS(Покупка!AK$15:AK$38,Покупка!$A$15:$A$38,$A73,Покупка!$M$15:$M$38,$B73) -> 0 | AM73: =SUMIFS(Покупка!AL$15:AL$38,Покупка!$A$15:$A$38,$A73,Покупка!$M$15:$M$38,$B73) -> 0 | AN73: 0 | AO73: 0 | AP73: 0 | AQ73: 0 | AR73: 0 | AS73: 0 | AT73: 0 | AU73: 0 | AV73: 0 | AW73: 0 | AZ73: Расходы по данной статье отклонены, так как стоимость услуг ООО "Водоснабжение" по поставке питьевой воды была учтена при расчете базового уровня Операционных расходов (на 2019 г.).
A74: 1 | B74: Затраты на горячую воду | D74: L2_1_5 | L74: 2.1.5 | M74: услуги по горячему водоснабжению | N74: тыс.руб. | O74: =SUMIFS(Покупка!O$15:O$38,Покупка!$A$15:$A$38,$A74,Покупка!$M$15:$M$38,$B74) -> 7.6744 | P74: =SUMIFS(Покупка!P$15:P$38,Покупка!$A$15:$A$38,$A74,Покупка!$M$15:$M$38,$B74) -> 9.31043 | Q74: =SUMIFS(Покупка!Q$15:Q$38,Покупка!$A$15:$A$38,$A74,Покупка!$M$15:$M$38,$B74) -> 9.31043 | R74: 0 | S74: =SUMIFS(Покупка!R$15:R$38,Покупка!$A$15:$A$38,$A74,Покупка!$M$15:$M$38,$B74) -> 2.398724736 | T74: =SUMIFS(Покупка!S$15:S$38,Покупка!$A$15:$A$38,$A74,Покупка!$M$15:$M$38,$B74) -> 2.3 | U74: =SUMIFS(Покупка!T$15:T$38,Покупка!$A$15:$A$38,$A74,Покупка!$M$15:$M$38,$B74) -> 0 | V74: =SUMIFS(Покупка!U$15:U$38,Покупка!$A$15:$A$38,$A74,Покупка!$M$15:$M$38,$B74) -> 0 | W74: =SUMIFS(Покупка!V$15:V$38,Покупка!$A$15:$A$38,$A74,Покупка!$M$15:$M$38,$B74) -> 0 | X74: =SUMIFS(Покупка!W$15:W$38,Покупка!$A$15:$A$38,$A74,Покупка!$M$15:$M$38,$B74) -> 0 | Y74: =SUMIFS(Покупка!X$15:X$38,Покупка!$A$15:$A$38,$A74,Покупка!$M$15:$M$38,$B74) -> 0 | Z74: =SUMIFS(Покупка!Y$15:Y$38,Покупка!$A$15:$A$38,$A74,Покупка!$M$15:$M$38,$B74) -> 0 | AA74: =SUMIFS(Покупка!Z$15:Z$38,Покупка!$A$15:$A$38,$A74,Покупка!$M$15:$M$38,$B74) -> 0 | AB74: =SUMIFS(Покупка!AA$15:AA$38,Покупка!$A$15:$A$38,$A74,Покупка!$M$15:$M$38,$B74) -> 0 | AC74: =SUMIFS(Покупка!AB$15:AB$38,Покупка!$A$15:$A$38,$A74,Покупка!$M$15:$M$38,$B74) -> 0 | AD74: =SUMIFS(Покупка!AC$15:AC$38,Покупка!$A$15:$A$38,$A74,Покупка!$M$15:$M$38,$B74) -> 9.15072 | AE74: =SUMIFS(Покупка!AD$15:AD$38,Покупка!$A$15:$A$38,$A74,Покупка!$M$15:$M$38,$B74) -> 0 | AF74: =SUMIFS(Покупка!AE$15:AE$38,Покупка!$A$15:$A$38,$A74,Покупка!$M$15:$M$38,$B74) -> 0 | AG74: =SUMIFS(Покупка!AF$15:AF$38,Покупка!$A$15:$A$38,$A74,Покупка!$M$15:$M$38,$B74) -> 0 | AH74: =SUMIFS(Покупка!AG$15:AG$38,Покупка!$A$15:$A$38,$A74,Покупка!$M$15:$M$38,$B74) -> 0 | AI74: =SUMIFS(Покупка!AH$15:AH$38,Покупка!$A$15:$A$38,$A74,Покупка!$M$15:$M$38,$B74) -> 0 | AJ74: =SUMIFS(Покупка!AI$15:AI$38,Покупка!$A$15:$A$38,$A74,Покупка!$M$15:$M$38,$B74) -> 0 | AK74: =SUMIFS(Покупка!AJ$15:AJ$38,Покупка!$A$15:$A$38,$A74,Покупка!$M$15:$M$38,$B74) -> 0 | AL74: =SUMIFS(Покупка!AK$15:AK$38,Покупка!$A$15:$A$38,$A74,Покупка!$M$15:$M$38,$B74) -> 0 | AM74: =SUMIFS(Покупка!AL$15:AL$38,Покупка!$A$15:$A$38,$A74,Покупка!$M$15:$M$38,$B74) -> 0 | AN74: 281.4827047 | AO74: -100 | AP74: 0 | AQ74: 0 | AR74: 0 | AS74: 0 | AT74: 0 | AU74: 0 | AV74: 0 | AW74: 0 | AY74: П. 49(1), п. 21 Методических указаний ФСТ № 1746-э. | AZ74: Учтена стоимость услуг ООО "Теплоэнергетик" (Единая теплоснабжающая организация, Беловский городской округ) по Договору теплоснабжения и поставки горячей воды № 58 (см. Лист "Покупка").
A75: 1 | D75: L2_1_6 | L75: 2.1.6 | M75: услуги по приготовлению воды на нужды горячего водоснабжения | N75: тыс.руб. | R75: 0 | AN75: 0 | AO75: 0 | AP75: 0 | AQ75: 0 | AR75: 0 | AS75: 0 | AT75: 0 | AU75: 0 | AV75: 0 | AW75: 0
A76: 1 | D76: L2_1_7 | L76: 2.1.7 | M76: услуги по транспортировке горячей воды | N76: тыс.руб. | R76: 0 | AN76: 0 | AO76: 0 | AP76: 0 | AQ76: 0 | AR76: 0 | AS76: 0 | AT76: 0 | AU76: 0 | AV76: 0 | AW76: 0
A77: 1 | B77: Затраты на водоотведение | D77: L2_1_8 | L77: 2.1.8 | M77: услуги по водоотведению | N77: тыс.руб. | O77: =SUMIFS(Покупка!O$15:O$38,Покупка!$A$15:$A$38,$A77,Покупка!$M$15:$M$38,$B77) -> 0 | P77: =SUMIFS(Покупка!P$15:P$38,Покупка!$A$15:$A$38,$A77,Покупка!$M$15:$M$38,$B77) -> 0 | Q77: =SUMIFS(Покупка!Q$15:Q$38,Покупка!$A$15:$A$38,$A77,Покупка!$M$15:$M$38,$B77) -> 0 | R77: 0 | S77: =SUMIFS(Покупка!R$15:R$38,Покупка!$A$15:$A$38,$A77,Покупка!$M$15:$M$38,$B77) -> 0 | T77: =SUMIFS(Покупка!S$15:S$38,Покупка!$A$15:$A$38,$A77,Покупка!$M$15:$M$38,$B77) -> 0 | U77: =SUMIFS(Покупка!T$15:T$38,Покупка!$A$15:$A$38,$A77,Покупка!$M$15:$M$38,$B77) -> 0 | V77: =SUMIFS(Покупка!U$15:U$38,Покупка!$A$15:$A$38,$A77,Покупка!$M$15:$M$38,$B77) -> 0 | W77: =SUMIFS(Покупка!V$15:V$38,Покупка!$A$15:$A$38,$A77,Покупка!$M$15:$M$38,$B77) -> 0 | X77: =SUMIFS(Покупка!W$15:W$38,Покупка!$A$15:$A$38,$A77,Покупка!$M$15:$M$38,$B77) -> 0 | Y77: =SUMIFS(Покупка!X$15:X$38,Покупка!$A$15:$A$38,$A77,Покупка!$M$15:$M$38,$B77) -> 0 | Z77: =SUMIFS(Покупка!Y$15:Y$38,Покупка!$A$15:$A$38,$A77,Покупка!$M$15:$M$38,$B77) -> 0 | AA77: =SUMIFS(Покупка!Z$15:Z$38,Покупка!$A$15:$A$38,$A77,Покупка!$M$15:$M$38,$B77) -> 0 | AB77: =SUMIFS(Покупка!AA$15:AA$38,Покупка!$A$15:$A$38,$A77,Покупка!$M$15:$M$38,$B77) -> 0 | AC77: =SUMIFS(Покупка!AB$15:AB$38,Покупка!$A$15:$A$38,$A77,Покупка!$M$15:$M$38,$B77) -> 0 | AD77: =SUMIFS(Покупка!AC$15:AC$38,Покупка!$A$15:$A$38,$A77,Покупка!$M$15:$M$38,$B77) -> 0 | AE77: =SUMIFS(Покупка!AD$15:AD$38,Покупка!$A$15:$A$38,$A77,Покупка!$M$15:$M$38,$B77) -> 0 | AF77: =SUMIFS(Покупка!AE$15:AE$38,Покупка!$A$15:$A$38,$A77,Покупка!$M$15:$M$38,$B77) -> 0 | AG77: =SUMIFS(Покупка!AF$15:AF$38,Покупка!$A$15:$A$38,$A77,Покупка!$M$15:$M$38,$B77) -> 0 | AH77: =SUMIFS(Покупка!AG$15:AG$38,Покупка!$A$15:$A$38,$A77,Покупка!$M$15:$M$38,$B77) -> 0 | AI77: =SUMIFS(Покупка!AH$15:AH$38,Покупка!$A$15:$A$38,$A77,Покупка!$M$15:$M$38,$B77) -> 0 | AJ77: =SUMIFS(Покупка!AI$15:AI$38,Покупка!$A$15:$A$38,$A77,Покупка!$M$15:$M$38,$B77) -> 0 | AK77: =SUMIFS(Покупка!AJ$15:AJ$38,Покупка!$A$15:$A$38,$A77,Покупка!$M$15:$M$38,$B77) -> 0 | AL77: =SUMIFS(Покупка!AK$15:AK$38,Покупка!$A$15:$A$38,$A77,Покупка!$M$15:$M$38,$B77) -> 0 | AM77: =SUMIFS(Покупка!AL$15:AL$38,Покупка!$A$15:$A$38,$A77,Покупка!$M$15:$M$38,$B77) -> 0 | AN77: 0 | AO77: 0 | AP77: 0 | AQ77: 0 | AR77: 0 | AS77: 0 | AT77: 0 | AU77: 0 | AV77: 0 | AW77: 0
A78: 1 | B78: Затраты на транспортировку сточных вод | D78: L2_1_9 | L78: 2.1.9 | M78: услуги по транспортировке сточных вод | N78: тыс.руб. | O78: =SUMIFS(Покупка!O$15:O$38,Покупка!$A$15:$A$38,$A78,Покупка!$M$15:$M$38,$B78) -> 0 | P78: =SUMIFS(Покупка!P$15:P$38,Покупка!$A$15:$A$38,$A78,Покупка!$M$15:$M$38,$B78) -> 0 | Q78: =SUMIFS(Покупка!Q$15:Q$38,Покупка!$A$15:$A$38,$A78,Покупка!$M$15:$M$38,$B78) -> 0 | R78: 0 | S78: =SUMIFS(Покупка!R$15:R$38,Покупка!$A$15:$A$38,$A78,Покупка!$M$15:$M$38,$B78) -> 0 | T78: =SUMIFS(Покупка!S$15:S$38,Покупка!$A$15:$A$38,$A78,Покупка!$M$15:$M$38,$B78) -> 0 | U78: =SUMIFS(Покупка!T$15:T$38,Покупка!$A$15:$A$38,$A78,Покупка!$M$15:$M$38,$B78) -> 0 | V78: =SUMIFS(Покупка!U$15:U$38,Покупка!$A$15:$A$38,$A78,Покупка!$M$15:$M$38,$B78) -> 0 | W78: =SUMIFS(Покупка!V$15:V$38,Покупка!$A$15:$A$38,$A78,Покупка!$M$15:$M$38,$B78) -> 0 | X78: =SUMIFS(Покупка!W$15:W$38,Покупка!$A$15:$A$38,$A78,Покупка!$M$15:$M$38,$B78) -> 0 | Y78: =SUMIFS(Покупка!X$15:X$38,Покупка!$A$15:$A$38,$A78,Покупка!$M$15:$M$38,$B78) -> 0 | Z78: =SUMIFS(Покупка!Y$15:Y$38,Покупка!$A$15:$A$38,$A78,Покупка!$M$15:$M$38,$B78) -> 0 | AA78: =SUMIFS(Покупка!Z$15:Z$38,Покупка!$A$15:$A$38,$A78,Покупка!$M$15:$M$38,$B78) -> 0 | AB78: =SUMIFS(Покупка!AA$15:AA$38,Покупка!$A$15:$A$38,$A78,Покупка!$M$15:$M$38,$B78) -> 0 | AC78: =SUMIFS(Покупка!AB$15:AB$38,Покупка!$A$15:$A$38,$A78,Покупка!$M$15:$M$38,$B78) -> 0 | AD78: =SUMIFS(Покупка!AC$15:AC$38,Покупка!$A$15:$A$38,$A78,Покупка!$M$15:$M$38,$B78) -> 0 | AE78: =SUMIFS(Покупка!AD$15:AD$38,Покупка!$A$15:$A$38,$A78,Покупка!$M$15:$M$38,$B78) -> 0 | AF78: =SUMIFS(Покупка!AE$15:AE$38,Покупка!$A$15:$A$38,$A78,Покупка!$M$15:$M$38,$B78) -> 0 | AG78: =SUMIFS(Покупка!AF$15:AF$38,Покупка!$A$15:$A$38,$A78,Покупка!$M$15:$M$38,$B78) -> 0 | AH78: =SUMIFS(Покупка!AG$15:AG$38,Покупка!$A$15:$A$38,$A78,Покупка!$M$15:$M$38,$B78) -> 0 | AI78: =SUMIFS(Покупка!AH$15:AH$38,Покупка!$A$15:$A$38,$A78,Покупка!$M$15:$M$38,$B78) -> 0 | AJ78: =SUMIFS(Покупка!AI$15:AI$38,Покупка!$A$15:$A$38,$A78,Покупка!$M$15:$M$38,$B78) -> 0 | AK78: =SUMIFS(Покупка!AJ$15:AJ$38,Покупка!$A$15:$A$38,$A78,Покупка!$M$15:$M$38,$B78) -> 0 | AL78: =SUMIFS(Покупка!AK$15:AK$38,Покупка!$A$15:$A$38,$A78,Покупка!$M$15:$M$38,$B78) -> 0 | AM78: =SUMIFS(Покупка!AL$15:AL$38,Покупка!$A$15:$A$38,$A78,Покупка!$M$15:$M$38,$B78) -> 0 | AN78: 0 | AO78: 0 | AP78: 0 | AQ78: 0 | AR78: 0 | AS78: 0 | AT78: 0 | AU78: 0 | AV78: 0 | AW78: 0
A79: 1 | B79: Затраты на очистку сточных вод | D79: L2_1_10 | L79: 2.1.10 | M79: услуги по очистке сточных вод | N79: тыс.руб. | O79: =SUMIFS(Покупка!O$15:O$38,Покупка!$A$15:$A$38,$A79,Покупка!$M$15:$M$38,$B79) -> 0 | P79: =SUMIFS(Покупка!P$15:P$38,Покупка!$A$15:$A$38,$A79,Покупка!$M$15:$M$38,$B79) -> 0 | Q79: =SUMIFS(Покупка!Q$15:Q$38,Покупка!$A$15:$A$38,$A79,Покупка!$M$15:$M$38,$B79) -> 0 | R79: =Q79-P79 -> 0 | S79: =SUMIFS(Покупка!R$15:R$38,Покупка!$A$15:$A$38,$A79,Покупка!$M$15:$M$38,$B79) -> 0 | T79: =SUMIFS(Покупка!S$15:S$38,Покупка!$A$15:$A$38,$A79,Покупка!$M$15:$M$38,$B79) -> 0 | U79: =SUMIFS(Покупка!T$15:T$38,Покупка!$A$15:$A$38,$A79,Покупка!$M$15:$M$38,$B79) -> 0 | V79: =SUMIFS(Покупка!U$15:U$38,Покупка!$A$15:$A$38,$A79,Покупка!$M$15:$M$38,$B79) -> 0 | W79: =SUMIFS(Покупка!V$15:V$38,Покупка!$A$15:$A$38,$A79,Покупка!$M$15:$M$38,$B79) -> 0 | X79: =SUMIFS(Покупка!W$15:W$38,Покупка!$A$15:$A$38,$A79,Покупка!$M$15:$M$38,$B79) -> 0 | Y79: =SUMIFS(Покупка!X$15:X$38,Покупка!$A$15:$A$38,$A79,Покупка!$M$15:$M$38,$B79) -> 0 | Z79: =SUMIFS(Покупка!Y$15:Y$38,Покупка!$A$15:$A$38,$A79,Покупка!$M$15:$M$38,$B79) -> 0 | AA79: =SUMIFS(Покупка!Z$15:Z$38,Покупка!$A$15:$A$38,$A79,Покупка!$M$15:$M$38,$B79) -> 0 | AB79: =SUMIFS(Покупка!AA$15:AA$38,Покупка!$A$15:$A$38,$A79,Покупка!$M$15:$M$38,$B79) -> 0 | AC79: =SUMIFS(Покупка!AB$15:AB$38,Покупка!$A$15:$A$38,$A79,Покупка!$M$15:$M$38,$B79) -> 0 | AD79: =SUMIFS(Покупка!AC$15:AC$38,Покупка!$A$15:$A$38,$A79,Покупка!$M$15:$M$38,$B79) -> 0 | AE79: =SUMIFS(Покупка!AD$15:AD$38,Покупка!$A$15:$A$38,$A79,Покупка!$M$15:$M$38,$B79) -> 0 | AF79: =SUMIFS(Покупка!AE$15:AE$38,Покупка!$A$15:$A$38,$A79,Покупка!$M$15:$M$38,$B79) -> 0 | AG79: =SUMIFS(Покупка!AF$15:AF$38,Покупка!$A$15:$A$38,$A79,Покупка!$M$15:$M$38,$B79) -> 0 | AH79: =SUMIFS(Покупка!AG$15:AG$38,Покупка!$A$15:$A$38,$A79,Покупка!$M$15:$M$38,$B79) -> 0 | AI79: =SUMIFS(Покупка!AH$15:AH$38,Покупка!$A$15:$A$38,$A79,Покупка!$M$15:$M$38,$B79) -> 0 | AJ79: =SUMIFS(Покупка!AI$15:AI$38,Покупка!$A$15:$A$38,$A79,Покупка!$M$15:$M$38,$B79) -> 0 | AK79: =SUMIFS(Покупка!AJ$15:AJ$38,Покупка!$A$15:$A$38,$A79,Покупка!$M$15:$M$38,$B79) -> 0 | AL79: =SUMIFS(Покупка!AK$15:AK$38,Покупка!$A$15:$A$38,$A79,Покупка!$M$15:$M$38,$B79) -> 0 | AM79: =SUMIFS(Покупка!AL$15:AL$38,Покупка!$A$15:$A$38,$A79,Покупка!$M$15:$M$38,$B79) -> 0 | AN79: =IF(S79=0,0,(AD79-S79)/S79*100) -> 0 | AO79: 0 | AP79: 0 | AQ79: 0 | AR79: 0 | AS79: 0 | AT79: 0 | AU79: 0 | AV79: 0 | AW79: 0
A80: 1 | D80: L2_2 | L80: 2.2 | M80: Расходы на реагенты | N80: тыс.руб. | O80: =SUMIFS(Реагенты!O$15:O$22,Реагенты!$A$15:$A$22,$A80,Реагенты!$M$15:$M$22,"Всего по тарифу") -> 0 | P80: =SUMIFS(Реагенты!P$15:P$22,Реагенты!$A$15:$A$22,$A80,Реагенты!$M$15:$M$22,"Всего по тарифу") -> 27.783 | Q80: =SUMIFS(Реагенты!Q$15:Q$22,Реагенты!$A$15:$A$22,$A80,Реагенты!$M$15:$M$22,"Всего по тарифу") -> 0 | R80: =Q80-P80 -> -27.783 | S80: =SUMIFS(Реагенты!R$15:R$22,Реагенты!$A$15:$A$22,$A80,Реагенты!$M$15:$M$22,"Всего по тарифу") -> 0 | T80: =SUMIFS(Реагенты!S$15:S$22,Реагенты!$A$15:$A$22,$A80,Реагенты!$M$15:$M$22,"Всего по тарифу") -> 194.74 | U80: =SUMIFS(Реагенты!T$15:T$22,Реагенты!$A$15:$A$22,$A80,Реагенты!$M$15:$M$22,"Всего по тарифу") -> 0 | V80: =SUMIFS(Реагенты!U$15:U$22,Реагенты!$A$15:$A$22,$A80,Реагенты!$M$15:$M$22,"Всего по тарифу") -> 0 | W80: =SUMIFS(Реагенты!V$15:V$22,Реагенты!$A$15:$A$22,$A80,Реагенты!$M$15:$M$22,"Всего по тарифу") -> 0 | X80: =SUMIFS(Реагенты!W$15:W$22,Реагенты!$A$15:$A$22,$A80,Реагенты!$M$15:$M$22,"Всего по тарифу") -> 0 | Y80: =SUMIFS(Реагенты!X$15:X$22,Реагенты!$A$15:$A$22,$A80,Реагенты!$M$15:$M$22,"Всего по тарифу") -> 0 | Z80: =SUMIFS(Реагенты!Y$15:Y$22,Реагенты!$A$15:$A$22,$A80,Реагенты!$M$15:$M$22,"Всего по тарифу") -> 0 | AA80: =SUMIFS(Реагенты!Z$15:Z$22,Реагенты!$A$15:$A$22,$A80,Реагенты!$M$15:$M$22,"Всего по тарифу") -> 0 | AB80: =SUMIFS(Реагенты!AA$15:AA$22,Реагенты!$A$15:$A$22,$A80,Реагенты!$M$15:$M$22,"Всего по тарифу") -> 0 | AC80: =SUMIFS(Реагенты!AB$15:AB$22,Реагенты!$A$15:$A$22,$A80,Реагенты!$M$15:$M$22,"Всего по тарифу") -> 0 | AD80: =SUMIFS(Реагенты!AC$15:AC$22,Реагенты!$A$15:$A$22,$A80,Реагенты!$M$15:$M$22,"Всего по тарифу") -> 0 | AE80: =SUMIFS(Реагенты!AD$15:AD$22,Реагенты!$A$15:$A$22,$A80,Реагенты!$M$15:$M$22,"Всего по тарифу") -> 0 | AF80: =SUMIFS(Реагенты!AE$15:AE$22,Реагенты!$A$15:$A$22,$A80,Реагенты!$M$15:$M$22,"Всего по тарифу") -> 0 | AG80: =SUMIFS(Реагенты!AF$15:AF$22,Реагенты!$A$15:$A$22,$A80,Реагенты!$M$15:$M$22,"Всего по тарифу") -> 0 | AH80: =SUMIFS(Реагенты!AG$15:AG$22,Реагенты!$A$15:$A$22,$A80,Реагенты!$M$15:$M$22,"Всего по тарифу") -> 0 | AI80: =SUMIFS(Реагенты!AH$15:AH$22,Реагенты!$A$15:$A$22,$A80,Реагенты!$M$15:$M$22,"Всего по тарифу") -> 0 | AJ80: =SUMIFS(Реагенты!AI$15:AI$22,Реагенты!$A$15:$A$22,$A80,Реагенты!$M$15:$M$22,"Всего по тарифу") -> 0 | AK80: =SUMIFS(Реагенты!AJ$15:AJ$22,Реагенты!$A$15:$A$22,$A80,Реагенты!$M$15:$M$22,"Всего по тарифу") -> 0 | AL80: =SUMIFS(Реагенты!AK$15:AK$22,Реагенты!$A$15:$A$22,$A80,Реагенты!$M$15:$M$22,"Всего по тарифу") -> 0 | AM80: =SUMIFS(Реагенты!AL$15:AL$22,Реагенты!$A$15:$A$22,$A80,Реагенты!$M$15:$M$22,"Всего по тарифу") -> 0 | AN80: 0 | AO80: 0 | AP80: 0 | AQ80: 0 | AR80: 0 | AS80: 0 | AT80: 0 | AU80: 0 | AV80: 0 | AW80: 0 | AY80: Постановление региональной энергетической комиссии Кемеровской области от 19.12.2018 № 759 "Об установлении долгосрочных параметров регулирования тарифов в сфере водоотведения ООО «Беловские Городские Очистные сооружения» (Беловский городской округ)" (в редакции Постановлений Региональной энергетической комиссии от 24.11.2020 N 427, от 11.02.2021 N 60). | AZ80: В соответствии с редакцией "Методических указаний" ФСТ России (приказ № 1746-э от 27.12.2013), действовавшей на момент утверждения долгосрочных параметров регулирования тарифов на водоотведение для ООО "БелГОС", расходы на РЕАГЕНТЫ были учтены в составе Базового уровня ОПЕРАЦИОННЫХ РАСХОДОВ.
A81: 1 | D81: L2_3 | L81: 2.3 | M81: Налоги и сборы | N81: тыс.руб. | O81: =SUM(O82:O90) -> 1275.175216 | P81: =SUM(P82:P90) -> 1974.45 | Q81: 1433.214 | R81: =Q81-P81 -> -541.236 | S81: 1148.034 | T81: 3164.46 | U81: 0 | V81: 0 | W81: 0 | X81: 0 | Y81: 0 | Z81: 0 | AA81: 0 | AB81: 0 | AC81: 0 | AD81: 979.98 | AE81: 0 | AF81: 0 | AG81: 0 | AH81: 0 | AI81: 0 | AJ81: 0 | AK81: 0 | AL81: 0 | AM81: 0 | AN81: -14.63841663 | AO81: -100 | AP81: 0 | AQ81: 0 | AR81: 0 | AS81: 0 | AT81: 0 | AU81: 0 | AV81: 0 | AW81: 0 | AY81: 1) П. 49 (2) Методических указаний ФСТ № 1746-э. 2) "Налоговый кодекс Российской Федерации (часть вторая)" от 05.08.2000 N 117-ФЗ (ред. от 04.08.2023).
A82: 1 | B82: Налог на прибыль | D82: L2_3_1 | L82: 2.3.1 | M82: налог на прибыль | N82: тыс.руб. | O82: =SUMIFS(Налоги!O$15:O$30,Налоги!$A$15:$A$30,$A82,Налоги!$M$15:$M$30,$B82) -> 0 | P82: =SUMIFS(Налоги!P$15:P$30,Налоги!$A$15:$A$30,$A82,Налоги!$M$15:$M$30,$B82) -> 702.48 | Q82: =SUMIFS(Налоги!Q$15:Q$30,Налоги!$A$15:$A$30,$A82,Налоги!$M$15:$M$30,$B82) -> 161.244 | R82: -541.236 | S82: =SUMIFS(Налоги!R$15:R$30,Налоги!$A$15:$A$30,$A82,Налоги!$M$15:$M$30,$B82) -> 0 | T82: =SUMIFS(Налоги!S$15:S$30,Налоги!$A$15:$A$30,$A82,Налоги!$M$15:$M$30,$B82) -> 1747.35 | U82: =SUMIFS(Налоги!T$15:T$30,Налоги!$A$15:$A$30,$A82,Налоги!$M$15:$M$30,$B82) -> 0 | V82: =SUMIFS(Налоги!U$15:U$30,Налоги!$A$15:$A$30,$A82,Налоги!$M$15:$M$30,$B82) -> 0 | W82: =SUMIFS(Налоги!V$15:V$30,Налоги!$A$15:$A$30,$A82,Налоги!$M$15:$M$30,$B82) -> 0 | X82: =SUMIFS(Налоги!W$15:W$30,Налоги!$A$15:$A$30,$A82,Налоги!$M$15:$M$30,$B82) -> 0 | Y82: =SUMIFS(Налоги!X$15:X$30,Налоги!$A$15:$A$30,$A82,Налоги!$M$15:$M$30,$B82) -> 0 | Z82: =SUMIFS(Налоги!Y$15:Y$30,Налоги!$A$15:$A$30,$A82,Налоги!$M$15:$M$30,$B82) -> 0 | AA82: =SUMIFS(Налоги!Z$15:Z$30,Налоги!$A$15:$A$30,$A82,Налоги!$M$15:$M$30,$B82) -> 0 | AB82: =SUMIFS(Налоги!AA$15:AA$30,Налоги!$A$15:$A$30,$A82,Налоги!$M$15:$M$30,$B82) -> 0 | AC82: =SUMIFS(Налоги!AB$15:AB$30,Налоги!$A$15:$A$30,$A82,Налоги!$M$15:$M$30,$B82) -> 0 | AD82: =SUMIFS(Налоги!AC$15:AC$30,Налоги!$A$15:$A$30,$A82,Налоги!$M$15:$M$30,$B82) -> 0 | AE82: =SUMIFS(Налоги!AD$15:AD$30,Налоги!$A$15:$A$30,$A82,Налоги!$M$15:$M$30,$B82) -> 0 | AF82: =SUMIFS(Налоги!AE$15:AE$30,Налоги!$A$15:$A$30,$A82,Налоги!$M$15:$M$30,$B82) -> 0 | AG82: =SUMIFS(Налоги!AF$15:AF$30,Налоги!$A$15:$A$30,$A82,Налоги!$M$15:$M$30,$B82) -> 0 | AH82: =SUMIFS(Налоги!AG$15:AG$30,Налоги!$A$15:$A$30,$A82,Налоги!$M$15:$M$30,$B82) -> 0 | AI82: =SUMIFS(Налоги!AH$15:AH$30,Налоги!$A$15:$A$30,$A82,Налоги!$M$15:$M$30,$B82) -> 0 | AJ82: =SUMIFS(Налоги!AI$15:AI$30,Налоги!$A$15:$A$30,$A82,Налоги!$M$15:$M$30,$B82) -> 0 | AK82: =SUMIFS(Налоги!AJ$15:AJ$30,Налоги!$A$15:$A$30,$A82,Налоги!$M$15:$M$30,$B82) -> 0 | AL82: =SUMIFS(Налоги!AK$15:AK$30,Налоги!$A$15:$A$30,$A82,Налоги!$M$15:$M$30,$B82) -> 0 | AM82: =SUMIFS(Налоги!AL$15:AL$30,Налоги!$A$15:$A$30,$A82,Налоги!$M$15:$M$30,$B82) -> 0 | AN82: 0 | AO82: 0 | AP82: 0 | AQ82: 0 | AR82: 0 | AS82: 0 | AT82: 0 | AU82: 0 | AV82: 0 | AW82: 0 | AY82: 1) Пункт 86 Методических указаний ФСТ РФ № 1746-э; 2) Пункты 21 -29 Статьи 270 Главы 25. "НАЛОГ НА ПРИБЫЛЬ ОРГАНИЗАЦИЙ" "Налогового кодекса РФ (Часть вторая)"; 3) Постановление региональной энергетической комиссии Кемеровской области от 19.12.2018 № 759, в редакции Постановлений Региональной энергетической комиссии от 24.11.2020 N 427, от 11.02.2021 N 60. | AZ82: НАЛОГООБЛАГАЕМАЯ БАЗА по налогу на прибыль в каждом году долгосрочного периода РАВНА НУЛЮ, в связи с чем плановые суммы налога на прибыль на 2024-2028 гг. определены в размере 0,00 тыс. руб. (см. Лист "Налоги").
A83: =A82 -> 1 | B83: Налог на имущество | D83: L2_3_2 | L83: 2.3.2 | M83: налог на имущество организаций | N83: тыс.руб. | O83: =SUMIFS(Налоги!O$15:O$30,Налоги!$A$15:$A$30,$A83,Налоги!$M$15:$M$30,$B83) -> 1217.1 | P83: =SUMIFS(Налоги!P$15:P$30,Налоги!$A$15:$A$30,$A83,Налоги!$M$15:$M$30,$B83) -> 1217.77 | Q83: =SUMIFS(Налоги!Q$15:Q$30,Налоги!$A$15:$A$30,$A83,Налоги!$M$15:$M$30,$B83) -> 1217.77 | R83: 0 | S83: =SUMIFS(Налоги!R$15:R$30,Налоги!$A$15:$A$30,$A83,Налоги!$M$15:$M$30,$B83) -> 1091.624 | T83: =SUMIFS(Налоги!S$15:S$30,Налоги!$A$15:$A$30,$A83,Налоги!$M$15:$M$30,$B83) -> 998.26 | U83: =SUMIFS(Налоги!T$15:T$30,Налоги!$A$15:$A$30,$A83,Налоги!$M$15:$M$30,$B83) -> 0 | V83: =SUMIFS(Налоги!U$15:U$30,Налоги!$A$15:$A$30,$A83,Налоги!$M$15:$M$30,$B83) -> 0 | W83: =SUMIFS(Налоги!V$15:V$30,Налоги!$A$15:$A$30,$A83,Налоги!$M$15:$M$30,$B83) -> 0 | X83: =SUMIFS(Налоги!W$15:W$30,Налоги!$A$15:$A$30,$A83,Налоги!$M$15:$M$30,$B83) -> 0 | Y83: =SUMIFS(Налоги!X$15:X$30,Налоги!$A$15:$A$30,$A83,Налоги!$M$15:$M$30,$B83) -> 0 | Z83: =SUMIFS(Налоги!Y$15:Y$30,Налоги!$A$15:$A$30,$A83,Налоги!$M$15:$M$30,$B83) -> 0 | AA83: =SUMIFS(Налоги!Z$15:Z$30,Налоги!$A$15:$A$30,$A83,Налоги!$M$15:$M$30,$B83) -> 0 | AB83: =SUMIFS(Налоги!AA$15:AA$30,Налоги!$A$15:$A$30,$A83,Налоги!$M$15:$M$30,$B83) -> 0 | AC83: =SUMIFS(Налоги!AB$15:AB$30,Налоги!$A$15:$A$30,$A83,Налоги!$M$15:$M$30,$B83) -> 0 | AD83: =SUMIFS(Налоги!AC$15:AC$30,Налоги!$A$15:$A$30,$A83,Налоги!$M$15:$M$30,$B83) -> 925.78 | AE83: =SUMIFS(Налоги!AD$15:AD$30,Налоги!$A$15:$A$30,$A83,Налоги!$M$15:$M$30,$B83) -> 0 | AF83: =SUMIFS(Налоги!AE$15:AE$30,Налоги!$A$15:$A$30,$A83,Налоги!$M$15:$M$30,$B83) -> 0 | AG83: =SUMIFS(Налоги!AF$15:AF$30,Налоги!$A$15:$A$30,$A83,Налоги!$M$15:$M$30,$B83) -> 0 | AH83: =SUMIFS(Налоги!AG$15:AG$30,Налоги!$A$15:$A$30,$A83,Налоги!$M$15:$M$30,$B83) -> 0 | AI83: =SUMIFS(Налоги!AH$15:AH$30,Налоги!$A$15:$A$30,$A83,Налоги!$M$15:$M$30,$B83) -> 0 | AJ83: =SUMIFS(Налоги!AI$15:AI$30,Налоги!$A$15:$A$30,$A83,Налоги!$M$15:$M$30,$B83) -> 0 | AK83: =SUMIFS(Налоги!AJ$15:AJ$30,Налоги!$A$15:$A$30,$A83,Налоги!$M$15:$M$30,$B83) -> 0 | AL83: =SUMIFS(Налоги!AK$15:AK$30,Налоги!$A$15:$A$30,$A83,Налоги!$M$15:$M$30,$B83) -> 0 | AM83: =SUMIFS(Налоги!AL$15:AL$30,Налоги!$A$15:$A$30,$A83,Налоги!$M$15:$M$30,$B83) -> 0 | AN83: -15.19241057 | AO83: -100 | AP83: 0 | AQ83: 0 | AR83: 0 | AS83: 0 | AT83: 0 | AU83: 0 | AV83: 0 | AW83: 0 | AY83: 1) Глава 30 "НАЛОГ НА ИМУЩЕСТВО ОРГАНИЗАЦИЙ" Налогового кодекса РФ (Часть вторая); 2) Закон Кемеровской области - Кузбасса от 26.11.2003 N 60-ОЗ (ред. от 04.09.2023) "О налоге на имущество организаций". | AZ83: См. Лист "Налоги".
A84: 1 | B84: Земельный налог | D84: L2_3_3 | L84: 2.3.3 | M84: земельный налог и арендная плата за землю | N84: тыс.руб. | O84: =SUMIFS(Налоги!O$15:O$30,Налоги!$A$15:$A$30,$A84,Налоги!$M$15:$M$30,$B84) -> 0 | P84: =SUMIFS(Налоги!P$15:P$30,Налоги!$A$15:$A$30,$A84,Налоги!$M$15:$M$30,$B84) -> 0 | Q84: =SUMIFS(Налоги!Q$15:Q$30,Налоги!$A$15:$A$30,$A84,Налоги!$M$15:$M$30,$B84) -> 0 | R84: 0 | S84: =SUMIFS(Налоги!R$15:R$30,Налоги!$A$15:$A$30,$A84,Налоги!$M$15:$M$30,$B84) -> 0 | T84: =SUMIFS(Налоги!S$15:S$30,Налоги!$A$15:$A$30,$A84,Налоги!$M$15:$M$30,$B84) -> 18.29 | U84: =SUMIFS(Налоги!T$15:T$30,Налоги!$A$15:$A$30,$A84,Налоги!$M$15:$M$30,$B84) -> 0 | V84: =SUMIFS(Налоги!U$15:U$30,Налоги!$A$15:$A$30,$A84,Налоги!$M$15:$M$30,$B84) -> 0 | W84: =SUMIFS(Налоги!V$15:V$30,Налоги!$A$15:$A$30,$A84,Налоги!$M$15:$M$30,$B84) -> 0 | X84: =SUMIFS(Налоги!W$15:W$30,Налоги!$A$15:$A$30,$A84,Налоги!$M$15:$M$30,$B84) -> 0 | Y84: =SUMIFS(Налоги!X$15:X$30,Налоги!$A$15:$A$30,$A84,Налоги!$M$15:$M$30,$B84) -> 0 | Z84: =SUMIFS(Налоги!Y$15:Y$30,Налоги!$A$15:$A$30,$A84,Налоги!$M$15:$M$30,$B84) -> 0 | AA84: =SUMIFS(Налоги!Z$15:Z$30,Налоги!$A$15:$A$30,$A84,Налоги!$M$15:$M$30,$B84) -> 0 | AB84: =SUMIFS(Налоги!AA$15:AA$30,Налоги!$A$15:$A$30,$A84,Налоги!$M$15:$M$30,$B84) -> 0 | AC84: =SUMIFS(Налоги!AB$15:AB$30,Налоги!$A$15:$A$30,$A84,Налоги!$M$15:$M$30,$B84) -> 0 | AD84: =SUMIFS(Налоги!AC$15:AC$30,Налоги!$A$15:$A$30,$A84,Налоги!$M$15:$M$30,$B84) -> 0 | AE84: =SUMIFS(Налоги!AD$15:AD$30,Налоги!$A$15:$A$30,$A84,Налоги!$M$15:$M$30,$B84) -> 0 | AF84: =SUMIFS(Налоги!AE$15:AE$30,Налоги!$A$15:$A$30,$A84,Налоги!$M$15:$M$30,$B84) -> 0 | AG84: =SUMIFS(Налоги!AF$15:AF$30,Налоги!$A$15:$A$30,$A84,Налоги!$M$15:$M$30,$B84) -> 0 | AH84: =SUMIFS(Налоги!AG$15:AG$30,Налоги!$A$15:$A$30,$A84,Налоги!$M$15:$M$30,$B84) -> 0 | AI84: =SUMIFS(Налоги!AH$15:AH$30,Налоги!$A$15:$A$30,$A84,Налоги!$M$15:$M$30,$B84) -> 0 | AJ84: =SUMIFS(Налоги!AI$15:AI$30,Налоги!$A$15:$A$30,$A84,Налоги!$M$15:$M$30,$B84) -> 0 | AK84: =SUMIFS(Налоги!AJ$15:AJ$30,Налоги!$A$15:$A$30,$A84,Налоги!$M$15:$M$30,$B84) -> 0 | AL84: =SUMIFS(Налоги!AK$15:AK$30,Налоги!$A$15:$A$30,$A84,Налоги!$M$15:$M$30,$B84) -> 0 | AM84: =SUMIFS(Налоги!AL$15:AL$30,Налоги!$A$15:$A$30,$A84,Налоги!$M$15:$M$30,$B84) -> 0 | AN84: 0 | AO84: =IF(AD84=0,0,(AE84-AD84)/AD84*100) -> 0 | AP84: 0 | AQ84: 0 | AR84: 0 | AS84: 0 | AT84: 0 | AU84: 0 | AV84: 0 | AW84: 0
A85: 1 | B85: Водный налог | D85: L2_3_4 | L85: 2.3.4 | M85: водный налог | N85: тыс.руб. | O85: =SUMIFS(Налоги!O$15:O$30,Налоги!$A$15:$A$30,$A85,Налоги!$M$15:$M$30,$B85) -> 0 | P85: =SUMIFS(Налоги!P$15:P$30,Налоги!$A$15:$A$30,$A85,Налоги!$M$15:$M$30,$B85) -> 0 | Q85: =SUMIFS(Налоги!Q$15:Q$30,Налоги!$A$15:$A$30,$A85,Налоги!$M$15:$M$30,$B85) -> 0 | R85: 0 | S85: =SUMIFS(Налоги!R$15:R$30,Налоги!$A$15:$A$30,$A85,Налоги!$M$15:$M$30,$B85) -> 0 | T85: =SUMIFS(Налоги!S$15:S$30,Налоги!$A$15:$A$30,$A85,Налоги!$M$15:$M$30,$B85) -> 0 | U85: =SUMIFS(Налоги!T$15:T$30,Налоги!$A$15:$A$30,$A85,Налоги!$M$15:$M$30,$B85) -> 0 | V85: =SUMIFS(Налоги!U$15:U$30,Налоги!$A$15:$A$30,$A85,Налоги!$M$15:$M$30,$B85) -> 0 | W85: =SUMIFS(Налоги!V$15:V$30,Налоги!$A$15:$A$30,$A85,Налоги!$M$15:$M$30,$B85) -> 0 | X85: =SUMIFS(Налоги!W$15:W$30,Налоги!$A$15:$A$30,$A85,Налоги!$M$15:$M$30,$B85) -> 0 | Y85: =SUMIFS(Налоги!X$15:X$30,Налоги!$A$15:$A$30,$A85,Налоги!$M$15:$M$30,$B85) -> 0 | Z85: =SUMIFS(Налоги!Y$15:Y$30,Налоги!$A$15:$A$30,$A85,Налоги!$M$15:$M$30,$B85) -> 0 | AA85: =SUMIFS(Налоги!Z$15:Z$30,Налоги!$A$15:$A$30,$A85,Налоги!$M$15:$M$30,$B85) -> 0 | AB85: =SUMIFS(Налоги!AA$15:AA$30,Налоги!$A$15:$A$30,$A85,Налоги!$M$15:$M$30,$B85) -> 0 | AC85: =SUMIFS(Налоги!AB$15:AB$30,Налоги!$A$15:$A$30,$A85,Налоги!$M$15:$M$30,$B85) -> 0 | AD85: =SUMIFS(Налоги!AC$15:AC$30,Налоги!$A$15:$A$30,$A85,Налоги!$M$15:$M$30,$B85) -> 0 | AE85: =SUMIFS(Налоги!AD$15:AD$30,Налоги!$A$15:$A$30,$A85,Налоги!$M$15:$M$30,$B85) -> 0 | AF85: =SUMIFS(Налоги!AE$15:AE$30,Налоги!$A$15:$A$30,$A85,Налоги!$M$15:$M$30,$B85) -> 0 | AG85: =SUMIFS(Налоги!AF$15:AF$30,Налоги!$A$15:$A$30,$A85,Налоги!$M$15:$M$30,$B85) -> 0 | AH85: =SUMIFS(Налоги!AG$15:AG$30,Налоги!$A$15:$A$30,$A85,Налоги!$M$15:$M$30,$B85) -> 0 | AI85: =SUMIFS(Налоги!AH$15:AH$30,Налоги!$A$15:$A$30,$A85,Налоги!$M$15:$M$30,$B85) -> 0 | AJ85: =SUMIFS(Налоги!AI$15:AI$30,Налоги!$A$15:$A$30,$A85,Налоги!$M$15:$M$30,$B85) -> 0 | AK85: =SUMIFS(Налоги!AJ$15:AJ$30,Налоги!$A$15:$A$30,$A85,Налоги!$M$15:$M$30,$B85) -> 0 | AL85: =SUMIFS(Налоги!AK$15:AK$30,Налоги!$A$15:$A$30,$A85,Налоги!$M$15:$M$30,$B85) -> 0 | AM85: =SUMIFS(Налоги!AL$15:AL$30,Налоги!$A$15:$A$30,$A85,Налоги!$M$15:$M$30,$B85) -> 0 | AN85: 0 | AO85: 0 | AP85: 0 | AQ85: 0 | AR85: 0 | AS85: 0 | AT85: 0 | AU85: 0 | AV85: 0 | AW85: 0
A86: 1 | B86: Плата за пользование водным объектом | D86: L2_3_5 | L86: 2.3.5 | M86: плата за пользование водным объектом | N86: тыс.руб. | O86: =SUMIFS(Налоги!O$15:O$30,Налоги!$A$15:$A$30,$A86,Налоги!$M$15:$M$30,$B86) -> 0 | P86: =SUMIFS(Налоги!P$15:P$30,Налоги!$A$15:$A$30,$A86,Налоги!$M$15:$M$30,$B86) -> 0 | Q86: =SUMIFS(Налоги!Q$15:Q$30,Налоги!$A$15:$A$30,$A86,Налоги!$M$15:$M$30,$B86) -> 0 | R86: 0 | S86: =SUMIFS(Налоги!R$15:R$30,Налоги!$A$15:$A$30,$A86,Налоги!$M$15:$M$30,$B86) -> 0 | T86: =SUMIFS(Налоги!S$15:S$30,Налоги!$A$15:$A$30,$A86,Налоги!$M$15:$M$30,$B86) -> 0 | U86: =SUMIFS(Налоги!T$15:T$30,Налоги!$A$15:$A$30,$A86,Налоги!$M$15:$M$30,$B86) -> 0 | V86: =SUMIFS(Налоги!U$15:U$30,Налоги!$A$15:$A$30,$A86,Налоги!$M$15:$M$30,$B86) -> 0 | W86: =SUMIFS(Налоги!V$15:V$30,Налоги!$A$15:$A$30,$A86,Налоги!$M$15:$M$30,$B86) -> 0 | X86: =SUMIFS(Налоги!W$15:W$30,Налоги!$A$15:$A$30,$A86,Налоги!$M$15:$M$30,$B86) -> 0 | Y86: =SUMIFS(Налоги!X$15:X$30,Налоги!$A$15:$A$30,$A86,Налоги!$M$15:$M$30,$B86) -> 0 | Z86: =SUMIFS(Налоги!Y$15:Y$30,Налоги!$A$15:$A$30,$A86,Налоги!$M$15:$M$30,$B86) -> 0 | AA86: =SUMIFS(Налоги!Z$15:Z$30,Налоги!$A$15:$A$30,$A86,Налоги!$M$15:$M$30,$B86) -> 0 | AB86: =SUMIFS(Налоги!AA$15:AA$30,Налоги!$A$15:$A$30,$A86,Налоги!$M$15:$M$30,$B86) -> 0 | AC86: =SUMIFS(Налоги!AB$15:AB$30,Налоги!$A$15:$A$30,$A86,Налоги!$M$15:$M$30,$B86) -> 0 | AD86: =SUMIFS(Налоги!AC$15:AC$30,Налоги!$A$15:$A$30,$A86,Налоги!$M$15:$M$30,$B86) -> 0 | AE86: =SUMIFS(Налоги!AD$15:AD$30,Налоги!$A$15:$A$30,$A86,Налоги!$M$15:$M$30,$B86) -> 0 | AF86: =SUMIFS(Налоги!AE$15:AE$30,Налоги!$A$15:$A$30,$A86,Налоги!$M$15:$M$30,$B86) -> 0 | AG86: =SUMIFS(Налоги!AF$15:AF$30,Налоги!$A$15:$A$30,$A86,Налоги!$M$15:$M$30,$B86) -> 0 | AH86: =SUMIFS(Налоги!AG$15:AG$30,Налоги!$A$15:$A$30,$A86,Налоги!$M$15:$M$30,$B86) -> 0 | AI86: =SUMIFS(Налоги!AH$15:AH$30,Налоги!$A$15:$A$30,$A86,Налоги!$M$15:$M$30,$B86) -> 0 | AJ86: =SUMIFS(Налоги!AI$15:AI$30,Налоги!$A$15:$A$30,$A86,Налоги!$M$15:$M$30,$B86) -> 0 | AK86: =SUMIFS(Налоги!AJ$15:AJ$30,Налоги!$A$15:$A$30,$A86,Налоги!$M$15:$M$30,$B86) -> 0 | AL86: =SUMIFS(Налоги!AK$15:AK$30,Налоги!$A$15:$A$30,$A86,Налоги!$M$15:$M$30,$B86) -> 0 | AM86: =SUMIFS(Налоги!AL$15:AL$30,Налоги!$A$15:$A$30,$A86,Налоги!$M$15:$M$30,$B86) -> 0 | AN86: 0 | AO86: 0 | AP86: 0 | AQ86: 0 | AR86: 0 | AS86: 0 | AT86: 0 | AU86: 0 | AV86: 0 | AW86: 0
A87: 1 | B87: Транспортный налог | D87: L2_3_6 | L87: 2.3.6 | M87: транспортный налог | N87: тыс.руб. | O87: =SUMIFS(Налоги!O$15:O$30,Налоги!$A$15:$A$30,$A87,Налоги!$M$15:$M$30,$B87) -> 13.924 | P87: =SUMIFS(Налоги!P$15:P$30,Налоги!$A$15:$A$30,$A87,Налоги!$M$15:$M$30,$B87) -> 13.92 | Q87: =SUMIFS(Налоги!Q$15:Q$30,Налоги!$A$15:$A$30,$A87,Налоги!$M$15:$M$30,$B87) -> 13.92 | R87: 0 | S87: =SUMIFS(Налоги!R$15:R$30,Налоги!$A$15:$A$30,$A87,Налоги!$M$15:$M$30,$B87) -> 13.92 | T87: =SUMIFS(Налоги!S$15:S$30,Налоги!$A$15:$A$30,$A87,Налоги!$M$15:$M$30,$B87) -> 13.92 | U87: =SUMIFS(Налоги!T$15:T$30,Налоги!$A$15:$A$30,$A87,Налоги!$M$15:$M$30,$B87) -> 0 | V87: =SUMIFS(Налоги!U$15:U$30,Налоги!$A$15:$A$30,$A87,Налоги!$M$15:$M$30,$B87) -> 0 | W87: =SUMIFS(Налоги!V$15:V$30,Налоги!$A$15:$A$30,$A87,Налоги!$M$15:$M$30,$B87) -> 0 | X87: =SUMIFS(Налоги!W$15:W$30,Налоги!$A$15:$A$30,$A87,Налоги!$M$15:$M$30,$B87) -> 0 | Y87: =SUMIFS(Налоги!X$15:X$30,Налоги!$A$15:$A$30,$A87,Налоги!$M$15:$M$30,$B87) -> 0 | Z87: =SUMIFS(Налоги!Y$15:Y$30,Налоги!$A$15:$A$30,$A87,Налоги!$M$15:$M$30,$B87) -> 0 | AA87: =SUMIFS(Налоги!Z$15:Z$30,Налоги!$A$15:$A$30,$A87,Налоги!$M$15:$M$30,$B87) -> 0 | AB87: =SUMIFS(Налоги!AA$15:AA$30,Налоги!$A$15:$A$30,$A87,Налоги!$M$15:$M$30,$B87) -> 0 | AC87: =SUMIFS(Налоги!AB$15:AB$30,Налоги!$A$15:$A$30,$A87,Налоги!$M$15:$M$30,$B87) -> 0 | AD87: =SUMIFS(Налоги!AC$15:AC$30,Налоги!$A$15:$A$30,$A87,Налоги!$M$15:$M$30,$B87) -> 13.92 | AE87: =SUMIFS(Налоги!AD$15:AD$30,Налоги!$A$15:$A$30,$A87,Налоги!$M$15:$M$30,$B87) -> 0 | AF87: =SUMIFS(Налоги!AE$15:AE$30,Налоги!$A$15:$A$30,$A87,Налоги!$M$15:$M$30,$B87) -> 0 | AG87: =SUMIFS(Налоги!AF$15:AF$30,Налоги!$A$15:$A$30,$A87,Налоги!$M$15:$M$30,$B87) -> 0 | AH87: =SUMIFS(Налоги!AG$15:AG$30,Налоги!$A$15:$A$30,$A87,Налоги!$M$15:$M$30,$B87) -> 0 | AI87: =SUMIFS(Налоги!AH$15:AH$30,Налоги!$A$15:$A$30,$A87,Налоги!$M$15:$M$30,$B87) -> 0 | AJ87: =SUMIFS(Налоги!AI$15:AI$30,Налоги!$A$15:$A$30,$A87,Налоги!$M$15:$M$30,$B87) -> 0 | AK87: =SUMIFS(Налоги!AJ$15:AJ$30,Налоги!$A$15:$A$30,$A87,Налоги!$M$15:$M$30,$B87) -> 0 | AL87: =SUMIFS(Налоги!AK$15:AK$30,Налоги!$A$15:$A$30,$A87,Налоги!$M$15:$M$30,$B87) -> 0 | AM87: =SUMIFS(Налоги!AL$15:AL$30,Налоги!$A$15:$A$30,$A87,Налоги!$M$15:$M$30,$B87) -> 0 | AN87: 0 | AO87: -100 | AP87: 0 | AQ87: 0 | AR87: 0 | AS87: 0 | AT87: 0 | AU87: 0 | AV87: 0 | AW87: 0 | AY87: 1) Глава 28 "ТРАНСПОРТНЫЙ НАЛОГ" Налогового кодекса РФ. 2) Закон Кемеровской области от 28.11.2002 N 95-ОЗ "О транспортном налоге". | AZ87: Плановая годовая величина налогового платежа на 2025 г. принята регулирующим органом на уровне фактической величины 2023 года, отраженной в представленном "Сообщении об исчисленных налоговым органом суммах транспортного налога" № 4197663 от 04.04.2024.
A88: 1 | B88: Плата за негативное воздействие на окружающую среду | D88: L2_3_7 | L88: 2.3.7 | M88: плата за негативное воздействие на окружающую среду | N88: тыс.руб. | O88: 44.15121646 | P88: =SUMIFS(Налоги!P$15:P$30,Налоги!$A$15:$A$30,$A88,Налоги!$M$15:$M$30,$B88) -> 40.28 | Q88: =SUMIFS(Налоги!Q$15:Q$30,Налоги!$A$15:$A$30,$A88,Налоги!$M$15:$M$30,$B88) -> 40.28 | R88: 0 | S88: 42.49 | T88: =SUMIFS(Налоги!S$15:S$30,Налоги!$A$15:$A$30,$A88,Налоги!$M$15:$M$30,$B88) -> 39.77 | U88: =SUMIFS(Налоги!T$15:T$30,Налоги!$A$15:$A$30,$A88,Налоги!$M$15:$M$30,$B88) -> 0 | V88: =SUMIFS(Налоги!U$15:U$30,Налоги!$A$15:$A$30,$A88,Налоги!$M$15:$M$30,$B88) -> 0 | W88: =SUMIFS(Налоги!V$15:V$30,Налоги!$A$15:$A$30,$A88,Налоги!$M$15:$M$30,$B88) -> 0 | X88: =SUMIFS(Налоги!W$15:W$30,Налоги!$A$15:$A$30,$A88,Налоги!$M$15:$M$30,$B88) -> 0 | Y88: =SUMIFS(Налоги!X$15:X$30,Налоги!$A$15:$A$30,$A88,Налоги!$M$15:$M$30,$B88) -> 0 | Z88: =SUMIFS(Налоги!Y$15:Y$30,Налоги!$A$15:$A$30,$A88,Налоги!$M$15:$M$30,$B88) -> 0 | AA88: =SUMIFS(Налоги!Z$15:Z$30,Налоги!$A$15:$A$30,$A88,Налоги!$M$15:$M$30,$B88) -> 0 | AB88: =SUMIFS(Налоги!AA$15:AA$30,Налоги!$A$15:$A$30,$A88,Налоги!$M$15:$M$30,$B88) -> 0 | AC88: =SUMIFS(Налоги!AB$15:AB$30,Налоги!$A$15:$A$30,$A88,Налоги!$M$15:$M$30,$B88) -> 0 | AD88: =SUMIFS(Налоги!AC$15:AC$30,Налоги!$A$15:$A$30,$A88,Налоги!$M$15:$M$30,$B88) -> 40.28 | AE88: =SUMIFS(Налоги!AD$15:AD$30,Налоги!$A$15:$A$30,$A88,Налоги!$M$15:$M$30,$B88) -> 0 | AF88: =SUMIFS(Налоги!AE$15:AE$30,Налоги!$A$15:$A$30,$A88,Налоги!$M$15:$M$30,$B88) -> 0 | AG88: =SUMIFS(Налоги!AF$15:AF$30,Налоги!$A$15:$A$30,$A88,Налоги!$M$15:$M$30,$B88) -> 0 | AH88: =SUMIFS(Налоги!AG$15:AG$30,Налоги!$A$15:$A$30,$A88,Налоги!$M$15:$M$30,$B88) -> 0 | AI88: =SUMIFS(Налоги!AH$15:AH$30,Налоги!$A$15:$A$30,$A88,Налоги!$M$15:$M$30,$B88) -> 0 | AJ88: =SUMIFS(Налоги!AI$15:AI$30,Налоги!$A$15:$A$30,$A88,Налоги!$M$15:$M$30,$B88) -> 0 | AK88: =SUMIFS(Налоги!AJ$15:AJ$30,Налоги!$A$15:$A$30,$A88,Налоги!$M$15:$M$30,$B88) -> 0 | AL88: =SUMIFS(Налоги!AK$15:AK$30,Налоги!$A$15:$A$30,$A88,Налоги!$M$15:$M$30,$B88) -> 0 | AM88: =SUMIFS(Налоги!AL$15:AL$30,Налоги!$A$15:$A$30,$A88,Налоги!$M$15:$M$30,$B88) -> 0 | AN88: -5.201223817 | AO88: -100 | AP88: 0 | AQ88: 0 | AR88: 0 | AS88: 0 | AT88: 0 | AU88: 0 | AV88: 0 | AW88: 0 | AY88: 1) П. 49 (2) Методических указаний ФСТ № 1746-э. 2) Постановление Правительства РФ от 13.09.2016 N 913 (ред. от 24.01.2020) "О ставках платы за негативное воздействие на окружающую среду и дополнительных коэффициентах". | AZ88: Принято на уровне фактически исчисленных платежей согласно представленной декларации за 2023 г., в пределах установленных нормативов допустимых выбросов загрязняющих веществ в атмосферу (НДВ) и нормативов допустимого сброса (НДС) загрязняющих веществ в водные объекты (п. 49 (1) Методических указаний ФСТ России № 1746-э).
A89: 1 | B89: Единый налог при упрощенной системе налогообложения | D89: L2_3_8 | L89: 2.3.8 | M89: единый налог при УСН | N89: тыс.руб. | O89: =SUMIFS(Налоги!O$15:O$30,Налоги!$A$15:$A$30,$A89,Налоги!$M$15:$M$30,$B89) -> 0 | P89: =SUMIFS(Налоги!P$15:P$30,Налоги!$A$15:$A$30,$A89,Налоги!$M$15:$M$30,$B89) -> 0 | Q89: =SUMIFS(Налоги!Q$15:Q$30,Налоги!$A$15:$A$30,$A89,Налоги!$M$15:$M$30,$B89) -> 0 | R89: =Q89-P89 -> 0 | S89: =SUMIFS(Налоги!R$15:R$30,Налоги!$A$15:$A$30,$A89,Налоги!$M$15:$M$30,$B89) -> 0 | T89: =SUMIFS(Налоги!S$15:S$30,Налоги!$A$15:$A$30,$A89,Налоги!$M$15:$M$30,$B89) -> 0 | U89: =SUMIFS(Налоги!T$15:T$30,Налоги!$A$15:$A$30,$A89,Налоги!$M$15:$M$30,$B89) -> 0 | V89: =SUMIFS(Налоги!U$15:U$30,Налоги!$A$15:$A$30,$A89,Налоги!$M$15:$M$30,$B89) -> 0 | W89: =SUMIFS(Налоги!V$15:V$30,Налоги!$A$15:$A$30,$A89,Налоги!$M$15:$M$30,$B89) -> 0 | X89: =SUMIFS(Налоги!W$15:W$30,Налоги!$A$15:$A$30,$A89,Налоги!$M$15:$M$30,$B89) -> 0 | Y89: =SUMIFS(Налоги!X$15:X$30,Налоги!$A$15:$A$30,$A89,Налоги!$M$15:$M$30,$B89) -> 0 | Z89: =SUMIFS(Налоги!Y$15:Y$30,Налоги!$A$15:$A$30,$A89,Налоги!$M$15:$M$30,$B89) -> 0 | AA89: =SUMIFS(Налоги!Z$15:Z$30,Налоги!$A$15:$A$30,$A89,Налоги!$M$15:$M$30,$B89) -> 0 | AB89: =SUMIFS(Налоги!AA$15:AA$30,Налоги!$A$15:$A$30,$A89,Налоги!$M$15:$M$30,$B89) -> 0 | AC89: =SUMIFS(Налоги!AB$15:AB$30,Налоги!$A$15:$A$30,$A89,Налоги!$M$15:$M$30,$B89) -> 0 | AD89: =SUMIFS(Налоги!AC$15:AC$30,Налоги!$A$15:$A$30,$A89,Налоги!$M$15:$M$30,$B89) -> 0 | AE89: =SUMIFS(Налоги!AD$15:AD$30,Налоги!$A$15:$A$30,$A89,Налоги!$M$15:$M$30,$B89) -> 0 | AF89: =SUMIFS(Налоги!AE$15:AE$30,Налоги!$A$15:$A$30,$A89,Налоги!$M$15:$M$30,$B89) -> 0 | AG89: =SUMIFS(Налоги!AF$15:AF$30,Налоги!$A$15:$A$30,$A89,Налоги!$M$15:$M$30,$B89) -> 0 | AH89: =SUMIFS(Налоги!AG$15:AG$30,Налоги!$A$15:$A$30,$A89,Налоги!$M$15:$M$30,$B89) -> 0 | AI89: =SUMIFS(Налоги!AH$15:AH$30,Налоги!$A$15:$A$30,$A89,Налоги!$M$15:$M$30,$B89) -> 0 | AJ89: =SUMIFS(Налоги!AI$15:AI$30,Налоги!$A$15:$A$30,$A89,Налоги!$M$15:$M$30,$B89) -> 0 | AK89: =SUMIFS(Налоги!AJ$15:AJ$30,Налоги!$A$15:$A$30,$A89,Налоги!$M$15:$M$30,$B89) -> 0 | AL89: =SUMIFS(Налоги!AK$15:AK$30,Налоги!$A$15:$A$30,$A89,Налоги!$M$15:$M$30,$B89) -> 0 | AM89: =SUMIFS(Налоги!AL$15:AL$30,Налоги!$A$15:$A$30,$A89,Налоги!$M$15:$M$30,$B89) -> 0 | AN89: 0 | AO89: 0 | AP89: 0 | AQ89: 0 | AR89: 0 | AS89: 0 | AT89: 0 | AU89: 0 | AV89: 0 | AW89: 0
A90: 1 | B90: Прочие налоги и сборы | D90: L2_3_9 | L90: 2.3.9 | M90: прочие налоги и сборы | N90: тыс.руб. | O90: =SUMIFS(Налоги!O$15:O$30,Налоги!$A$15:$A$30,$A90,Налоги!$M$15:$M$30,$B90) -> 0 | P90: =SUMIFS(Налоги!P$15:P$30,Налоги!$A$15:$A$30,$A90,Налоги!$M$15:$M$30,$B90) -> 0 | Q90: =SUMIFS(Налоги!Q$15:Q$30,Налоги!$A$15:$A$30,$A90,Налоги!$M$15:$M$30,$B90) -> 0 | R90: 0 | S90: =SUMIFS(Налоги!R$15:R$30,Налоги!$A$15:$A$30,$A90,Налоги!$M$15:$M$30,$B90) -> 0 | T90: =SUMIFS(Налоги!S$15:S$30,Налоги!$A$15:$A$30,$A90,Налоги!$M$15:$M$30,$B90) -> 346.87 | U90: =SUMIFS(Налоги!T$15:T$30,Налоги!$A$15:$A$30,$A90,Налоги!$M$15:$M$30,$B90) -> 0 | V90: =SUMIFS(Налоги!U$15:U$30,Налоги!$A$15:$A$30,$A90,Налоги!$M$15:$M$30,$B90) -> 0 | W90: =SUMIFS(Налоги!V$15:V$30,Налоги!$A$15:$A$30,$A90,Налоги!$M$15:$M$30,$B90) -> 0 | X90: =SUMIFS(Налоги!W$15:W$30,Налоги!$A$15:$A$30,$A90,Налоги!$M$15:$M$30,$B90) -> 0 | Y90: =SUMIFS(Налоги!X$15:X$30,Налоги!$A$15:$A$30,$A90,Налоги!$M$15:$M$30,$B90) -> 0 | Z90: =SUMIFS(Налоги!Y$15:Y$30,Налоги!$A$15:$A$30,$A90,Налоги!$M$15:$M$30,$B90) -> 0 | AA90: =SUMIFS(Налоги!Z$15:Z$30,Налоги!$A$15:$A$30,$A90,Налоги!$M$15:$M$30,$B90) -> 0 | AB90: =SUMIFS(Налоги!AA$15:AA$30,Налоги!$A$15:$A$30,$A90,Налоги!$M$15:$M$30,$B90) -> 0 | AC90: =SUMIFS(Налоги!AB$15:AB$30,Налоги!$A$15:$A$30,$A90,Налоги!$M$15:$M$30,$B90) -> 0 | AD90: =SUMIFS(Налоги!AC$15:AC$30,Налоги!$A$15:$A$30,$A90,Налоги!$M$15:$M$30,$B90) -> 0 | AE90: =SUMIFS(Налоги!AD$15:AD$30,Налоги!$A$15:$A$30,$A90,Налоги!$M$15:$M$30,$B90) -> 0 | AF90: =SUMIFS(Налоги!AE$15:AE$30,Налоги!$A$15:$A$30,$A90,Налоги!$M$15:$M$30,$B90) -> 0 | AG90: =SUMIFS(Налоги!AF$15:AF$30,Налоги!$A$15:$A$30,$A90,Налоги!$M$15:$M$30,$B90) -> 0 | AH90: =SUMIFS(Налоги!AG$15:AG$30,Налоги!$A$15:$A$30,$A90,Налоги!$M$15:$M$30,$B90) -> 0 | AI90: =SUMIFS(Налоги!AH$15:AH$30,Налоги!$A$15:$A$30,$A90,Налоги!$M$15:$M$30,$B90) -> 0 | AJ90: =SUMIFS(Налоги!AI$15:AI$30,Налоги!$A$15:$A$30,$A90,Налоги!$M$15:$M$30,$B90) -> 0 | AK90: =SUMIFS(Налоги!AJ$15:AJ$30,Налоги!$A$15:$A$30,$A90,Налоги!$M$15:$M$30,$B90) -> 0 | AL90: =SUMIFS(Налоги!AK$15:AK$30,Налоги!$A$15:$A$30,$A90,Налоги!$M$15:$M$30,$B90) -> 0 | AM90: =SUMIFS(Налоги!AL$15:AL$30,Налоги!$A$15:$A$30,$A90,Налоги!$M$15:$M$30,$B90) -> 0 | AN90: 0 | AO90: 0 | AP90: 0 | AQ90: 0 | AR90: 0 | AS90: 0 | AT90: 0 | AU90: 0 | AV90: 0 | AW90: 0
A91: 1 | B91: Расходы на мероприятия по защите централизованных систем водоснабжения | D91: L2_4 | L91: 2.4 | M91: Расходы на мероприятия по защите централизованных систем водоснабжения и (или) водоотведения и их отдельных объектов от угроз техногенного, природного характера и террористических актов, по предотвращению возникновения аварийных ситуаций, снижению риска и смягчению последствий чрезвычайных ситуаций (за исключением мероприятий, включенных в инвестиционную программу) | N91: тыс.руб. | R91: 0 | AN91: 0 | AO91: 0 | AP91: 0 | AQ91: 0 | AR91: 0 | AS91: 0 | AT91: 0 | AU91: 0 | AV91: 0 | AW91: 0
A92: 1 | B92: Арендная и концессионная плата, лизинговые платежи | D92: L2_5 | L92: 2.5 | M92: Арендная и концессионная плата, лизинговые платежи | N92: тыс.руб. | O92: =SUMIFS(Аренда!O$15:O$24,Аренда!$A$15:$A$24,$A92,Аренда!$M$15:$M$24,"Арендная и концессионная плата. Лизинговые платежи") -> 1548.64 | P92: =SUMIFS(Аренда!P$15:P$24,Аренда!$A$15:$A$24,$A92,Аренда!$M$15:$M$24,"Арендная и концессионная плата. Лизинговые платежи") -> 3035.68 | Q92: =SUMIFS(Аренда!Q$15:Q$24,Аренда!$A$15:$A$24,$A92,Аренда!$M$15:$M$24,"Арендная и концессионная плата. Лизинговые платежи") -> 2175.66 | R92: -860.02 | S92: =SUMIFS(Аренда!R$15:R$24,Аренда!$A$15:$A$24,$A92,Аренда!$M$15:$M$24,"Арендная и концессионная плата. Лизинговые платежи") -> 2160.74556 | T92: =SUMIFS(Аренда!S$15:S$24,Аренда!$A$15:$A$24,$A92,Аренда!$M$15:$M$24,"Арендная и концессионная плата. Лизинговые платежи") -> 2606.71 | U92: =SUMIFS(Аренда!T$15:T$24,Аренда!$A$15:$A$24,$A92,Аренда!$M$15:$M$24,"Арендная и концессионная плата. Лизинговые платежи") -> 0 | V92: =SUMIFS(Аренда!U$15:U$24,Аренда!$A$15:$A$24,$A92,Аренда!$M$15:$M$24,"Арендная и концессионная плата. Лизинговые платежи") -> 0 | W92: =SUMIFS(Аренда!V$15:V$24,Аренда!$A$15:$A$24,$A92,Аренда!$M$15:$M$24,"Арендная и концессионная плата. Лизинговые платежи") -> 0 | X92: =SUMIFS(Аренда!W$15:W$24,Аренда!$A$15:$A$24,$A92,Аренда!$M$15:$M$24,"Арендная и концессионная плата. Лизинговые платежи") -> 0 | Y92: =SUMIFS(Аренда!X$15:X$24,Аренда!$A$15:$A$24,$A92,Аренда!$M$15:$M$24,"Арендная и концессионная плата. Лизинговые платежи") -> 0 | Z92: =SUMIFS(Аренда!Y$15:Y$24,Аренда!$A$15:$A$24,$A92,Аренда!$M$15:$M$24,"Арендная и концессионная плата. Лизинговые платежи") -> 0 | AA92: =SUMIFS(Аренда!Z$15:Z$24,Аренда!$A$15:$A$24,$A92,Аренда!$M$15:$M$24,"Арендная и концессионная плата. Лизинговые платежи") -> 0 | AB92: =SUMIFS(Аренда!AA$15:AA$24,Аренда!$A$15:$A$24,$A92,Аренда!$M$15:$M$24,"Арендная и концессионная плата. Лизинговые платежи") -> 0 | AC92: =SUMIFS(Аренда!AB$15:AB$24,Аренда!$A$15:$A$24,$A92,Аренда!$M$15:$M$24,"Арендная и концессионная плата. Лизинговые платежи") -> 0 | AD92: =SUMIFS(Аренда!AC$15:AC$24,Аренда!$A$15:$A$24,$A92,Аренда!$M$15:$M$24,"Арендная и концессионная плата. Лизинговые платежи") -> 2122.15434 | AE92: =SUMIFS(Аренда!AD$15:AD$24,Аренда!$A$15:$A$24,$A92,Аренда!$M$15:$M$24,"Арендная и концессионная плата. Лизинговые платежи") -> 0 | AF92: =SUMIFS(Аренда!AE$15:AE$24,Аренда!$A$15:$A$24,$A92,Аренда!$M$15:$M$24,"Арендная и концессионная плата. Лизинговые платежи") -> 0 | AG92: =SUMIFS(Аренда!AF$15:AF$24,Аренда!$A$15:$A$24,$A92,Аренда!$M$15:$M$24,"Арендная и концессионная плата. Лизинговые платежи") -> 0 | AH92: =SUMIFS(Аренда!AG$15:AG$24,Аренда!$A$15:$A$24,$A92,Аренда!$M$15:$M$24,"Арендная и концессионная плата. Лизинговые платежи") -> 0 | AI92: =SUMIFS(Аренда!AH$15:AH$24,Аренда!$A$15:$A$24,$A92,Аренда!$M$15:$M$24,"Арендная и концессионная плата. Лизинговые платежи") -> 0 | AJ92: =SUMIFS(Аренда!AI$15:AI$24,Аренда!$A$15:$A$24,$A92,Аренда!$M$15:$M$24,"Арендная и концессионная плата. Лизинговые платежи") -> 0 | AK92: =SUMIFS(Аренда!AJ$15:AJ$24,Аренда!$A$15:$A$24,$A92,Аренда!$M$15:$M$24,"Арендная и концессионная плата. Лизинговые платежи") -> 0 | AL92: =SUMIFS(Аренда!AK$15:AK$24,Аренда!$A$15:$A$24,$A92,Аренда!$M$15:$M$24,"Арендная и концессионная плата. Лизинговые платежи") -> 0 | AM92: =SUMIFS(Аренда!AL$15:AL$24,Аренда!$A$15:$A$24,$A92,Аренда!$M$15:$M$24,"Арендная и концессионная плата. Лизинговые платежи") -> 0 | AN92: -1.786014088 | AO92: -100 | AP92: 0 | AQ92: 0 | AR92: 0 | AS92: 0 | AT92: 0 | AU92: 0 | AV92: 0 | AW92: 0 | AY92: 1) Пункты 49 (3), 51, 29 Методических указаний ФСТ № 1746-э. 2) Пункт 28 абз. 4 Методических указаний ФСТ № 1746-э. 3) Постановление Правительства РФ от 01.01.2002 N 1 (ред. от 18.11.2022) "О Классификации основных средств, включаемых в амортизационные группы". Постановлением Правительства РФ от 01.01.2002 N 1. 4) Пункт 4 статьи 39.7, подпункт 2 статьи 49 "Земельного кодекса Российской Федерации" от 25.10.2001 N 136-ФЗ (ред. от 04.08.2023). 5) Пункт 5 «Правил определения размера арендной платы, а также порядка, условий и сроков внесения арендной платы за земли, находящиеся в собственности Российской Федерации» (утверждены Постановлением Правительства РФ от 16.07.2009 N 582 (ред. от 10.02.2023). 6) Приказ Минэкономразвития России от 23.04.2013 N 217 . 7) Приказ Минфина России от 16.10.2018 N 208н (ред. от 29.06.2022). | AZ92: 1) АРЕНДА ЧАСТНОЙ СОБСТВЕННОСТИ: Плата за АРЕНДУ КНС согласно договора № Т-5-А14 от 17.12.2014 (ОАО "Кузбассэнерго") - 836,69 тыс. руб./год. 3) АРЕНДА ЗЕМЕЛЬНЫХ УЧАСТКОВ. Расходы по договору от 21.01.2019 № 7898/19 - 1285,47 тыс. руб./год. Обоснования см. на Листе "Аренда".
A93: 1 | D93: L2_6 | L93: 2.6 | M93: Сбытовые расходы гарантирующей организации | N93: тыс.руб. | R93: =Q93-P93 -> 0 | AN93: 0 | AO93: 0 | AP93: 0 | AQ93: 0 | AR93: 0 | AS93: 0 | AT93: 0 | AU93: 0 | AV93: 0 | AW93: 0
A94: 1 | B94: резерв по сомнительным долгам гарантирующей организации | D94: L2_6_1 | L94: 2.6.1 | M94: резерв по сомнительным долгам гарантирующей организации | N94: тыс.руб. | R94: 0 | AN94: 0 | AO94: 0 | AP94: 0 | AQ94: 0 | AR94: 0 | AS94: 0 | AT94: 0 | AU94: 0 | AV94: 0 | AW94: 0
A95: 1 | B95: Экономия расходов | D95: L2_7 | L95: 2.7 | M95: Экономия расходов | N95: тыс.руб. | R95: 0 | S95: 0 | T95: =SUMIFS(Экономия_корр!O$15:O$24,Экономия_корр!$A$15:$A$24,$A95,Экономия_корр!$M$15:$M$24,"Экономия расходов с учетом ИПЦ") -> 0 | U95: =SUMIFS(Экономия_корр!P$15:P$24,Экономия_корр!$A$15:$A$24,$A95,Экономия_корр!$M$15:$M$24,"Экономия расходов с учетом ИПЦ") -> 0 | V95: =SUMIFS(Экономия_корр!Q$15:Q$24,Экономия_корр!$A$15:$A$24,$A95,Экономия_корр!$M$15:$M$24,"Экономия расходов с учетом ИПЦ") -> 0 | W95: =SUMIFS(Экономия_корр!R$15:R$24,Экономия_корр!$A$15:$A$24,$A95,Экономия_корр!$M$15:$M$24,"Экономия расходов с учетом ИПЦ") -> 0 | X95: =SUMIFS(Экономия_корр!S$15:S$24,Экономия_корр!$A$15:$A$24,$A95,Экономия_корр!$M$15:$M$24,"Экономия расходов с учетом ИПЦ") -> 0 | Y95: =SUMIFS(Экономия_корр!T$15:T$24,Экономия_корр!$A$15:$A$24,$A95,Экономия_корр!$M$15:$M$24,"Экономия расходов с учетом ИПЦ") -> 0 | Z95: =SUMIFS(Экономия_корр!U$15:U$24,Экономия_корр!$A$15:$A$24,$A95,Экономия_корр!$M$15:$M$24,"Экономия расходов с учетом ИПЦ") -> 0 | AA95: =SUMIFS(Экономия_корр!V$15:V$24,Экономия_корр!$A$15:$A$24,$A95,Экономия_корр!$M$15:$M$24,"Экономия расходов с учетом ИПЦ") -> 0 | AB95: =SUMIFS(Экономия_корр!W$15:W$24,Экономия_корр!$A$15:$A$24,$A95,Экономия_корр!$M$15:$M$24,"Экономия расходов с учетом ИПЦ") -> 0 | AC95: =SUMIFS(Экономия_корр!X$15:X$24,Экономия_корр!$A$15:$A$24,$A95,Экономия_корр!$M$15:$M$24,"Экономия расходов с учетом ИПЦ") -> 0 | AD95: =SUMIFS(Экономия_корр!Y$15:Y$24,Экономия_корр!$A$15:$A$24,$A95,Экономия_корр!$M$15:$M$24,"Экономия расходов с учетом ИПЦ") -> 0 | AE95: =SUMIFS(Экономия_корр!Z$15:Z$24,Экономия_корр!$A$15:$A$24,$A95,Экономия_корр!$M$15:$M$24,"Экономия расходов с учетом ИПЦ") -> 0 | AF95: =SUMIFS(Экономия_корр!AA$15:AA$24,Экономия_корр!$A$15:$A$24,$A95,Экономия_корр!$M$15:$M$24,"Экономия расходов с учетом ИПЦ") -> 0 | AG95: =SUMIFS(Экономия_корр!AB$15:AB$24,Экономия_корр!$A$15:$A$24,$A95,Экономия_корр!$M$15:$M$24,"Экономия расходов с учетом ИПЦ") -> 0 | AH95: =SUMIFS(Экономия_корр!AC$15:AC$24,Экономия_корр!$A$15:$A$24,$A95,Экономия_корр!$M$15:$M$24,"Экономия расходов с учетом ИПЦ") -> 0 | AI95: =SUMIFS(Экономия_корр!AD$15:AD$24,Экономия_корр!$A$15:$A$24,$A95,Экономия_корр!$M$15:$M$24,"Экономия расходов с учетом ИПЦ") -> 0 | AJ95: =SUMIFS(Экономия_корр!AE$15:AE$24,Экономия_корр!$A$15:$A$24,$A95,Экономия_корр!$M$15:$M$24,"Экономия расходов с учетом ИПЦ") -> 0 | AK95: =SUMIFS(Экономия_корр!AF$15:AF$24,Экономия_корр!$A$15:$A$24,$A95,Экономия_корр!$M$15:$M$24,"Экономия расходов с учетом ИПЦ") -> 0 | AL95: =SUMIFS(Экономия_корр!AG$15:AG$24,Экономия_корр!$A$15:$A$24,$A95,Экономия_корр!$M$15:$M$24,"Экономия расходов с учетом ИПЦ") -> 0 | AM95: =SUMIFS(Экономия_корр!AH$15:AH$24,Экономия_корр!$A$15:$A$24,$A95,Экономия_корр!$M$15:$M$24,"Экономия расходов с учетом ИПЦ") -> 0 | AN95: 0 | AO95: 0 | AP95: 0 | AQ95: 0 | AR95: 0 | AS95: 0 | AT95: 0 | AU95: 0 | AV95: 0 | AW95: 0
A96: 1 | B96: Расходы на обслуживание бесхозяйных сетей | D96: L2_8 | L96: 2.8 | M96: Расходы на обслуживание бесхозяйных сетей | N96: тыс.руб. | R96: 0 | AN96: 0 | AO96: 0 | AP96: 0 | AQ96: 0 | AR96: 0 | AS96: 0 | AT96: 0 | AU96: 0 | AV96: 0 | AW96: 0
A97: 1 | B97: Расходы на компенсацию экономически обоснованных расходов | D97: L2_9 | L97: 2.9 | M97: Расходы на компенсацию экономически обоснованных расходов | N97: тыс.руб. | R97: 0 | AN97: 0 | AO97: 0 | AP97: 0 | AQ97: 0 | AR97: 0 | AS97: 0 | AT97: 0 | AU97: 0 | AV97: 0 | AW97: 0
A98: 1 | B98: Займы и кредиты (для метода индексации) | D98: L2_10 | L98: 2.10 | M98: Займы и кредиты (для метода индексации) | N98: тыс.руб. | O98: =SUM(O99,O100) -> 0 | P98: =SUM(P99,P100) -> 0 | Q98: 0 | R98: 0 | S98: 0 | T98: 0 | U98: 0 | V98: 0 | W98: 0 | X98: 0 | Y98: 0 | Z98: 0 | AA98: 0 | AB98: 0 | AC98: 0 | AD98: 0 | AE98: 0 | AF98: 0 | AG98: 0 | AH98: 0 | AI98: 0 | AJ98: 0 | AK98: 0 | AL98: 0 | AM98: 0 | AN98: 0 | AO98: 0 | AP98: 0 | AQ98: 0 | AR98: 0 | AS98: 0 | AT98: 0 | AU98: 0 | AV98: 0 | AW98: 0
A99: 1 | D99: L2_10_1 | L99: 2.10.1 | M99: возврат займов и кредитов | N99: тыс.руб. | R99: 0 | AN99: 0 | AO99: 0 | AP99: 0 | AQ99: 0 | AR99: 0 | AS99: 0 | AT99: 0 | AU99: 0 | AV99: 0 | AW99: 0
A100: 1 | D100: L2_10_2 | L100: 2.10.2 | M100: проценты по займам и кредитам | N100: тыс.руб. | R100: 0 | AN100: 0 | AO100: 0 | AP100: 0 | AQ100: 0 | AR100: 0 | AS100: 0 | AT100: 0 | AU100: 0 | AV100: 0 | AW100: 0
A101: 1 | B101: Расходы концессионера на осуществление государственного кадастрового учета | D101: L2_11 | L101: 2.11 | M101: Расходы концессионера на осуществление государственного кадастрового учета и (или) государственной регистрации права собственности концедента | N101: тыс.руб. | R101: 0 | AN101: 0 | AO101: 0 | AP101: 0 | AQ101: 0 | AR101: 0 | AS101: 0 | AT101: 0 | AU101: 0 | AV101: 0 | AW101: 0
A102: 1 | B102: ээ | D102: L3 | L102: 3 | M102: Расходы на электрическую энергию | N102: тыс.руб. | O102: =SUMIFS(ЭЭ!O$15:O$42,ЭЭ!$A$15:$A$42,$A102,ЭЭ!$M$15:$M$42,"Всего по тарифу") -> 24069.69814 | P102: =SUMIFS(ЭЭ!P$15:P$42,ЭЭ!$A$15:$A$42,$A102,ЭЭ!$M$15:$M$42,"Всего по тарифу") -> 28218.17 | Q102: =SUMIFS(ЭЭ!Q$15:Q$42,ЭЭ!$A$15:$A$42,$A102,ЭЭ!$M$15:$M$42,"Всего по тарифу") -> 27768.5018 | R102: -449.6681993 | S102: =SUMIFS(ЭЭ!R$15:R$42,ЭЭ!$A$15:$A$42,$A102,ЭЭ!$M$15:$M$42,"Всего по тарифу") -> 30427.11069 | T102: =SUMIFS(ЭЭ!S$15:S$42,ЭЭ!$A$15:$A$42,$A102,ЭЭ!$M$15:$M$42,"Всего по тарифу") -> 32887.36 | U102: =SUMIFS(ЭЭ!T$15:T$42,ЭЭ!$A$15:$A$42,$A102,ЭЭ!$M$15:$M$42,"Всего по тарифу") -> 0 | V102: =SUMIFS(ЭЭ!U$15:U$42,ЭЭ!$A$15:$A$42,$A102,ЭЭ!$M$15:$M$42,"Всего по тарифу") -> 0 | W102: =SUMIFS(ЭЭ!V$15:V$42,ЭЭ!$A$15:$A$42,$A102,ЭЭ!$M$15:$M$42,"Всего по тарифу") -> 0 | X102: =SUMIFS(ЭЭ!W$15:W$42,ЭЭ!$A$15:$A$42,$A102,ЭЭ!$M$15:$M$42,"Всего по тарифу") -> 0 | Y102: =SUMIFS(ЭЭ!X$15:X$42,ЭЭ!$A$15:$A$42,$A102,ЭЭ!$M$15:$M$42,"Всего по тарифу") -> 0 | Z102: =SUMIFS(ЭЭ!Y$15:Y$42,ЭЭ!$A$15:$A$42,$A102,ЭЭ!$M$15:$M$42,"Всего по тарифу") -> 0 | AA102: =SUMIFS(ЭЭ!Z$15:Z$42,ЭЭ!$A$15:$A$42,$A102,ЭЭ!$M$15:$M$42,"Всего по тарифу") -> 0 | AB102: =SUMIFS(ЭЭ!AA$15:AA$42,ЭЭ!$A$15:$A$42,$A102,ЭЭ!$M$15:$M$42,"Всего по тарифу") -> 0 | AC102: =SUMIFS(ЭЭ!AB$15:AB$42,ЭЭ!$A$15:$A$42,$A102,ЭЭ!$M$15:$M$42,"Всего по тарифу") -> 0 | AD102: =SUMIFS(ЭЭ!AC$15:AC$42,ЭЭ!$A$15:$A$42,$A102,ЭЭ!$M$15:$M$42,"Всего по тарифу") -> 31679.75401 | AE102: =SUMIFS(ЭЭ!AD$15:AD$42,ЭЭ!$A$15:$A$42,$A102,ЭЭ!$M$15:$M$42,"Всего по тарифу") -> 0 | AF102: =SUMIFS(ЭЭ!AE$15:AE$42,ЭЭ!$A$15:$A$42,$A102,ЭЭ!$M$15:$M$42,"Всего по тарифу") -> 0 | AG102: =SUMIFS(ЭЭ!AF$15:AF$42,ЭЭ!$A$15:$A$42,$A102,ЭЭ!$M$15:$M$42,"Всего по тарифу") -> 0 | AH102: =SUMIFS(ЭЭ!AG$15:AG$42,ЭЭ!$A$15:$A$42,$A102,ЭЭ!$M$15:$M$42,"Всего по тарифу") -> 0 | AI102: =SUMIFS(ЭЭ!AH$15:AH$42,ЭЭ!$A$15:$A$42,$A102,ЭЭ!$M$15:$M$42,"Всего по тарифу") -> 0 | AJ102: =SUMIFS(ЭЭ!AI$15:AI$42,ЭЭ!$A$15:$A$42,$A102,ЭЭ!$M$15:$M$42,"Всего по тарифу") -> 0 | AK102: =SUMIFS(ЭЭ!AJ$15:AJ$42,ЭЭ!$A$15:$A$42,$A102,ЭЭ!$M$15:$M$42,"Всего по тарифу") -> 0 | AL102: =SUMIFS(ЭЭ!AK$15:AK$42,ЭЭ!$A$15:$A$42,$A102,ЭЭ!$M$15:$M$42,"Всего по тарифу") -> 0 | AM102: =SUMIFS(ЭЭ!AL$15:AL$42,ЭЭ!$A$15:$A$42,$A102,ЭЭ!$M$15:$M$42,"Всего по тарифу") -> 0 | AN102: 4.116865825 | AO102: -100 | AP102: 0 | AQ102: 0 | AR102: 0 | AS102: 0 | AT102: 0 | AU102: 0 | AV102: 0 | AW102: 0 | AY102: 1) П. 20, 84, 88, 43 Методических указаний ФСТ № 1746-э. 2) Постановление региональной энергетической комиссии Кемеровской области от 19.12.2018 № 759 (в редакции Постановлений Региональной энергетической комиссии от 24.11.2020 N 427, от 11.02.2021 N 60). | AZ102: Плановый общий годовой объем потребления активной энергии на 2025 год определен на основании утвержденного показателя удельного расхода энергии 1,25 кВт*ч/м3 (в соответствии с долгосрочными параметрами регулирования тарифов) и принятого годового объема пропуска сточных вод через очистные сооружения. Плановая среднегодовая величина заявленной мощности - на уровне соответствующего фактического показателя отчетного 2023 г. Плановые цены на электроэнергию и мощность на 2025 год рассчитаны от фактических средневзвешенных цен 2023 г. с учетом ИЦП электроэнергии на 2024 г. - 105,1%, на 2025 г. - 109,8% согласно Прогноза Минэкономразвития России от 30.09.2024.
A103: 1 | B103: амортизация | D103: L4 | L103: 4 | M103: Амортизация основных средств и нематериальных активов, относимых к объектам централизованной системы водоснабжения (водоотведения) | N103: тыс.руб. | O103: =SUMIFS(Амортизация!O$15:O$65,Амортизация!$A$15:$A$65,$A103,Амортизация!$M$15:$M$65,"Сумма амортизационных отчислений") -> 825.67 | P103: =SUMIFS(Амортизация!P$15:P$65,Амортизация!$A$15:$A$65,$A103,Амортизация!$M$15:$M$65,"Сумма амортизационных отчислений") -> 1161.01184 | Q103: =SUMIFS(Амортизация!Q$15:Q$65,Амортизация!$A$15:$A$65,$A103,Амортизация!$M$15:$M$65,"Сумма амортизационных отчислений") -> 812.6428067 | R103: -348.3690333 | S103: =SUMIFS(Амортизация!R$15:R$65,Амортизация!$A$15:$A$65,$A103,Амортизация!$M$15:$M$65,"Сумма амортизационных отчислений") -> 862.61832 | T103: =SUMIFS(Амортизация!S$15:S$65,Амортизация!$A$15:$A$65,$A103,Амортизация!$M$15:$M$65,"Сумма амортизационных отчислений") -> 1539.84 | U103: =SUMIFS(Амортизация!T$15:T$65,Амортизация!$A$15:$A$65,$A103,Амортизация!$M$15:$M$65,"Сумма амортизационных отчислений") -> 0 | V103: =SUMIFS(Амортизация!U$15:U$65,Амортизация!$A$15:$A$65,$A103,Амортизация!$M$15:$M$65,"Сумма амортизационных отчислений") -> 0 | W103: =SUMIFS(Амортизация!V$15:V$65,Амортизация!$A$15:$A$65,$A103,Амортизация!$M$15:$M$65,"Сумма амортизационных отчислений") -> 0 | X103: =SUMIFS(Амортизация!W$15:W$65,Амортизация!$A$15:$A$65,$A103,Амортизация!$M$15:$M$65,"Сумма амортизационных отчислений") -> 0 | Y103: =SUMIFS(Амортизация!X$15:X$65,Амортизация!$A$15:$A$65,$A103,Амортизация!$M$15:$M$65,"Сумма амортизационных отчислений") -> 0 | Z103: =SUMIFS(Амортизация!Y$15:Y$65,Амортизация!$A$15:$A$65,$A103,Амортизация!$M$15:$M$65,"Сумма амортизационных отчислений") -> 0 | AA103: =SUMIFS(Амортизация!Z$15:Z$65,Амортизация!$A$15:$A$65,$A103,Амортизация!$M$15:$M$65,"Сумма амортизационных отчислений") -> 0 | AB103: =SUMIFS(Амортизация!AA$15:AA$65,Амортизация!$A$15:$A$65,$A103,Амортизация!$M$15:$M$65,"Сумма амортизационных отчислений") -> 0 | AC103: =SUMIFS(Амортизация!AB$15:AB$65,Амортизация!$A$15:$A$65,$A103,Амортизация!$M$15:$M$65,"Сумма амортизационных отчислений") -> 0 | AD103: =SUMIFS(Амортизация!AC$15:AC$65,Амортизация!$A$15:$A$65,$A103,Амортизация!$M$15:$M$65,"Сумма амортизационных отчислений") -> 796.0898967 | AE103: =SUMIFS(Амортизация!AD$15:AD$65,Амортизация!$A$15:$A$65,$A103,Амортизация!$M$15:$M$65,"Сумма амортизационных отчислений") -> 0 | AF103: =SUMIFS(Амортизация!AE$15:AE$65,Амортизация!$A$15:$A$65,$A103,Амортизация!$M$15:$M$65,"Сумма амортизационных отчислений") -> 0 | AG103: =SUMIFS(Амортизация!AF$15:AF$65,Амортизация!$A$15:$A$65,$A103,Амортизация!$M$15:$M$65,"Сумма амортизационных отчислений") -> 0 | AH103: =SUMIFS(Амортизация!AG$15:AG$65,Амортизация!$A$15:$A$65,$A103,Амортизация!$M$15:$M$65,"Сумма амортизационных отчислений") -> 0 | AI103: =SUMIFS(Амортизация!AH$15:AH$65,Амортизация!$A$15:$A$65,$A103,Амортизация!$M$15:$M$65,"Сумма амортизационных отчислений") -> 0 | AJ103: =SUMIFS(Амортизация!AI$15:AI$65,Амортизация!$A$15:$A$65,$A103,Амортизация!$M$15:$M$65,"Сумма амортизационных отчислений") -> 0 | AK103: =SUMIFS(Амортизация!AJ$15:AJ$65,Амортизация!$A$15:$A$65,$A103,Амортизация!$M$15:$M$65,"Сумма амортизационных отчислений") -> 0 | AL103: =SUMIFS(Амортизация!AK$15:AK$65,Амортизация!$A$15:$A$65,$A103,Амортизация!$M$15:$M$65,"Сумма амортизационных отчислений") -> 0 | AM103: =SUMIFS(Амортизация!AL$15:AL$65,Амортизация!$A$15:$A$65,$A103,Амортизация!$M$15:$M$65,"Сумма амортизационных отчислений") -> 0 | AN103: -7.712382382 | AO103: -100 | AP103: 0 | AQ103: 0 | AR103: 0 | AS103: 0 | AT103: 0 | AU103: 0 | AV103: 0 | AW103: 0 | AY103: 1) П. 89, п. 28, п 18(7) Методических указаний ФСТ № 1746-э. 2) Постановление Правительства РФ от 01.01.2002 N 1 (ред. от 18.11.2022) "О Классификации основных средств, включаемых в амортизационные группы". 3) Приказ Минфина России от 17.09.2020 N 204н (ред. от 30.05.2022) "Об утверждении Федеральных стандартов бухгалтерского учета ФСБУ 6/2020 "Основные средства" и ФСБУ 26/2020 "Капитальные вложения" (Зарегистрировано в Минюсте России 15.10.2020 N 60399). 4) Письмо> ФАС России от 05.08.2022 N МШ/74227/22 "О новых стандартах бухгалтерского учета, подлежащих применению начиная с бухгалтерской (финансовой) отчетности за 2022 год". 5) Учетная политика ООО "БелГОС" для целей бухгалтерского учета (Приказ от 30.12.2021 № 565). | AZ103: УЧТЕНО: 1) Сумма амортизации собственного имущества - 357,96 тыс. руб. Рассчитана на основании Отчетов по основным средствам за 2023 г. и представленных инвентарных карт. Начисления скорректированы, исходя из максимального нормативного срока полезного использования, по объектам инвентарного учета № 6014, № 5932, № 6004, № 330. Начисления по транспортным средствам ИСКЛЮЧЕНЫ, так как относятся к Операционным расходам (п. 28 Методических указаний ФСТ № 1746-э). 2) Амортизация НМА (нематериальных активов) - 438,13 тыс. руб. См. Лист "Амортизация".
A104: 1 | D104: L4_1 | L104: 4.1 | M104: в том числе инвестиционная (справочно) | N104: тыс.руб. | O104: 438.13 | P104: 572.20202 | Q104: 438.13428 | R104: -134.06774 | S104: 496.69 | T104: =SUMIFS('ИП + источники'!U$17:U$65,'ИП + источники'!$A$17:$A$65,$A104,'ИП + источники'!$M$17:$M$65,"Амортизационные отчисления")+SUMIFS('ИП + источники'!U$17:U$65,'ИП + источники'!$A$17:$A$65,$A104,'ИП + источники'!$M$17:$M$65,"погашение займов и кредитов из амортизации") -> 930.37 | U104: =SUMIFS('ИП + источники'!V$17:V$65,'ИП + источники'!$A$17:$A$65,$A104,'ИП + источники'!$M$17:$M$65,"Амортизационные отчисления")+SUMIFS('ИП + источники'!V$17:V$65,'ИП + источники'!$A$17:$A$65,$A104,'ИП + источники'!$M$17:$M$65,"погашение займов и кредитов из амортизации") -> 0 | V104: =SUMIFS('ИП + источники'!W$17:W$65,'ИП + источники'!$A$17:$A$65,$A104,'ИП + источники'!$M$17:$M$65,"Амортизационные отчисления")+SUMIFS('ИП + источники'!W$17:W$65,'ИП + источники'!$A$17:$A$65,$A104,'ИП + источники'!$M$17:$M$65,"погашение займов и кредитов из амортизации") -> 0 | W104: =SUMIFS('ИП + источники'!X$17:X$65,'ИП + источники'!$A$17:$A$65,$A104,'ИП + источники'!$M$17:$M$65,"Амортизационные отчисления")+SUMIFS('ИП + источники'!X$17:X$65,'ИП + источники'!$A$17:$A$65,$A104,'ИП + источники'!$M$17:$M$65,"погашение займов и кредитов из амортизации") -> 0 | X104: =SUMIFS('ИП + источники'!Y$17:Y$65,'ИП + источники'!$A$17:$A$65,$A104,'ИП + источники'!$M$17:$M$65,"Амортизационные отчисления")+SUMIFS('ИП + источники'!Y$17:Y$65,'ИП + источники'!$A$17:$A$65,$A104,'ИП + источники'!$M$17:$M$65,"погашение займов и кредитов из амортизации") -> 0 | Y104: =SUMIFS('ИП + источники'!Z$17:Z$65,'ИП + источники'!$A$17:$A$65,$A104,'ИП + источники'!$M$17:$M$65,"Амортизационные отчисления")+SUMIFS('ИП + источники'!Z$17:Z$65,'ИП + источники'!$A$17:$A$65,$A104,'ИП + источники'!$M$17:$M$65,"погашение займов и кредитов из амортизации") -> 0 | Z104: =SUMIFS('ИП + источники'!AA$17:AA$65,'ИП + источники'!$A$17:$A$65,$A104,'ИП + источники'!$M$17:$M$65,"Амортизационные отчисления")+SUMIFS('ИП + источники'!AA$17:AA$65,'ИП + источники'!$A$17:$A$65,$A104,'ИП + источники'!$M$17:$M$65,"погашение займов и кредитов из амортизации") -> 0 | AA104: =SUMIFS('ИП + источники'!AB$17:AB$65,'ИП + источники'!$A$17:$A$65,$A104,'ИП + источники'!$M$17:$M$65,"Амортизационные отчисления")+SUMIFS('ИП + источники'!AB$17:AB$65,'ИП + источники'!$A$17:$A$65,$A104,'ИП + источники'!$M$17:$M$65,"погашение займов и кредитов из амортизации") -> 0 | AB104: =SUMIFS('ИП + источники'!AC$17:AC$65,'ИП + источники'!$A$17:$A$65,$A104,'ИП + источники'!$M$17:$M$65,"Амортизационные отчисления")+SUMIFS('ИП + источники'!AC$17:AC$65,'ИП + источники'!$A$17:$A$65,$A104,'ИП + источники'!$M$17:$M$65,"погашение займов и кредитов из амортизации") -> 0 | AC104: =SUMIFS('ИП + источники'!AD$17:AD$65,'ИП + источники'!$A$17:$A$65,$A104,'ИП + источники'!$M$17:$M$65,"Амортизационные отчисления")+SUMIFS('ИП + источники'!AD$17:AD$65,'ИП + источники'!$A$17:$A$65,$A104,'ИП + источники'!$M$17:$M$65,"погашение займов и кредитов из амортизации") -> 0 | AD104: =SUMIFS('ИП + источники'!AE$17:AE$65,'ИП + источники'!$A$17:$A$65,$A104,'ИП + источники'!$M$17:$M$65,"Амортизационные отчисления")+SUMIFS('ИП + источники'!AE$17:AE$65,'ИП + источники'!$A$17:$A$65,$A104,'ИП + источники'!$M$17:$M$65,"погашение займов и кредитов из амортизации") -> 438.13428 | AE104: =SUMIFS('ИП + источники'!AF$17:AF$65,'ИП + источники'!$A$17:$A$65,$A104,'ИП + источники'!$M$17:$M$65,"Амортизационные отчисления")+SUMIFS('ИП + источники'!AF$17:AF$65,'ИП + источники'!$A$17:$A$65,$A104,'ИП + источники'!$M$17:$M$65,"погашение займов и кредитов из амортизации") -> 0 | AF104: =SUMIFS('ИП + источники'!AG$17:AG$65,'ИП + источники'!$A$17:$A$65,$A104,'ИП + источники'!$M$17:$M$65,"Амортизационные отчисления")+SUMIFS('ИП + источники'!AG$17:AG$65,'ИП + источники'!$A$17:$A$65,$A104,'ИП + источники'!$M$17:$M$65,"погашение займов и кредитов из амортизации") -> 0 | AG104: =SUMIFS('ИП + источники'!AH$17:AH$65,'ИП + источники'!$A$17:$A$65,$A104,'ИП + источники'!$M$17:$M$65,"Амортизационные отчисления")+SUMIFS('ИП + источники'!AH$17:AH$65,'ИП + источники'!$A$17:$A$65,$A104,'ИП + источники'!$M$17:$M$65,"погашение займов и кредитов из амортизации") -> 0 | AH104: =SUMIFS('ИП + источники'!AI$17:AI$65,'ИП + источники'!$A$17:$A$65,$A104,'ИП + источники'!$M$17:$M$65,"Амортизационные отчисления")+SUMIFS('ИП + источники'!AI$17:AI$65,'ИП + источники'!$A$17:$A$65,$A104,'ИП + источники'!$M$17:$M$65,"погашение займов и кредитов из амортизации") -> 0 | AI104: =SUMIFS('ИП + источники'!AJ$17:AJ$65,'ИП + источники'!$A$17:$A$65,$A104,'ИП + источники'!$M$17:$M$65,"Амортизационные отчисления")+SUMIFS('ИП + источники'!AJ$17:AJ$65,'ИП + источники'!$A$17:$A$65,$A104,'ИП + источники'!$M$17:$M$65,"погашение займов и кредитов из амортизации") -> 0 | AJ104: =SUMIFS('ИП + источники'!AK$17:AK$65,'ИП + источники'!$A$17:$A$65,$A104,'ИП + источники'!$M$17:$M$65,"Амортизационные отчисления")+SUMIFS('ИП + источники'!AK$17:AK$65,'ИП + источники'!$A$17:$A$65,$A104,'ИП + источники'!$M$17:$M$65,"погашение займов и кредитов из амортизации") -> 0 | AK104: =SUMIFS('ИП + источники'!AL$17:AL$65,'ИП + источники'!$A$17:$A$65,$A104,'ИП + источники'!$M$17:$M$65,"Амортизационные отчисления")+SUMIFS('ИП + источники'!AL$17:AL$65,'ИП + источники'!$A$17:$A$65,$A104,'ИП + источники'!$M$17:$M$65,"погашение займов и кредитов из амортизации") -> 0 | AL104: =SUMIFS('ИП + источники'!AM$17:AM$65,'ИП + источники'!$A$17:$A$65,$A104,'ИП + источники'!$M$17:$M$65,"Амортизационные отчисления")+SUMIFS('ИП + источники'!AM$17:AM$65,'ИП + источники'!$A$17:$A$65,$A104,'ИП + источники'!$M$17:$M$65,"погашение займов и кредитов из амортизации") -> 0 | AM104: =SUMIFS('ИП + источники'!AN$17:AN$65,'ИП + источники'!$A$17:$A$65,$A104,'ИП + источники'!$M$17:$M$65,"Амортизационные отчисления")+SUMIFS('ИП + источники'!AN$17:AN$65,'ИП + источники'!$A$17:$A$65,$A104,'ИП + источники'!$M$17:$M$65,"погашение займов и кредитов из амортизации") -> 0 | AN104: -11.78918843 | AO104: -100 | AP104: 0 | AQ104: 0 | AR104: 0 | AS104: 0 | AT104: 0 | AU104: 0 | AV104: 0 | AW104: 0 | AY104: 1) Постановление РЭК Кемеровской области от 27.12.2018 N 748 "Об утверждении инвестиционной программы ООО "Беловские Городские очистные сооружения" (Беловский городской округ) в сфере водоотведения на 2019 - 2021 годы". 2) Учетная политика ООО "БелГОС" для целей бухгалтерского учета (Приказ от 30.12.2021 № 565). | AZ104: Исключены начисления в части стоимости капитальных вложений в концессионное имущество, не предусмотренных Инвестиционной программой (соответствует позиции ФАС России).
A105: 1 | B105: Нормативная прибыль | D105: L5 | L105: 5 | M105: Нормативная прибыль | N105: тыс.руб. | O105: =O106+O107+O108+O109 -> 363.2858819 | P105: =P106+P107+P108+P109 -> 157.69 | Q105: 374.7352183 | R105: 217.0452183 | S105: 429.1154682 | T105: 374 | U105: 0 | V105: 0 | W105: 0 | X105: 0 | Y105: 0 | Z105: 0 | AA105: 0 | AB105: 0 | AC105: 0 | AD105: 451.275437 | AE105: 0 | AF105: 0 | AG105: 0 | AH105: 0 | AI105: 0 | AJ105: 0 | AK105: 0 | AL105: 0 | AM105: 0 | AN105: 5.164103956 | AO105: -100 | AP105: 0 | AQ105: 0 | AR105: 0 | AS105: 0 | AT105: 0 | AU105: 0 | AV105: 0 | AW105: 0
A106: 1 | D106: L5_1 | L106: 5.1 | M106: средства на возврат инвестиционных займов | N106: тыс.руб. | O106: 0 | P106: =SUMIFS('ИП + источники'!Q$17:Q$65,'ИП + источники'!$A$17:$A$65,$A106,'ИП + источники'!$M$17:$M$65,"погашение займов и кредитов из нормативной прибыли") -> 0 | Q106: =SUMIFS('ИП + источники'!R$17:R$65,'ИП + источники'!$A$17:$A$65,$A106,'ИП + источники'!$M$17:$M$65,"погашение займов и кредитов из нормативной прибыли") -> 0 | R106: 0 | S106: 0 | T106: =SUMIFS('ИП + источники'!U$17:U$65,'ИП + источники'!$A$17:$A$65,$A106,'ИП + источники'!$M$17:$M$65,"погашение займов и кредитов из нормативной прибыли") -> 0 | U106: =SUMIFS('ИП + источники'!V$17:V$65,'ИП + источники'!$A$17:$A$65,$A106,'ИП + источники'!$M$17:$M$65,"погашение займов и кредитов из нормативной прибыли") -> 0 | V106: =SUMIFS('ИП + источники'!W$17:W$65,'ИП + источники'!$A$17:$A$65,$A106,'ИП + источники'!$M$17:$M$65,"погашение займов и кредитов из нормативной прибыли") -> 0 | W106: =SUMIFS('ИП + источники'!X$17:X$65,'ИП + источники'!$A$17:$A$65,$A106,'ИП + источники'!$M$17:$M$65,"погашение займов и кредитов из нормативной прибыли") -> 0 | X106: =SUMIFS('ИП + источники'!Y$17:Y$65,'ИП + источники'!$A$17:$A$65,$A106,'ИП + источники'!$M$17:$M$65,"погашение займов и кредитов из нормативной прибыли") -> 0 | Y106: =SUMIFS('ИП + источники'!Z$17:Z$65,'ИП + источники'!$A$17:$A$65,$A106,'ИП + источники'!$M$17:$M$65,"погашение займов и кредитов из нормативной прибыли") -> 0 | Z106: =SUMIFS('ИП + источники'!AA$17:AA$65,'ИП + источники'!$A$17:$A$65,$A106,'ИП + источники'!$M$17:$M$65,"погашение займов и кредитов из нормативной прибыли") -> 0 | AA106: =SUMIFS('ИП + источники'!AB$17:AB$65,'ИП + источники'!$A$17:$A$65,$A106,'ИП + источники'!$M$17:$M$65,"погашение займов и кредитов из нормативной прибыли") -> 0 | AB106: =SUMIFS('ИП + источники'!AC$17:AC$65,'ИП + источники'!$A$17:$A$65,$A106,'ИП + источники'!$M$17:$M$65,"погашение займов и кредитов из нормативной прибыли") -> 0 | AC106: =SUMIFS('ИП + источники'!AD$17:AD$65,'ИП + источники'!$A$17:$A$65,$A106,'ИП + источники'!$M$17:$M$65,"погашение займов и кредитов из нормативной прибыли") -> 0 | AD106: =SUMIFS('ИП + источники'!AE$17:AE$65,'ИП + источники'!$A$17:$A$65,$A106,'ИП + источники'!$M$17:$M$65,"погашение займов и кредитов из нормативной прибыли") -> 0 | AE106: =SUMIFS('ИП + источники'!AF$17:AF$65,'ИП + источники'!$A$17:$A$65,$A106,'ИП + источники'!$M$17:$M$65,"погашение займов и кредитов из нормативной прибыли") -> 0 | AF106: =SUMIFS('ИП + источники'!AG$17:AG$65,'ИП + источники'!$A$17:$A$65,$A106,'ИП + источники'!$M$17:$M$65,"погашение займов и кредитов из нормативной прибыли") -> 0 | AG106: =SUMIFS('ИП + источники'!AH$17:AH$65,'ИП + источники'!$A$17:$A$65,$A106,'ИП + источники'!$M$17:$M$65,"погашение займов и кредитов из нормативной прибыли") -> 0 | AH106: =SUMIFS('ИП + источники'!AI$17:AI$65,'ИП + источники'!$A$17:$A$65,$A106,'ИП + источники'!$M$17:$M$65,"погашение займов и кредитов из нормативной прибыли") -> 0 | AI106: =SUMIFS('ИП + источники'!AJ$17:AJ$65,'ИП + источники'!$A$17:$A$65,$A106,'ИП + источники'!$M$17:$M$65,"погашение займов и кредитов из нормативной прибыли") -> 0 | AJ106: =SUMIFS('ИП + источники'!AK$17:AK$65,'ИП + источники'!$A$17:$A$65,$A106,'ИП + источники'!$M$17:$M$65,"погашение займов и кредитов из нормативной прибыли") -> 0 | AK106: =SUMIFS('ИП + источники'!AL$17:AL$65,'ИП + источники'!$A$17:$A$65,$A106,'ИП + источники'!$M$17:$M$65,"погашение займов и кредитов из нормативной прибыли") -> 0 | AL106: =SUMIFS('ИП + источники'!AM$17:AM$65,'ИП + источники'!$A$17:$A$65,$A106,'ИП + источники'!$M$17:$M$65,"погашение займов и кредитов из нормативной прибыли") -> 0 | AM106: =SUMIFS('ИП + источники'!AN$17:AN$65,'ИП + источники'!$A$17:$A$65,$A106,'ИП + источники'!$M$17:$M$65,"погашение займов и кредитов из нормативной прибыли") -> 0 | AN106: 0 | AO106: 0 | AP106: 0 | AQ106: 0 | AR106: 0 | AS106: 0 | AT106: 0 | AU106: 0 | AV106: 0 | AW106: 0
A107: 1 | D107: L5_2 | L107: 5.2 | M107: средства на уплату процентов по инвестиционным займам | N107: тыс.руб. | O107: 0 | P107: =SUMIFS('ИП + источники'!Q$17:Q$65,'ИП + источники'!$A$17:$A$65,$A107,'ИП + источники'!$M$17:$M$65,"уплата процентов по кредитам из нормативной прибыли") -> 0 | Q107: =SUMIFS('ИП + источники'!R$17:R$65,'ИП + источники'!$A$17:$A$65,$A107,'ИП + источники'!$M$17:$M$65,"уплата процентов по кредитам из нормативной прибыли") -> 0 | R107: 0 | S107: 0 | T107: =SUMIFS('ИП + источники'!U$17:U$65,'ИП + источники'!$A$17:$A$65,$A107,'ИП + источники'!$M$17:$M$65,"уплата процентов по кредитам из нормативной прибыли") -> 0 | U107: =SUMIFS('ИП + источники'!V$17:V$65,'ИП + источники'!$A$17:$A$65,$A107,'ИП + источники'!$M$17:$M$65,"уплата процентов по кредитам из нормативной прибыли") -> 0 | V107: =SUMIFS('ИП + источники'!W$17:W$65,'ИП + источники'!$A$17:$A$65,$A107,'ИП + источники'!$M$17:$M$65,"уплата процентов по кредитам из нормативной прибыли") -> 0 | W107: =SUMIFS('ИП + источники'!X$17:X$65,'ИП + источники'!$A$17:$A$65,$A107,'ИП + источники'!$M$17:$M$65,"уплата процентов по кредитам из нормативной прибыли") -> 0 | X107: =SUMIFS('ИП + источники'!Y$17:Y$65,'ИП + источники'!$A$17:$A$65,$A107,'ИП + источники'!$M$17:$M$65,"уплата процентов по кредитам из нормативной прибыли") -> 0 | Y107: =SUMIFS('ИП + источники'!Z$17:Z$65,'ИП + источники'!$A$17:$A$65,$A107,'ИП + источники'!$M$17:$M$65,"уплата процентов по кредитам из нормативной прибыли") -> 0 | Z107: =SUMIFS('ИП + источники'!AA$17:AA$65,'ИП + источники'!$A$17:$A$65,$A107,'ИП + источники'!$M$17:$M$65,"уплата процентов по кредитам из нормативной прибыли") -> 0 | AA107: =SUMIFS('ИП + источники'!AB$17:AB$65,'ИП + источники'!$A$17:$A$65,$A107,'ИП + источники'!$M$17:$M$65,"уплата процентов по кредитам из нормативной прибыли") -> 0 | AB107: =SUMIFS('ИП + источники'!AC$17:AC$65,'ИП + источники'!$A$17:$A$65,$A107,'ИП + источники'!$M$17:$M$65,"уплата процентов по кредитам из нормативной прибыли") -> 0 | AC107: =SUMIFS('ИП + источники'!AD$17:AD$65,'ИП + источники'!$A$17:$A$65,$A107,'ИП + источники'!$M$17:$M$65,"уплата процентов по кредитам из нормативной прибыли") -> 0 | AD107: =SUMIFS('ИП + источники'!AE$17:AE$65,'ИП + источники'!$A$17:$A$65,$A107,'ИП + источники'!$M$17:$M$65,"уплата процентов по кредитам из нормативной прибыли") -> 0 | AE107: =SUMIFS('ИП + источники'!AF$17:AF$65,'ИП + источники'!$A$17:$A$65,$A107,'ИП + источники'!$M$17:$M$65,"уплата процентов по кредитам из нормативной прибыли") -> 0 | AF107: =SUMIFS('ИП + источники'!AG$17:AG$65,'ИП + источники'!$A$17:$A$65,$A107,'ИП + источники'!$M$17:$M$65,"уплата процентов по кредитам из нормативной прибыли") -> 0 | AG107: =SUMIFS('ИП + источники'!AH$17:AH$65,'ИП + источники'!$A$17:$A$65,$A107,'ИП + источники'!$M$17:$M$65,"уплата процентов по кредитам из нормативной прибыли") -> 0 | AH107: =SUMIFS('ИП + источники'!AI$17:AI$65,'ИП + источники'!$A$17:$A$65,$A107,'ИП + источники'!$M$17:$M$65,"уплата процентов по кредитам из нормативной прибыли") -> 0 | AI107: =SUMIFS('ИП + источники'!AJ$17:AJ$65,'ИП + источники'!$A$17:$A$65,$A107,'ИП + источники'!$M$17:$M$65,"уплата процентов по кредитам из нормативной прибыли") -> 0 | AJ107: =SUMIFS('ИП + источники'!AK$17:AK$65,'ИП + источники'!$A$17:$A$65,$A107,'ИП + источники'!$M$17:$M$65,"уплата процентов по кредитам из нормативной прибыли") -> 0 | AK107: =SUMIFS('ИП + источники'!AL$17:AL$65,'ИП + источники'!$A$17:$A$65,$A107,'ИП + источники'!$M$17:$M$65,"уплата процентов по кредитам из нормативной прибыли") -> 0 | AL107: =SUMIFS('ИП + источники'!AM$17:AM$65,'ИП + источники'!$A$17:$A$65,$A107,'ИП + источники'!$M$17:$M$65,"уплата процентов по кредитам из нормативной прибыли") -> 0 | AM107: =SUMIFS('ИП + источники'!AN$17:AN$65,'ИП + источники'!$A$17:$A$65,$A107,'ИП + источники'!$M$17:$M$65,"уплата процентов по кредитам из нормативной прибыли") -> 0 | AN107: 0 | AO107: 0 | AP107: 0 | AQ107: 0 | AR107: 0 | AS107: 0 | AT107: 0 | AU107: 0 | AV107: 0 | AW107: 0
A108: 1 | D108: L5_3 | L108: 5.3 | M108: капитальные расходы | N108: тыс.руб. | O108: 0 | P108: =SUMIFS('ИП + источники'!Q$17:Q$65,'ИП + источники'!$A$17:$A$65,$A108,'ИП + источники'!$M$17:$M$65,"Прибыль на капвложения") -> 0 | Q108: =SUMIFS('ИП + источники'!R$17:R$65,'ИП + источники'!$A$17:$A$65,$A108,'ИП + источники'!$M$17:$M$65,"Прибыль на капвложения") -> 0 | R108: 0 | S108: 0 | T108: =SUMIFS('ИП + источники'!U$17:U$65,'ИП + источники'!$A$17:$A$65,$A108,'ИП + источники'!$M$17:$M$65,"Прибыль на капвложения") -> 0 | U108: =SUMIFS('ИП + источники'!V$17:V$65,'ИП + источники'!$A$17:$A$65,$A108,'ИП + источники'!$M$17:$M$65,"Прибыль на капвложения") -> 0 | V108: =SUMIFS('ИП + источники'!W$17:W$65,'ИП + источники'!$A$17:$A$65,$A108,'ИП + источники'!$M$17:$M$65,"Прибыль на капвложения") -> 0 | W108: =SUMIFS('ИП + источники'!X$17:X$65,'ИП + источники'!$A$17:$A$65,$A108,'ИП + источники'!$M$17:$M$65,"Прибыль на капвложения") -> 0 | X108: =SUMIFS('ИП + источники'!Y$17:Y$65,'ИП + источники'!$A$17:$A$65,$A108,'ИП + источники'!$M$17:$M$65,"Прибыль на капвложения") -> 0 | Y108: =SUMIFS('ИП + источники'!Z$17:Z$65,'ИП + источники'!$A$17:$A$65,$A108,'ИП + источники'!$M$17:$M$65,"Прибыль на капвложения") -> 0 | Z108: =SUMIFS('ИП + источники'!AA$17:AA$65,'ИП + источники'!$A$17:$A$65,$A108,'ИП + источники'!$M$17:$M$65,"Прибыль на капвложения") -> 0 | AA108: =SUMIFS('ИП + источники'!AB$17:AB$65,'ИП + источники'!$A$17:$A$65,$A108,'ИП + источники'!$M$17:$M$65,"Прибыль на капвложения") -> 0 | AB108: =SUMIFS('ИП + источники'!AC$17:AC$65,'ИП + источники'!$A$17:$A$65,$A108,'ИП + источники'!$M$17:$M$65,"Прибыль на капвложения") -> 0 | AC108: =SUMIFS('ИП + источники'!AD$17:AD$65,'ИП + источники'!$A$17:$A$65,$A108,'ИП + источники'!$M$17:$M$65,"Прибыль на капвложения") -> 0 | AD108: =SUMIFS('ИП + источники'!AE$17:AE$65,'ИП + источники'!$A$17:$A$65,$A108,'ИП + источники'!$M$17:$M$65,"Прибыль на капвложения") -> 0 | AE108: =SUMIFS('ИП + источники'!AF$17:AF$65,'ИП + источники'!$A$17:$A$65,$A108,'ИП + источники'!$M$17:$M$65,"Прибыль на капвложения") -> 0 | AF108: =SUMIFS('ИП + источники'!AG$17:AG$65,'ИП + источники'!$A$17:$A$65,$A108,'ИП + источники'!$M$17:$M$65,"Прибыль на капвложения") -> 0 | AG108: =SUMIFS('ИП + источники'!AH$17:AH$65,'ИП + источники'!$A$17:$A$65,$A108,'ИП + источники'!$M$17:$M$65,"Прибыль на капвложения") -> 0 | AH108: =SUMIFS('ИП + источники'!AI$17:AI$65,'ИП + источники'!$A$17:$A$65,$A108,'ИП + источники'!$M$17:$M$65,"Прибыль на капвложения") -> 0 | AI108: =SUMIFS('ИП + источники'!AJ$17:AJ$65,'ИП + источники'!$A$17:$A$65,$A108,'ИП + источники'!$M$17:$M$65,"Прибыль на капвложения") -> 0 | AJ108: =SUMIFS('ИП + источники'!AK$17:AK$65,'ИП + источники'!$A$17:$A$65,$A108,'ИП + источники'!$M$17:$M$65,"Прибыль на капвложения") -> 0 | AK108: =SUMIFS('ИП + источники'!AL$17:AL$65,'ИП + источники'!$A$17:$A$65,$A108,'ИП + источники'!$M$17:$M$65,"Прибыль на капвложения") -> 0 | AL108: =SUMIFS('ИП + источники'!AM$17:AM$65,'ИП + источники'!$A$17:$A$65,$A108,'ИП + источники'!$M$17:$M$65,"Прибыль на капвложения") -> 0 | AM108: =SUMIFS('ИП + источники'!AN$17:AN$65,'ИП + источники'!$A$17:$A$65,$A108,'ИП + источники'!$M$17:$M$65,"Прибыль на капвложения") -> 0 | AN108: 0 | AO108: 0 | AP108: 0 | AQ108: 0 | AR108: 0 | AS108: 0 | AT108: 0 | AU108: 0 | AV108: 0 | AW108: 0
